Workbook

Sheet 1-MetaPro_2022
A1: Código Dpto | B1: Departamento | C1: Municipio | D1: Divipola | E1: Poblaciòn Menor de 1 año (Meta Programática 2022) | F1: Poblaciòn de 1 año (Meta Programática 2022) | G1: Pob. 5 años (Meta Programática 2022) | H1: Q | I1: DEPARTAMENTO | J1: CODEP | K1: Poblaciòn Menor de 1 año (Meta Programática 2022) | L1: Poblaciòn de 1 año (Meta Programática 2022) | M1: Pob. 5 años (Meta Programática 2022) | N1: R | O1: Poblacion de 9 años DANE | R1: Total fase 1 | S1: Total fase 2 | T1: Gran total Pob Covid-19
A2: 05 | B2: ANTIOQUIA | C2: Medellin | D2: 05001 | E2: 25,902 | F2: 26,817 | G2: 28,016 | H2: 0 | I2: ANTIOQUIA | J2: 05 | K2: =SUMIF($A$2:$A$1122,J2,$E$2:$E$1122) -> 72,099 | L2: =SUMIF($A$2:$A$1122,J2,$F$2:$F$1122) -> 74,701 | M2: =SUMIF($A$2:$A$1122,J2,$G$2:$G$1122) -> 79,329 | N2: 0 | O2: 14957 | Q2: 05001 | R2: 852,035 | S2: 1,179,004 | T2: =R2+S2 -> 2,031,039 | V2: Rangos de edad | X2: 05001 | Y2: 14957
A3: 05 | B3: ANTIOQUIA | C3: Abejorral | D3: 05002 | E3: 161 | F3: 167 | G3: 242 | I3: ATLANTICO | J3: 08 | K3: =SUMIF($A$3:$A$1122,J3,$E$3:$E$1122) -> 21,197 | L3: =SUMIF($A$3:$A$1122,J3,$F$3:$F$1122) -> 21,565 | M3: =SUMIF($A$3:$A$1122,J3,$G$3:$G$1122) -> 22,982 | O3: 144 | Q3: 05002 | R3: 4,537 | S3: 8,657 | T3: =R3+S3 -> 13,194 | V3: 16 17 | X3: 05002 | Y3: 144
A4: 05 | B4: ANTIOQUIA | C4: Abriaqui | D4: 05004 | E4: 22 | F4: 22 | G4: 27 | I4: BARRANQUILLA | J4: 08001 | K4: =SUMIF($D$3:$D$1122,J4,$E$3:$E$1122) -> 19,802 | L4: =SUMIF($D$3:$D$1122,J4,$F$3:$F$1122) -> 20,849 | M4: =SUMIF($D$3:$D$1122,J4,$G$3:$G$1122) -> 22,374 | O4: 20 | Q4: 05004 | R4: 453 | S4: 1,171 | T4: 1,624 | V4: 18 - 22 | X4: 05004 | Y4: 20
A5: 05 | B5: ANTIOQUIA | C5: Alejandria | D5: 05021 | E5: 45 | F5: 46 | G5: 58 | I5: BOGOTA | J5: 11 | K5: =SUMIF($A$3:$A$1122,J5,$E$3:$E$1122) -> 90,967 | L5: =SUMIF($A$3:$A$1122,J5,$F$3:$F$1122) -> 93,996 | M5: =SUMIF($A$3:$A$1122,J5,$G$3:$G$1122) -> 96,930 | O5: 36 | Q5: 05021 | R5: 886 | S5: 1,959 | T5: 2,846 | V5: 23 - 27 | X5: 05021 | Y5: 36
A6: 05 | B6: ANTIOQUIA | C6: Amaga | D6: 05030 | E6: 269 | F6: 276 | G6: 299 | I6: BOLIVAR | J6: 13 | K6: =SUMIF($A$3:$A$1122,J6,$E$3:$E$1122) -> 18,473 | L6: =SUMIF($A$3:$A$1122,J6,$F$3:$F$1122) -> 19,368 | M6: =SUMIF($A$3:$A$1122,J6,$G$3:$G$1122) -> 20,614 | O6: 210 | Q6: 05030 | R6: 6,171 | S6: 14,239 | T6: 20,410 | V6: 28 - 32 | X6: 05030 | Y6: 210
A7: 05 | B7: ANTIOQUIA | C7: Amalfi | D7: 05031 | E7: 279 | F7: 296 | G7: 347 | I7: CARTAGENA | J7: 13001 | K7: =SUMIF($D$3:$D$1122,J7,$E$3:$E$1122) -> 16,175 | L7: =SUMIF($D$3:$D$1122,J7,$F$3:$F$1122) -> 17,942 | M7: =SUMIF($D$3:$D$1122,J7,$G$3:$G$1122) -> 18,393 | O7: 241 | Q7: 05031 | R7: 4,147 | S7: 11,750 | T7: 15,897 | V7: 33 - 37 | X7: 05031 | Y7: 241
A8: 05 | B8: ANTIOQUIA | C8: Andes | D8: 05034 | E8: 444 | F8: 457 | G8: 463 | I8: BOYACA | J8: 15 | K8: =SUMIF($A$3:$A$1122,J8,$E$3:$E$1122) -> 13,730 | L8: =SUMIF($A$3:$A$1122,J8,$F$3:$F$1122) -> 14,484 | M8: =SUMIF($A$3:$A$1122,J8,$G$3:$G$1122) -> 16,894 | O8: 309 | Q8: 05034 | R8: 9,366 | S8: 19,530 | T8: 28,896 | V8: 38 - 42 | X8: 05034 | Y8: 309
A9: 05 | B9: ANTIOQUIA | C9: Angelopolis | D9: 05036 | E9: 58 | F9: 63 | G9: 69 | I9: CALDAS | J9: 17 | K9: 8,721 | L9: 9,217 | M9: 10,478 | O9: 42 | Q9: 05036 | R9: 1,067 | S9: 2,548 | T9: 3,615 | V9: 43 - 47 | X9: 05036 | Y9: 42
A10: 05 | B10: ANTIOQUIA | C10: Angostura | D10: 05038 | E10: 120 | F10: 126 | G10: 128 | I10: CAQUETA | J10: 18 | K10: 6,564 | L10: 6,969 | M10: 7,426 | O10: 99 | Q10: 05038 | R10: 2,198 | S10: 4,921 | T10: 7,119 | V10: 48 - 52 | X10: 05038 | Y10: 99
A11: 05 | B11: ANTIOQUIA | C11: Anori | D11: 05040 | E11: 228 | F11: 249 | G11: 256 | I11: CAUCA | J11: 19 | K11: 19,592 | L11: 20,262 | M11: 21,724 | O11: 186 | Q11: 05040 | R11: 2,671 | S11: 8,142 | T11: 10,813 | V11: 53 - 57 | X11: 05040 | Y11: 186
A12: 05 | B12: ANTIOQUIA | C12: Santafe de Antioquia | D12: 05042 | E12: 322 | F12: 322 | G12: 345 | I12: CESAR | J12: 20 | K12: 22,660 | L12: 23,305 | M12: 24,304 | O12: 205 | Q12: 05042 | R12: 6,000 | S12: 11,957 | T12: 17,957 | V12: 58 - 59 | X12: 05042 | Y12: 205
A13: 05 | B13: ANTIOQUIA | C13: Anza | D13: 05044 | E13: 98 | F13: 98 | G13: 98 | I13: CORDOBA | J13: 23 | K13: 27,076 | L13: 27,651 | M13: 29,670 | O13: 62 | Q13: 05044 | R13: 1,358 | S13: 3,057 | T13: 4,415 | X13: 05044 | Y13: 62
A14: 05 | B14: ANTIOQUIA | C14: Apartado | D14: 05045 | E14: 2,103 | F14: 2,167 | G14: 2,211 | I14: CUNDINAMARCA | J14: 25 | K14: 33,569 | L14: 35,320 | M14: 38,650 | O14: 1170 | Q14: 05045 | R14: 27,992 | S14: 57,526 | T14: 85,518 | X14: 05045 | Y14: 1170
A15: 05 | B15: ANTIOQUIA | C15: Arboletes | D15: 05051 | E15: 485 | F15: 487 | G15: 570 | I15: CHOCO | J15: 27 | K15: 9,300 | L15: 10,101 | M15: 10,621 | O15: 311 | Q15: 05051 | R15: 5,868 | S15: 12,324 | T15: 18,192 | X15: 05051 | Y15: 311
A16: 05 | B16: ANTIOQUIA | C16: Argelia | D16: 05055 | E16: 104 | F16: 107 | G16: 110 | I16: HUILA | J16: 41 | K16: 17,459 | L16: 18,058 | M16: 19,914 | O16: 64 | Q16: 05055 | R16: 1,479 | S16: 3,096 | T16: 4,575 | X16: 05055 | Y16: 64
A17: 05 | B17: ANTIOQUIA | C17: Armenia | D17: 05059 | E17: 30 | F17: 33 | G17: 37 | I17: LA GUAJIRA | J17: 44 | K17: 21,111 | L17: 22,144 | M17: 23,063 | O17: 35 | Q17: 05059 | R17: 1,349 | S17: 2,092 | T17: 3,442 | X17: 05059 | Y17: 35
A18: 05 | B18: ANTIOQUIA | C18: Barbosa | D18: 05079 | E18: 429 | F18: 443 | G18: 465 | I18: MAGDALENA | J18: 47 | K18: 16,034 | L18: 16,613 | M18: 17,418 | O18: 352 | Q18: 05079 | R18: 11,340 | S18: 24,777 | T18: 36,117 | X18: 05079 | Y18: 352
A19: 05 | B19: ANTIOQUIA | C19: Belmira | D19: 05086 | E19: 54 | F19: 56 | G19: 67 | I19: SANTA MARTA | J19: 47001 | K19: =SUMIF($D$3:$D$1122,J19,$E$3:$E$1122) -> 8,239 | L19: =SUMIF($D$3:$D$1122,J19,$F$3:$F$1122) -> 8,392 | M19: =SUMIF($D$3:$D$1122,J19,$G$3:$G$1122) -> 8,689 | O19: 57 | Q19: 05086 | R19: 839 | S19: 2,658 | T19: 3,497 | X19: 05086 | Y19: 57
A20: 05 | B20: ANTIOQUIA | C20: Bello | D20: 05088 | E20: 4,661 | F20: 4,770 | G20: 5,037 | I20: META | J20: 50 | K20: =SUMIF($A$3:$A$1122,J20,$E$3:$E$1122) -> 14,484 | L20: =SUMIF($A$3:$A$1122,J20,$F$3:$F$1122) -> 15,149 | M20: =SUMIF($A$3:$A$1122,J20,$G$3:$G$1122) -> 16,175 | O20: 3486 | Q20: 05088 | R20: 122,485 | S20: 261,228 | T20: 383,713 | X20: 05088 | Y20: 3486
A21: 05 | B21: ANTIOQUIA | C21: Betania | D21: 05091 | E21: 92 | F21: 95 | G21: 107 | I21: NARIÑO | J21: 52 | K21: 18,378 | L21: 19,033 | M21: 20,963 | O21: 90 | Q21: 05091 | R21: 1,789 | S21: 4,380 | T21: 6,169 | X21: 05091 | Y21: 90
A22: 05 | B22: ANTIOQUIA | C22: Betulia | D22: 05093 | E22: 208 | F22: 219 | G22: 240 | I22: NORTE DE SANTANDER | J22: 54 | K22: 23,159 | L22: 24,048 | M22: 24,180 | O22: 143 | Q22: 05093 | R22: 3,170 | S22: 6,812 | T22: 9,983 | X22: 05093 | Y22: 143
A23: 05 | B23: ANTIOQUIA | C23: Ciudad Bolivar | D23: 05101 | E23: 286 | F23: 288 | G23: 334 | I23: QUINDIO | J23: 63 | K23: 5,298 | L23: 5,665 | M23: 6,156 | O23: 196 | Q23: 05101 | R23: 6,918 | S23: 11,321 | T23: 18,239 | X23: 05101 | Y23: 196
A24: 05 | B24: ANTIOQUIA | C24: Briceño | D24: 05107 | E24: 94 | F24: 104 | G24: 115 | I24: RISARALDA | J24: 66 | K24: 9,914 | L24: 10,411 | M24: 11,696 | O24: 78 | Q24: 05107 | R24: 1,169 | S24: 3,399 | T24: 4,568 | X24: 05107 | Y24: 78
A25: 05 | B25: ANTIOQUIA | C25: Buritica | D25: 05113 | E25: 104 | F25: 109 | G25: 116 | I25: SANTANDER | J25: 68 | K25: 28,187 | L25: 28,679 | M25: 31,095 | O25: 94 | Q25: 05113 | R25: 1,459 | S25: 4,043 | T25: 5,502 | X25: 05113 | Y25: 94
A26: 05 | B26: ANTIOQUIA | C26: Caceres | D26: 05120 | E26: 432 | F26: 447 | G26: 471 | I26: SUCRE | J26: 70 | K26: 13,943 | L26: 14,842 | M26: 15,586 | O26: 336 | Q26: 05120 | R26: 3,992 | S26: 12,035 | T26: 16,027 | X26: 05120 | Y26: 336
A27: 05 | B27: ANTIOQUIA | C27: Caicedo | D27: 05125 | E27: 113 | F27: 113 | G27: 134 | I27: TOLIMA | J27: 73 | K27: 15,759 | L27: 16,478 | M27: 18,368 | O27: 79 | Q27: 05125 | R27: 1,492 | S27: 3,638 | T27: 5,130 | X27: 05125 | Y27: 79
A28: 05 | B28: ANTIOQUIA | C28: Caldas | D28: 05129 | E28: 776 | F28: 816 | G28: 849 | I28: VALLE DEL CAUCA | J28: 76 | K28: 49,048 | L28: 51,056 | M28: 54,407 | O28: 466 | Q28: 05129 | R28: 26,740 | S28: 39,205 | T28: 65,945 | X28: 05129 | Y28: 466
A29: 05 | B29: ANTIOQUIA | C29: Campamento | D29: 05134 | E29: 87 | F29: 88 | G29: 109 | I29: BUENAVENTURA | J29: 76109 | K29: =SUMIF($D$3:$D$1122,J29,$E$3:$E$1122) -> 4,570 | L29: =SUMIF($D$3:$D$1122,J29,$F$3:$F$1122) -> 4,637 | M29: =SUMIF($D$3:$D$1122,J29,$G$3:$G$1122) -> 5,304 | O29: 88 | Q29: 05134 | R29: 1,397 | S29: 3,824 | T29: 5,221 | X29: 05134 | Y29: 88
A30: 05 | B30: ANTIOQUIA | C30: Cañasgordas | D30: 05138 | E30: 169 | F30: 174 | G30: 187 | I30: ARAUCA | J30: 81 | K30: =SUMIF($A$3:$A$1122,J30,$E$3:$E$1122) -> 5,184 | L30: =SUMIF($A$3:$A$1122,J30,$F$3:$F$1122) -> 5,350 | M30: =SUMIF($A$3:$A$1122,J30,$G$3:$G$1122) -> 5,180 | O30: 135 | Q30: 05138 | R30: 3,430 | S30: 6,465 | T30: 9,895 | X30: 05138 | Y30: 135
A31: 05 | B31: ANTIOQUIA | C31: Caracoli | D31: 05142 | E31: 53 | F31: 54 | G31: 55 | I31: CASANARE | J31: 85 | K31: 6,518 | L31: 6,820 | M31: 7,061 | O31: 31 | Q31: 05142 | R31: 1,151 | S31: 1,892 | T31: 3,043 | X31: 05142 | Y31: 31
A32: 05 | B32: ANTIOQUIA | C32: Caramanta | D32: 05145 | E32: 42 | F32: 43 | G32: 45 | I32: PUTUMAYO | J32: 86 | K32: 4,725 | L32: 4,933 | M32: 5,239 | O32: 31 | Q32: 05145 | R32: 1,227 | S32: 1,998 | T32: 3,225 | X32: 05145 | Y32: 31
A33: 05 | B33: ANTIOQUIA | C33: Carepa | D33: 05147 | E33: 953 | F33: 963 | G33: 957 | I33: SAN ANDRES ISLAS | J33: 88 | K33: 727 | L33: 764 | M33: 883 | O33: 514 | Q33: 05147 | R33: 9,392 | S33: 22,491 | T33: 31,883 | X33: 05147 | Y33: 514
A34: 05 | B34: ANTIOQUIA | C34: El Carmen de Viboral | D34: 05148 | E34: 619 | F34: 625 | G34: 651 | I34: AMAZONAS | J34: 91 | K34: 1,477 | L34: 1,573 | M34: 1,847 | O34: 473 | Q34: 05148 | R34: 10,882 | S34: 28,287 | T34: 39,169 | X34: 05148 | Y34: 473
A35: 05 | B35: ANTIOQUIA | C35: Carolina | D35: 05150 | E35: 23 | F35: 29 | G35: 33 | I35: GUAINIA | J35: 94 | K35: 922 | L35: 998 | M35: 1,024 | O35: 22 | Q35: 05150 | R35: 997 | S35: 1,774 | T35: 2,771 | X35: 05150 | Y35: 22
A36: 05 | B36: ANTIOQUIA | C36: Caucasia | D36: 05154 | E36: 1,552 | F36: 1,633 | G36: 1,671 | I36: GUAVIARE | J36: 95 | K36: 1,347 | L36: 1,401 | M36: 1,470 | O36: 933 | Q36: 05154 | R36: 19,196 | S36: 40,808 | T36: 60,004 | X36: 05154 | Y36: 933
A37: 05 | B37: ANTIOQUIA | C37: Chigorodo | D37: 05172 | E37: 1,150 | F37: 1,197 | G37: 1,236 | I37: VAUPES | J37: 97 | K37: 700 | L37: 723 | M37: 779 | O37: 602 | Q37: 05172 | R37: 11,833 | S37: 25,868 | T37: 37,701 | X37: 05172 | Y37: 602
A38: 05 | B38: ANTIOQUIA | C38: Cisneros | D38: 05190 | E38: 126 | F38: 141 | G38: 138 | I38: VICHADA | J38: 99 | K38: 1,663 | L38: 1,715 | M38: 1,850 | O38: 71 | Q38: 05190 | R38: 2,762 | S38: 4,285 | T38: 7,047 | X38: 05190 | Y38: 71
A39: 05 | B39: ANTIOQUIA | C39: Cocorna | D39: 05197 | E39: 179 | F39: 184 | G39: 213 | O39: 124 | Q39: 05197 | R39: 3,406 | S39: 6,102 | T39: 9,507 | X39: 05197 | Y39: 124
A40: 05 | B40: ANTIOQUIA | C40: Concepcion | D40: 05206 | E40: 38 | F40: 38 | G40: 50 | I40: TOTAL NACIONAL | K40: =SUM(K2:K38) -> 648,771 | L40: =SUM(L2:L38) -> 675,212 | M40: =SUM(M2:M38) -> 718,736 | O40: 30 | Q40: 05206 | R40: 1,075 | S40: 1,999 | T40: 3,074 | X40: 05206 | Y40: 30
A41: 05 | B41: ANTIOQUIA | C41: Concordia | D41: 05209 | E41: 191 | F41: 198 | G41: 208 | O41: 170 | Q41: 05209 | R41: 4,273 | S41: 9,348 | T41: 13,621 | X41: 05209 | Y41: 170
A42: 05 | B42: ANTIOQUIA | C42: Copacabana | D42: 05212 | E42: 536 | F42: 551 | G42: 660 | O42: 458 | Q42: 05212 | R42: 20,820 | S42: 38,560 | T42: 59,380 | X42: 05212 | Y42: 458
A43: 05 | B43: ANTIOQUIA | C43: Dabeiba | D43: 05234 | E43: 339 | F43: 390 | G43: 431 | O43: 264 | Q43: 05234 | R43: 3,755 | S43: 9,133 | T43: 12,888 | X43: 05234 | Y43: 264
A44: 05 | B44: ANTIOQUIA | C44: Don Matias | D44: 05237 | E44: 203 | F44: 230 | G44: 240 | O44: 156 | Q44: 05237 | R44: 4,706 | S44: 8,783 | T44: 13,489 | X44: 05237 | Y44: 156
A45: 05 | B45: ANTIOQUIA | C45: Ebejico | D45: 05240 | E45: 94 | F45: 99 | G45: 111 | O45: 82 | Q45: 05240 | R45: 3,017 | S45: 5,066 | T45: 8,083 | X45: 05240 | Y45: 82
A46: 05 | B46: ANTIOQUIA | C46: El Bagre | D46: 05250 | E46: 905 | F46: 944 | G46: 1,088 | O46: 609 | Q46: 05250 | R46: 8,836 | S46: 22,021 | T46: 30,856 | X46: 05250 | Y46: 609
A47: 05 | B47: ANTIOQUIA | C47: Entrerrios | D47: 05264 | E47: 132 | F47: 145 | G47: 147 | O47: 102 | Q47: 05264 | R47: 1,830 | S47: 5,266 | T47: 7,097 | X47: 05264 | Y47: 102
A48: 05 | B48: ANTIOQUIA | C48: Envigado | D48: 05266 | E48: 1,354 | F48: 1,399 | G48: 1,578 | O48: 1070 | Q48: 05266 | R48: 78,507 | S48: 113,186 | T48: 191,693 | X48: 05266 | Y48: 1070
A49: 05 | B49: ANTIOQUIA | C49: Fredonia | D49: 05282 | E49: 171 | F49: 172 | G49: 192 | O49: 165 | Q49: 05282 | R49: 5,036 | S49: 10,716 | T49: 15,752 | X49: 05282 | Y49: 165
A50: 05 | B50: ANTIOQUIA | C50: Frontino | D50: 05284 | E50: 324 | F50: 378 | G50: 417 | O50: 205 | Q50: 05284 | R50: 4,371 | S50: 8,286 | T50: 12,657 | X50: 05284 | Y50: 205
A51: 05 | B51: ANTIOQUIA | C51: Giraldo | D51: 05306 | E51: 84 | F51: 83 | G51: 104 | O51: 53 | Q51: 05306 | R51: 946 | S51: 2,400 | T51: 3,346 | X51: 05306 | Y51: 53
A52: 05 | B52: ANTIOQUIA | C52: Girardota | D52: 05308 | E52: 491 | F52: 520 | G52: 542 | O52: 333 | Q52: 05308 | R52: 14,245 | S52: 25,297 | T52: 39,542 | X52: 05308 | Y52: 333
A53: 05 | B53: ANTIOQUIA | C53: Gomez Plata | D53: 05310 | E53: 76 | F53: 79 | G53: 85 | O53: 71 | Q53: 05310 | R53: 2,081 | S53: 4,236 | T53: 6,317 | X53: 05310 | Y53: 71
A54: 05 | B54: ANTIOQUIA | C54: Granada | D54: 05313 | E54: 151 | F54: 147 | G54: 153 | O54: 83 | Q54: 05313 | R54: 2,197 | S54: 3,937 | T54: 6,134 | X54: 05313 | Y54: 83
A55: 05 | B55: ANTIOQUIA | C55: Guadalupe | D55: 05315 | E55: 74 | F55: 74 | G55: 75 | O55: 54 | Q55: 05315 | R55: 1,224 | S55: 2,902 | T55: 4,127 | X55: 05315 | Y55: 54
A56: 05 | B56: ANTIOQUIA | C56: Guarne | D56: 05318 | E56: 425 | F56: 451 | G56: 464 | O56: 350 | Q56: 05318 | R56: 11,195 | S56: 26,300 | T56: 37,495 | X56: 05318 | Y56: 350
A57: 05 | B57: ANTIOQUIA | C57: Guatape | D57: 05321 | E57: 89 | F57: 93 | G57: 106 | O57: 59 | Q57: 05321 | R57: 1,383 | S57: 3,861 | T57: 5,243 | X57: 05321 | Y57: 59
A58: 05 | B58: ANTIOQUIA | C58: Heliconia | D58: 05347 | E58: 48 | F58: 49 | G58: 55 | O58: 33 | Q58: 05347 | R58: 1,274 | S58: 2,338 | T58: 3,612 | X58: 05347 | Y58: 33
A59: 05 | B59: ANTIOQUIA | C59: Hispania | D59: 05353 | E59: 51 | F59: 51 | G59: 62 | O59: 42 | Q59: 05353 | R59: 1,153 | S59: 2,385 | T59: 3,538 | X59: 05353 | Y59: 42
A60: 05 | B60: ANTIOQUIA | C60: Itagui | D60: 05360 | E60: 2,684 | F60: 2,759 | G60: 2,992 | O60: 1572 | Q60: 05360 | R60: 90,187 | S60: 137,249 | T60: 227,436 | X60: 05360 | Y60: 1572
A61: 05 | B61: ANTIOQUIA | C61: Ituango | D61: 05361 | E61: 259 | F61: 265 | G61: 329 | O61: 214 | Q61: 05361 | R61: 4,105 | S61: 12,873 | T61: 16,978 | X61: 05361 | Y61: 214
A62: 05 | B62: ANTIOQUIA | C62: Jardin | D62: 05364 | E62: 142 | F62: 147 | G62: 173 | O62: 101 | Q62: 05364 | R62: 3,672 | S62: 6,365 | T62: 10,038 | X62: 05364 | Y62: 101
A63: 05 | B63: ANTIOQUIA | C63: Jerico | D63: 05368 | E63: 98 | F63: 98 | G63: 128 | O63: 87 | Q63: 05368 | R63: 3,335 | S63: 5,875 | T63: 9,210 | X63: 05368 | Y63: 87
A64: 05 | B64: ANTIOQUIA | C64: La Ceja | D64: 05376 | E64: 673 | F64: 679 | G64: 787 | O64: 439 | Q64: 05376 | R64: 20,119 | S64: 31,403 | T64: 51,522 | X64: 05376 | Y64: 439
A65: 05 | B65: ANTIOQUIA | C65: La Estrella | D65: 05380 | E65: 514 | F65: 563 | G65: 535 | O65: 420 | Q65: 05380 | R65: 14,845 | S65: 35,816 | T65: 50,660 | X65: 05380 | Y65: 420
A66: 05 | B66: ANTIOQUIA | C66: La Pintada | D66: 05390 | E66: 116 | F66: 115 | G66: 124 | O66: 61 | Q66: 05390 | R66: 1,507 | S66: 3,910 | T66: 5,417 | X66: 05390 | Y66: 61
A67: 05 | B67: ANTIOQUIA | C67: La Union | D67: 05400 | E67: 268 | F67: 270 | G67: 298 | O67: 165 | Q67: 05400 | R67: 4,480 | S67: 10,073 | T67: =R67+S67 -> 14,554 | X67: 05400 | Y67: 165
A68: 05 | B68: ANTIOQUIA | C68: Liborina | D68: 05411 | E68: 96 | F68: 96 | G68: 122 | O68: 78 | Q68: 05411 | R68: 2,241 | S68: 4,216 | T68: 6,457 | X68: 05411 | Y68: 78
A69: 05 | B69: ANTIOQUIA | C69: Maceo | D69: 05425 | E69: 101 | F69: 108 | G69: 116 | O69: 73 | Q69: 05425 | R69: 1,917 | S69: 3,409 | T69: 5,326 | X69: 05425 | Y69: 73
A70: 05 | B70: ANTIOQUIA | C70: Marinilla | D70: 05440 | E70: 764 | F70: 781 | G70: 774 | O70: 486 | Q70: 05440 | R70: 14,104 | S70: 30,774 | T70: 44,877 | X70: 05440 | Y70: 486
A71: 05 | B71: ANTIOQUIA | C71: Montebello | D71: 05467 | E71: 56 | F71: 63 | G71: 66 | O71: 48 | Q71: 05467 | R71: 1,599 | S71: 2,764 | T71: 4,363 | X71: 05467 | Y71: 48
A72: 05 | B72: ANTIOQUIA | C72: Murindo | D72: 05475 | E72: 123 | F72: 125 | G72: 146 | O72: 72 | Q72: 05475 | R72: 509 | S72: 1,866 | T72: 2,375 | X72: 05475 | Y72: 72
A73: 05 | B73: ANTIOQUIA | C73: Mutata | D73: 05480 | E73: 506 | F73: 509 | G73: 536 | O73: 164 | Q73: 05480 | R73: 2,557 | S73: 5,767 | T73: 8,324 | X73: 05480 | Y73: 164
A74: 05 | B74: ANTIOQUIA | C74: Nariño | D74: 05483 | E74: 125 | F74: 126 | G74: 142 | O74: 84 | Q74: 05483 | R74: 2,325 | S74: 4,039 | T74: 6,364 | X74: 05483 | Y74: 84
A75: 05 | B75: ANTIOQUIA | C75: Necocli | D75: 05490 | E75: 914 | F75: 987 | G75: 1,098 | O75: 504 | Q75: 05490 | R75: 7,817 | S75: 17,647 | T75: 25,463 | X75: 05490 | Y75: 504
A76: 05 | B76: ANTIOQUIA | C76: Nechi | D76: 05495 | E76: 447 | F76: 460 | G76: 511 | O76: 315 | Q76: 05495 | R76: 3,843 | S76: 10,902 | T76: 14,744 | X76: 05495 | Y76: 315
A77: 05 | B77: ANTIOQUIA | C77: Olaya | D77: 05501 | E77: 26 | F77: 27 | G77: 33 | O77: 26 | Q77: 05501 | R77: 579 | S77: 1,306 | T77: 1,886 | X77: 05501 | Y77: 26
A78: 05 | B78: ANTIOQUIA | C78: Peñol | D78: 05541 | E78: 245 | F78: 246 | G78: 258 | O78: 160 | Q78: 05541 | R78: 4,065 | S78: 9,433 | T78: 13,498 | X78: 05541 | Y78: 160
A79: 05 | B79: ANTIOQUIA | C79: Peque | D79: 05543 | E79: 105 | F79: 105 | G79: 123 | O79: 75 | Q79: 05543 | R79: 1,423 | S79: 3,384 | T79: 4,807 | X79: 05543 | Y79: 75
A80: 05 | B80: ANTIOQUIA | C80: Pueblorrico | D80: 05576 | E80: 90 | F80: 93 | G80: 105 | O80: 70 | Q80: 05576 | R80: 1,914 | S80: 3,651 | T80: 5,564 | X80: 05576 | Y80: 70
A81: 05 | B81: ANTIOQUIA | C81: Puerto Berrio | D81: 05579 | E81: 547 | F81: 551 | G81: 593 | O81: 318 | Q81: 05579 | R81: 9,295 | S81: 18,220 | T81: 27,515 | X81: 05579 | Y81: 318
A82: 05 | B82: ANTIOQUIA | C82: Puerto Nare | D82: 05585 | E82: 134 | F82: 136 | G82: 137 | O82: 120 | Q82: 05585 | R82: 2,387 | S82: 6,196 | T82: 8,583 | X82: 05585 | Y82: 120
A83: 05 | B83: ANTIOQUIA | C83: Puerto Triunfo | D83: 05591 | E83: 218 | F83: 228 | G83: 229 | O83: 152 | Q83: 05591 | R83: 2,248 | S83: 8,661 | T83: 10,909 | X83: 05591 | Y83: 152
A84: 05 | B84: ANTIOQUIA | C84: Remedios | D84: 05604 | E84: 472 | F84: 479 | G84: 481 | O84: 290 | Q84: 05604 | R84: 3,851 | S84: 12,687 | T84: 16,537 | X84: 05604 | Y84: 290
A85: 05 | B85: ANTIOQUIA | C85: Retiro | D85: 05607 | E85: 116 | F85: 132 | G85: 143 | O85: 147 | Q85: 05607 | R85: 4,165 | S85: 11,178 | T85: 15,343 | X85: 05607 | Y85: 147
A86: 05 | B86: ANTIOQUIA | C86: Rionegro | D86: 05615 | E86: 1,672 | F86: 1,776 | G86: 1,920 | O86: 843 | Q86: 05615 | R86: 47,762 | S86: 66,586 | T86: 114,348 | X86: 05615 | Y86: 843
A87: 05 | B87: ANTIOQUIA | C87: Sabanalarga | D87: 05628 | E87: 120 | F87: 121 | G87: 136 | O87: 88 | Q87: 05628 | R87: 1,440 | S87: 3,835 | T87: 5,275 | X87: 05628 | Y87: 88
A88: 05 | B88: ANTIOQUIA | C88: Sabaneta | D88: 05631 | E88: 572 | F88: 616 | G88: 663 | O88: 414 | Q88: 05631 | R88: 23,139 | S88: 42,443 | T88: 65,582 | X88: 05631 | Y88: 414
A89: 05 | B89: ANTIOQUIA | C89: Salgar | D89: 05642 | E89: 170 | F89: 170 | G89: 189 | O89: 150 | Q89: 05642 | R89: 3,601 | S89: 7,909 | T89: 11,510 | X89: 05642 | Y89: 150
A90: 05 | B90: ANTIOQUIA | C90: San Andres de Cuerquia | D90: 05647 | E90: 90 | F90: 93 | G90: 99 | O90: 69 | Q90: 05647 | R90: 1,187 | S90: 3,027 | T90: 4,214 | X90: 05647 | Y90: 69
A91: 05 | B91: ANTIOQUIA | C91: San Carlos | D91: 05649 | E91: 168 | F91: 181 | G91: 202 | O91: 130 | Q91: 05649 | R91: 2,938 | S91: 6,627 | T91: 9,565 | X91: 05649 | Y91: 130
A92: 05 | B92: ANTIOQUIA | C92: San Francisco | D92: 05652 | E92: 80 | F92: 80 | G92: 112 | O92: 58 | Q92: 05652 | R92: 1,299 | S92: 2,309 | T92: 3,608 | X92: 05652 | Y92: 58
A93: 05 | B93: ANTIOQUIA | C93: San Jeronimo | D93: 05656 | E93: 152 | F93: 158 | G93: 168 | O93: 122 | Q93: 05656 | R93: 2,991 | S93: 7,115 | T93: 10,106 | X93: 05656 | Y93: 122
A94: 05 | B94: ANTIOQUIA | C94: San Jose de La Montaña | D94: 05658 | E94: 49 | F94: 50 | G94: 52 | O94: 42 | Q94: 05658 | R94: 614 | S94: 1,644 | T94: 2,258 | X94: 05658 | Y94: 42
A95: 05 | B95: ANTIOQUIA | C95: San Juan de Uraba | D95: 05659 | E95: 409 | F95: 416 | G95: 444 | O95: 243 | Q95: 05659 | R95: 3,229 | S95: 8,306 | T95: 11,535 | X95: 05659 | Y95: 243
A96: 05 | B96: ANTIOQUIA | C96: San Luis | D96: 05660 | E96: 210 | F96: 223 | G96: 239 | O96: 124 | Q96: 05660 | R96: 2,630 | S96: 5,434 | T96: 8,064 | X96: 05660 | Y96: 124
A97: 05 | B97: ANTIOQUIA | C97: San Pedro | D97: 05664 | E97: 307 | F97: 332 | G97: 361 | O97: 178 | Q97: 05664 | R97: 4,746 | S97: 10,382 | T97: 15,128 | X97: 05664 | Y97: 178
A98: 05 | B98: ANTIOQUIA | C98: San Pedro de Uraba | D98: 05665 | E98: 555 | F98: 554 | G98: 554 | O98: 329 | Q98: 05665 | R98: 5,651 | S98: 13,308 | T98: 18,960 | X98: 05665 | Y98: 329
A99: 05 | B99: ANTIOQUIA | C99: San Rafael | D99: 05667 | E99: 168 | F99: 171 | G99: 193 | O99: 112 | Q99: 05667 | R99: 3,240 | S99: 6,670 | T99: 9,910 | X99: 05667 | Y99: 112
A100: 05 | B100: ANTIOQUIA | C100: San Roque | D100: 05670 | E100: 214 | F100: 226 | G100: 237 | O100: 180 | Q100: 05670 | R100: 4,210 | S100: 9,182 | T100: 13,392 | X100: 05670 | Y100: 180
A101: 05 | B101: ANTIOQUIA | C101: San Vicente | D101: 05674 | E101: 174 | F101: 176 | G101: 192 | O101: 160 | Q101: 05674 | R101: 3,449 | S101: 9,844 | T101: 13,293 | X101: 05674 | Y101: 160
A102: 05 | B102: ANTIOQUIA | C102: Santa Barbara | D102: 05679 | E102: 186 | F102: 189 | G102: 200 | O102: 173 | Q102: 05679 | R102: 5,970 | S102: 11,620 | T102: 17,589 | X102: 05679 | Y102: 173
A103: 05 | B103: ANTIOQUIA | C103: Santa Rosa de Osos | D103: 05686 | E103: 454 | F103: 479 | G103: 518 | O103: 318 | Q103: 05686 | R103: 7,278 | S103: 16,924 | T103: 24,203 | X103: 05686 | Y103: 318
A104: 05 | B104: ANTIOQUIA | C104: Santo Domingo | D104: 05690 | E104: 64 | F104: 75 | G104: 100 | O104: 90 | Q104: 05690 | R104: 2,181 | S104: 5,267 | T104: 7,448 | X104: 05690 | Y104: 90
A105: 05 | B105: ANTIOQUIA | C105: El Santuario | D105: 05697 | E105: 510 | F105: 520 | G105: 518 | O105: 315 | Q105: 05697 | R105: 5,678 | S105: 15,481 | T105: 21,159 | X105: 05697 | Y105: 315
A106: 05 | B106: ANTIOQUIA | C106: Segovia | D106: 05736 | E106: 619 | F106: 635 | G106: 668 | O106: 358 | Q106: 05736 | R106: 5,876 | S106: 17,463 | T106: 23,340 | X106: 05736 | Y106: 358
A107: 05 | B107: ANTIOQUIA | C107: Sonson | D107: 05756 | E107: 404 | F107: 416 | G107: 421 | O107: 289 | Q107: 05756 | R107: 7,405 | S107: 15,881 | T107: 23,286 | X107: 05756 | Y107: 289
A108: 05 | B108: ANTIOQUIA | C108: Sopetran | D108: 05761 | E108: 146 | F108: 148 | G108: 148 | O108: 114 | Q108: 05761 | R108: 2,978 | S108: 6,760 | T108: 9,738 | X108: 05761 | Y108: 114
A109: 05 | B109: ANTIOQUIA | C109: Tamesis | D109: 05789 | E109: 134 | F109: 134 | G109: 156 | O109: 108 | Q109: 05789 | R109: 4,078 | S109: 6,930 | T109: 11,009 | X109: 05789 | Y109: 108
A110: 05 | B110: ANTIOQUIA | C110: Taraza | D110: 05790 | E110: 461 | F110: 495 | G110: 519 | O110: 316 | Q110: 05790 | R110: 4,404 | S110: 11,523 | T110: 15,927 | X110: 05790 | Y110: 316
A111: 05 | B111: ANTIOQUIA | C111: Tarso | D111: 05792 | E111: 63 | F111: 67 | G111: 77 | O111: 45 | Q111: 05792 | R111: 1,298 | S111: 2,738 | T111: 4,037 | X111: 05792 | Y111: 45
A112: 05 | B112: ANTIOQUIA | C112: Titiribi | D112: 05809 | E112: 64 | F112: 72 | G112: 83 | O112: 70 | Q112: 05809 | R112: 2,313 | S112: 4,609 | T112: 6,922 | X112: 05809 | Y112: 70
A113: 05 | B113: ANTIOQUIA | C113: Toledo | D113: 05819 | E113: 58 | F113: 58 | G113: 78 | O113: 47 | Q113: 05819 | R113: 893 | S113: 2,100 | T113: 2,994 | X113: 05819 | Y113: 47
A114: 05 | B114: ANTIOQUIA | C114: Turbo | D114: 05837 | E114: 2,627 | F114: 2,649 | G114: 2,720 | O114: 1426 | Q114: 05837 | R114: 21,519 | S114: 53,907 | T114: 75,425 | X114: 05837 | Y114: 1426
A115: 05 | B115: ANTIOQUIA | C115: Uramita | D115: 05842 | E115: 79 | F115: 87 | G115: 106 | O115: 63 | Q115: 05842 | R115: 1,349 | S115: 2,796 | T115: 4,145 | X115: 05842 | Y115: 63
A116: 05 | B116: ANTIOQUIA | C116: Urrao | D116: 05847 | E116: 400 | F116: 439 | G116: 489 | O116: 293 | Q116: 05847 | R116: 5,560 | S116: 12,830 | T116: 18,391 | X116: 05847 | Y116: 293
A117: 05 | B117: ANTIOQUIA | C117: Valdivia | D117: 05854 | E117: 226 | F117: 237 | G117: 270 | O117: 144 | Q117: 05854 | R117: 2,307 | S117: 5,902 | T117: 8,209 | X117: 05854 | Y117: 144
A118: 05 | B118: ANTIOQUIA | C118: Valparaiso | D118: 05856 | E118: 50 | F118: 53 | G118: 55 | O118: 40 | Q118: 05856 | R118: 1,411 | S118: 2,799 | T118: 4,210 | X118: 05856 | Y118: 40
A119: 05 | B119: ANTIOQUIA | C119: Vegachi | D119: 05858 | E119: 188 | F119: 193 | G119: 197 | O119: 101 | Q119: 05858 | R119: 2,711 | S119: 5,219 | T119: 7,930 | X119: 05858 | Y119: 101
A120: 05 | B120: ANTIOQUIA | C120: Venecia | D120: 05861 | E120: 112 | F120: 112 | G120: 116 | O120: 73 | Q120: 05861 | R120: 2,726 | S120: 5,211 | T120: 7,937 | X120: 05861 | Y120: 73
A121: 05 | B121: ANTIOQUIA | C121: Vigia del Fuerte | D121: 05873 | E121: 136 | F121: 163 | G121: 186 | O121: 120 | Q121: 05873 | R121: 1,009 | S121: 3,526 | T121: 4,535 | X121: 05873 | Y121: 120
A122: 05 | B122: ANTIOQUIA | C122: Yali | D122: 05885 | E122: 69 | F122: 69 | G122: 97 | O122: 65 | Q122: 05885 | R122: 1,369 | S122: 3,274 | T122: 4,643 | X122: 05885 | Y122: 65
A123: 05 | B123: ANTIOQUIA | C123: Yarumal | D123: 05887 | E123: 534 | F123: 557 | G123: 582 | O123: 376 | Q123: 05887 | R123: 9,807 | S123: 18,676 | T123: 28,483 | X123: 05887 | Y123: 376
A124: 05 | B124: ANTIOQUIA | C124: Yolombo | D124: 05890 | E124: 201 | F124: 209 | G124: 230 | O124: 194 | Q124: 05890 | R124: 4,815 | S124: 9,850 | T124: 14,665 | X124: 05890 | Y124: 194
A125: 05 | B125: ANTIOQUIA | C125: Yondo | D125: 05893 | E125: 278 | F125: 285 | G125: 318 | O125: 210 | Q125: 05893 | R125: 1,865 | S125: 8,280 | T125: 10,145 | X125: 05893 | Y125: 210
A126: 05 | B126: ANTIOQUIA | C126: Zaragoza | D126: 05895 | E126: 439 | F126: 454 | G126: 463 | O126: 287 | Q126: 05895 | R126: 3,807 | S126: 10,413 | T126: 14,220 | X126: 05895 | Y126: 287
B127: ATLANTICO | C127: Barranquilla | D127: 08001 | E127: 19,802 | F127: 20,849 | G127: 22,374 | O127: 9732 | Q127: 08001 | R127: 416,579 | S127: 567,749 | T127: 984,328 | X127: 08001 | Y127: 9732
A128: 08 | B128: ATLANTICO | C128: Baranoa | D128: 08078 | E128: 890 | F128: 901 | G128: 957 | O128: 560 | Q128: 08078 | R128: 13,718 | S128: 29,383 | T128: 43,102 | X128: 08078 | Y128: 560
A129: 08 | B129: ATLANTICO | C129: Campo de La Cruz | D129: 08137 | E129: 408 | F129: 423 | G129: 467 | O129: 223 | Q129: 08137 | R129: 5,156 | S129: 9,896 | T129: 15,052 | X129: 08137 | Y129: 223
A130: 08 | B130: ATLANTICO | C130: Candelaria | D130: 08141 | E130: 308 | F130: 305 | G130: 301 | O130: 162 | Q130: 08141 | R130: 2,810 | S130: 7,280 | T130: 10,091 | X130: 08141 | Y130: 162
A131: 08 | B131: ATLANTICO | C131: Galapa | D131: 08296 | E131: 915 | F131: 978 | G131: 1,006 | O131: 609 | Q131: 08296 | R131: 8,307 | S131: 29,393 | T131: =R131+S131 -> 37,700 | X131: 08296 | Y131: 609
A132: 08 | B132: ATLANTICO | C132: Juan de Acosta | D132: 08372 | E132: 298 | F132: 302 | G132: 309 | O132: 182 | Q132: 08372 | R132: 3,454 | S132: 10,013 | T132: 13,467 | X132: 08372 | Y132: 182
A133: 08 | B133: ATLANTICO | C133: Luruaco | D133: 08421 | E133: 554 | F133: 540 | G133: 548 | O133: 294 | Q133: 08421 | R133: 5,554 | S133: 12,729 | T133: 18,283 | X133: 08421 | Y133: 294
A134: 08 | B134: ATLANTICO | C134: Malambo | D134: 08433 | E134: 2,154 | F134: 2,268 | G134: 2,304 | O134: 1289 | Q134: 08433 | R134: 21,923 | S134: 61,301 | T134: 83,224 | X134: 08433 | Y134: 1289
A135: 08 | B135: ATLANTICO | C135: Manati | D135: 08436 | E135: 347 | F135: 376 | G135: 413 | O135: 213 | Q135: 08436 | R135: 3,518 | S135: 8,943 | T135: 12,461 | X135: 08436 | Y135: 213
A136: 08 | B136: ATLANTICO | C136: Palmar de Varela | D136: 08520 | E136: 487 | F136: 496 | G136: 510 | O136: 264 | Q136: 08520 | R136: 4,215 | S136: 13,606 | T136: 17,822 | X136: 08520 | Y136: 264
A137: 08 | B137: ATLANTICO | C137: Piojo | D137: 08549 | E137: 66 | F137: 73 | G137: 79 | O137: 57 | Q137: 08549 | R137: 908 | S137: 3,104 | T137: 4,012 | X137: 08549 | Y137: 57
A138: 08 | B138: ATLANTICO | C138: Polonuevo | D138: 08558 | E138: 272 | F138: 262 | G138: 280 | O138: 176 | Q138: 08558 | R138: 3,243 | S138: 8,416 | T138: 11,658 | X138: 08558 | Y138: 176
A139: 08 | B139: ATLANTICO | C139: Ponedera | D139: 08560 | E139: 422 | F139: 426 | G139: 438 | O139: 246 | Q139: 08560 | R139: 3,824 | S139: 10,963 | T139: 14,787 | X139: 08560 | Y139: 246
A140: 08 | B140: ATLANTICO | C140: Puerto Colombia | D140: 08573 | E140: 474 | F140: 481 | G140: 481 | O140: 415 | Q140: 08573 | R140: 7,524 | S140: 24,128 | T140: 31,651 | X140: 08573 | Y140: 415
A141: 08 | B141: ATLANTICO | C141: Repelon | D141: 08606 | E141: 512 | F141: 512 | G141: 531 | O141: 265 | Q141: 08606 | R141: 5,134 | S141: 11,797 | T141: 16,930 | X141: 08606 | Y141: 265
A142: 08 | B142: ATLANTICO | C142: Sabanagrande | D142: 08634 | E142: 470 | F142: 497 | G142: 512 | O142: 312 | Q142: 08634 | R142: 5,711 | S142: 15,444 | T142: 21,155 | X142: 08634 | Y142: 312
A143: 08 | B143: ATLANTICO | C143: Sabanalarga | D143: 08638 | E143: 1,456 | F143: 1,494 | G143: 1,645 | O143: 892 | Q143: 08638 | R143: 25,710 | S143: 42,968 | T143: 68,678 | X143: 08638 | Y143: 892
A144: 08 | B144: ATLANTICO | C144: Santa Lucia | D144: 08675 | E144: 251 | F144: 251 | G144: 276 | O144: 168 | Q144: 08675 | R144: 2,364 | S144: 7,246 | T144: 9,610 | X144: 08675 | Y144: 168
A145: 08 | B145: ATLANTICO | C145: Santo Tomas | D145: 08685 | E145: 435 | F145: 444 | G145: 455 | O145: 257 | Q145: 08685 | R145: 6,719 | S145: 14,129 | T145: 20,849 | X145: 08685 | Y145: 257
A146: 08 | B146: ATLANTICO | C146: Soledad | D146: 08758 | E146: 9,998 | F146: 10,042 | G146: 10,950 | O146: 5571 | Q146: 08758 | R146: 124,036 | S146: 300,070 | T146: 424,106 | X146: 08758 | Y146: 5571
A147: 08 | B147: ATLANTICO | C147: Suan | D147: 08770 | E147: 206 | F147: 212 | G147: 214 | O147: 123 | Q147: 08770 | R147: 2,014 | S147: 5,389 | T147: 7,403 | X147: 08770 | Y147: 123
A148: 08 | B148: ATLANTICO | C148: Tubara | D148: 08832 | E148: 143 | F148: 148 | G148: 159 | O148: 156 | Q148: 08832 | R148: 2,300 | S148: 8,269 | T148: 10,568 | X148: 08832 | Y148: 156
A149: 08 | B149: ATLANTICO | C149: Usiacuri | D149: 08849 | E149: 131 | F149: 134 | G149: 147 | O149: 106 | Q149: 08849 | R149: 1,728 | S149: 5,758 | T149: 7,486 | X149: 08849 | Y149: 106
A150: 11 | B150: BOGOTA | C150: Bogota, D.C. | D150: 11001 | E150: 90,967 | F150: 93,996 | G150: 96,930 | O150: 47156 | Q150: 11001 | R150: 2,143,019 | S150: 3,649,791 | T150: 5,792,809 | X150: 11001 | Y150: 47156
B151: BOLIVAR | C151: Cartagena | D151: 13001 | E151: 16,175 | F151: 17,942 | G151: 18,393 | O151: 8174 | Q151: 13001 | R151: 279,776 | S151: 459,114 | T151: 738,890 | X151: 13001 | Y151: 8174
A152: 13 | B152: BOLIVAR | C152: Achi | D152: 13006 | E152: 352 | F152: 388 | G152: 412 | O152: 239 | Q152: 13006 | R152: 4,662 | S152: 10,203 | T152: 14,865 | X152: 13006 | Y152: 239
A153: 13 | B153: BOLIVAR | C153: Altos del Rosario | D153: 13030 | E153: 203 | F153: 229 | G153: 235 | O153: 132 | Q153: 13030 | R153: 1,665 | S153: 4,616 | T153: 6,281 | X153: 13030 | Y153: 132
A154: 13 | B154: BOLIVAR | C154: Arenal | D154: 13042 | E154: 153 | F154: 161 | G154: 187 | O154: 79 | Q154: 13042 | R154: 1,180 | S154: 3,172 | T154: 4,352 | X154: 13042 | Y154: 79
A155: 13 | B155: BOLIVAR | C155: Arjona | D155: 13052 | E155: 1,108 | F155: 1,202 | G155: 1,215 | O155: 665 | Q155: 13052 | R155: 13,401 | S155: 31,835 | T155: 45,235 | X155: 13052 | Y155: 665
A156: 13 | B156: BOLIVAR | C156: Arroyohondo | D156: 13062 | E156: 151 | F156: 144 | G156: 161 | O156: 77 | Q156: 13062 | R156: 2,028 | S156: 3,668 | T156: 5,696 | X156: 13062 | Y156: 77
A157: 13 | B157: BOLIVAR | C157: Barranco de Loba | D157: 13074 | E157: 349 | F157: 365 | G157: 390 | O157: 169 | Q157: 13074 | R157: 2,640 | S157: 6,094 | T157: 8,734 | X157: 13074 | Y157: 169
A158: 13 | B158: BOLIVAR | C158: Calamar | D158: 13140 | E158: 366 | F158: 400 | G158: 430 | O158: 215 | Q158: 13140 | R158: 4,922 | S158: 9,656 | T158: 14,578 | X158: 13140 | Y158: 215
A159: 13 | B159: BOLIVAR | C159: Cantagallo | D159: 13160 | E159: 130 | F159: 130 | G159: 149 | O159: 84 | Q159: 13160 | R159: 953 | S159: 3,732 | T159: 4,684 | X159: 13160 | Y159: 84
A160: 13 | B160: BOLIVAR | C160: Cicuco | D160: 13188 | E160: 315 | F160: 317 | G160: 327 | O160: 150 | Q160: 13188 | R160: 2,669 | S160: 5,818 | T160: 8,487 | X160: 13188 | Y160: 150
A161: 13 | B161: BOLIVAR | C161: Cordoba | D161: 13212 | E161: 225 | F161: 255 | G161: 251 | O161: 145 | Q161: 13212 | R161: 2,929 | S161: 6,880 | T161: 9,809 | X161: 13212 | Y161: 145
A162: 13 | B162: BOLIVAR | C162: Clemencia | D162: 13222 | E162: 259 | F162: 266 | G162: 283 | O162: 152 | Q162: 13222 | R162: 2,320 | S162: 6,525 | T162: 8,845 | X162: 13222 | Y162: 152
A163: 13 | B163: BOLIVAR | C163: El Carmen de Bolivar | D163: 13244 | E163: 1,145 | F163: 1,250 | G163: 1,372 | O163: 660 | Q163: 13244 | R163: 15,759 | S163: 30,471 | T163: 46,231 | X163: 13244 | Y163: 660
A164: 13 | B164: BOLIVAR | C164: El Guamo | D164: 13248 | E164: 132 | F164: 132 | G164: 137 | O164: 71 | Q164: 13248 | R164: 2,018 | S164: 3,750 | T164: 5,768 | X164: 13248 | Y164: 71
A165: 13 | B165: BOLIVAR | C165: El Peñon | D165: 13268 | E165: 132 | F165: 132 | G165: 150 | O165: 84 | Q165: 13268 | R165: 1,397 | S165: 3,171 | T165: 4,568 | X165: 13268 | Y165: 84
A166: 13 | B166: BOLIVAR | C166: Hatillo de Loba | D166: 13300 | E166: 313 | F166: 317 | G166: 332 | O166: 146 | Q166: 13300 | R166: 2,349 | S166: 5,140 | T166: 7,489 | X166: 13300 | Y166: 146
A167: 13 | B167: BOLIVAR | C167: Magangue | D167: 13430 | E167: 2,054 | F167: 2,199 | G167: 2,481 | O167: 1293 | Q167: 13430 | R167: 34,432 | S167: 59,035 | T167: 93,467 | X167: 13430 | Y167: 1293
A168: 13 | B168: BOLIVAR | C168: Mahates | D168: 13433 | E168: 416 | F168: 431 | G168: 456 | O168: 262 | Q168: 13433 | R168: 5,399 | S168: 12,478 | T168: 17,877 | X168: 13433 | Y168: 262
A169: 13 | B169: BOLIVAR | C169: Margarita | D169: 13440 | E169: 134 | F169: 140 | G169: 155 | O169: 101 | Q169: 13440 | R169: 2,296 | S169: 4,373 | T169: 6,669 | X169: 13440 | Y169: 101
A170: 13 | B170: BOLIVAR | C170: Maria La Baja | D170: 13442 | E170: 906 | F170: 956 | G170: 989 | O170: 481 | Q170: 13442 | R170: 9,252 | S170: 19,976 | T170: 29,228 | X170: 13442 | Y170: 481
A171: 13 | B171: BOLIVAR | C171: Montecristo | D171: 13458 | E171: 212 | F171: 224 | G171: 247 | O171: 179 | Q171: 13458 | R171: 1,736 | S171: 7,350 | T171: 9,086 | X171: 13458 | Y171: 179
A172: 13 | B172: BOLIVAR | C172: Mompos | D172: 13468 | E172: 915 | F172: 918 | G172: 947 | O172: 453 | Q172: 13468 | R172: 12,276 | S172: 19,101 | T172: 31,377 | X172: 13468 | Y172: 453
A173: 13 | B173: BOLIVAR | C173: Morales | D173: 13473 | E173: 260 | F173: 262 | G173: 313 | O173: 229 | Q173: 13473 | R173: 2,517 | S173: 9,774 | T173: 12,290 | X173: 13473 | Y173: 229
A174: 13 | B174: BOLIVAR | C174: Norosi | D174: 13490 | E174: 121 | F174: 147 | G174: 154 | O174: 105 | Q174: 13490 | R174: 813 | S174: 4,165 | T174: 4,978 | X174: 13490 | Y174: 105
A175: 13 | B175: BOLIVAR | C175: Pinillos | D175: 13549 | E175: 413 | F175: 451 | G175: 475 | O175: 258 | Q175: 13549 | R175: 4,182 | S175: 10,077 | T175: 14,259 | X175: 13549 | Y175: 258
A176: 13 | B176: BOLIVAR | C176: Regidor | D176: 13580 | E176: 168 | F176: 170 | G176: 175 | O176: 81 | Q176: 13580 | R176: 971 | S176: 2,960 | T176: 3,931 | X176: 13580 | Y176: 81
A177: 13 | B177: BOLIVAR | C177: Rio Viejo | D177: 13600 | E177: 166 | F177: 166 | G177: 174 | O177: 95 | Q177: 13600 | R177: 1,583 | S177: 4,500 | T177: 6,083 | X177: 13600 | Y177: 95
A178: 13 | B178: BOLIVAR | C178: San Cristobal | D178: 13620 | E178: 125 | F178: 126 | G178: 139 | O178: 75 | Q178: 13620 | R178: 1,858 | S178: 3,613 | T178: 5,472 | X178: 13620 | Y178: 75
A179: 13 | B179: BOLIVAR | C179: San Estanislao | D179: 13647 | E179: 242 | F179: 254 | G179: 301 | O179: 170 | Q179: 13647 | R179: 3,485 | S179: 8,119 | T179: 11,604 | X179: 13647 | Y179: 170
A180: 13 | B180: BOLIVAR | C180: San Fernando | D180: 13650 | E180: 180 | F180: 194 | G180: 204 | O180: 129 | Q180: 13650 | R180: 2,289 | S180: 5,140 | T180: 7,429 | X180: 13650 | Y180: 129
A181: 13 | B181: BOLIVAR | C181: San Jacinto | D181: 13654 | E181: 361 | F181: 378 | G181: 404 | O181: 216 | Q181: 13654 | R181: 5,770 | S181: 10,241 | T181: 16,010 | X181: 13654 | Y181: 216
A182: 13 | B182: BOLIVAR | C182: San Jacinto del Cauca | D182: 13655 | E182: 142 | F182: 150 | G182: 192 | O182: 108 | Q182: 13655 | R182: 1,788 | S182: 4,350 | T182: 6,138 | X182: 13655 | Y182: 108
A183: 13 | B183: BOLIVAR | C183: San Juan Nepomuceno | D183: 13657 | E183: 575 | F183: 576 | G183: 592 | O183: 315 | Q183: 13657 | R183: 8,995 | S183: 16,402 | T183: 25,398 | X183: 13657 | Y183: 315
A184: 13 | B184: BOLIVAR | C184: San Martin de Loba | D184: 13667 | E184: 463 | F184: 471 | G184: 487 | O184: 150 | Q184: 13667 | R184: 2,699 | S184: 5,978 | T184: 8,676 | X184: 13667 | Y184: 150
A185: 13 | B185: BOLIVAR | C185: San Pablo | D185: 13670 | E185: 628 | F185: 628 | G185: 634 | O185: 312 | Q185: 13670 | R185: 3,269 | S185: 12,077 | T185: 15,346 | X185: 13670 | Y185: 312
A186: 13 | B186: BOLIVAR | C186: Santa Catalina | D186: 13673 | E186: 217 | F186: 241 | G186: 250 | O186: 137 | Q186: 13673 | R186: 2,361 | S186: 6,361 | T186: 8,722 | X186: 13673 | Y186: 137
A187: 13 | B187: BOLIVAR | C187: Santa Rosa | D187: 13683 | E187: 351 | F187: 351 | G187: 382 | O187: 212 | Q187: 13683 | R187: 3,548 | S187: 9,742 | T187: 13,290 | X187: 13683 | Y187: 212
A188: 13 | B188: BOLIVAR | C188: Santa Rosa del Sur | D188: 13688 | E188: 914 | F188: 966 | G188: 867 | O188: 356 | Q188: 13688 | R188: 3,778 | S188: 14,946 | T188: 18,724 | X188: 13688 | Y188: 356
A189: 13 | B189: BOLIVAR | C189: Simiti | D189: 13744 | E189: 344 | F189: 344 | G189: 367 | O189: 183 | Q189: 13744 | R189: 2,623 | S189: 8,156 | T189: 10,778 | X189: 13744 | Y189: 183
A190: 13 | B190: BOLIVAR | C190: Soplaviento | D190: 13760 | E190: 142 | F190: 143 | G190: 153 | O190: 91 | Q190: 13760 | R190: 2,111 | S190: 4,639 | T190: 6,750 | X190: 13760 | Y190: 91
A191: 13 | B191: BOLIVAR | C191: Talaigua Nuevo | D191: 13780 | E191: 244 | F191: 244 | G191: 284 | O191: 139 | Q191: 13780 | R191: 2,481 | S191: 5,365 | T191: 7,847 | X191: 13780 | Y191: 139
A192: 13 | B192: BOLIVAR | C192: Tiquisio | D192: 13810 | E192: 490 | F192: 540 | G192: 599 | O192: 222 | Q192: 13810 | R192: 2,771 | S192: 7,497 | T192: 10,268 | X192: 13810 | Y192: 222
A193: 13 | B193: BOLIVAR | C193: Turbaco | D193: 13836 | E193: 1,163 | F193: 1,179 | G193: 1,282 | O193: 942 | Q193: 13836 | R193: 17,740 | S193: 50,579 | T193: 68,319 | X193: 13836 | Y193: 942
A194: 13 | B194: BOLIVAR | C194: Turbana | D194: 13838 | E194: 247 | F194: 259 | G194: 282 | O194: 146 | Q194: 13838 | R194: 2,806 | S194: 7,599 | T194: 10,406 | X194: 13838 | Y194: 146
A195: 13 | B195: BOLIVAR | C195: Villanueva | D195: 13873 | E195: 354 | F195: 366 | G195: 378 | O195: 246 | Q195: 13873 | R195: 3,874 | S195: 10,723 | T195: =R195+S195 -> 14,596 | X195: 13873 | Y195: 246
A196: 13 | B196: BOLIVAR | C196: Zambrano | D196: 13894 | E196: 193 | F196: 206 | G196: 220 | O196: 108 | Q196: 13894 | R196: 2,354 | S196: 5,147 | T196: 7,500 | X196: 13894 | Y196: 108
A197: 15 | B197: BOYACA | C197: Tunja | D197: 15001 | E197: 2,081 | F197: 2,272 | G197: 2,648 | O197: 1255 | Q197: 15001 | R197: 49,409 | S197: 83,161 | T197: 132,569 | X197: 15001 | Y197: 1255
A198: 15 | B198: BOYACA | C198: Almeida | D198: 15022 | E198: 15 | F198: 17 | G198: 17 | O198: 10 | Q198: 15022 | R198: 490 | S198: 703 | T198: 1,193 | X198: 15022 | Y198: 10
A199: 15 | B199: BOYACA | C199: Aquitania | D199: 15047 | E199: 185 | F199: 204 | G199: 211 | O199: 138 | Q199: 15047 | R199: 2,905 | S199: 6,522 | T199: 9,426 | X199: 15047 | Y199: 138
A200: 15 | B200: BOYACA | C200: Arcabuco | D200: 15051 | E200: 71 | F200: 72 | G200: 78 | O200: 49 | Q200: 15051 | R200: 994 | S200: 2,561 | T200: 3,555 | X200: 15051 | Y200: 49
... 924 more rows

Sheet 1_PLANTILLA_MENSUAL
E1: =D1+1 -> 1 | F1: 2 | G1: 3 | H1: =G1+1 -> 4 | I1: =H1+1 -> 5 | J1: =I1+1 -> 6 | K1: =J1+1 -> 7 | L1: =K1+1 -> 8 | M1: =L1+1 -> 9 | N1: =M1+1 -> 10 | O1: =N1+1 -> 11 | P1: =O1+1 -> 12 | Q1: =P1+1 -> 13 | R1: =Q1+1 -> 14 | S1: =R1+1 -> 15 | T1: =S1+1 -> 16 | U1: =T1+1 -> 17 | V1: =U1+1 -> 18 | W1: =V1+1 -> 19 | X1: =W1+1 -> 20 | Y1: =X1+1 -> 21 | Z1: =Y1+1 -> 22 | AA1: =Z1+1 -> 23 | AB1: =AA1+1 -> 24 | AC1: =#REF!+1 ->  | AD1: =AC1+1 ->  | AE1: =AD1+1 ->  | AF1: =AE1+1 ->  | AG1: =AF1+1 ->  | AH1: =AG1+1 ->  | AJ1: =AH1+1 ->  | AK1: =AJ1+1 ->  | AL1: =AK1+1 ->  | AN1: =AL1+1 ->  | AO1: =AN1+1 ->  | AP1: =AO1+1 ->  | AR1: =AP1+1 ->  | AS1: =AR1+1 ->  | AT1: =AS1+1 ->  | AV1: =AT1+1 ->  | AW1: =AV1+1 ->  | AX1: =AW1+1 ->  | AZ1: =AX1+1 ->  | BA1: =AZ1+1 ->  | BB1: =BA1+1 ->  | BC1: =BB1+1 ->  | BD1: =BC1+1 ->  | BE1: =BD1+1 ->  | BF1: =BE1+1 ->  | BG1: =BF1+1 ->  | BH1: =BG1+1 ->  | BI1: =BH1+1 ->  | BJ1: =BI1+1 ->  | BK1: =BJ1+1 ->  | BL1: =BK1+1 ->  | BM1: =BL1+1 ->  | BN1: =BM1+1 ->  | BP1: =#REF!+1 ->  | BQ1: =BP1+1 ->  | BR1: =BQ1+1 ->  | BS1: =BR1+1 ->  | BT1: =BS1+1 ->  | BU1: =BT1+1 ->  | BV1: =BU1+1 ->  | BW1: =BV1+1 ->  | BX1: =BW1+1 ->  | BY1: =BX1+1 ->  | BZ1: =BY1+1 ->  | CA1: =BZ1+1 ->  | CB1: =CA1+1 ->  | CC1: =CB1+1 ->  | CD1: =CC1+1 ->  | CE1: =CD1+1 ->  | CF1: =CE1+1 ->  | CG1: =CF1+1 ->  | CH1: =CG1+1 ->  | CI1: =CH1+1 ->  | CJ1: =CI1+1 ->  | CK1: =CJ1+1 ->  | CL1: =CK1+1 ->  | CM1: =CL1+1 ->  | CN1: =CM1+1 ->  | CO1: =CN1+1 ->  | CP1: =CO1+1 ->  | CQ1: =CP1+1 ->  | CR1: =CQ1+1 ->  | CS1: =CO1+1 ->  | CT1: =CS1+1 ->  | CU1: =CT1+1 ->  | CV1: =#REF!+1 ->  | CW1: =CV1+1 ->  | CX1: =#REF!+1 ->  | CY1: =CX1+1 ->  | CZ1: =CY1+1 ->  | DA1: =CZ1+1 ->  | DB1: =DA1+1 ->  | DC1: =DB1+1 ->  | DD1: =DC1+1 ->  | DE1: =DD1+1 ->  | DF1: =#REF!+1 ->  | DG1: =DF1+1 ->  | DH1: =DG1+1 ->  | DI1: =DH1+1 ->  | DJ1: =DI1+1 ->  | DK1: =DJ1+1 ->  | DL1: =DK1+1 ->  | DM1: =DL1+1 ->  | DN1: =DM1+1 ->  | DO1: =DN1+1 ->  | DP1: =DO1+1 ->  | DQ1: =DK1+1 ->  | DR1: =#REF!+1 ->  | DS1: =#REF!+1 ->  | DT1: =#REF!+1 ->  | DU1: =#REF!+1 ->  | DV1: =DU1+1 ->  | DW1: =DV1+1 ->  | DX1: =DW1+1 ->  | DY1: =DX1+1 ->  | DZ1: =DY1+1 ->  | EA1: =DZ1+1 ->  | EB1: =EA1+1 ->  | EC1: =EB1+1 ->  | ED1: =EC1+1 ->  | EE1: =ED1+1 ->  | EF1: =EE1+1 ->  | EG1: =EF1+1 ->  | EH1: =EG1+1 ->  | EI1: =EH1+1 ->  | EJ1: =EI1+1 ->  | EK1: =EJ1+1 ->  | EL1: =EK1+1 ->  | EM1: =EL1+1 ->  | EN1: =EM1+1 ->  | EO1: =EN1+1 ->  | EP1: =EO1+1 ->  | EQ1: =EP1+1 ->  | ER1: =EQ1+1 ->  | ES1: =ER1+1 ->  | ET1: =ES1+1 ->  | EU1: =ET1+1 ->  | EV1: =EU1+1 ->  | EW1: =EV1+1 ->  | EX1: =EW1+1 ->  | EY1: =EX1+1 ->  | EZ1: =EY1+1 ->  | FA1: =EZ1+1 ->  | FB1: =FA1+1 ->  | FC1: =FB1+1 ->  | FD1: =FC1+1 ->  | FE1: =FD1+1 ->  | FF1: =FE1+1 ->  | FG1: =FF1+1 ->  | FH1: =FG1+1 ->  | FI1: =FH1+1 ->  | FJ1: =FI1+1 ->  | FK1: =FJ1+1 ->  | FL1: =FK1+1 ->  | FM1: =FL1+1 ->  | FN1: =FM1+1 ->  | FO1: =FN1+1 ->  | FP1: =FO1+1 ->  | FQ1: =FP1+1 ->  | FR1: =FQ1+1 ->  | FS1: =FR1+1 ->  | FT1: =FS1+1 ->  | FU1: =FT1+1 ->  | FV1: =FU1+1 ->  | FW1: =FV1+1 ->  | FX1: =FW1+1 ->  | FY1: =FX1+1 ->  | FZ1: =FY1+1 ->  | GA1: =FZ1+1 ->  | GB1: =GA1+1 ->  | GC1: =GB1+1 ->  | GD1: =GC1+1 ->  | GE1: =GD1+1 ->  | GF1: =GE1+1 ->  | GG1: =GF1+1 ->  | GH1: =GG1+1 ->  | GI1: =GH1+1 ->  | GJ1: =GI1+1 ->  | GK1: =GJ1+1 ->  | GL1: =GK1+1 ->  | GM1: =GL1+1 ->  | GN1: =GM1+1 ->  | GO1: =GN1+1 ->  | GP1: =GO1+1 ->  | GQ1: =GP1+1 ->  | GR1: =GQ1+1 ->  | GS1: =GR1+1 ->  | GT1: =GS1+1 ->  | GU1: =GT1+1 ->  | GV1: =GU1+1 ->  | GW1: =GV1+1 ->  | GX1: =GW1+1 ->  | GY1: =GX1+1 ->  | GZ1: =GY1+1 ->  | HA1: =GZ1+1 ->  | HB1: =HA1+1 ->  | HC1: =HB1+1 ->  | HD1: =HC1+1 ->  | HE1: =HD1+1 ->  | HF1: =HE1+1 ->  | HG1: =HF1+1 ->  | HH1: =HG1+1 ->  | HI1: =HH1+1 ->  | HJ1: =HI1+1 ->  | HK1: =HJ1+1 ->  | HL1: =HK1+1 ->  | HM1: =HL1+1 ->  | HN1: =HM1+1 ->  | HO1: =HN1+1 ->  | HP1: =HO1+1 ->  | HQ1: =HP1+1 ->  | HR1: =HQ1+1 ->  | HS1: =HL1+1 ->  | HT1: =HS1+1 ->  | HU1: =HT1+1 ->  | HV1: =HU1+1 ->  | HW1: =HV1+1 ->  | HX1: =HW1+1 ->  | HY1: =HX1+1 ->  | HZ1: =HY1+1 ->  | IA1: =HZ1+1 ->  | IB1: =HZ1+1 ->  | ID1: =IC1+1 ->  | IE1: =ID1+1 ->  | IF1: =IE1+1 ->  | IG1: =IF1+1 ->  | IH1: =IG1+1 ->  | II1: =IG1+1 ->  | IK1: =IJ1+1 ->  | IL1: =IK1+1 ->  | IM1: =IL1+1 ->  | IN1: =IM1+1 ->  | IO1: =IN1+1 ->  | IP1: =IO1+1 ->  | IQ1: =IP1+1 ->  | IR1: =IQ1+1 ->  | IS1: =IR1+1 ->  | IT1: =IS1+1 ->  | IU1: =IT1+1 ->  | IV1: =IU1+1 ->  | IX1: =IV1+1 ->  | IY1: =IX1+1 ->  | IZ1: =IY1+1 ->  | JA1: =IZ1+1 ->  | JB1: =JA1+1 ->  | JC1: =JB1+1 ->  | JD1: =JC1+1 ->  | JE1: =JD1+1 ->  | JF1: =JE1+1 ->  | JG1: =JF1+1 ->  | JH1: =JG1+1 ->  | JI1: =JH1+1 ->  | JJ1: =JI1+1 ->  | JK1: =JJ1+1 ->  | JL1: =JK1+1 ->  | JM1: =JL1+1 ->  | JN1: =JM1+1 ->  | JO1: =JN1+1 ->  | JP1: =JO1+1 ->  | JQ1: =JP1+1 ->  | JR1: =JQ1+1 ->  | JS1: =JR1+1 ->  | JT1: =JS1+1 ->  | JU1: =JT1+1 ->  | JV1: =JU1+1 ->  | JW1: =JV1+1 ->  | JX1: =JW1+1 ->  | JY1: =JX1+1 ->  | JZ1: =JY1+1 ->  | KA1: =JZ1+1 ->  | KB1: =KA1+1 ->  | KC1: =KA1+1 ->  | KE1: =#REF!+1 ->  | KF1: =KE1+1 ->  | KG1: =KF1+1 ->  | KH1: =KG1+1 ->  | KI1: =KH1+1 ->  | KJ1: =KI1+1 ->  | KK1: =KI1+1 ->  | KM1: =KL1+1 ->  | KN1: =KM1+1 ->  | KO1: =KM1+1 ->  | KQ1: =#REF!+1 ->  | KR1: =KQ1+1 ->  | KS1: =KR1+1 ->  | KT1: =KS1+1 ->  | KU1: =KT1+1 ->  | KV1: =KU1+1 ->  | KW1: =KV1+1 ->  | KX1: =KW1+1 ->  | KY1: =KX1+1 ->  | KZ1: =KY1+1 ->  | LA1: =KZ1+1 ->  | LB1: =LA1+1 ->  | LC1: =LB1+1 ->  | LD1: =LC1+1 ->  | LE1: =LD1+1 ->  | LF1: =LE1+1 ->  | LG1: =LF1+1 ->  | LH1: =LG1+1 ->  | LI1: =LH1+1 ->  | LJ1: =LI1+1 ->  | LK1: =LJ1+1 ->  | LL1: =LK1+1 ->  | LM1: =LL1+1 ->  | LN1: =LM1+1 ->  | LO1: =LN1+1 ->  | LP1: =LO1+1 ->  | LQ1: =LP1+1 ->  | LR1: =LQ1+1 ->  | LS1: =LR1+1 ->  | LT1: =LS1+1 ->  | LU1: =LT1+1 ->  | LV1: =LU1+1 ->  | LW1: =LV1+1 ->  | LX1: =LW1+1 ->  | LY1: =LX1+1 ->  | LZ1: =LY1+1 ->  | MA1: =LZ1+1 ->  | MB1: =MA1+1 ->  | MC1: =MB1+1 ->  | MD1: =MC1+1 ->  | ME1: =MD1+1 ->  | MF1: =ME1+1 ->  | MG1: =MF1+1 ->  | MH1: =MG1+1 ->  | MI1: =MH1+1 ->  | MJ1: =MI1+1 ->  | MK1: =MJ1+1 ->  | ML1: =MK1+1 ->  | MM1: =ML1+1 ->  | MN1: =MM1+1 ->  | MO1: =MN1+1 ->  | MP1: =MO1+1 ->  | MQ1: =MP1+1 ->  | MR1: =MQ1+1 ->  | MS1: =MR1+1 ->  | MT1: =MS1+1 ->  | MU1: =MT1+1 ->  | MV1: =MU1+1 ->  | MW1: =MV1+1 ->  | MX1: =MW1+1 ->  | MY1: =MX1+1 ->  | MZ1: =MY1+1 ->  | NA1: =MZ1+1 ->  | NB1: =NA1+1 ->  | NC1: =NB1+1 ->  | ND1: =NC1+1 ->  | NE1: =ND1+1 ->  | NF1: =NE1+1 ->  | NG1: =NF1+1 ->  | NH1: =#REF!+1 ->  | NI1: =NH1+1 ->  | NJ1: =NI1+1 ->  | NK1: =NJ1+1 ->  | NL1: =NK1+1 ->  | NM1: =NL1+1 ->  | NN1: =NM1+1 ->  | NO1: =NN1+1 ->  | NP1: =#REF!+1 ->  | NQ1: =NP1+1 ->  | NR1: =#REF!+1 ->  | NS1: =NQ1+1 ->  | NU1: =#REF!+1 ->  | NV1: =#REF!+1 ->  | NW1: =#REF!+1 ->  | NX1: =NW1+1 ->  | NY1: =NX1+1 ->  | NZ1: =#REF!+1 ->  | OA1: =NZ1+1 ->  | OB1: =#REF!+1 ->  | OC1: =OB1+1 ->  | OD1: =OC1+1 ->  | OE1: =OD1+1 ->  | OF1: =OE1+1 ->  | OG1: =OF1+1 ->  | OH1: =OG1+1 ->  | OI1: =OH1+1 ->  | OJ1: =OI1+1 ->  | OK1: =OJ1+1 ->  | OL1: =OK1+1 ->  | OM1: =OL1+1 ->  | ON1: =OM1+1 ->  | OO1: =ON1+1 ->  | OP1: =OO1+1 ->  | OQ1: =OP1+1 ->  | OR1: =OQ1+1 ->  | OS1: =OR1+1 ->  | OT1: =OS1+1 ->  | OU1: =OT1+1 ->  | OV1: =OU1+1 ->  | OW1: =OV1+1 ->  | OX1: =OW1+1 ->  | OY1: =OX1+1 ->  | OZ1: =OY1+1 ->  | PA1: =OZ1+1 ->  | PB1: =PA1+1 ->  | PC1: =PB1+1 ->  | PD1: =#REF!+1 ->  | PE1: =PD1+1 ->  | PF1: =PE1+1 ->  | PG1: =PF1+1 ->  | PH1: =PG1+1 ->  | PI1: =PH1+1 ->  | PJ1: =PI1+1 ->  | PK1: =PJ1+1 ->  | PL1: =PK1+1 ->  | PM1: =PL1+1 ->  | PN1: =PM1+1 ->  | PO1: =PN1+1 ->  | PP1: =PO1+1 ->  | PQ1: =PP1+1 ->  | PR1: =PQ1+1 ->  | PS1: =PR1+1 ->  | PT1: =PS1+1 ->  | PU1: =PT1+1 ->  | PV1: =PU1+1 ->  | PW1: =PV1+1 ->  | PX1: =PW1+1 ->  | PY1: =PX1+1 ->  | PZ1: =PY1+1 ->  | QA1: =#REF!+1 ->  | QB1: =QA1+1 ->  | QE1: 0 | QX1: . | RU1: 0 | SF1: =SE1+1 -> 1 | SG1: 2 | SH1: 3 | SI1: 4 | SJ1: 5 | SK1: 6 | SL1: 7 | SM1: 8 | SN1: 9 | SO1: 10 | SP1: 11 | SQ1: 12 | SR1: 13 | SS1: 14
A2: NOMBRE DEPARTAMENTO: | D2: BOGOTA | E2: CODIGO DEPARTAMENTO: | G2: =VLOOKUP(D2,Tabla2[[DEPARTAMENTO]:[CODEP]],2,0) -> 11
A3: AÑO: | D3: 2022 | QC3: . | RU3: .
A4: MES DE REPORTE | D4: Marzo | F4: VACUNAS PAI | S4: VACUNAS PAI | BV4: VACUNAS PAI | DF4: VACUNAS PAI | EM4: VACUNAS PAI | FI4: VACUNAS PAI | GN4: VACUNAS PAI | HE4: VACUNAS PAI | LU4: VACUNAS PAI | PB4: VACUNAS PAI | PY4: VACUNAS PAI | SE4: BIOLÓGICOS COMPRADOS DIRECTAMENTE POR SDS A OPS Y ENTREGADO A SUBREDES
A5: MUNICIPIO | D5: REGIMEN / GRUPO ETNICO | E5: BCG | I5: HEPATITIS B | AF5: HEPATITIS B (RESOLUCION. 0459/2012 y Circular 031/2014) | BL5: POBLACION PRIORIZADA PARA HEPATITIS B (Entidades Territoriales priorizados ) | BP5: ANTIPOLIO INACTIVADA (VIP) | CX5: POLIO ORAL - VOP | DF5: PENTAVALENTE DPT - HB - Hib | DQ5: PENTAVALENTE DPT - HB - Hib (CUANDO EL MINISTERIO LA AUTORICE) | DU5: DPT | EU5: DTPa Acelular Pediatrica | FZ5: TOXOIDE TETANICO-DIFTERICO PEDIATRICO (TD) | HE5: ROTAVIRUS | HG5: NEUMOCOCO CONJUGADA DECAVALENTE | HM5: NEUMOCOCO CONJUGADA TRECEVALENTE | HS5: SRP (TRIPLE VIRAL) | IK5: SR (DOBLE VIRAL) | JB5: FIEBRE AMARILLA DOSIS UNICA | JU5: HEPATITIS A (Cohorte de nacidos a partir de 1 de enero de 2012) | KE5: VARICELA (Cohorte de nacidos a partir de 1 de julio de 2014) | KQ5: TOXOIDE TETANICO-DIFTERICO DE ADULTOS (Td) | MV5: Tdap ACELULAR | NH5: INFLUENZA | NW5: MENINGOCOCO (PARA USO EN BROTES) | OC5: V P H | PF5: ANTIRRABICA HUMANA PRE/POST-EXPOSICION | PT5: INMUNOGLOBULINA ANTI HEPATITIS B | PY5: INMUNOGLOBULINAS/ANTITOXINAS TETÁNICAS | QA5: ANTI TOXINA DIFTERICA (Suero heterólogo) | RY5: NEUMOCOCO POLISACARIDO BOGOTÁ PAI | SF5: ANTIRRABICA HUMANA PRE/POST-EXPOSICION | TA5: POBLACION PRIORIZADA PARA HEPATITIS B (Municipios priorizados)
E6: NIÑO O NIÑA RECIEN NACIDO (DE 0 HASTA 29 DÍAS) | F6: NIÑO O NIÑA MENOR DE UN AÑO (A PARTIR DE 30 DIAS HASTA 11 MESES 29 DIAS) | G6: POBLACION INDIGENA Y RURAL DISPERSA (DE 1 AÑO A 5 AÑOS, 11 MESES, 29 DIAS) | H6: CONTACTOS DE HANSEN (LEPRA) OTRAS EDADES | I6: RECIEN NACIDO (HASTA 29 DÍAS) | K6: DE 2 A 11 MESES 29 DÍAS | N6: DE 1 AÑO | Q6: DE 2 AÑOS | T6: DE 3 AÑOS | W6: DE 4 AÑOS | Z6: DE 5 AÑOS | AC6: DE 6 a 18 AÑOS (ICBF) | AF6: DE 1 AÑO | AJ6: DE 2 AÑOS | AN6: DE 3 AÑOS | AR6: DE 4 AÑOS | AV6: DE 5 AÑOS | AZ6: 6 A 14 AÑOS | BD6: DE 15 AÑOS A 17 AÑOS | BH6: DE 18 AÑOS Y MAS | BP6: < DE 1 AÑO | BS6: DE 1 AÑO | BV6: DE 2 AÑOS | BY6: DE 3 AÑOS | CB6: DE 4 AÑOS | CE6: DE 5 AÑOS | CH6: AL AÑO DE LA 3ra DOSIS (De 18 a 23 meses) | CI6: DE 2 AÑOS | CJ6: DE 3 AÑOS | CK6: DE 4 AÑOS | CL6: DE 5 AÑOS | CM6: 3 AÑOS | CN6: 4 AÑOS | CO6: 5 AÑOS | CP6: DE 6 AÑOS | CS6: DE 7 A 17 AÑOS (AUTORIZADAS POR EL MINISTERIO) | CV6: DE 18 A 60 AÑOS (AUTORIZADAS POR EL MINISTERIO) | CX6: AL AÑO DE LA 3ra DOSIS (De 18 a 23 meses) | CY6: DE 2 AÑOS | CZ6: DE 3 AÑOS | DA6: DE 4 AÑOS | DB6: DE 5 AÑOS | DC6: 3 AÑOS | DD6: 4 AÑOS | DE6: 5 AÑOS | DF6: < DE 1 AÑO | DI6: DE 1 AÑO | DL6: AL AÑO DE LA 3ra DOSIS (De 18 a 23 meses) | DM6: DE 2 AÑOS | DN6: DE 3 AÑOS | DO6: DE 4 AÑOS | DP6: DE 5 AÑOS | DQ6: DE 2 AÑOS | DR6: DE 3 AÑOS | DS6: DE 4 AÑOS | DT6: DE 5 AÑOS | DU6: < DE 1 AÑO | DX6: DE 1 AÑO | EA6: DE 2 AÑOS | ED6: DE 3 AÑOS | EG6: DE 4 AÑOS | EJ6: DE 5 AÑOS | EM6: AL AÑO DE LA 3ra DOSIS (De 18 a 23 meses) | EN6: DE 2 AÑOS | EO6: DE 3 AÑOS | EP6: DE 4 AÑOS | EQ6: DE 5 AÑOS | ER6: 3 AÑOS | ES6: 4 AÑOS | ET6: 5 AÑOS | EU6: < DE 1 AÑO | EX6: DE 1 AÑO | FA6: DE 2 AÑOS | FD6: DE 3 AÑOS | FG6: DE 4 AÑOS | FJ6: DE 5 AÑOS | FM6: AL AÑO DE LA 3ra DOSIS (De 18 a 23 meses) | FN6: DE 2 AÑOS | FO6: DE 3 AÑOS | FP6: DE 4 AÑOS | FQ6: DE 5 AÑOS | FR6: 3 AÑOS | FS6: 4 AÑOS | FT6: 5 AÑOS | FU6: DE 6 AÑOS | FZ6: < DE 1 AÑO | GC6: DE 1 AÑO | GF6: DE 2 AÑOS | GI6: DE 3 AÑOS | GL6: DE 4 AÑOS | GO6: DE 5 AÑOS | GR6: AL AÑO DE LA 3ra DOSIS (De 18 a 23 meses) | GS6: DE 2 AÑOS | GT6: DE 3 AÑOS | GU6: DE 4 AÑOS | GV6: DE 5 AÑOS | GW6: 3 AÑOS | GX6: 4 AÑOS | GY6: 5 AÑOS | GZ6: DE 6 AÑOS | HE6: DE 2 MESES A 3 MESES y 21 DIAS | HF6: DE 4 MESES A 11 MESES y 29 DIAS | HG6: DE 2 A 11 MESES 29 DIAS | HI6: DE 12 MESES A 23 MESES | HJ6: DE 12 A 23 MESES | HL6: DE 24 MESES A 5 AÑOS | HM6: DE 2 A 11 MESES 29 DIAS | HO6: DE 12 MESES A 23 MESES | HP6: DE 12 A 23 MESES | HR6: DE 24 MESES A 5 AÑOS | HS6: PRIMERA DOSIS | ID6: DOSIS DE REFUERZO | IK6: DOSIS CERO | IL6: DOSIS UNICA | JB6: DE 1 AÑO | JC6: DE 2 AÑOS | JD6: DE 3 AÑOS | JE6: DE 4 AÑOS | JF6: DE 5 AÑOS | JG6: DE 6 AÑOS | JH6: DE 7 AÑOS | JI6: DE 8 AÑOS | JJ6: DE 9 AÑOS | JK6: DE 10 AÑOS | JL6: DE 11 AÑOS | JM6: DE 12 AÑOS | JN6: DE 13 a 14 AÑOS | JO6: DE 15 a 17 AÑOS | JP6: 18 A 30 AÑOS | JQ6: 31 A 40 AÑOS | JR6: 41 A 50 AÑOS | JS6: 51 A 59 AÑOS | JT6: SOLO EN SITUACIÓN DE BROTE | JU6: DOSIS ÚNICA | KE6: PRIMERA DOSIS | KM6: REFUERZO | KQ6: NIÑOS Y NIÑAS DE 7 A 9 AÑOS | KV6: GESTANTES DE 9 AÑOS A 17 AÑOS | LA6: GESTANTES DE 18 AÑOS Y MAS | LF6: REFUERZOS GESTANTES 15 A 49 AÑOS | LJ6: MUJERES EN EDAD FERTIL (MEF) DE 10 AÑOS A 17 AÑOS | LO6: MUJERES EN EDAD FERTIL (MEF) DE 18 A 49 AÑOS | LT6: REFUERZOS MEF DE 15 A 49 AÑOS | LX6: HOMBRES DE 10 A 17 AÑOS | MC6: HOMBRES DE 18 A 49 AÑOS | MH6: REFUERZOS HOMBRES DE 15 A 49 AÑOS | ML6: OTROS DE 50 A 59 AÑOS | MQ6: OTROS DE 60 AÑOS Y MAS | MV6: DE 9 A 17 AÑOS GESTANTES de acuerdo al lineamiento | NB6: DE 18 Y MAS AÑOS GESTANTES de acuerdo al lineamiento | NH6: DE 6 MESES A 11 MESES | NJ6: DE 12 MESES A 23 MESES | NM6: 24 A 35 MESES | NP6: DE 60 Y MAS AÑOS | NQ6: GESTANTES A PARTIR DE LA SEMANA 14 | NR6: DE 3 A 8 AÑOS (Poblaciones autorizadas de acuerdo con los lineamientos emitidos por el MSPS ) | NU6: DE 9 A 17 AÑOS (Poblaciones autorizadas de acuerdo con los lineamientos emitidos por el MSPS ) | NV6: DE 18 A 59 AÑOS (Poblaciones autorizadas de acuerdo con los lineamientos emitidos por el MSPS ) | NW6: DE 6 A 11 MESES | NZ6: 12 A 23 MESES | OB6: MAYORES DE 2 AÑOS | OC6: 9 AÑOS | OF6: 10 AÑOS | OI6: 11 AÑOS | OL6: 12 AÑOS | OO6: 13 AÑOS | OR6: 14 AÑOS | OU6: 15 AÑOS | OX6: 16 AÑOS | PA6: 17 AÑOS | PD6: 18 AÑOS a 26 AÑOS | PF6: ESQUEMA PRE EXPOSICIÓN OPCION 1 (I.D.) (Se aplica previa autorización del Ministerio) | PH6: ESQUEMA PRE EXPOSICIÓN OPCION 2 (I.M.) (Se aplica previa autorización del Ministerio) | PJ6: ESQUEMA POST EXPOSICION Número de dosis aplicadas | PN6: ESQUEMA POST EXPOSICION ACORTADO (ZAGREB) Número de dosis aplicadas | PQ6: TOTAL DE ESQUEMAS POST EXPOSICION (USUARIOS CON ESQUEMA DE VACUNACION COMPLETO) | PR6: INMUNOGLOBULINA ANTIRRÁBICA (Número de frascos utilizados) | PS6: No. De personas que recibieron inmunoglobulina antirrabica. | PT6: RECIEN NACIDO (Hijo de Madre Antigenos + para HB) | PW6: (RESOLUCION 0459/2012- circular 031/14) | PY6: INMUNOGLOBULINA ANTI TETANICA (Suero homólogo) | QD6: codepcomure | QE6: DOSIS APLICADAS POR BIOLOGICOS | QW6: FLU | RG6: ANTI RABICA HUMANA PRE/POST-EXPOSICION | RN6: INMUNO GLOBULINA ANTI HEPATITIS B | RQ6: (RESOLUCION 0459/2012- circular 031/14) | RS6: ANTI TOXINA TETANICA | RY6: DE 2 A 5 AÑOS | RZ6: DE 6 A 14 AÑOS | SA6: DE 15 A 18 AÑOS | SB6: DE 19 A 59 AÑOS | SC6: DE 60 Y MAS AÑOS | SD6: A LOS 5 AÑOS DE LA 1ra DOSIS | SF6: ESQUEMA PRE EXPOSICIÓN OPCION 1 (I.D.) (Se aplica previa autorización del Ministerio) | SH6: ESQUEMA PRE EXPOSICIÓN OPCION 2 (I.M.) (Se aplica previa autorización del Ministerio) | SJ6: ESQUEMA POST EXPOSICION Número de dosis aplicadas | SN6: ESQUEMA POST EXPOSICION ACORTADO (ZAGREB) Número de dosis aplicadas | SQ6: TOTAL DE ESQUEMAS POST EXPOSICION (USUARIOS CON ESQUEMA DE VACUNACION COMPLETO) | SR6: INMUNOGLOBULINA ANTIRRÁBICA (Número de frascos utilizados) | SS6: No. De personas que recibieron inmunoglobulina antirrabica. | SU6: ANTI RABICA HUMANA PRE/POST-EXPOSICION | TA6: HOMBRES QUE TIENEN SEXO CON HOMBRES | TD6: TRABAJADORAS(RES) SEXUALES | TG6: MUJERES TRANSGENERO | TJ6: PERSONAS QUE SE INYECTAN DROGAS | TM6: HABITANTES DE CALLE
A7: Nº | B7: COD DANE MPIO | C7: NOMBRE MUNICIPIO/ IPS | I7: RECIEN NACIDO (Primeras 12 Horas) | J7: RECIEN NACIDO Entre 12 horas y 29 dias | K7: 1a | L7: 2a | M7: 3a | N7: 1a | O7: 2a | P7: 3a | Q7: 1a | R7: 2a | S7: 3a | T7: 1a | U7: 2a | V7: 3a | W7: 1a | X7: 2a | Y7: 3a | Z7: 1a | AA7: 2a | AB7: 3a | AC7: 1a | AD7: 2a | AE7: 3a | AF7: 1a | AG7: 2a | AH7: 3a | AI7: Adicional | AJ7: 1a | AK7: 2a | AL7: 3a | AM7: Adicional | AN7: 1a | AO7: 2a | AP7: 3a | AQ7: Adicional | AR7: 1a | AS7: 2a | AT7: 3a | AU7: Adicional | AV7: 1a | AW7: 2a | AX7: 3a | AY7: Adicional | AZ7: 1a | BA7: 2a | BB7: 3a | BC7: Adicional | BD7: 1a | BE7: 2a | BF7: 3a | BG7: Adicional | BH7: 1a | BI7: 2a | BJ7: 3a | BK7: Adicional | BL7: 1a | BM7: 2a | BN7: 3a | BO7: adicional | BP7: 1a | BQ7: 2a | BR7: 3a | BS7: 1a | BT7: 2a | BU7: 3a | BV7: 1a | BW7: 2a | BX7: 3a | BY7: 1a | BZ7: 2a | CA7: 3a | CB7: 1a | CC7: 2a | CD7: 3a | CE7: 1a | CF7: 2a | CG7: 3a | CH7: Primer Refuerzo | CM7: Segundo Refuerzo | CO7: Segundo Refuerzo | CP7: 1a | CQ7: 2a | CR7: 3a | CS7: 1a | CT7: 2a | CU7: 3a | CV7: 1a | CW7: 2a | CX7: 1er REF. | DC7: 2° REF. | DF7: 1a | DG7: 2a | DH7: 3a | DI7: 1a | DJ7: 2a | DK7: 3a | DL7: 1er REF de acuerdo a lineamiento | DQ7: 1a | DR7: 1a | DS7: 1a | DT7: 1a | DU7: 1a | DV7: 2a | DW7: 3a | DX7: 1a | DY7: 2a | DZ7: 3a | EA7: 1a | EB7: 2a | EC7: 3a | ED7: 1a | EE7: 2a | EF7: 3a | EG7: 1a | EH7: 2a | EI7: 3a | EJ7: 1a | EK7: 2a | EL7: 3a | EM7: 1er REF. | ER7: 2° REF. | EU7: 1a | EV7: 2a | EW7: 3a | EX7: 1a | EY7: 2a | EZ7: 3a | FA7: 1a | FB7: 2a | FC7: 3a | FD7: 1a | FE7: 2a | FF7: 3a | FG7: 1a | FH7: 2a | FI7: 3a | FJ7: 1a | FK7: 2a | FL7: 3a | FM7: 1er REF. | FR7: 2° REF. | FU7: 1a | FV7: 2a | FW7: 3a | FX7: 1er REF. | FY7: 2° REF. | FZ7: 1a | GA7: 2a | GB7: 3a | GC7: 1a | GD7: 2a | GE7: 3a | GF7: 1a | GG7: 2a | GH7: 3a | GI7: 1a | GJ7: 2a | GK7: 3a | GL7: 1a | GM7: 2a | GN7: 3a | GO7: 1a | GP7: 2a | GQ7: 3a | GR7: 1er REF. | GW7: 2° REF. | GZ7: 1a | HA7: 2a | HB7: 3a | HC7: 1er REF. | HD7: 2° REF. | HE7: 1a | HF7: 2a | HG7: 1a | HH7: 2a | HI7: REF. | HJ7: 1a | HK7: 2a | HL7: ÚNICA | HM7: 1a | HN7: 2a | HO7: REF. | HP7: 1a | HQ7: 2a | HR7: ÚNICA | HS7: DE 1 AÑO | HT7: DE 2 AÑOS | HU7: DE 3 AÑOS | HV7: DE 4 AÑOS | HW7: DE 5 AÑOS | HX7: DE 6 AÑOS | HY7: DE 7 AÑOS | HZ7: DE 8 AÑOS | IA7: DE 9 AÑOS | IB7: DE 10 AÑOS | IC7: DE 11 AÑOS | ID7: DE 5 AÑOS | IE7: DE 6 AÑOS | IF7: DE 7 AÑOS | IG7: DE 8 AÑOS | IH7: DE 9 AÑOS | II7: DE 10 AÑOS | IJ7: DE 11 AÑOS | IK7: SR * 6 a 11 MESES 29 DIAS | IL7: DE 1 AÑO | IM7: DE 2 AÑOS | IN7: DE 3 AÑOS | IO7: DE 4 AÑOS | IP7: DE 5 AÑOS | IQ7: DE 6 AÑOS | IR7: DE 7 AÑOS | IS7: DE 8 AÑOS | IT7: DE 9 AÑOS | IU7: DE 10 AÑOS | IV7: DE 11 AÑOS | IW7: DE 12 a 14 AÑOS | IX7: DE 15 a 17 AÑOS | IY7: 18 A 30 AÑOS | IZ7: 31 A 40 AÑOS | JA7: 41 Y MAS AÑOS | JT7: 6 meses a 11 meses (Con Autorizacion del MSPS de acuerdo a Lineamientos) | JU7: DE 1 AÑO | JV7: DE 2 AÑOS | JW7: DE 3 AÑOS | JX7: DE 4 AÑOS | JY7: DE 5 AÑOS | JZ7: DE 6 AÑOS | KA7: DE 7 AÑOS | KB7: DE 8 AÑOS | KC7: DE 9 AÑOS | KD7: DE 10 AÑOS | KE7: DE 1 AÑO | KF7: DE 2 AÑOS | KG7: DE 3 AÑOS | KH7: DE 4 AÑOS | KI7: DE 5 AÑOS | KJ7: DE 6 AÑOS | KK7: DE 7 AÑOS | KL7: DE 8 AÑOS | KM7: DE 5 AÑOS (aplicadas a partir del 1 de julio de 2019) | KN7: DE 6 AÑOS (aplicadas a partir del 1 de julio de 2019) | KO7: DE 7 AÑOS (aplicadas a partir del 1 de julio de 2019) | KP7: DE 8 AÑOS (aplicadas a partir del 1 de julio de 2019) | KQ7: Td1 | KR7: Td2 | KS7: Td3 | KT7: Ref 1 | KU7: Ref 2 | KV7: Td1 | KW7: Td2 | KX7: Td3 | KY7: Td4 | KZ7: Td5 | LA7: Td1 | LB7: Td2 | LC7: Td3 | LD7: Td4 | LE7: Td5 | LF7: REF. 1 | LG7: REF. 2 | LH7: REF. 3 | LI7: REF. 4 | LJ7: Td1 | LK7: Td2 | LL7: Td3 | LM7: Td4 | LN7: Td5 | LO7: Td1 | LP7: Td2 | LQ7: Td3 | LR7: Td4 | LS7: Td5 | LT7: REF. 1 | LU7: REF. 2 | LV7: REF. 3 | LW7: REF. 4 | LX7: Td1 | LY7: Td2 | LZ7: Td3 | MA7: Td4 | MB7: Td5 | MC7: Td1 | MD7: Td2 | ME7: Td3 | MF7: Td4 | MG7: Td5 | MH7: REF. 1 | MI7: REF. 2 | MJ7: REF. 3 | MK7: REF. 4 | ML7: Td1 | MM7: Td2 | MN7: Td3 | MO7: Td4 | MP7: Td5 | MQ7: Td1 | MR7: Td2 | MS7: Td3 | MT7: Td4 | MU7: Td5 | MV7: U DOSIS EN C/EMBARAZO | MW7: Corresponde a Td1 | MX7: Corresponde a Td2 | MY7: Corresponde a Td3 | MZ7: Corresponde a Td4 | NA7: Corresponde a Td5 | NB7: U DOSIS EN C/EMBARAZO | NC7: Corresponde a Td1 | ND7: Corresponde a Td2 | NE7: Corresponde a Td3 | NF7: Corresponde a Td4 | NG7: Corresponde a Td5 | NH7: 1a | NI7: 2a | NJ7: 1a | NK7: 2a | NL7: ÚNICA | NM7: 1a | NN7: 2a | NO7: ÚNICA | NP7: ÚNICA | NQ7: ÚNICA | NR7: 1a | NS7: 2a | NT7: ÚNICA | NU7: ÚNICA | NV7: ÚNICA | NW7: 1a | NX7: 2a | NY7: 3a | NZ7: 1a | OA7: 2a | OB7: ÚNICA | OC7: 1a | OD7: 2a | OE7: 3a | OF7: 1a | OG7: 2a | OH7: 3a | OI7: 1a | OJ7: 2a | OK7: 3a | OL7: 1a | OM7: 2a | ON7: 3a | OO7: 1a | OP7: 2a | OQ7: 3a | OR7: 1a | OS7: 2a | OT7: 3a | OU7: 1a | OV7: 2a | OW7: 3a | OX7: 1a | OY7: 2a | OZ7: 3a | PA7: 1a | PB7: 2a | PC7: 3a | PD7: 2a | PE7: 3a | PF7: 1a. y 2a día 0 | PG7: 3a y 4a. día 7 | PH7: 1a . día 0 | PI7: 2a. día 7 | PJ7: 1a. día 0 | PK7: 2a. dia 3 | PL7: 3a. día 7 | PM7: 4a . día 14 | PN7: 1era. y 2da dosis 0,0 | PO7: 3a. día 7 | PP7: 4a. día 21 | PQ7: Número de usuarios | PT7: Número de frascos utilizados | PU7: N° recién nacidos que recibieron dosis de Ig en las primeras 12 horas | PV7: N° recién nacidos que recibieron dosis de Ig despues de las primeras 12 horas | PW7: Número de frascos utilizados | PX7: N° Personas que recibieron dosis de Ig | PY7: Número de frascos utilizados | PZ7: N° Personas que recibieron dosis de Ig | QA7: Número de frascos utilizados | QB7: N° Personas que recibieron dosis de antitoxina | QC7: TOTAL DOSIS | QE7: BCG | QF7: HEPATITIS B | QG7: ANTIPOLIO INACTIVADA (VIP) PARENTERAL | QH7: ANTIPOLIO (VOP) ORAL | QI7: PENTAVALENTE DPT - HB - Hib | QJ7: DPT | QK7: DTPa Acelular Pediatrica | QL7: TOXOIDE TETANICO-DIFTERICO PEDIATRICO (TD) | QM7: ROTAVIRUS | QN7: NEUMOCOCO CONJUGADA DECAVALENTE | QO7: NEUMOCOCO CONJUGADA TRECEVALENTE | QP7: SRP (TRIPLE VIRAL) | QQ7: SR | QR7: FIEBRE AMARILLA | QS7: HEPATITIS A | QT7: VARICELA | QU7: TOXOIDE TETANICO-DIFTERICO DE ADULTOS (Td) | QV7: dTpa. ACELULAR | QW7: DE 6 MESES A 23 MESES | QX7: DE 12 MESES A 23 MESES | QY7: 24 A 35 MESES | QZ7: DE 60 AÑOS Y MAS | RA7: Gestantes a partir de la semana 14 | RB7: DE 3 A 8 AÑOS (Poblaciones autorizadas de acuerdo con los lineamientos emitidos por el MSPS ) | RC7: DE 9 A 17 AÑOS (Poblaciones autorizadas de acuerdo con los lineamientos emitidos por el MSPS ) | RD7: DE 18 A 59 AÑOS (Poblaciones autorizadas de acuerdo con los lineamientos emitidos por el MSPS ) | RE7: MENINGOCOCO (PARA USO EN BROTES) ÚNICA | RF7: V. P. H. | RG7: ESQUEMA PRE EXPOSICIÓN OPCION 1 (I.D.) (Se aplica previa autorización del Ministerio) | RH7: ESQUEMA PRE EXPOSICIÓN OPCION 2 (I.M.) | RI7: ESQUEMA POST EXPOSICION Número de dosis aplicadas | RJ7: ESQUEMA POST EXPOSICION ACORTADO (ZAGREB) Número de dosis aplicadas | RK7: TOTAL DE ESQUEMAS POST EXPOSICION (USUARIOS CON ESQUEMA DE VACUNACION COMPLETO) | RL7: INMUNOGLOBULINA ANTIRRÁBICA (Número de frascos utilizados) | RM7: TOTAL DE ESQUEMAS POST EXPOSICION (USUARIOS CON ESQUEMA DE VACUNACION COMPLETO) | RN7: RECIEN NACIDO (Hijo de Madre Antigenos + para HB) Número de frascos utilizados | RO7: N° recién nacidos que recibieron dosis de Ig en las primeras 12 horas | RP7: N° recién nacidos que recibieron dosis de Ig despues de las primeras 12 horas | RQ7: Número de frascos utilizados | RR7: N° Personas que recibieron dosis de Ig | RS7: Número de frascos utilizados | RT7: N° Personas que recibieron dosis de Ig | RU7: ANTI TOXINA DIFTERICA (Suero heterólogo) Número de frascos utilizados | RV7: N° Personas que recibieron dosis de antitoxina | RW7: TOTAL DOSIS | SD7: REF. | SE7: Total neumo 23 | SF7: 1a. día 0 | SG7: 2a . día 7 | SH7: 1a . día 0 | SI7: 2a. día 7 | SJ7: 1a. día 0 | SK7: 2a. dia 3 | SL7: 3a. día 7 | SM7: 4a . día 14 | SN7: 1era. y 2da dosis 0,0 | SO7: 3a. día 7 | SP7: 4a. día 21 | SQ7: Número de usuarios | SU7: ESQUEMA PRE EXPOSICIÓN | SV7: ESQUEMA POST EXPOSICION | SW7: ESQUEMA POST EXPOSICION (USUARIOS CON ESQUEMA DE VACUNACION COMPLETO) | SX7: INMUNOGLOBULINA ANTIRRÁBICA (Número de frascos utilizados) | SY7: No. De personas que recibieron Inmunoglobulina antirrabica | TA7: 1a | TB7: 2a | TC7: 3a | TD7: 1a | TE7: 2a | TF7: 3a | TG7: 1a | TH7: 2a | TI7: 3a | TJ7: 1a | TK7: 2a | TL7: 3a | TM7: 1a | TN7: 2a | TO7: 3a | TS7: HB 3 | TT7: Hib3 | TU7: VPI 3 | TV7: Polio R1 | TW7: Polio R2 | TX7: MRF Td 2 | TY7: Gestantes Tdap | TZ7: VPH 9 años 1a | UA7: VPH 9 años 2a
B8: 01 | C8: USAQUEN | D8: FEMENINO | E8: 422 | F8: 12 | G8: 0 | H8: 0 | I8: 412 | J8: 12 | K8: 1 | L8: 0 | M8: 0 | N8: 0 | O8: 1 | P8: 1 | Q8: 0 | R8: 1 | S8: 2 | T8: 0 | U8: 2 | V8: 1 | W8: 0 | X8: 0 | Y8: 0 | Z8: 0 | AA8: 0 | AB8: 0 | AF8: 0 | AG8: 0 | AH8: 0 | AJ8: 0 | AK8: 0 | AL8: 0 | AN8: 0 | AO8: 1 | AP8: 0 | AR8: 0 | AS8: 0 | AT8: 0 | AZ8: 1 | BA8: 0 | BB8: 0 | BD8: 0 | BE8: 0 | BF8: 0 | BG8: 0 | BH8: 0 | BI8: 0 | BJ8: 1 | BK8: 0 | BP8: 148 | BQ8: 177 | BR8: 143 | BS8: 0 | BT8: 3 | BU8: 1 | BV8: 0 | BW8: 0 | BX8: 1 | BY8: 1 | BZ8: 1 | CA8: 1 | CB8: 0 | CC8: 0 | CD8: 0 | CE8: 0 | CF8: 0 | CG8: 0 | CH8: 0 | CI8: 0 | CJ8: 0 | CK8: 0 | CL8: 1 | CM8: 0 | CN8: 0 | CO8: 5 | CR8: 5 | CX8: 198 | CY8: 11 | CZ8: 9 | DA8: 2 | DB8: 1 | DC8: 0 | DD8: 0 | DE8: 146 | DF8: 147 | DG8: 177 | DH8: 143 | DI8: 0 | DU8: 0 | DV8: 0 | DW8: 0 | DX8: 0 | DY8: 3 | DZ8: 1 | EA8: 0 | EB8: 1 | EC8: 2 | ED8: 0 | EE8: 2 | EF8: 1 | EG8: 0 | EH8: 0 | EI8: 0 | EJ8: 1 | EK8: 0 | EL8: 0 | EM8: 198 | EN8: 11 | EO8: 9 | EP8: 2 | EQ8: 1 | ER8: 0 | ES8: 0 | ET8: 145 | EU8: 1 | EV8: 0 | EW8: 0 | EX8: 0 | EY8: 0 | EZ8: 0 | FA8: 0 | FB8: 0 | FC8: 0 | FD8: 0 | FE8: 0 | FF8: 0 | FG8: 0 | FH8: 0 | FI8: 0 | FJ8: 0 | FK8: 0 | FL8: 0 | FM8: 0 | FN8: 0 | FO8: 0 | FP8: 0 | FQ8: 0 | FR8: 0 | FS8: 0 | FT8: 0 | FU8: 0 | FV8: 0 | FW8: 0 | FX8: 0 | FY8: 2 | FZ8: 0 | GA8: 0 | GB8: 0 | GC8: 0 | GD8: 0 | GE8: 0 | GF8: 0 | GG8: 0 | GH8: 0 | GI8: 0 | GJ8: 0 | GK8: 0 | GL8: 0 | GM8: 0 | GN8: 0 | GO8: 0 | GP8: 0 | GQ8: 0 | GR8: 0 | GS8: 0 | GT8: 0 | GU8: 0 | GV8: 0 | GW8: 0 | GX8: 0 | GY8: 0 | GZ8: 0 | HA8: 0 | HB8: 0 | HC8: 0 | HD8: 0 | HE8: 212 | HF8: 234 | HG8: 198 | HH8: 219 | HI8: 154 | HJ8: 2 | HK8: 6 | HL8: 19 | HS8: 155 | HT8: 2 | HU8: 5 | HV8: 0 | HW8: 0 | HX8: 0 | HY8: 0 | HZ8: 0 | IA8: 0 | IB8: 0 | ID8: 172 | IE8: 6 | IF8: 3 | IG8: 3 | IH8: 2 | II8: 1 | IK8: 0 | IL8: 183 | IM8: 34 | IN8: 46 | IO8: 56 | IP8: 40 | IQ8: 43 | IR8: 33 | IS8: 38 | IT8: 47 | IU8: 39 | IW8: 63 | IX8: 7 | IY8: 90 | IZ8: 43 | JA8: 29 | JB8: 237 | JC8: 15 | JD8: 7 | JE8: 2 | JF8: 2 | JG8: 1 | JH8: 0 | JI8: 0 | JJ8: 1 | JK8: 0 | JL8: 1 | JM8: 0 | JN8: 1 | JO8: 11 | JP8: 87 | JQ8: 46 | JR8: 29 | JS8: 17 | JU8: 180 | JV8: 4 | JW8: 5 | JX8: 6 | JY8: 8 | JZ8: 2 | KA8: 2 | KB8: 3 | KC8: 1 | KD8: 0 | KE8: 154 | KF8: 5 | KG8: 5 | KH8: 5 | KI8: 7 | KJ8: 3 | KK8: 2 | KM8: 162 | KN8: 7 | KO8: 1 | KQ8: 1 | KR8: 0 | KS8: 0 | KT8: 0 | KU8: 5 | KV8: 8 | KW8: 2 | KX8: 0 | KY8: 0 | KZ8: 0 | LA8: 247 | LB8: 186 | LC8: 51 | LD8: 32 | LE8: 16 | LF8: 3 | LG8: 0 | LH8: 0 | LI8: 0 | LJ8: 25 | LK8: 10 | LL8: 5 | LM8: 0 | LN8: 0 | LO8: 159 | LP8: 111 | LQ8: 123 | LR8: 84 | LS8: 50 | LT8: 24 | LU8: 0 | LV8: 0 | LW8: 0 | LX8: 0 | LY8: 1 | LZ8: 0 | MA8: 0 | MB8: 0 | MC8: 1 | MD8: 2 | ME8: 0 | MF8: 0 | MG8: 1 | MH8: 0 | MI8: 0 | MJ8: 0 | MK8: 0 | ML8: 0 | MM8: 0 | MN8: 0 | MO8: 0 | MP8: 1 | MQ8: 0 | MR8: 0 | MS8: 0 | MT8: 0 | MU8: 0 | MV8: 0 | MW8: 6 | MX8: 3 | MY8: 0 | MZ8: 0 | NA8: 0 | NB8: 219 | NC8: 130 | ND8: 159 | NE8: 69 | NF8: 49 | NG8: 31 | OC8: 89 | OD8: 42 | OE8: 0 | OF8: 51 | OG8: 78 | OH8: 0 | OI8: 70 | OJ8: 55 | OK8: 0 | OL8: 45 | OM8: 37 | ON8: 0 | OO8: 48 | OP8: 21 | OQ8: 0 | OR8: 35 | OS8: 21 | OT8: 0 | OU8: 34 | OV8: 25 | OW8: 1 | OX8: 22 | OY8: 23 | OZ8: 0 | PA8: 21 | PB8: 14 | PC8: 0 | PD8: 5 | PE8: 1 | PN8: 80 | PO8: 30 | PP8: 19 | PQ8: 19 | PR8: 47 | PS8: 10 | PW8: 1 | PX8: 1 | QC8: =SUM(E8:QB8)-SUM(PQ8:PT8)-SUM(PW8:PZ8) -> 8,455.00 | QE8: =SUM(E8:H8) -> 434.0 | QF8: =SUM(I8:BO8) -> 436.0 | QG8: =SUM(BP8:CW8) -> 487.0 | QH8: =SUM(CX8:DE8) -> 367.0 | QI8: =SUM(DF8:DT8) -> 467.0 | QJ8: =SUM(DU8:ET8) -> 377.0 | QK8: =SUM(EU8:FY8) -> 3.0 | QL8: =SUM(FZ8:HD8) -> 0.0 | QM8: =SUM(HE8:HF8) -> 446.0 | QN8: =SUM(HG8:HL8) -> 598.0 | QO8: =SUM(HM8:HR8) -> 0.0 | QP8: =SUM(HS8:IJ8) -> 349.0 | QQ8: =SUM(IK8:JA8) -> 791.0 | QR8: =SUM(JB8:JT8) -> 457.0 | QS8: =SUM(JU8:KD8) -> 211.0 | QT8: =SUM(KE8:KP8) -> 351.0 | QU8: =SUM(KQ8:MU8) -> 1,148.0 | QV8: =SUM(MV8:NG8) -> 666.0 | QW8: =SUM(NH8:NI8) -> 0.0 | QX8: =SUM(NJ8:NL8) -> 0.0 | QY8: =SUM(NM8:NO8) -> 0.0 | QZ8: =SUM(NP8) -> 0.0 | RA8: 0.0 | RB8: =SUM(NR8:NT8) -> 0.0 | RC8: =SUM(NU8) -> 0.0 | RD8: =SUM(NV8) -> 0.0 | RE8: =SUM(NW8:OB8) -> 0.0 | RF8: =SUM(OC8:PE8) -> 738.0 | RG8: =SUM(PF8:PG8) -> 0.0 | RH8: =SUM(PH8:PI8) -> 0.0 | RI8: =SUM(PJ8:PM8) -> 0.0 | RJ8: =SUM(PN8:PP8) -> 129.0 | RK8: =SUM(PQ8) -> 19.0 | RL8: 47.0 | RM8: 10.0 | RN8: 0 | RO8: 0 | RP8: 0 | RQ8: 1.0 | RR8: 1.0 | RS8: 0.0 | RT8: 0.0 | RU8: =SUM(QA8) -> 0.0 | RV8: 0.0 | RW8: =SUM(QE8:RU8)-SUM(RI8:RM8)-SUM(RQ8:RT8) -> 8,326.0 | RY8: 0 | RZ8: 1 | SA8: 0 | SB8: 12 | SC8: 99 | SD8: 10 | SE8: =SUM(RY8:SD8) -> 122 | SR8: 12 | SS8: 3 | SU8: =SF8+SG8 -> 0 | SV8: =SH8+SI8+SJ8+SK8+SL8+SM8+SN8+SO8+SP8 -> 0 | SW8: =SQ8 -> 0 | SX8: =SR8 -> 12 | SY8: =SS8 -> 3 | TA8: 0 | TB8: 0 | TC8: 0 | TD8: 0 | TE8: 0 | TF8: 0 | TG8: 0 | TH8: 0 | TI8: 0 | TJ8: 0 | TK8: 0 | TL8: 0 | TM8: 0 | TN8: 0 | TO8: 0 | TS8: =M8+DH8+'2_MERCADO_PRIVADO'!G8+'2_MERCADO_PRIVADO'!BW8 -> 262 | TT8: =DH8+'2_MERCADO_PRIVADO'!AP8+'2_MERCADO_PRIVADO'!BW8 -> 262 | TU8: =BR8+'2_MERCADO_PRIVADO'!AP8+'2_MERCADO_PRIVADO'!BW8+'2_MERCADO_PRIVADO'!DD8 -> 262 | TV8: =CH8+CX8+DL8+'2_MERCADO_PRIVADO'!BF8+'2_MERCADO_PRIVADO'!CM8+'2_MERCADO_PRIVADO'!DT8 -> 279 | TW8: =CO8+DE8+'2_MERCADO_PRIVADO'!BM8+'2_MERCADO_PRIVADO'!CT8+'2_MERCADO_PRIVADO'!EA8 -> 209 | TX8: =KR8+LK8+LP8+'2_MERCADO_PRIVADO'!MM8+'2_MERCADO_PRIVADO'!NF8+'2_MERCADO_PRIVADO'!NK8 -> 326 | TY8: =MV8+MW8+MX8+MY8+MZ8+NA8+NB8+NC8+ND8+NE8+NF8+NG8+'2_MERCADO_PRIVADO'!OQ8+'2_MERCADO_PRIVADO'!OR8+'2_MERCADO_PRIVADO'!OS8+'2_MERCADO_PRIVADO'!OT8+'2_MERCADO_PRIVADO'!OU8+'2_MERCADO_PRIVADO'!OV8+'2_MERCADO_PRIVADO'!OW8+'2_MERCADO_PRIVADO'!OX8+'2_MERCADO_PRIVADO'!OY8+'2_MERCADO_PRIVADO'!OZ8+'2_MERCADO_PRIVADO'!PA8+'2_MERCADO_PRIVADO'!PB8+'2_MERCADO_PRIVADO'!PC8+'2_MERCADO_PRIVADO'!PD8+'2_MERCADO_PRIVADO'!PE8+'2_MERCADO_PRIVADO'!PF8 -> 670 | TZ8: =OC8+'2_MERCADO_PRIVADO'!QO8 -> 89 | UA8: =OD8+'2_MERCADO_PRIVADO'!QP8 -> 44
D9: MASCULINO | E9: 416 | F9: 5 | G9: 0 | H9: 0 | I9: 413 | J9: 10 | K9: 0 | L9: 0 | M9: 0 | N9: 0 | O9: 1 | P9: 4 | Q9: 0 | R9: 0 | S9: 0 | T9: 0 | U9: 0 | V9: 0 | W9: 0 | X9: 0 | Y9: 0 | Z9: 0 | AA9: 0 | AB9: 1 | AF9: 0 | AG9: 0 | AH9: 0 | AJ9: 0 | AK9: 0 | AL9: 0 | AN9: 0 | AO9: 0 | AP9: 0 | AR9: 0 | AS9: 0 | AT9: 0 | AZ9: 0 | BA9: 0 | BB9: 0 | BD9: 0 | BE9: 0 | BF9: 0 | BG9: 0 | BH9: 0 | BI9: 0 | BJ9: 0 | BK9: 0 | BP9: 190 | BQ9: 176 | BR9: 164 | BS9: 0 | BT9: 1 | BU9: 4 | BV9: 0 | BW9: 0 | BX9: 0 | BY9: 0 | BZ9: 0 | CA9: 0 | CB9: 0 | CC9: 0 | CD9: 0 | CE9: 0 | CF9: 0 | CG9: 1 | CH9: 0 | CI9: 0 | CJ9: 0 | CK9: 0 | CL9: 0 | CM9: 0 | CN9: 0 | CO9: 9 | CR9: 6 | CX9: 175 | CY9: 8 | CZ9: 4 | DA9: 3 | DB9: 1 | DC9: 0 | DD9: 0 | DE9: 191 | DF9: 190 | DG9: 176 | DH9: 164 | DI9: 0 | DU9: 0 | DV9: 0 | DW9: 0 | DX9: 0 | DY9: 1 | DZ9: 4 | EA9: 0 | EB9: 0 | EC9: 0 | ED9: 0 | EE9: 0 | EF9: 0 | EG9: 0 | EH9: 0 | EI9: 0 | EJ9: 1 | EK9: 0 | EL9: 1 | EM9: 176 | EN9: 8 | EO9: 4 | EP9: 3 | EQ9: 1 | ER9: 0 | ES9: 0 | ET9: 188 | EU9: 0 | EV9: 0 | EW9: 0 | EX9: 0 | EY9: 0 | EZ9: 0 | FA9: 0 | FB9: 0 | FC9: 0 | FD9: 0 | FE9: 0 | FF9: 0 | FG9: 0 | FH9: 0 | FI9: 0 | FJ9: 0 | FK9: 0 | FL9: 0 | FM9: 0 | FN9: 0 | FO9: 0 | FP9: 0 | FQ9: 0 | FR9: 0 | FS9: 0 | FT9: 0 | FU9: 0 | FV9: 0 | FW9: 0 | FX9: 0 | FY9: 1 | FZ9: 0 | GA9: 0 | GB9: 0 | GC9: 0 | GD9: 0 | GE9: 0 | GF9: 0 | GG9: 0 | GH9: 0 | GI9: 0 | GJ9: 0 | GK9: 0 | GL9: 0 | GM9: 0 | GN9: 0 | GO9: 0 | GP9: 0 | GQ9: 0 | GR9: 0 | GS9: 0 | GT9: 0 | GU9: 0 | GV9: 0 | GW9: 0 | GX9: 0 | GY9: 0 | GZ9: 0 | HA9: 0 | HB9: 0 | HC9: 0 | HD9: 0 | HE9: 239 | HF9: 248 | HG9: 232 | HH9: 230 | HI9: 157 | HJ9: 3 | HK9: 3 | HL9: 19 | HS9: 151 | HT9: 3 | HU9: 2 | HV9: 2 | HW9: 0 | HX9: 0 | HY9: 0 | HZ9: 0 | IA9: 0 | IB9: 0 | ID9: 208 | IE9: 7 | IF9: 6 | IG9: 1 | IH9: 2 | II9: 0 | IK9: 0 | IL9: 168 | IM9: 43 | IN9: 43 | IO9: 53 | IP9: 47 | IQ9: 47 | IR9: 43 | IS9: 38 | IT9: 43 | IU9: 55 | IW9: 34 | IX9: 9 | IY9: 69 | IZ9: 36 | JA9: 22 | JB9: 228 | JC9: 9 | JD9: 7 | JE9: 7 | JF9: 1 | JG9: 0 | JH9: 2 | JI9: 0 | JJ9: 0 | JK9: 0 | JL9: 0 | JM9: 0 | JN9: 3 | JO9: 8 | JP9: 75 | JQ9: 37 | JR9: 26 | JS9: 12 | JU9: 176 | JV9: 7 | JW9: 2 | JX9: 8 | JY9: 7 | JZ9: 4 | KA9: 6 | KB9: 1 | KC9: 2 | KD9: 0 | KE9: 148 | KF9: 6 | KG9: 2 | KH9: 8 | KI9: 5 | KJ9: 4 | KK9: 4 | KM9: 203 | KN9: 3 | KO9: 4 | KQ9: 0 | KR9: 0 | KS9: 0 | KT9: 0 | KU9: 4 | KV9: 0 | KW9: 0 | KX9: 0 | KY9: 0 | KZ9: 0 | LA9: 0 | LB9: 0 | LC9: 0 | LD9: 0 | LE9: 0 | LF9: 0 | LG9: 0 | LH9: 0 | LI9: 0 | LJ9: 0 | LK9: 0 | LL9: 0 | LM9: 0 | LN9: 0 | LO9: 0 | LP9: 0 | LQ9: 0 | LR9: 0 | LS9: 0 | LT9: 0 | LU9: 0 | LV9: 0 | LW9: 0 | LX9: 0 | LY9: 0 | LZ9: 0 | MA9: 0 | MB9: 0 | MC9: 6 | MD9: 4 | ME9: 0 | MF9: 0 | MG9: 0 | MH9: 1 | MI9: 0 | MJ9: 0 | MK9: 0 | ML9: 0 | MM9: 0 | MN9: 0 | MO9: 0 | MP9: 0 | MQ9: 0 | MR9: 0 | MS9: 0 | MT9: 0 | MU9: 0 | MV9: 0 | MW9: 0 | MX9: 0 | MY9: 0 | MZ9: 0 | NA9: 0 | NB9: 0 | NC9: 0 | ND9: 0 | NE9: 0 | NF9: 0 | NG9: 0 | OC9: 0 | OD9: 0 | OE9: 0 | OF9: 0 | OG9: 0 | OH9: 0 | OI9: 0 | OJ9: 0 | OK9: 0 | OL9: 0 | OM9: 0 | ON9: 0 | OO9: 0 | OP9: 0 | OQ9: 0 | OR9: 0 | OS9: 0 | OT9: 0 | OU9: 0 | OV9: 0 | OW9: 0 | OX9: 0 | OY9: 0 | OZ9: 0 | PA9: 0 | PB9: 0 | PC9: 0 | PD9: 0 | PE9: 0 | PN9: 89 | PO9: 27 | PP9: 24 | PQ9: 24 | PR9: 42 | PS9: 9 | PW9: 0 | PX9: 0 | QC9: =SUM(E9:QB9)-SUM(PQ9:PT9)-SUM(PW9:PZ9) -> 6,134.00 | QE9: =SUM(E9:H9) -> 421.0 | QF9: =SUM(I9:BO9) -> 429.0 | QG9: =SUM(BP9:CW9) -> 551.0 | QH9: =SUM(CX9:DE9) -> 382.0 | QI9: =SUM(DF9:DT9) -> 530.0 | QJ9: =SUM(DU9:ET9) -> 387.0 | QK9: =SUM(EU9:FY9) -> 1.0 | QL9: =SUM(FZ9:HD9) -> 0.0 | QM9: =SUM(HE9:HF9) -> 487.0 | QN9: =SUM(HG9:HL9) -> 644.0 | QO9: =SUM(HM9:HR9) -> 0.0 | QP9: =SUM(HS9:IJ9) -> 382.0 | QQ9: =SUM(IK9:JA9) -> 750.0 | QR9: =SUM(JB9:JT9) -> 415.0 | QS9: =SUM(JU9:KD9) -> 213.0 | QT9: =SUM(KE9:KP9) -> 387.0 | QU9: =SUM(KQ9:MU9) -> 15.0 | QV9: =SUM(MV9:NG9) -> 0.0 | QW9: =SUM(NH9:NI9) -> 0.0 | QX9: =SUM(NJ9:NL9) -> 0.0 | QY9: =SUM(NM9:NO9) -> 0.0 | QZ9: =SUM(NP9) -> 0.0 | RA9: =SUM(NQ9) -> 0.0 | RB9: =SUM(NR9:NT9) -> 0.0 | RC9: =SUM(NU9) -> 0.0 | RD9: =SUM(NV9) -> 0.0 | RE9: =SUM(NW9:OB9) -> 0.0 | RF9: =SUM(OC9:PE9) -> 0.0 | RG9: =SUM(PF9:PG9) -> 0.0 | RH9: =SUM(PH9:PI9) -> 0.0 | RI9: =SUM(PJ9:PM9) -> 0.0 | RJ9: =SUM(PN9:PP9) -> 140.0 | RK9: =SUM(PQ9) -> 24.0 | RL9: =SUM(PR9) -> 42.0 | RM9: =SUM(PS9) -> 9.0 | RN9: =SUM(PT9) -> 0 | RO9: =SUM(PU9) -> 0 | RP9: =SUM(PV9) -> 0 | RQ9: =SUM(PW9) -> 0.0 | RR9: =SUM(PX9) -> 0.0 | RS9: =SUM(PY9) -> 0.0 | RT9: =SUM(PZ9) -> 0.0 | RU9: =SUM(QA9) -> 0.0 | RV9: =SUM(QB9) -> 0.0 | RW9: =SUM(QE9:RU9)-SUM(RI9:RM9)-SUM(RQ9:RT9) -> 5,994.0 | RY9: 0 | RZ9: 0 | SA9: 0 | SB9: 4 | SC9: 51 | SD9: 9 | SE9: =SUM(RY9:SD9) -> 64 | SR9: 6 | SS9: 1 | SU9: =SF9+SG9 -> 0 | SV9: =SH9+SI9+SJ9+SK9+SL9+SM9+SN9+SO9+SP9 -> 0 | SW9: =SQ9 -> 0 | SX9: =SR9 -> 6 | SY9: =SS9 -> 1 | TA9: 0 | TB9: 0 | TC9: 0 | TD9: 0 | TE9: 0 | TF9: 0 | TG9: 0 | TH9: 0 | TI9: 0 | TJ9: 0 | TK9: 0 | TL9: 0 | TM9: 0 | TN9: 0 | TO9: 0 | TS9: =M9+DH9+'2_MERCADO_PRIVADO'!G9+'2_MERCADO_PRIVADO'!BW9 -> 276 | TT9: =DH9+'2_MERCADO_PRIVADO'!AP9+'2_MERCADO_PRIVADO'!BW9 -> 276 | TU9: =BR9+'2_MERCADO_PRIVADO'!AP9+'2_MERCADO_PRIVADO'!BW9+'2_MERCADO_PRIVADO'!DD9 -> 276 | TV9: =CH9+CX9+DL9+'2_MERCADO_PRIVADO'!BF9+'2_MERCADO_PRIVADO'!CM9+'2_MERCADO_PRIVADO'!DT9 -> 262 | TW9: =CO9+DE9+'2_MERCADO_PRIVADO'!BM9+'2_MERCADO_PRIVADO'!CT9+'2_MERCADO_PRIVADO'!EA9 -> 257 | TX9: =KR9+LK9+LP9+'2_MERCADO_PRIVADO'!MM9+'2_MERCADO_PRIVADO'!NF9+'2_MERCADO_PRIVADO'!NK9 -> 0 | TY9: =MV9+MW9+MX9+MY9+MZ9+NA9+NB9+NC9+ND9+NE9+NF9+NG9+'2_MERCADO_PRIVADO'!OQ9+'2_MERCADO_PRIVADO'!OR9+'2_MERCADO_PRIVADO'!OS9+'2_MERCADO_PRIVADO'!OT9+'2_MERCADO_PRIVADO'!OU9+'2_MERCADO_PRIVADO'!OV9+'2_MERCADO_PRIVADO'!OW9+'2_MERCADO_PRIVADO'!OX9+'2_MERCADO_PRIVADO'!OY9+'2_MERCADO_PRIVADO'!OZ9+'2_MERCADO_PRIVADO'!PA9+'2_MERCADO_PRIVADO'!PB9+'2_MERCADO_PRIVADO'!PC9+'2_MERCADO_PRIVADO'!PD9+'2_MERCADO_PRIVADO'!PE9+'2_MERCADO_PRIVADO'!PF9 -> 0 | TZ9: =OC9+'2_MERCADO_PRIVADO'!QO9 -> 1 | UA9: =OD9+'2_MERCADO_PRIVADO'!QP9 -> 2
D10: OTRO | E10: 0 | F10: 0 | G10: 0 | H10: 0 | I10: 0 | J10: 0 | K10: 0 | L10: 0 | M10: 0 | N10: 0 | O10: 0 | P10: 0 | Q10: 0 | R10: 0 | S10: 0 | T10: 0 | U10: 0 | V10: 0 | W10: 0 | X10: 0 | Y10: 0 | Z10: 0 | AA10: 0 | AB10: 0 | AF10: 0 | AG10: 0 | AH10: 0 | AJ10: 0 | AK10: 0 | AL10: 0 | AN10: 0 | AO10: 0 | AP10: 0 | AR10: 0 | AS10: 0 | AT10: 0 | AZ10: 0 | BA10: 0 | BB10: 0 | BD10: 0 | BE10: 0 | BF10: 0 | BG10: 0 | BH10: 0 | BI10: 0 | BJ10: 0 | BK10: 0 | BP10: 0 | BQ10: 0 | BR10: 0 | BS10: 0 | BT10: 0 | BU10: 0 | BV10: 0 | BW10: 0 | BX10: 0 | BY10: 0 | BZ10: 0 | CA10: 0 | CB10: 0 | CC10: 0 | CD10: 0 | CE10: 0 | CF10: 0 | CG10: 0 | CH10: 0 | CI10: 0 | CJ10: 0 | CK10: 0 | CL10: 0 | CM10: 0 | CN10: 0 | CO10: 0 | CX10: 0 | CY10: 0 | CZ10: 0 | DA10: 0 | DB10: 0 | DC10: 0 | DD10: 0 | DE10: 0 | DF10: 0 | DG10: 0 | DH10: 0 | DI10: 0 | DU10: 0 | DV10: 0 | DW10: 0 | DX10: 0 | DY10: 0 | DZ10: 0 | EA10: 0 | EB10: 0 | EC10: 0 | ED10: 0 | EE10: 0 | EF10: 0 | EG10: 0 | EH10: 0 | EI10: 0 | EJ10: 0 | EK10: 0 | EL10: 0 | EM10: 0 | EN10: 0 | EO10: 0 | EP10: 0 | EQ10: 0 | ER10: 0 | ES10: 0 | ET10: 0 | EU10: 0 | EV10: 0 | EW10: 0 | EX10: 0 | EY10: 0 | EZ10: 0 | FA10: 0 | FB10: 0 | FC10: 0 | FD10: 0 | FE10: 0 | FF10: 0 | FG10: 0 | FH10: 0 | FI10: 0 | FJ10: 0 | FK10: 0 | FL10: 0 | FM10: 0 | FN10: 0 | FO10: 0 | FP10: 0 | FQ10: 0 | FR10: 0 | FS10: 0 | FT10: 0 | FU10: 0 | FV10: 0 | FW10: 0 | FX10: 0 | FY10: 0 | FZ10: 0 | GA10: 0 | GB10: 0 | GC10: 0 | GD10: 0 | GE10: 0 | GF10: 0 | GG10: 0 | GH10: 0 | GI10: 0 | GJ10: 0 | GK10: 0 | GL10: 0 | GM10: 0 | GN10: 0 | GO10: 0 | GP10: 0 | GQ10: 0 | GR10: 0 | GS10: 0 | GT10: 0 | GU10: 0 | GV10: 0 | GW10: 0 | GX10: 0 | GY10: 0 | GZ10: 0 | HA10: 0 | HB10: 0 | HC10: 0 | HD10: 0 | HE10: 0 | HF10: 0 | HG10: 0 | HH10: 0 | HI10: 0 | HJ10: 0 | HK10: 0 | HL10: 0 | HS10: 0 | HT10: 0 | HU10: 0 | HV10: 0 | HW10: 0 | HX10: 0 | HY10: 0 | HZ10: 0 | IA10: 0 | IB10: 0 | ID10: 0 | IE10: 0 | IF10: 0 | IG10: 0 | IH10: 0 | II10: 0 | IK10: 0 | IL10: 0 | IM10: 0 | IN10: 0 | IO10: 0 | IP10: 0 | IQ10: 0 | IR10: 0 | IS10: 1 | IT10: 0 | IU10: 0 | IW10: 0 | IX10: 0 | IY10: 0 | IZ10: 0 | JA10: 0 | JB10: 0 | JC10: 0 | JD10: 0 | JE10: 0 | JF10: 0 | JG10: 0 | JH10: 0 | JI10: 0 | JJ10: 0 | JK10: 0 | JL10: 0 | JM10: 0 | JN10: 0 | JO10: 0 | JP10: 0 | JQ10: 0 | JR10: 0 | JS10: 0 | JU10: 0 | JV10: 0 | JW10: 0 | JX10: 0 | JY10: 0 | JZ10: 0 | KA10: 0 | KB10: 0 | KC10: 0 | KD10: 0 | KE10: 0 | KF10: 0 | KG10: 0 | KH10: 0 | KI10: 0 | KJ10: 0 | KK10: 0 | KM10: 0 | KN10: 0 | KO10: 0 | KQ10: 0 | KR10: 0 | KS10: 0 | KT10: 0 | KU10: 0 | KV10: 0 | KW10: 0 | KX10: 0 | KY10: 0 | KZ10: 0 | LA10: 0 | LB10: 0 | LC10: 0 | LD10: 0 | LE10: 0 | LF10: 0 | LG10: 0 | LH10: 0 | LI10: 0 | LJ10: 0 | LK10: 0 | LL10: 0 | LM10: 0 | LN10: 0 | LO10: 0 | LP10: 0 | LQ10: 0 | LR10: 0 | LS10: 0 | LT10: 0 | LU10: 0 | LV10: 0 | LW10: 0 | LX10: 0 | LY10: 0 | LZ10: 0 | MA10: 0 | MB10: 0 | MC10: 0 | MD10: 0 | ME10: 0 | MF10: 0 | MG10: 0 | MH10: 0 | MI10: 0 | MJ10: 0 | MK10: 0 | ML10: 0 | MM10: 0 | MN10: 0 | MO10: 0 | MP10: 0 | MQ10: 0 | MR10: 0 | MS10: 0 | MT10: 0 | MU10: 0 | MV10: 0 | MW10: 0 | MX10: 0 | MY10: 0 | MZ10: 0 | NA10: 0 | NB10: 0 | NC10: 0 | ND10: 0 | NE10: 0 | NF10: 0 | NG10: 0 | OC10: 0 | OD10: 0 | OE10: 0 | OF10: 0 | OG10: 0 | OH10: 0 | OI10: 0 | OJ10: 0 | OK10: 0 | OL10: 0 | OM10: 0 | ON10: 0 | OO10: 0 | OP10: 0 | OQ10: 0 | OR10: 0 | OS10: 0 | OT10: 0 | OU10: 0 | OV10: 0 | OW10: 0 | OX10: 0 | OY10: 0 | OZ10: 0 | PA10: 0 | PB10: 0 | PC10: 0 | PD10: 0 | PE10: 0 | PN10: 0 | PO10: 0 | PP10: 0 | PQ10: 0 | PR10: 0 | PS10: 0 | PW10: 0 | PX10: 0 | QC10: =SUM(E10:QB10)-SUM(PQ10:PT10)-SUM(PW10:PZ10) -> 1.00 | QE10: 0.0 | QF10: 0.0 | QG10: 0.0 | QH10: 0.0 | QI10: 0.0 | QJ10: 0.0 | QK10: 0.0 | QL10: 0.0 | QM10: 0.0 | QN10: 0.0 | QO10: 0.0 | QP10: 0.0 | QQ10: 1.0 | QR10: 0.0 | QS10: 0.0 | QT10: 0.0 | QU10: 0.0 | QV10: 0.0 | QW10: 0.0 | QX10: 0.0 | QY10: 0.0 | QZ10: 0.0 | RA10: 0.0 | RB10: 0.0 | RC10: 0.0 | RD10: 0.0 | RE10: 0.0 | RF10: 0.0 | RG10: 0.0 | RH10: 0.0 | RI10: 0.0 | RJ10: 0.0 | RK10: 0.0 | RL10: 0.0 | RM10: 0.0 | RN10: 0 | RO10: 0 | RP10: 0 | RQ10: 0.0 | RR10: 0.0 | RS10: 0.0 | RT10: 0.0 | RU10: 0.0 | RV10: 0.0 | RW10: 1.0 | RY10: 0 | RZ10: 0 | SA10: 0 | SB10: 0 | SC10: 0 | SD10: 0 | SE10: 0 | SU10: 0 | SV10: 0 | SW10: 0 | SX10: 0 | SY10: 0 | TA10: 0 | TB10: 0 | TC10: 0 | TD10: 0 | TE10: 0 | TF10: 0 | TG10: 0 | TH10: 0 | TI10: 0 | TJ10: 0 | TK10: 0 | TL10: 0 | TM10: 0 | TN10: 0 | TO10: 0 | TS10: =M10+DH10+'2_MERCADO_PRIVADO'!G10+'2_MERCADO_PRIVADO'!BW10 -> 0 | TT10: =DH10+'2_MERCADO_PRIVADO'!AP10+'2_MERCADO_PRIVADO'!BW10 -> 0 | TU10: =BR10+'2_MERCADO_PRIVADO'!AP10+'2_MERCADO_PRIVADO'!BW10+'2_MERCADO_PRIVADO'!DD10 -> 0 | TV10: =CH10+CX10+DL10+'2_MERCADO_PRIVADO'!BF10+'2_MERCADO_PRIVADO'!CM10+'2_MERCADO_PRIVADO'!DT10 -> 0 | TW10: =CO10+DE10+'2_MERCADO_PRIVADO'!BM10+'2_MERCADO_PRIVADO'!CT10+'2_MERCADO_PRIVADO'!EA10 -> 0 | TX10: =KR10+LK10+LP10+'2_MERCADO_PRIVADO'!MM10+'2_MERCADO_PRIVADO'!NF10+'2_MERCADO_PRIVADO'!NK10 -> 0 | TY10: =MV10+MW10+MX10+MY10+MZ10+NA10+NB10+NC10+ND10+NE10+NF10+NG10+'2_MERCADO_PRIVADO'!OQ10+'2_MERCADO_PRIVADO'!OR10+'2_MERCADO_PRIVADO'!OS10+'2_MERCADO_PRIVADO'!OT10+'2_MERCADO_PRIVADO'!OU10+'2_MERCADO_PRIVADO'!OV10+'2_MERCADO_PRIVADO'!OW10+'2_MERCADO_PRIVADO'!OX10+'2_MERCADO_PRIVADO'!OY10+'2_MERCADO_PRIVADO'!OZ10+'2_MERCADO_PRIVADO'!PA10+'2_MERCADO_PRIVADO'!PB10+'2_MERCADO_PRIVADO'!PC10+'2_MERCADO_PRIVADO'!PD10+'2_MERCADO_PRIVADO'!PE10+'2_MERCADO_PRIVADO'!PF10 -> 0 | TZ10: =OC10+'2_MERCADO_PRIVADO'!QO10 -> 0 | UA10: =OD10+'2_MERCADO_PRIVADO'!QP10 -> 0
D11: TOTAL GENERO | E11: 838 | F11: 17 | G11: 0 | H11: 0 | I11: 825 | J11: 22 | K11: 1 | L11: 0 | M11: 0 | N11: 0 | O11: 2 | P11: 5 | Q11: 0 | R11: 1 | S11: 2 | T11: 0 | U11: 2 | V11: 1 | W11: 0 | X11: 0 | Y11: 0 | Z11: 0 | AA11: 0 | AB11: 1 | AC11: =SUM(AC8:AC10) -> 0 | AD11: 0 | AE11: 0 | AF11: 0 | AG11: 0 | AH11: 0 | AI11: 0 | AJ11: 0 | AK11: 0 | AL11: 0 | AM11: 0 | AN11: 0 | AO11: 1 | AP11: 0 | AQ11: 0 | AR11: 0 | AS11: 0 | AT11: 0 | AU11: 0 | AV11: 0 | AW11: 0 | AX11: 0 | AY11: 0 | AZ11: 1 | BA11: 0 | BB11: 0 | BC11: 0 | BD11: 0 | BE11: 0 | BF11: 0 | BG11: 0 | BH11: 0 | BI11: 0 | BJ11: 1 | BK11: 0 | BL11: 0 | BM11: 0 | BN11: 0 | BO11: 0 | BP11: 338 | BQ11: 353 | BR11: 307 | BS11: 0 | BT11: 4 | BU11: 5 | BV11: 0 | BW11: 0 | BX11: 1 | BY11: 1 | BZ11: 1 | CA11: 1 | CB11: 0 | CC11: 0 | CD11: 0 | CE11: 0 | CF11: 0 | CG11: 1 | CH11: 0 | CI11: 0 | CJ11: 0 | CK11: 0 | CL11: 1 | CM11: 0 | CN11: 0 | CO11: 14 | CQ11: =SUM(CQ8:CQ10) -> 0 | CR11: 11 | CS11: 0 | CT11: 0 | CU11: 0 | CV11: 0 | CW11: 0 | CX11: 373 | CY11: 19 | CZ11: 13 | DA11: 5 | DB11: 2 | DC11: 0 | DD11: 0 | DE11: 337 | DF11: 337 | DG11: 353 | DH11: 307 | DI11: 0 | DJ11: 0 | DK11: 0 | DL11: 0 | DM11: 0 | DN11: 0 | DO11: 0 | DP11: 0 | DQ11: 0 | DR11: 0 | DS11: 0 | DT11: 0 | DU11: 0 | DV11: 0 | DW11: 0 | DX11: 0 | DY11: 4 | DZ11: 5 | EA11: 0 | EB11: 1 | EC11: 2 | ED11: 0 | EE11: 2 | EF11: 1 | EG11: 0 | EH11: 0 | EI11: 0 | EJ11: 2 | EK11: 0 | EL11: 1 | EM11: 374 | EN11: 19 | EO11: 13 | EP11: 5 | EQ11: 2 | ER11: 0 | ES11: 0 | ET11: 333 | EU11: 1 | EV11: 0 | EW11: 0 | EX11: 0 | EY11: 0 | EZ11: 0 | FA11: 0 | FB11: 0 | FC11: 0 | FD11: 0 | FE11: 0 | FF11: 0 | FG11: 0 | FH11: 0 | FI11: 0 | FJ11: 0 | FK11: 0 | FL11: 0 | FM11: 0 | FN11: 0 | FO11: 0 | FP11: 0 | FQ11: 0 | FR11: 0 | FS11: 0 | FT11: 0 | FU11: 0 | FV11: 0 | FW11: 0 | FX11: 0 | FY11: 3 | FZ11: 0 | GA11: 0 | GB11: 0 | GC11: 0 | GD11: 0 | GE11: 0 | GF11: 0 | GG11: 0 | GH11: 0 | GI11: 0 | GJ11: 0 | GK11: 0 | GL11: 0 | GM11: 0 | GN11: 0 | GO11: 0 | GP11: 0 | GQ11: 0 | GR11: 0 | GS11: 0 | GT11: 0 | GU11: 0 | GV11: 0 | GW11: 0 | GX11: 0 | GY11: 0 | GZ11: 0 | HA11: 0 | HB11: 0 | HC11: 0 | HD11: 0 | HE11: 451 | HF11: 482 | HG11: 430 | HH11: 449 | HI11: 311 | HJ11: 5 | HK11: 9 | HL11: 38 | HM11: =SUM(HM8:HM10) -> 0 | HN11: 0 | HO11: 0 | HP11: 0 | HQ11: 0 | HR11: 0 | HS11: 306 | HT11: 5 | HU11: 7 | HV11: 2 | HW11: 0 | HX11: 0 | HY11: 0 | HZ11: 0 | IA11: 0 | IB11: 0 | ID11: 380 | IE11: 13 | IF11: 9 | IG11: 4 | IH11: 4 | II11: 1 | IJ11: 0 | IK11: 0 | IL11: 351 | IM11: 77 | IN11: 89 | IO11: 109 | IP11: 87 | IQ11: 90 | IR11: 76 | IS11: 77 | IT11: 90 | IU11: 94 | IV11: 0 | IW11: 97 | IX11: 16 | IY11: 159 | IZ11: 79 | JA11: 51 | JB11: 465 | JC11: 24 | JD11: 14 | JE11: 9 | JF11: 3 | JG11: 1 | JH11: 2 | JI11: 0 | JJ11: 1 | JK11: 0 | JL11: 1 | JM11: 0 | JN11: 4 | JO11: 19 | JP11: 162 | JQ11: 83 | JR11: 55 | JS11: 29 | JT11: =SUM(JT8:JT10) -> 0 | JU11: 356 | JV11: 11 | JW11: 7 | JX11: 14 | JY11: 15 | JZ11: 6 | KA11: 8 | KB11: 4 | KC11: 3 | KD11: 0 | KE11: 302 | KF11: 11 | KG11: 7 | KH11: 13 | KI11: 12 | KJ11: 7 | KK11: 6 | KM11: 365 | KN11: 10 | KO11: 5 | KP11: 0 | KQ11: 1 | KR11: 0 | KS11: 0 | KT11: 0 | KU11: 9 | KV11: 8 | KW11: 2 | KX11: 0 | KY11: 0 | KZ11: 0 | LA11: 247 | LB11: 186 | LC11: 51 | LD11: 32 | LE11: 16 | LF11: 3 | LG11: 0 | LH11: 0 | LI11: 0 | LJ11: 25 | LK11: 10 | LL11: 5 | LM11: 0 | LN11: 0 | LO11: 159 | LP11: 111 | LQ11: 123 | LR11: 84 | LS11: 50 | LT11: 24 | LU11: 0 | LV11: 0 | LW11: 0 | LX11: 0 | LY11: 1 | LZ11: 0 | MA11: 0 | MB11: 0 | MC11: 7 | MD11: 6 | ME11: 0 | MF11: 0 | MG11: 1 | MH11: 1 | MI11: 0 | MJ11: 0 | MK11: 0 | ML11: 0 | MM11: 0 | MN11: 0 | MO11: 0 | MP11: 1 | MQ11: 0 | MR11: 0 | MS11: 0 | MT11: 0 | MU11: 0 | MV11: 0 | MW11: 6 | MX11: 3 | MY11: 0 | MZ11: 0 | NA11: 0 | NB11: 219 | NC11: 130 | ND11: 159 | NE11: 69 | NF11: 49 | NG11: 31 | NI11: =SUM(NI8:NI10) -> 0 | NJ11: 0 | NK11: 0 | NL11: 0 | NM11: 0 | NN11: 0 | NO11: 0 | NP11: 0 | NQ11: 0 | NR11: 0 | NS11: 0 | NT11: 0 | NU11: 0 | NV11: 0 | NW11: 0 | NX11: 0 | NY11: 0 | NZ11: =SUM(NZ8:NZ10) -> 0 | OA11: 0 | OB11: 0 | OC11: 89 | OD11: 42 | OE11: 0 | OF11: 51 | OG11: 78 | OH11: 0 | OI11: 70 | OJ11: 55 | OK11: 0 | OL11: 45 | OM11: 37 | ON11: 0 | OO11: 48 | OP11: 21 | OQ11: 0 | OR11: 35 | OS11: 21 | OT11: 0 | OU11: 34 | OV11: 25 | OW11: 1 | OX11: 22 | OY11: 23 | OZ11: 0 | PA11: 21 | PB11: 14 | PC11: 0 | PD11: 5 | PE11: 1 | PF11: 0 | PG11: 0 | PH11: 0 | PI11: 0 | PJ11: 0 | PK11: 0 | PL11: 0 | PM11: 0 | PN11: 169 | PO11: 57 | PP11: 43 | PQ11: 43 | PR11: 89 | PS11: 19 | PT11: 0 | PU11: 0 | PV11: 0 | PW11: 1 | PX11: 1 | PY11: 0 | PZ11: 0 | QA11: 0 | QB11: 0 | QC11: =SUM(QC8:QC10) -> 14,590 | QE11: =SUM(QE8:QE10) -> 855.0 | QF11: =SUM(QF8:QF10) -> 865.0 | QG11: 1,038.0 | QH11: 749.0 | QI11: 997.0 | QJ11: 764.0 | QK11: 4.0 | QL11: 0.0 | QM11: 933.0 | QN11: 1,242.0 | QO11: =SUM(QO8:QO10) -> 0.0 | QP11: 731.0 | QQ11: 1,542.0 | QR11: 872.0 | QS11: 424.0 | QT11: 738.0 | QU11: 1,163.0 | QV11: 666.0 | QW11: 0.0 | QX11: 0.0 | QY11: 0.0 | QZ11: 0.0 | RA11: 0.0 | RB11: =SUM(RB8:RB10) -> 0.0 | RC11: 0.0 | RD11: 0.0 | RE11: 0.0 | RF11: 738.0 | RG11: 0.0 | RH11: 0.0 | RI11: 0.0 | RJ11: 269.0 | RK11: =SUM(RK8:RK10) -> 43.0 | RL11: 89.0 | RM11: 19.0 | RN11: 0 | RO11: 0 | RP11: 0 | RQ11: 1.0 | RR11: 1.0 | RS11: 0.0 | RT11: 0.0 | RU11: 0.0 | RV11: 0.0 | RW11: =SUM(RW8:RW10) -> 14,321.0 | RY11: 0 | RZ11: 1 | SA11: 0 | SB11: 16 | SC11: 150 | SD11: 19 | SE11: =SUM(SE8:SE10) -> 186 | SF11: =SUM(SF8:SF10) -> 0 | SG11: 0 | SH11: 0 | SI11: 0 | SJ11: 0 | SK11: 0 | SL11: 0 | SM11: 0 | SQ11: 0 | SR11: 18 | SS11: 4 | SU11: =SUM(SU8:SU10) -> 0 | SV11: =SUM(SV8:SV10) -> 0 | SW11: =SUM(SW8:SW10) -> 0 | SX11: =SUM(SX8:SX10) -> 18 | SY11: =SUM(SY8:SY10) -> 4 | TA11: 0 | TB11: 0 | TC11: 0 | TD11: 0 | TE11: 0 | TF11: 0 | TG11: 0 | TH11: 0 | TI11: 0 | TJ11: 0 | TK11: 0 | TL11: 0 | TM11: 0 | TN11: 0 | TO11: 0 | TS11: =M11+DH11+'2_MERCADO_PRIVADO'!G11+'2_MERCADO_PRIVADO'!BW11 -> 538 | TT11: =DH11+'2_MERCADO_PRIVADO'!AP11+'2_MERCADO_PRIVADO'!BW11 -> 538 | TU11: =BR11+'2_MERCADO_PRIVADO'!AP11+'2_MERCADO_PRIVADO'!BW11+'2_MERCADO_PRIVADO'!DD11 -> 538 | TV11: =CH11+CX11+DL11+'2_MERCADO_PRIVADO'!BF11+'2_MERCADO_PRIVADO'!CM11+'2_MERCADO_PRIVADO'!DT11 -> 541 | TW11: =CO11+DE11+'2_MERCADO_PRIVADO'!BM11+'2_MERCADO_PRIVADO'!CT11+'2_MERCADO_PRIVADO'!EA11 -> 466 | TX11: =KR11+LK11+LP11+'2_MERCADO_PRIVADO'!MM11+'2_MERCADO_PRIVADO'!NF11+'2_MERCADO_PRIVADO'!NK11 -> 326 | TY11: =MV11+MW11+MX11+MY11+MZ11+NA11+NB11+NC11+ND11+NE11+NF11+NG11+'2_MERCADO_PRIVADO'!OQ11+'2_MERCADO_PRIVADO'!OR11+'2_MERCADO_PRIVADO'!OS11+'2_MERCADO_PRIVADO'!OT11+'2_MERCADO_PRIVADO'!OU11+'2_MERCADO_PRIVADO'!OV11+'2_MERCADO_PRIVADO'!OW11+'2_MERCADO_PRIVADO'!OX11+'2_MERCADO_PRIVADO'!OY11+'2_MERCADO_PRIVADO'!OZ11+'2_MERCADO_PRIVADO'!PA11+'2_MERCADO_PRIVADO'!PB11+'2_MERCADO_PRIVADO'!PC11+'2_MERCADO_PRIVADO'!PD11+'2_MERCADO_PRIVADO'!PE11+'2_MERCADO_PRIVADO'!PF11 -> 670 | TZ11: =OC11+'2_MERCADO_PRIVADO'!QO11 -> 90 | UA11: =OD11+'2_MERCADO_PRIVADO'!QP11 -> 46
D12: CONTRIBUTIVO | E12: 776 | F12: 11 | G12: 0 | H12: 0 | I12: 765 | J12: 17 | K12: 1 | L12: 0 | M12: 0 | N12: 0 | O12: 0 | P12: 1 | Q12: 0 | R12: 0 | S12: 0 | T12: 0 | U12: 0 | V12: 0 | W12: 0 | X12: 0 | Y12: 0 | Z12: 0 | AA12: 0 | AB12: 0 | AF12: 0 | AG12: 0 | AH12: 0 | AJ12: 0 | AK12: 0 | AL12: 0 | AN12: 0 | AO12: 0 | AP12: 0 | AR12: 0 | AS12: 0 | AT12: 0 | AZ12: 1 | BA12: 0 | BB12: 0 | BD12: 0 | BE12: 0 | BF12: 0 | BG12: 0 | BH12: 0 | BI12: 0 | BJ12: 1 | BK12: 0 | BP12: 274 | BQ12: 278 | BR12: 246 | BS12: 0 | BT12: 0 | BU12: 1 | BV12: 0 | BW12: 0 | BX12: 0 | BY12: 0 | BZ12: 0 | CA12: 0 | CB12: 0 | CC12: 0 | CD12: 0 | CE12: 0 | CF12: 0 | CG12: 0 | CH12: 0 | CI12: 0 | CJ12: 0 | CK12: 0 | CL12: 0 | CM12: 0 | CN12: 0 | CO12: 4 | CR12: 3 | CX12: 303 | CY12: 9 | CZ12: 2 | DA12: 1 | DB12: 2 | DC12: 0 | DD12: 0 | DE12: 265 | DF12: 273 | DG12: 278 | DH12: 246 | DI12: 0 | DU12: 0 | DV12: 0 | DW12: 0 | DX12: 0 | DY12: 0 | DZ12: 1 | EA12: 0 | EB12: 0 | EC12: 0 | ED12: 0 | EE12: 0 | EF12: 0 | EG12: 0 | EH12: 0 | EI12: 0 | EJ12: 1 | EK12: 0 | EL12: 0 | EM12: 303 | EN12: 9 | EO12: 2 | EP12: 1 | EQ12: 2 | ER12: 0 | ES12: 0 | ET12: 260 | EU12: 1 | EV12: 0 | EW12: 0 | EX12: 0 | EY12: 0 | EZ12: 0 | FA12: 0 | FB12: 0 | FC12: 0 | FD12: 0 | FE12: 0 | FF12: 0 | FG12: 0 | FH12: 0 | FI12: 0 | FJ12: 0 | FK12: 0 | FL12: 0 | FM12: 0 | FN12: 0 | FO12: 0 | FP12: 0 | FQ12: 0 | FR12: 0 | FS12: 0 | FT12: 0 | FU12: 0 | FV12: 0 | FW12: 0 | FX12: 0 | FY12: 2 | FZ12: 0 | GA12: 0 | GB12: 0 | GC12: 0 | GD12: 0 | GE12: 0 | GF12: 0 | GG12: 0 | GH12: 0 | GI12: 0 | GJ12: 0 | GK12: 0 | GL12: 0 | GM12: 0 | GN12: 0 | GO12: 0 | GP12: 0 | GQ12: 0 | GR12: 0 | GS12: 0 | GT12: 0 | GU12: 0 | GV12: 0 | GW12: 0 | GX12: 0 | GY12: 0 | GZ12: 0 | HA12: 0 | HB12: 0 | HC12: 0 | HD12: 0 | HE12: 388 | HF12: 408 | HG12: 363 | HH12: 370 | HI12: 263 | HJ12: 0 | HK12: 0 | HL12: 3 | HS12: 251 | HT12: 1 | HU12: 1 | HV12: 0 | HW12: 0 | HX12: 0 | HY12: 0 | HZ12: 0 | IA12: 0 | IB12: 0 | ID12: 301 | IE12: 5 | IF12: 3 | IG12: 1 | IH12: 2 | II12: 1 | IK12: 0 | IL12: 283 | IM12: 59 | IN12: 65 | IO12: 78 | IP12: 70 | IQ12: 76 | IR12: 64 | IS12: 69 | IT12: 75 | IU12: 78 | IW12: 78 | IX12: 13 | IY12: 139 | IZ12: 67 | JA12: 45 | JB12: 392 | JC12: 13 | JD12: 5 | JE12: 3 | JF12: 2 | JG12: 0 | JH12: 1 | JI12: 0 | JJ12: 1 | JK12: 0 | JL12: 1 | JM12: 0 | JN12: 3 | JO12: 16 | JP12: 141 | JQ12: 72 | JR12: 48 | JS12: 23 | JU12: 297 | JV12: 2 | JW12: 1 | JX12: 3 | JY12: 4 | JZ12: 1 | KA12: 1 | KB12: 0 | KC12: 2 | KD12: 0 | KE12: 243 | KF12: 1 | KG12: 1 | KH12: 2 | KI12: 3 | KJ12: 1 | KK12: 0 | KM12: 296 | KN12: 3 | KO12: 4 | KQ12: 1 | KR12: 0 | KS12: 0 | KT12: 0 | KU12: 2 | KV12: 7 | KW12: 1 | KX12: 0 | KY12: 0 | KZ12: 0 | LA12: 236 | LB12: 177 | LC12: 48 | LD12: 32 | LE12: 16 | LF12: 3 | LG12: 0 | LH12: 0 | LI12: 0 | LJ12: 21 | LK12: 7 | LL12: 4 | LM12: 0 | LN12: 0 | LO12: 130 | LP12: 94 | LQ12: 104 | LR12: 75 | LS12: 42 | LT12: 23 | LU12: 0 | LV12: 0 | LW12: 0 | LX12: 0 | LY12: 1 | LZ12: 0 | MA12: 0 | MB12: 0 | MC12: 5 | MD12: 5 | ME12: 0 | MF12: 0 | MG12: 1 | MH12: 1 | MI12: 0 | MJ12: 0 | MK12: 0 | ML12: 0 | MM12: 0 | MN12: 0 | MO12: 0 | MP12: 1 | MQ12: 0 | MR12: 0 | MS12: 0 | MT12: 0 | MU12: 0 | MV12: 0 | MW12: 5 | MX12: 2 | MY12: 0 | MZ12: 0 | NA12: 0 | NB12: 212 | NC12: 99 | ND12: 155 | NE12: 61 | NF12: 47 | NG12: 26 | OC12: 69 | OD12: 39 | OE12: 0 | OF12: 41 | OG12: 70 | OH12: 0 | OI12: 55 | OJ12: 47 | OK12: 0 | OL12: 34 | OM12: 33 | ON12: 0 | OO12: 35 | OP12: 19 | OQ12: 0 | OR12: 26 | OS12: 16 | OT12: 0 | OU12: 27 | OV12: 23 | OW12: 1 | OX12: 17 | OY12: 20 | OZ12: 0 | PA12: 19 | PB12: 12 | PC12: 0 | PD12: 4 | PE12: 1 | PN12: 153 | PO12: 52 | PP12: 39 | PQ12: 39 | PR12: 75 | PS12: 16 | PW12: 1 | PX12: 1 | QC12: =SUM(E12:QB12)-SUM(PQ12:PT12)-SUM(PW12:PZ12) -> 12,042.00 | QE12: =SUM(E12:H12) -> 787.0 | QF12: =SUM(I12:BO12) -> 786.0 | QG12: =SUM(BP12:CW12) -> 806.0 | QH12: =SUM(CX12:DE12) -> 582.0 | QI12: =SUM(DF12:DT12) -> 797.0 | QJ12: =SUM(DU12:ET12) -> 579.0 | QK12: =SUM(EU12:FY12) -> 3.0 | QL12: =SUM(FZ12:HD12) -> 0.0 | QM12: =SUM(HE12:HF12) -> 796.0 | QN12: =SUM(HG12:HL12) -> 999.0 | QO12: =SUM(HM12:HR12) -> 0.0 | QP12: =SUM(HS12:IJ12) -> 566.0 | QQ12: =SUM(IK12:JA12) -> 1,259.0 | QR12: =SUM(JB12:JT12) -> 721.0 | QS12: =SUM(JU12:KD12) -> 311.0 | QT12: =SUM(KE12:KP12) -> 554.0 | QU12: =SUM(KQ12:MU12) -> 1,037.0 | QV12: =SUM(MV12:NG12) -> 607.0 | QW12: =SUM(NH12:NI12) -> 0.0 | QX12: =SUM(NJ12:NL12) -> 0.0 | QY12: =SUM(NM12:NO12) -> 0.0 | QZ12: =SUM(NP12) -> 0.0 | RA12: =SUM(NQ12) -> 0.0 | RB12: =SUM(NR12:NT12) -> 0.0 | RC12: =SUM(NU12) -> 0.0 | RD12: =SUM(NV12) -> 0.0 | RE12: =SUM(NW12:OB12) -> 0.0 | RF12: =SUM(OC12:PE12) -> 608.0 | RG12: =SUM(PF12:PG12) -> 0.0 | RH12: =SUM(PH12:PI12) -> 0.0 | RI12: =SUM(PJ12:PM12) -> 0.0 | RJ12: =SUM(PN12:PP12) -> 244.0 | RK12: =SUM(PQ12) -> 39.0 | RL12: =SUM(PR12) -> 75.0 | RM12: =SUM(PS12) -> 16.0 | RN12: 0 | RO12: 0 | RP12: 0 | RQ12: =SUM(PW12) -> 1.0 | RR12: =SUM(PX12) -> 1.0 | RS12: =SUM(PY12) -> 0.0 | RT12: =SUM(PZ12) -> 0.0 | RU12: =SUM(QA12) -> 0.0 | RV12: =SUM(QB12) -> 0.0 | RW12: =SUM(QE12:RU12)-SUM(RI12:RM12)-SUM(RQ12:RT12) -> 11,798.0 | RY12: 0 | RZ12: 0 | SA12: 0 | SB12: 15 | SC12: 140 | SD12: 18 | SE12: =SUM(RY12:SD12) -> 173 | SR12: 18 | SS12: 4 | SU12: =SF12+SG12 -> 0 | SV12: =SH12+SI12+SJ12+SK12+SL12+SM12+SN12+SO12+SP12 -> 0 | SW12: =SQ12 -> 0 | SX12: =SR12 -> 18 | SY12: =SS12 -> 4 | TA12: 0 | TB12: 0 | TC12: 0 | TD12: 0 | TE12: 0 | TF12: 0 | TG12: 0 | TH12: 0 | TI12: 0 | TJ12: 0 | TK12: 0 | TL12: 0 | TM12: 0 | TN12: 0 | TO12: 0 | TS12: =M12+DH12+'2_MERCADO_PRIVADO'!G12+'2_MERCADO_PRIVADO'!BW12 -> 471 | TT12: =DH12+'2_MERCADO_PRIVADO'!AP12+'2_MERCADO_PRIVADO'!BW12 -> 471 | TU12: =BR12+'2_MERCADO_PRIVADO'!AP12+'2_MERCADO_PRIVADO'!BW12+'2_MERCADO_PRIVADO'!DD12 -> 471 | TV12: =CH12+CX12+DL12+'2_MERCADO_PRIVADO'!BF12+'2_MERCADO_PRIVADO'!CM12+'2_MERCADO_PRIVADO'!DT12 -> 465 | TW12: =CO12+DE12+'2_MERCADO_PRIVADO'!BM12+'2_MERCADO_PRIVADO'!CT12+'2_MERCADO_PRIVADO'!EA12 -> 378 | TX12: =KR12+LK12+LP12+'2_MERCADO_PRIVADO'!MM12+'2_MERCADO_PRIVADO'!NF12+'2_MERCADO_PRIVADO'!NK12 -> 297 | TY12: =MV12+MW12+MX12+MY12+MZ12+NA12+NB12+NC12+ND12+NE12+NF12+NG12+'2_MERCADO_PRIVADO'!OQ12+'2_MERCADO_PRIVADO'!OR12+'2_MERCADO_PRIVADO'!OS12+'2_MERCADO_PRIVADO'!OT12+'2_MERCADO_PRIVADO'!OU12+'2_MERCADO_PRIVADO'!OV12+'2_MERCADO_PRIVADO'!OW12+'2_MERCADO_PRIVADO'!OX12+'2_MERCADO_PRIVADO'!OY12+'2_MERCADO_PRIVADO'!OZ12+'2_MERCADO_PRIVADO'!PA12+'2_MERCADO_PRIVADO'!PB12+'2_MERCADO_PRIVADO'!PC12+'2_MERCADO_PRIVADO'!PD12+'2_MERCADO_PRIVADO'!PE12+'2_MERCADO_PRIVADO'!PF12 -> 611 | TZ12: =OC12+'2_MERCADO_PRIVADO'!QO12 -> 69 | UA12: =OD12+'2_MERCADO_PRIVADO'!QP12 -> 43
D13: SUBSIDIADO | E13: 36 | F13: 4 | G13: 0 | H13: 0 | I13: 32 | J13: 4 | K13: 0 | L13: 0 | M13: 0 | N13: 0 | O13: 0 | P13: 1 | Q13: 0 | R13: 0 | S13: 0 | T13: 0 | U13: 0 | V13: 0 | W13: 0 | X13: 0 | Y13: 0 | Z13: 0 | AA13: 0 | AB13: 1 | AF13: 0 | AG13: 0 | AH13: 0 | AJ13: 0 | AK13: 0 | AL13: 0 | AN13: 0 | AO13: 1 | AP13: 0 | AR13: 0 | AS13: 0 | AT13: 0 | AZ13: 0 | BA13: 0 | BB13: 0 | BD13: 0 | BE13: 0 | BF13: 0 | BG13: 0 | BH13: 0 | BI13: 0 | BJ13: 0 | BK13: 0 | BP13: 36 | BQ13: 55 | BR13: 48 | BS13: 0 | BT13: 1 | BU13: 1 | BV13: 0 | BW13: 0 | BX13: 0 | BY13: 0 | BZ13: 0 | CA13: 0 | CB13: 0 | CC13: 0 | CD13: 0 | CE13: 0 | CF13: 0 | CG13: 1 | CH13: 0 | CI13: 0 | CJ13: 0 | CK13: 0 | CL13: 0 | CM13: 0 | CN13: 0 | CO13: 4 | CR13: 2 | CX13: 55 | CY13: 1 | CZ13: 3 | DA13: 0 | DB13: 0 | DC13: 0 | DD13: 0 | DE13: 37 | DF13: 36 | DG13: 55 | DH13: 48 | DI13: 0 | DU13: 0 | DV13: 0 | DW13: 0 | DX13: 0 | DY13: 1 | DZ13: 1 | EA13: 0 | EB13: 0 | EC13: 0 | ED13: 0 | EE13: 0 | EF13: 0 | EG13: 0 | EH13: 0 | EI13: 0 | EJ13: 1 | EK13: 0 | EL13: 1 | EM13: 55 | EN13: 1 | EO13: 3 | EP13: 0 | EQ13: 0 | ER13: 0 | ES13: 0 | ET13: 38 | EU13: 0 | EV13: 0 | EW13: 0 | EX13: 0 | EY13: 0 | EZ13: 0 | FA13: 0 | FB13: 0 | FC13: 0 | FD13: 0 | FE13: 0 | FF13: 0 | FG13: 0 | FH13: 0 | FI13: 0 | FJ13: 0 | FK13: 0 | FL13: 0 | FM13: 0 | FN13: 0 | FO13: 0 | FP13: 0 | FQ13: 0 | FR13: 0 | FS13: 0 | FT13: 0 | FU13: 0 | FV13: 0 | FW13: 0 | FX13: 0 | FY13: 0 | FZ13: 0 | GA13: 0 | GB13: 0 | GC13: 0 | GD13: 0 | GE13: 0 | GF13: 0 | GG13: 0 | GH13: 0 | GI13: 0 | GJ13: 0 | GK13: 0 | GL13: 0 | GM13: 0 | GN13: 0 | GO13: 0 | GP13: 0 | GQ13: 0 | GR13: 0 | GS13: 0 | GT13: 0 | GU13: 0 | GV13: 0 | GW13: 0 | GX13: 0 | GY13: 0 | GZ13: 0 | HA13: 0 | HB13: 0 | HC13: 0 | HD13: 0 | HE13: 35 | HF13: 53 | HG13: 37 | HH13: 55 | HI13: 35 | HJ13: 0 | HK13: 2 | HL13: 1 | HS13: 38 | HT13: 0 | HU13: 0 | HV13: 0 | HW13: 0 | HX13: 0 | HY13: 0 | HZ13: 0 | IA13: 0 | IB13: 0 | ID13: 40 | IE13: 2 | IF13: 1 | IG13: 0 | IH13: 1 | II13: 0 | IK13: 0 | IL13: 47 | IM13: 7 | IN13: 11 | IO13: 10 | IP13: 6 | IQ13: 5 | IR13: 2 | IS13: 2 | IT13: 4 | IU13: 4 | IW13: 3 | IX13: 1 | IY13: 9 | IZ13: 1 | JA13: 1 | JB13: 57 | JC13: 2 | JD13: 1 | JE13: 0 | JF13: 1 | JG13: 0 | JH13: 1 | JI13: 0 | JJ13: 0 | JK13: 0 | JL13: 0 | JM13: 0 | JN13: 1 | JO13: 1 | JP13: 10 | JQ13: 1 | JR13: 2 | JS13: 0 | JU13: 37 | JV13: 0 | JW13: 0 | JX13: 0 | JY13: 0 | JZ13: 0 | KA13: 1 | KB13: 0 | KC13: 0 | KD13: 0 | KE13: 37 | KF13: 0 | KG13: 0 | KH13: 0 | KI13: 0 | KJ13: 0 | KK13: 1 | KM13: 39 | KN13: 2 | KO13: 0 | KQ13: 0 | KR13: 0 | KS13: 0 | KT13: 0 | KU13: 2 | KV13: 0 | KW13: 1 | KX13: 0 | KY13: 0 | KZ13: 0 | LA13: 2 | LB13: 8 | LC13: 2 | LD13: 0 | LE13: 0 | LF13: 0 | LG13: 0 | LH13: 0 | LI13: 0 | LJ13: 2 | LK13: 0 | LL13: 0 | LM13: 0 | LN13: 0 | LO13: 10 | LP13: 6 | LQ13: 6 | LR13: 3 | LS13: 6 | LT13: 1 | LU13: 0 | LV13: 0 | LW13: 0 | LX13: 0 | LY13: 0 | LZ13: 0 | MA13: 0 | MB13: 0 | MC13: 1 | MD13: 0 | ME13: 0 | MF13: 0 | MG13: 0 | MH13: 0 | MI13: 0 | MJ13: 0 | MK13: 0 | ML13: 0 | MM13: 0 | MN13: 0 | MO13: 0 | MP13: 0 | MQ13: 0 | MR13: 0 | MS13: 0 | MT13: 0 | MU13: 0 | MV13: 0 | MW13: 0 | MX13: 1 | MY13: 0 | MZ13: 0 | NA13: 0 | NB13: 4 | NC13: 10 | ND13: 2 | NE13: 2 | NF13: 1 | NG13: 3 | OC13: 7 | OD13: 3 | OE13: 0 | OF13: 2 | OG13: 4 | OH13: 0 | OI13: 3 | OJ13: 2 | OK13: 0 | OL13: 0 | OM13: 2 | ON13: 0 | OO13: 2 | OP13: 0 | OQ13: 0 | OR13: 3 | OS13: 4 | OT13: 0 | OU13: 6 | OV13: 2 | OW13: 0 | OX13: 2 | OY13: 0 | OZ13: 0 | PA13: 0 | PB13: 0 | PC13: 0 | PD13: 0 | PE13: 0 | PN13: 8 | PO13: 1 | PP13: 2 | PQ13: 2 | PR13: 10 | PS13: 2 | PW13: 0 | PX13: 0 | QC13: =SUM(E13:QB13)-SUM(PQ13:PT13)-SUM(PW13:PZ13) -> 1,296.00 | QE13: 40.0 | QF13: 39.0 | QG13: 148.0 | QH13: 96.0 | QI13: 139.0 | QJ13: 101.0 | QK13: 0.0 | QL13: 0.0 | QM13: 88.0 | QN13: 130.0 | QO13: 0.0 | QP13: 82.0 | QQ13: 113.0 | QR13: 77.0 | QS13: 38.0 | QT13: 79.0 | QU13: 50.0 | QV13: 23.0 | QW13: 0.0 | QX13: 0.0 | QY13: 0.0 | QZ13: 0.0 | RA13: 0.0 | RB13: 0.0 | RC13: 0.0 | RD13: 0.0 | RE13: 0.0 | RF13: 42.0 | RG13: 0.0 | RH13: 0.0 | RI13: 0.0 | RJ13: 11.0 | RK13: 2.0 | RL13: 10.0 | RM13: 2.0 | RN13: 0 | RO13: 0 | RP13: 0 | RQ13: 0.0 | RR13: 0.0 | RS13: 0.0 | RT13: 0.0 | RU13: 0.0 | RV13: 0.0 | RW13: 1,285.0 | RY13: 0 | RZ13: 0 | SA13: 0 | SB13: 0 | SC13: 3 | SD13: 0 | SE13: 3 | SU13: 0 | SV13: 0 | SW13: 0 | SX13: 0 | SY13: 0 | TA13: 0 | TB13: 0 | TC13: 0 | TD13: 0 | TE13: 0 | TF13: 0 | TG13: 0 | TH13: 0 | TI13: 0 | TJ13: 0 | TK13: 0 | TL13: 0 | TM13: 0 | TN13: 0 | TO13: 0 | TS13: =M13+DH13+'2_MERCADO_PRIVADO'!G13+'2_MERCADO_PRIVADO'!BW13 -> 48 | TT13: =DH13+'2_MERCADO_PRIVADO'!AP13+'2_MERCADO_PRIVADO'!BW13 -> 48 | TU13: =BR13+'2_MERCADO_PRIVADO'!AP13+'2_MERCADO_PRIVADO'!BW13+'2_MERCADO_PRIVADO'!DD13 -> 48 | TV13: =CH13+CX13+DL13+'2_MERCADO_PRIVADO'!BF13+'2_MERCADO_PRIVADO'!CM13+'2_MERCADO_PRIVADO'!DT13 -> 58 | TW13: =CO13+DE13+'2_MERCADO_PRIVADO'!BM13+'2_MERCADO_PRIVADO'!CT13+'2_MERCADO_PRIVADO'!EA13 -> 41 | TX13: =KR13+LK13+LP13+'2_MERCADO_PRIVADO'!MM13+'2_MERCADO_PRIVADO'!NF13+'2_MERCADO_PRIVADO'!NK13 -> 12 | TY13: =MV13+MW13+MX13+MY13+MZ13+NA13+NB13+NC13+ND13+NE13+NF13+NG13+'2_MERCADO_PRIVADO'!OQ13+'2_MERCADO_PRIVADO'!OR13+'2_MERCADO_PRIVADO'!OS13+'2_MERCADO_PRIVADO'!OT13+'2_MERCADO_PRIVADO'!OU13+'2_MERCADO_PRIVADO'!OV13+'2_MERCADO_PRIVADO'!OW13+'2_MERCADO_PRIVADO'!OX13+'2_MERCADO_PRIVADO'!OY13+'2_MERCADO_PRIVADO'!OZ13+'2_MERCADO_PRIVADO'!PA13+'2_MERCADO_PRIVADO'!PB13+'2_MERCADO_PRIVADO'!PC13+'2_MERCADO_PRIVADO'!PD13+'2_MERCADO_PRIVADO'!PE13+'2_MERCADO_PRIVADO'!PF13 -> 23 | TZ13: =OC13+'2_MERCADO_PRIVADO'!QO13 -> 7 | UA13: =OD13+'2_MERCADO_PRIVADO'!QP13 -> 3
D14: POBRE NO ASEGURADO | E14: 16 | F14: 1 | G14: 0 | H14: 0 | I14: 18 | J14: 1 | K14: 0 | L14: 0 | M14: 0 | N14: 0 | O14: 2 | P14: 3 | Q14: 0 | R14: 1 | S14: 2 | T14: 0 | U14: 2 | V14: 1 | W14: 0 | X14: 0 | Y14: 0 | Z14: 0 | AA14: 0 | AB14: 0 | AF14: 0 | AG14: 0 | AH14: 0 | AJ14: 0 | AK14: 0 | AL14: 0 | AN14: 0 | AO14: 0 | AP14: 0 | AR14: 0 | AS14: 0 | AT14: 0 | AZ14: 0 | BA14: 0 | BB14: 0 | BD14: 0 | BE14: 0 | BF14: 0 | BG14: 0 | BH14: 0 | BI14: 0 | BJ14: 0 | BK14: 0 | BP14: 22 | BQ14: 12 | BR14: 7 | BS14: 0 | BT14: 3 | BU14: 3 | BV14: 0 | BW14: 0 | BX14: 1 | BY14: 1 | BZ14: 1 | CA14: 1 | CB14: 0 | CC14: 0 | CD14: 0 | CE14: 0 | CF14: 0 | CG14: 0 | CH14: 0 | CI14: 0 | CJ14: 0 | CK14: 0 | CL14: 1 | CM14: 0 | CN14: 0 | CO14: 6 | CR14: 6 | CX14: 8 | CY14: 8 | CZ14: 8 | DA14: 4 | DB14: 0 | DC14: 0 | DD14: 0 | DE14: 23 | DF14: 22 | DG14: 12 | DH14: 7 | DI14: 0 | DU14: 0 | DV14: 0 | DW14: 0 | DX14: 0 | DY14: 3 | DZ14: 3 | EA14: 0 | EB14: 1 | EC14: 2 | ED14: 0 | EE14: 2 | EF14: 1 | EG14: 0 | EH14: 0 | EI14: 0 | EJ14: 0 | EK14: 0 | EL14: 0 | EM14: 9 | EN14: 8 | EO14: 8 | EP14: 4 | EQ14: 0 | ER14: 0 | ES14: 0 | ET14: 23 | EU14: 0 | EV14: 0 | EW14: 0 | EX14: 0 | EY14: 0 | EZ14: 0 | FA14: 0 | FB14: 0 | FC14: 0 | FD14: 0 | FE14: 0 | FF14: 0 | FG14: 0 | FH14: 0 | FI14: 0 | FJ14: 0 | FK14: 0 | FL14: 0 | FM14: 0 | FN14: 0 | FO14: 0 | FP14: 0 | FQ14: 0 | FR14: 0 | FS14: 0 | FT14: 0 | FU14: 0 | FV14: 0 | FW14: 0 | FX14: 0 | FY14: 1 | FZ14: 0 | GA14: 0 | GB14: 0 | GC14: 0 | GD14: 0 | GE14: 0 | GF14: 0 | GG14: 0 | GH14: 0 | GI14: 0 | GJ14: 0 | GK14: 0 | GL14: 0 | GM14: 0 | GN14: 0 | GO14: 0 | GP14: 0 | GQ14: 0 | GR14: 0 | GS14: 0 | GT14: 0 | GU14: 0 | GV14: 0 | GW14: 0 | GX14: 0 | GY14: 0 | GZ14: 0 | HA14: 0 | HB14: 0 | HC14: 0 | HD14: 0 | HE14: 20 | HF14: 10 | HG14: 24 | HH14: 13 | HI14: 9 | HJ14: 5 | HK14: 7 | HL14: 34 | HS14: 14 | HT14: 4 | HU14: 6 | HV14: 2 | HW14: 0 | HX14: 0 | HY14: 0 | HZ14: 0 | IA14: 0 | IB14: 0 | ID14: 23 | IE14: 6 | IF14: 5 | IG14: 3 | IH14: 1 | II14: 0 | IK14: 0 | IL14: 14 | IM14: 10 | IN14: 11 | IO14: 17 | IP14: 9 | IQ14: 4 | IR14: 6 | IS14: 3 | IT14: 5 | IU14: 8 | IW14: 8 | IX14: 1 | IY14: 7 | IZ14: 10 | JA14: 1 | JB14: 9 | JC14: 8 | JD14: 7 | JE14: 6 | JF14: 0 | JG14: 1 | JH14: 0 | JI14: 0 | JJ14: 0 | JK14: 0 | JL14: 0 | JM14: 0 | JN14: 0 | JO14: 1 | JP14: 7 | JQ14: 10 | JR14: 1 | JS14: 4 | JU14: 17 | JV14: 9 | JW14: 6 | JX14: 11 | JY14: 11 | JZ14: 5 | KA14: 6 | KB14: 4 | KC14: 1 | KD14: 0 | KE14: 19 | KF14: 10 | KG14: 6 | KH14: 11 | KI14: 9 | KJ14: 6 | KK14: 5 | KM14: 17 | KN14: 5 | KO14: 1 | KQ14: 0 | KR14: 0 | KS14: 0 | KT14: 0 | KU14: 5 | KV14: 1 | KW14: 0 | KX14: 0 | KY14: 0 | KZ14: 0 | LA14: 4 | LB14: 1 | LC14: 0 | LD14: 0 | LE14: 0 | LF14: 0 | LG14: 0 | LH14: 0 | LI14: 0 | LJ14: 1 | LK14: 2 | LL14: 0 | LM14: 0 | LN14: 0 | LO14: 17 | LP14: 6 | LQ14: 10 | LR14: 5 | LS14: 1 | LT14: 0 | LU14: 0 | LV14: 0 | LW14: 0 | LX14: 0 | LY14: 0 | LZ14: 0 | MA14: 0 | MB14: 0 | MC14: 0 | MD14: 0 | ME14: 0 | MF14: 0 | MG14: 0 | MH14: 0 | MI14: 0 | MJ14: 0 | MK14: 0 | ML14: 0 | MM14: 0 | MN14: 0 | MO14: 0 | MP14: 0 | MQ14: 0 | MR14: 0 | MS14: 0 | MT14: 0 | MU14: 0 | MV14: 0 | MW14: 1 | MX14: 0 | MY14: 0 | MZ14: 0 | NA14: 0 | NB14: 2 | NC14: 17 | ND14: 1 | NE14: 4 | NF14: 0 | NG14: 0 | OC14: 4 | OD14: 0 | OE14: 0 | OF14: 5 | OG14: 1 | OH14: 0 | OI14: 3 | OJ14: 1 | OK14: 0 | OL14: 4 | OM14: 0 | ON14: 0 | OO14: 5 | OP14: 0 | OQ14: 0 | OR14: 5 | OS14: 0 | OT14: 0 | OU14: 1 | OV14: 0 | OW14: 0 | OX14: 1 | OY14: 0 | OZ14: 0 | PA14: 2 | PB14: 0 | PC14: 0 | PD14: 1 | PE14: 0 | PN14: 4 | PO14: 3 | PP14: 2 | PQ14: 2 | PR14: 4 | PS14: 1 | PW14: 0 | PX14: 0 | QC14: =SUM(E14:QB14)-SUM(PQ14:PT14)-SUM(PW14:PZ14) -> 901.00 | QE14: 17.0 | QF14: 30.0 | QG14: 64.0 | QH14: 51.0 | QI14: 41.0 | QJ14: 64.0 | QK14: 1.0 | QL14: 0.0 | QM14: 30.0 | QN14: 92.0 | QO14: 0.0 | QP14: 64.0 | QQ14: 114.0 | QR14: 54.0 | QS14: 70.0 | QT14: 89.0 | QU14: 53.0 | QV14: 25.0 | QW14: 0.0 | QX14: 0.0 | QY14: 0.0 | QZ14: 0.0 | RA14: 0.0 | RB14: 0.0 | RC14: 0.0 | RD14: 0.0 | RE14: 0.0 | RF14: 33.0 | RG14: 0.0 | RH14: 0.0 | RI14: 0.0 | RJ14: 9.0 | RK14: 2.0 | RL14: 4.0 | RM14: 1.0 | RN14: 0 | RO14: 0 | RP14: 0 | RQ14: 0.0 | RR14: 0.0 | RS14: 0.0 | RT14: 0.0 | RU14: 0.0 | RV14: 0.0 | RW14: 892.0 | RY14: 0 | RZ14: 1 | SA14: 0 | SB14: 0 | SC14: 5 | SD14: 1 | SE14: 7 | SU14: 0 | SV14: 0 | SW14: 0 | SX14: 0 | SY14: 0 | TA14: 0 | TB14: 0 | TC14: 0 | TD14: 0 | TE14: 0 | TF14: 0 | TG14: 0 | TH14: 0 | TI14: 0 | TJ14: 0 | TK14: 0 | TL14: 0 | TM14: 0 | TN14: 0 | TO14: 0 | TS14: =M14+DH14+'2_MERCADO_PRIVADO'!G14+'2_MERCADO_PRIVADO'!BW14 -> 10 | TT14: =DH14+'2_MERCADO_PRIVADO'!AP14+'2_MERCADO_PRIVADO'!BW14 -> 10 | TU14: =BR14+'2_MERCADO_PRIVADO'!AP14+'2_MERCADO_PRIVADO'!BW14+'2_MERCADO_PRIVADO'!DD14 -> 10 | TV14: =CH14+CX14+DL14+'2_MERCADO_PRIVADO'!BF14+'2_MERCADO_PRIVADO'!CM14+'2_MERCADO_PRIVADO'!DT14 -> 9 | TW14: =CO14+DE14+'2_MERCADO_PRIVADO'!BM14+'2_MERCADO_PRIVADO'!CT14+'2_MERCADO_PRIVADO'!EA14 -> 30 | TX14: =KR14+LK14+LP14+'2_MERCADO_PRIVADO'!MM14+'2_MERCADO_PRIVADO'!NF14+'2_MERCADO_PRIVADO'!NK14 -> 8 | TY14: =MV14+MW14+MX14+MY14+MZ14+NA14+NB14+NC14+ND14+NE14+NF14+NG14+'2_MERCADO_PRIVADO'!OQ14+'2_MERCADO_PRIVADO'!OR14+'2_MERCADO_PRIVADO'!OS14+'2_MERCADO_PRIVADO'!OT14+'2_MERCADO_PRIVADO'!OU14+'2_MERCADO_PRIVADO'!OV14+'2_MERCADO_PRIVADO'!OW14+'2_MERCADO_PRIVADO'!OX14+'2_MERCADO_PRIVADO'!OY14+'2_MERCADO_PRIVADO'!OZ14+'2_MERCADO_PRIVADO'!PA14+'2_MERCADO_PRIVADO'!PB14+'2_MERCADO_PRIVADO'!PC14+'2_MERCADO_PRIVADO'!PD14+'2_MERCADO_PRIVADO'!PE14+'2_MERCADO_PRIVADO'!PF14 -> 25 | TZ14: =OC14+'2_MERCADO_PRIVADO'!QO14 -> 4 | UA14: =OD14+'2_MERCADO_PRIVADO'!QP14 -> 0
D15: REGIMEN ESPECIAL | E15: 10 | F15: 1 | G15: 0 | H15: 0 | I15: 10 | J15: 0 | K15: 0 | L15: 0 | M15: 0 | N15: 0 | O15: 0 | P15: 0 | Q15: 0 | R15: 0 | S15: 0 | T15: 0 | U15: 0 | V15: 0 | W15: 0 | X15: 0 | Y15: 0 | Z15: 0 | AA15: 0 | AB15: 0 | AF15: 0 | AG15: 0 | AH15: 0 | AJ15: 0 | AK15: 0 | AL15: 0 | AN15: 0 | AO15: 0 | AP15: 0 | AR15: 0 | AS15: 0 | AT15: 0 | AZ15: 0 | BA15: 0 | BB15: 0 | BD15: 0 | BE15: 0 | BF15: 0 | BG15: 0 | BH15: 0 | BI15: 0 | BJ15: 0 | BK15: 0 | BP15: 6 | BQ15: 8 | BR15: 6 | BS15: 0 | BT15: 0 | BU15: 0 | BV15: 0 | BW15: 0 | BX15: 0 | BY15: 0 | BZ15: 0 | CA15: 0 | CB15: 0 | CC15: 0 | CD15: 0 | CE15: 0 | CF15: 0 | CG15: 0 | CH15: 0 | CI15: 0 | CJ15: 0 | CK15: 0 | CL15: 0 | CM15: 0 | CN15: 0 | CO15: 0 | CX15: 7 | CY15: 1 | CZ15: 0 | DA15: 0 | DB15: 0 | DC15: 0 | DD15: 0 | DE15: 12 | DF15: 6 | DG15: 8 | DH15: 6 | DI15: 0 | DU15: 0 | DV15: 0 | DW15: 0 | DX15: 0 | DY15: 0 | DZ15: 0 | EA15: 0 | EB15: 0 | EC15: 0 | ED15: 0 | EE15: 0 | EF15: 0 | EG15: 0 | EH15: 0 | EI15: 0 | EJ15: 0 | EK15: 0 | EL15: 0 | EM15: 7 | EN15: 1 | EO15: 0 | EP15: 0 | EQ15: 0 | ER15: 0 | ES15: 0 | ET15: 12 | EU15: 0 | EV15: 0 | EW15: 0 | EX15: 0 | EY15: 0 | EZ15: 0 | FA15: 0 | FB15: 0 | FC15: 0 | FD15: 0 | FE15: 0 | FF15: 0 | FG15: 0 | FH15: 0 | FI15: 0 | FJ15: 0 | FK15: 0 | FL15: 0 | FM15: 0 | FN15: 0 | FO15: 0 | FP15: 0 | FQ15: 0 | FR15: 0 | FS15: 0 | FT15: 0 | FU15: 0 | FV15: 0 | FW15: 0 | FX15: 0 | FY15: 0 | FZ15: 0 | GA15: 0 | GB15: 0 | GC15: 0 | GD15: 0 | GE15: 0 | GF15: 0 | GG15: 0 | GH15: 0 | GI15: 0 | GJ15: 0 | GK15: 0 | GL15: 0 | GM15: 0 | GN15: 0 | GO15: 0 | GP15: 0 | GQ15: 0 | GR15: 0 | GS15: 0 | GT15: 0 | GU15: 0 | GV15: 0 | GW15: 0 | GX15: 0 | GY15: 0 | GZ15: 0 | HA15: 0 | HB15: 0 | HC15: 0 | HD15: 0 | HE15: 8 | HF15: 11 | HG15: 6 | HH15: 11 | HI15: 4 | HJ15: 0 | HK15: 0 | HL15: 0 | HS15: 3 | HT15: 0 | HU15: 0 | HV15: 0 | HW15: 0 | HX15: 0 | HY15: 0 | HZ15: 0 | IA15: 0 | IB15: 0 | ID15: 16 | IE15: 0 | IF15: 0 | IG15: 0 | IH15: 0 | II15: 0 | IK15: 0 | IL15: 7 | IM15: 1 | IN15: 2 | IO15: 4 | IP15: 2 | IQ15: 5 | IR15: 4 | IS15: 3 | IT15: 6 | IU15: 4 | IW15: 8 | IX15: 1 | IY15: 4 | IZ15: 1 | JA15: 4 | JB15: 7 | JC15: 1 | JD15: 1 | JE15: 0 | JF15: 0 | JG15: 0 | JH15: 0 | JI15: 0 | JJ15: 0 | JK15: 0 | JL15: 0 | JM15: 0 | JN15: 0 | JO15: 1 | JP15: 4 | JQ15: 0 | JR15: 4 | JS15: 2 | JU15: 5 | JV15: 0 | JW15: 0 | JX15: 0 | JY15: 0 | JZ15: 0 | KA15: 0 | KB15: 0 | KC15: 0 | KD15: 0 | KE15: 3 | KF15: 0 | KG15: 0 | KH15: 0 | KI15: 0 | KJ15: 0 | KK15: 0 | KM15: 13 | KN15: 0 | KO15: 0 | KQ15: 0 | KR15: 0 | KS15: 0 | KT15: 0 | KU15: 0 | KV15: 0 | KW15: 0 | KX15: 0 | KY15: 0 | KZ15: 0 | LA15: 5 | LB15: 0 | LC15: 1 | LD15: 0 | LE15: 0 | LF15: 0 | LG15: 0 | LH15: 0 | LI15: 0 | LJ15: 1 | LK15: 1 | LL15: 1 | LM15: 0 | LN15: 0 | LO15: 2 | LP15: 5 | LQ15: 3 | LR15: 1 | LS15: 1 | LT15: 0 | LU15: 0 | LV15: 0 | LW15: 0 | LX15: 0 | LY15: 0 | LZ15: 0 | MA15: 0 | MB15: 0 | MC15: 1 | MD15: 1 | ME15: 0 | MF15: 0 | MG15: 0 | MH15: 0 | MI15: 0 | MJ15: 0 | MK15: 0 | ML15: 0 | MM15: 0 | MN15: 0 | MO15: 0 | MP15: 0 | MQ15: 0 | MR15: 0 | MS15: 0 | MT15: 0 | MU15: 0 | MV15: 0 | MW15: 0 | MX15: 0 | MY15: 0 | MZ15: 0 | NA15: 0 | NB15: 1 | NC15: 4 | ND15: 1 | NE15: 2 | NF15: 1 | NG15: 2 | OC15: 9 | OD15: 0 | OE15: 0 | OF15: 3 | OG15: 3 | OH15: 0 | OI15: 9 | OJ15: 5 | OK15: 0 | OL15: 7 | OM15: 2 | ON15: 0 | OO15: 6 | OP15: 2 | OQ15: 0 | OR15: 1 | OS15: 1 | OT15: 0 | OU15: 0 | OV15: 0 | OW15: 0 | OX15: 2 | OY15: 3 | OZ15: 0 | PA15: 0 | PB15: 2 | PC15: 0 | PD15: 0 | PE15: 0 | PN15: 4 | PO15: 1 | PP15: 0 | PQ15: 0 | PR15: 0 | PS15: 0 | PW15: 0 | PX15: 0 | QC15: =SUM(E15:QB15)-SUM(PQ15:PT15)-SUM(PW15:PZ15) -> 351.00 | QE15: 11.0 | QF15: 10.0 | QG15: 20.0 | QH15: 20.0 | QI15: 20.0 | QJ15: 20.0 | QK15: 0.0 | QL15: 0.0 | QM15: 19.0 | QN15: 21.0 | QO15: 0.0 | QP15: 19.0 | QQ15: 56.0 | QR15: 20.0 | QS15: 5.0 | QT15: 16.0 | QU15: 23.0 | QV15: 11.0 | QW15: 0.0 | QX15: 0.0 | QY15: 0.0 | QZ15: 0.0 | RA15: 0.0 | RB15: 0.0 | RC15: 0.0 | RD15: 0.0 | RE15: 0.0 | RF15: 55.0 | RG15: 0.0 | RH15: 0.0 | RI15: 0.0 | RJ15: 5.0 | RK15: 0.0 | RL15: 0.0 | RM15: 0.0 | RN15: 0 | RO15: 0 | RP15: 0 | RQ15: 0.0 | RR15: 0.0 | RS15: 0.0 | RT15: 0.0 | RU15: 0.0 | RV15: 0.0 | RW15: 346.0 | RY15: 0 | RZ15: 0 | SA15: 0 | SB15: 1 | SC15: 2 | SD15: 0 | SE15: 3 | SU15: 0 | SV15: 0 | SW15: 0 | SX15: 0 | SY15: 0 | TA15: 0 | TB15: 0 | TC15: 0 | TD15: 0 | TE15: 0 | TF15: 0 | TG15: 0 | TH15: 0 | TI15: 0 | TJ15: 0 | TK15: 0 | TL15: 0 | TM15: 0 | TN15: 0 | TO15: 0 | TS15: =M15+DH15+'2_MERCADO_PRIVADO'!G15+'2_MERCADO_PRIVADO'!BW15 -> 9 | TT15: =DH15+'2_MERCADO_PRIVADO'!AP15+'2_MERCADO_PRIVADO'!BW15 -> 9 | TU15: =BR15+'2_MERCADO_PRIVADO'!AP15+'2_MERCADO_PRIVADO'!BW15+'2_MERCADO_PRIVADO'!DD15 -> 9 | TV15: =CH15+CX15+DL15+'2_MERCADO_PRIVADO'!BF15+'2_MERCADO_PRIVADO'!CM15+'2_MERCADO_PRIVADO'!DT15 -> 9 | TW15: =CO15+DE15+'2_MERCADO_PRIVADO'!BM15+'2_MERCADO_PRIVADO'!CT15+'2_MERCADO_PRIVADO'!EA15 -> 17 | TX15: =KR15+LK15+LP15+'2_MERCADO_PRIVADO'!MM15+'2_MERCADO_PRIVADO'!NF15+'2_MERCADO_PRIVADO'!NK15 -> 9 | TY15: =MV15+MW15+MX15+MY15+MZ15+NA15+NB15+NC15+ND15+NE15+NF15+NG15+'2_MERCADO_PRIVADO'!OQ15+'2_MERCADO_PRIVADO'!OR15+'2_MERCADO_PRIVADO'!OS15+'2_MERCADO_PRIVADO'!OT15+'2_MERCADO_PRIVADO'!OU15+'2_MERCADO_PRIVADO'!OV15+'2_MERCADO_PRIVADO'!OW15+'2_MERCADO_PRIVADO'!OX15+'2_MERCADO_PRIVADO'!OY15+'2_MERCADO_PRIVADO'!OZ15+'2_MERCADO_PRIVADO'!PA15+'2_MERCADO_PRIVADO'!PB15+'2_MERCADO_PRIVADO'!PC15+'2_MERCADO_PRIVADO'!PD15+'2_MERCADO_PRIVADO'!PE15+'2_MERCADO_PRIVADO'!PF15 -> 11 | TZ15: =OC15+'2_MERCADO_PRIVADO'!QO15 -> 10 | UA15: =OD15+'2_MERCADO_PRIVADO'!QP15 -> 0
D16: TOTAL REGIMEN | E16: 838 | F16: 17 | G16: 0 | H16: 0 | I16: 825 | J16: 22 | K16: 1 | L16: 0 | M16: 0 | N16: 0 | O16: 2 | P16: 5 | Q16: 0 | R16: 1 | S16: 2 | T16: 0 | U16: 2 | V16: 1 | W16: 0 | X16: 0 | Y16: 0 | Z16: 0 | AA16: 0 | AB16: 1 | AC16: =SUM(AC12:AC15) -> 0 | AD16: 0 | AE16: 0 | AF16: 0 | AG16: 0 | AH16: 0 | AI16: 0 | AJ16: 0 | AK16: 0 | AL16: 0 | AM16: 0 | AN16: 0 | AO16: 1 | AP16: 0 | AQ16: 0 | AR16: 0 | AS16: 0 | AT16: 0 | AU16: 0 | AV16: 0 | AW16: 0 | AX16: 0 | AY16: 0 | AZ16: 1 | BA16: 0 | BB16: 0 | BC16: 0 | BD16: 0 | BE16: 0 | BF16: 0 | BG16: 0 | BH16: 0 | BI16: 0 | BJ16: 1 | BK16: 0 | BL16: 0 | BM16: 0 | BN16: 0 | BO16: 0 | BP16: 338 | BQ16: 353 | BR16: 307 | BS16: 0 | BT16: 4 | BU16: 5 | BV16: 0 | BW16: 0 | BX16: 1 | BY16: 1 | BZ16: 1 | CA16: 1 | CB16: 0 | CC16: 0 | CD16: 0 | CE16: 0 | CF16: 0 | CG16: 1 | CH16: 0 | CI16: 0 | CJ16: 0 | CK16: 0 | CL16: 1 | CM16: 0 | CN16: 0 | CO16: 14 | CQ16: =SUM(CQ12:CQ15) -> 0 | CR16: 11 | CS16: 0 | CT16: 0 | CU16: 0 | CV16: 0 | CW16: 0 | CX16: 373 | CY16: 19 | CZ16: 13 | DA16: 5 | DB16: 2 | DC16: 0 | DD16: 0 | DE16: 337 | DF16: 337 | DG16: 353 | DH16: 307 | DI16: 0 | DJ16: 0 | DK16: 0 | DL16: 0 | DM16: 0 | DN16: 0 | DO16: 0 | DP16: 0 | DQ16: 0 | DR16: 0 | DS16: 0 | DT16: 0 | DU16: 0 | DV16: 0 | DW16: 0 | DX16: 0 | DY16: 4 | DZ16: 5 | EA16: 0 | EB16: 1 | EC16: 2 | ED16: 0 | EE16: 2 | EF16: 1 | EG16: 0 | EH16: 0 | EI16: 0 | EJ16: 2 | EK16: 0 | EL16: 1 | EM16: 374 | EN16: 19 | EO16: 13 | EP16: 5 | EQ16: 2 | ER16: 0 | ES16: 0 | ET16: 333 | EU16: 1 | EV16: 0 | EW16: 0 | EX16: 0 | EY16: 0 | EZ16: 0 | FA16: 0 | FB16: 0 | FC16: 0 | FD16: 0 | FE16: 0 | FF16: 0 | FG16: 0 | FH16: 0 | FI16: 0 | FJ16: 0 | FK16: 0 | FL16: 0 | FM16: 0 | FN16: 0 | FO16: 0 | FP16: 0 | FQ16: 0 | FR16: 0 | FS16: 0 | FT16: 0 | FU16: 0 | FV16: 0 | FW16: 0 | FX16: 0 | FY16: 3 | FZ16: 0 | GA16: 0 | GB16: 0 | GC16: 0 | GD16: 0 | GE16: 0 | GF16: 0 | GG16: 0 | GH16: 0 | GI16: 0 | GJ16: 0 | GK16: 0 | GL16: 0 | GM16: 0 | GN16: 0 | GO16: 0 | GP16: 0 | GQ16: 0 | GR16: 0 | GS16: 0 | GT16: 0 | GU16: 0 | GV16: 0 | GW16: 0 | GX16: 0 | GY16: 0 | GZ16: 0 | HA16: 0 | HB16: 0 | HC16: 0 | HD16: 0 | HE16: 451 | HF16: 482 | HG16: 430 | HH16: 449 | HI16: 311 | HJ16: 5 | HK16: 9 | HL16: 38 | HM16: =SUM(HM12:HM15) -> 0 | HN16: 0 | HO16: 0 | HP16: 0 | HQ16: 0 | HR16: 0 | HS16: 306 | HT16: 5 | HU16: 7 | HV16: 2 | HW16: 0 | HX16: 0 | HY16: 0 | HZ16: 0 | IA16: 0 | IB16: 0 | ID16: 380 | IE16: 13 | IF16: 9 | IG16: 4 | IH16: 4 | II16: 1 | IJ16: 0 | IK16: 0 | IL16: 351 | IM16: 77 | IN16: 89 | IO16: 109 | IP16: 87 | IQ16: 90 | IR16: 76 | IS16: 77 | IT16: 90 | IU16: 94 | IV16: 0 | IW16: 97 | IX16: 16 | IY16: 159 | IZ16: 79 | JA16: 51 | JB16: 465 | JC16: 24 | JD16: 14 | JE16: 9 | JF16: 3 | JG16: 1 | JH16: 2 | JI16: 0 | JJ16: 1 | JK16: 0 | JL16: 1 | JM16: 0 | JN16: 4 | JO16: 19 | JP16: 162 | JQ16: 83 | JR16: 55 | JS16: 29 | JT16: =SUM(JT12:JT15) -> 0 | JU16: 356 | JV16: 11 | JW16: 7 | JX16: 14 | JY16: 15 | JZ16: 6 | KA16: 8 | KB16: 4 | KC16: 3 | KD16: 0 | KE16: 302 | KF16: 11 | KG16: 7 | KH16: 13 | KI16: 12 | KJ16: 7 | KK16: 6 | KM16: 365 | KN16: 10 | KO16: 5 | KP16: 0 | KQ16: 1 | KR16: 0 | KS16: 0 | KT16: 0 | KU16: 9 | KV16: 8 | KW16: 2 | KX16: 0 | KY16: 0 | KZ16: 0 | LA16: 247 | LB16: 186 | LC16: 51 | LD16: 32 | LE16: 16 | LF16: 3 | LG16: 0 | LH16: 0 | LI16: 0 | LJ16: 25 | LK16: 10 | LL16: 5 | LM16: 0 | LN16: 0 | LO16: 159 | LP16: 111 | LQ16: 123 | LR16: 84 | LS16: 50 | LT16: 24 | LU16: 0 | LV16: 0 | LW16: 0 | LX16: 0 | LY16: 1 | LZ16: 0 | MA16: 0 | MB16: 0 | MC16: 7 | MD16: 6 | ME16: 0 | MF16: 0 | MG16: 1 | MH16: 1 | MI16: 0 | MJ16: 0 | MK16: 0 | ML16: 0 | MM16: 0 | MN16: 0 | MO16: 0 | MP16: 1 | MQ16: 0 | MR16: 0 | MS16: 0 | MT16: 0 | MU16: 0 | MV16: 0 | MW16: 6 | MX16: 3 | MY16: 0 | MZ16: 0 | NA16: 0 | NB16: 219 | NC16: 130 | ND16: 159 | NE16: 69 | NF16: 49 | NG16: 31 | NI16: =SUM(NI12:NI15) -> 0 | NJ16: 0 | NK16: 0 | NL16: 0 | NM16: 0 | NN16: 0 | NO16: 0 | NP16: 0 | NQ16: 0 | NR16: 0 | NS16: 0 | NT16: 0 | NU16: 0 | NV16: 0 | NW16: 0 | NX16: 0 | NY16: 0 | NZ16: =SUM(NZ12:NZ15) -> 0 | OA16: 0 | OB16: 0 | OC16: 89 | OD16: 42 | OE16: 0 | OF16: 51 | OG16: 78 | OH16: 0 | OI16: 70 | OJ16: 55 | OK16: 0 | OL16: 45 | OM16: 37 | ON16: 0 | OO16: 48 | OP16: 21 | OQ16: 0 | OR16: 35 | OS16: 21 | OT16: 0 | OU16: 34 | OV16: 25 | OW16: 1 | OX16: 22 | OY16: 23 | OZ16: 0 | PA16: 21 | PB16: 14 | PC16: 0 | PD16: 5 | PE16: 1 | PF16: 0 | PG16: 0 | PH16: 0 | PI16: 0 | PJ16: 0 | PK16: 0 | PL16: 0 | PM16: 0 | PN16: 169 | PO16: 57 | PP16: 43 | PQ16: 43 | PR16: 89 | PS16: 19 | PT16: 0 | PU16: 0 | PV16: 0 | PW16: 1 | PX16: 1 | PY16: 0 | PZ16: 0 | QA16: 0 | QB16: 0 | QC16: =SUM(QC12:QC15) -> 14,590 | QE16: =SUM(QE12:QE15) -> 855.0 | QF16: =SUM(QF12:QF15) -> 865.0 | QG16: 1,038.0 | QH16: 749.0 | QI16: 997.0 | QJ16: 764.0 | QK16: 4.0 | QL16: 0.0 | QM16: 933.0 | QN16: 1,242.0 | QO16: =SUM(QO12:QO15) -> 0.0 | QP16: 731.0 | QQ16: 1,542.0 | QR16: 872.0 | QS16: 424.0 | QT16: 738.0 | QU16: 1,163.0 | QV16: 666.0 | QW16: 0.0 | QX16: 0.0 | QY16: 0.0 | QZ16: 0.0 | RA16: 0.0 | RB16: =SUM(RB12:RB15) -> 0.0 | RC16: 0.0 | RD16: 0.0 | RE16: 0.0 | RF16: 738.0 | RG16: 0.0 | RH16: 0.0 | RI16: 0.0 | RJ16: 269.0 | RK16: =SUM(RK12:RK15) -> 43.0 | RL16: 89.0 | RM16: 19.0 | RN16: 0 | RO16: 0 | RP16: 0 | RQ16: 1.0 | RR16: 1.0 | RS16: 0.0 | RT16: 0.0 | RU16: 0.0 | RV16: 0.0 | RW16: =SUM(RW12:RW15) -> 14,321.0 | RY16: 0 | RZ16: 1 | SA16: 0 | SB16: 16 | SC16: 150 | SD16: 19 | SE16: =SUM(SE12:SE15) -> 186 | SF16: =SUM(SF12:SF15) -> 0 | SG16: 0 | SH16: 0 | SI16: 0 | SJ16: 0 | SK16: 0 | SL16: 0 | SM16: 0 | SQ16: 0 | SR16: 18 | SS16: 4 | SU16: =SUM(SU12:SU15) -> 0 | SV16: =SUM(SV12:SV15) -> 0 | SW16: =SUM(SW12:SW15) -> 0 | SX16: =SUM(SX12:SX15) -> 18 | SY16: =SUM(SY12:SY15) -> 4 | TA16: 0 | TB16: 0 | TC16: 0 | TD16: 0 | TE16: 0 | TF16: 0 | TG16: 0 | TH16: 0 | TI16: 0 | TJ16: 0 | TK16: 0 | TL16: 0 | TM16: 0 | TN16: 0 | TO16: 0 | TS16: =M16+DH16+'2_MERCADO_PRIVADO'!G16+'2_MERCADO_PRIVADO'!BW16 -> 538 | TT16: =DH16+'2_MERCADO_PRIVADO'!AP16+'2_MERCADO_PRIVADO'!BW16 -> 538 | TU16: =BR16+'2_MERCADO_PRIVADO'!AP16+'2_MERCADO_PRIVADO'!BW16+'2_MERCADO_PRIVADO'!DD16 -> 538 | TV16: =CH16+CX16+DL16+'2_MERCADO_PRIVADO'!BF16+'2_MERCADO_PRIVADO'!CM16+'2_MERCADO_PRIVADO'!DT16 -> 541 | TW16: =CO16+DE16+'2_MERCADO_PRIVADO'!BM16+'2_MERCADO_PRIVADO'!CT16+'2_MERCADO_PRIVADO'!EA16 -> 466 | TX16: =KR16+LK16+LP16+'2_MERCADO_PRIVADO'!MM16+'2_MERCADO_PRIVADO'!NF16+'2_MERCADO_PRIVADO'!NK16 -> 326 | TY16: =MV16+MW16+MX16+MY16+MZ16+NA16+NB16+NC16+ND16+NE16+NF16+NG16+'2_MERCADO_PRIVADO'!OQ16+'2_MERCADO_PRIVADO'!OR16+'2_MERCADO_PRIVADO'!OS16+'2_MERCADO_PRIVADO'!OT16+'2_MERCADO_PRIVADO'!OU16+'2_MERCADO_PRIVADO'!OV16+'2_MERCADO_PRIVADO'!OW16+'2_MERCADO_PRIVADO'!OX16+'2_MERCADO_PRIVADO'!OY16+'2_MERCADO_PRIVADO'!OZ16+'2_MERCADO_PRIVADO'!PA16+'2_MERCADO_PRIVADO'!PB16+'2_MERCADO_PRIVADO'!PC16+'2_MERCADO_PRIVADO'!PD16+'2_MERCADO_PRIVADO'!PE16+'2_MERCADO_PRIVADO'!PF16 -> 670 | TZ16: =OC16+'2_MERCADO_PRIVADO'!QO16 -> 90 | UA16: =OD16+'2_MERCADO_PRIVADO'!QP16 -> 46
D17: INDIGENA | E17: 0 | F17: 0 | G17: 0 | H17: 0 | I17: 0 | J17: 0 | K17: 0 | L17: 0 | M17: 0 | N17: 0 | O17: 0 | P17: 0 | Q17: 0 | R17: 0 | S17: 0 | T17: 0 | U17: 0 | V17: 0 | W17: 0 | X17: 0 | Y17: 0 | Z17: 0 | AA17: 0 | AB17: 0 | AF17: 0 | AG17: 0 | AH17: 0 | AJ17: 0 | AK17: 0 | AL17: 0 | AN17: 0 | AO17: 0 | AP17: 0 | AR17: 0 | AS17: 0 | AT17: 0 | AZ17: 0 | BA17: 0 | BB17: 0 | BD17: 0 | BE17: 0 | BF17: 0 | BG17: 0 | BH17: 0 | BI17: 0 | BJ17: 0 | BK17: 0 | BP17: 0 | BQ17: 0 | BR17: 0 | BS17: 0 | BT17: 0 | BU17: 0 | BV17: 0 | BW17: 0 | BX17: 0 | BY17: 0 | BZ17: 0 | CA17: 0 | CB17: 0 | CC17: 0 | CD17: 0 | CE17: 0 | CF17: 0 | CG17: 0 | CH17: 0 | CI17: 0 | CJ17: 0 | CK17: 0 | CL17: 0 | CM17: 0 | CN17: 0 | CO17: 0 | CX17: 0 | CY17: 0 | CZ17: 0 | DA17: 0 | DB17: 0 | DC17: 0 | DD17: 0 | DE17: 0 | DF17: 0 | DG17: 0 | DH17: 0 | DI17: 0 | DU17: 0 | DV17: 0 | DW17: 0 | DX17: 0 | DY17: 0 | DZ17: 0 | EA17: 0 | EB17: 0 | EC17: 0 | ED17: 0 | EE17: 0 | EF17: 0 | EG17: 0 | EH17: 0 | EI17: 0 | EJ17: 0 | EK17: 0 | EL17: 0 | EM17: 0 | EN17: 0 | EO17: 0 | EP17: 0 | EQ17: 0 | ER17: 0 | ES17: 0 | ET17: 0 | EU17: 0 | EV17: 0 | EW17: 0 | EX17: 0 | EY17: 0 | EZ17: 0 | FA17: 0 | FB17: 0 | FC17: 0 | FD17: 0 | FE17: 0 | FF17: 0 | FG17: 0 | FH17: 0 | FI17: 0 | FJ17: 0 | FK17: 0 | FL17: 0 | FM17: 0 | FN17: 0 | FO17: 0 | FP17: 0 | FQ17: 0 | FR17: 0 | FS17: 0 | FT17: 0 | FU17: 0 | FV17: 0 | FW17: 0 | FX17: 0 | FY17: 0 | FZ17: 0 | GA17: 0 | GB17: 0 | GC17: 0 | GD17: 0 | GE17: 0 | GF17: 0 | GG17: 0 | GH17: 0 | GI17: 0 | GJ17: 0 | GK17: 0 | GL17: 0 | GM17: 0 | GN17: 0 | GO17: 0 | GP17: 0 | GQ17: 0 | GR17: 0 | GS17: 0 | GT17: 0 | GU17: 0 | GV17: 0 | GW17: 0 | GX17: 0 | GY17: 0 | GZ17: 0 | HA17: 0 | HB17: 0 | HC17: 0 | HD17: 0 | HE17: 0 | HF17: 0 | HG17: 0 | HH17: 0 | HI17: 0 | HJ17: 0 | HK17: 0 | HL17: 0 | HS17: 0 | HT17: 0 | HU17: 0 | HV17: 0 | HW17: 0 | HX17: 0 | HY17: 0 | HZ17: 0 | IA17: 0 | IB17: 0 | ID17: 0 | IE17: 0 | IF17: 0 | IG17: 0 | IH17: 0 | II17: 0 | IK17: 0 | IL17: 0 | IM17: 0 | IN17: 0 | IO17: 0 | IP17: 0 | IQ17: 0 | IR17: 0 | IS17: 0 | IT17: 0 | IU17: 0 | IW17: 0 | IX17: 0 | IY17: 0 | IZ17: 0 | JA17: 0 | JB17: 0 | JC17: 0 | JD17: 0 | JE17: 0 | JF17: 0 | JG17: 0 | JH17: 0 | JI17: 0 | JJ17: 0 | JK17: 0 | JL17: 0 | JM17: 0 | JN17: 0 | JO17: 0 | JP17: 0 | JQ17: 0 | JR17: 0 | JS17: 0 | JU17: 0 | JV17: 0 | JW17: 0 | JX17: 0 | JY17: 0 | JZ17: 0 | KA17: 0 | KB17: 0 | KC17: 0 | KD17: 0 | KE17: 0 | KF17: 0 | KG17: 0 | KH17: 0 | KI17: 0 | KJ17: 0 | KK17: 0 | KM17: 0 | KN17: 0 | KO17: 0 | KQ17: 0 | KR17: 0 | KS17: 0 | KT17: 0 | KU17: 0 | KV17: 0 | KW17: 0 | KX17: 0 | KY17: 0 | KZ17: 0 | LA17: 0 | LB17: 0 | LC17: 0 | LD17: 0 | LE17: 0 | LF17: 0 | LG17: 0 | LH17: 0 | LI17: 0 | LJ17: 0 | LK17: 0 | LL17: 0 | LM17: 0 | LN17: 0 | LO17: 0 | LP17: 0 | LQ17: 1 | LR17: 0 | LS17: 0 | LT17: 0 | LU17: 0 | LV17: 0 | LW17: 0 | LX17: 0 | LY17: 0 | LZ17: 0 | MA17: 0 | MB17: 0 | MC17: 0 | MD17: 0 | ME17: 0 | MF17: 0 | MG17: 0 | MH17: 0 | MI17: 0 | MJ17: 0 | MK17: 0 | ML17: 0 | MM17: 0 | MN17: 0 | MO17: 0 | MP17: 0 | MQ17: 0 | MR17: 0 | MS17: 0 | MT17: 0 | MU17: 0 | MV17: 0 | MW17: 0 | MX17: 0 | MY17: 0 | MZ17: 0 | NA17: 0 | NB17: 0 | NC17: 0 | ND17: 0 | NE17: 0 | NF17: 0 | NG17: 0 | OC17: 1 | OD17: 0 | OE17: 0 | OF17: 0 | OG17: 0 | OH17: 0 | OI17: 0 | OJ17: 0 | OK17: 0 | OL17: 0 | OM17: 0 | ON17: 0 | OO17: 0 | OP17: 0 | OQ17: 0 | OR17: 0 | OS17: 0 | OT17: 0 | OU17: 0 | OV17: 0 | OW17: 0 | OX17: 0 | OY17: 0 | OZ17: 0 | PA17: 0 | PB17: 0 | PC17: 0 | PD17: 0 | PE17: 0 | PN17: 0 | PO17: 0 | PP17: 0 | PQ17: 0 | PR17: 0 | PS17: 0 | PW17: 0 | PX17: 0 | QC17: =SUM(E17:QB17)-SUM(PQ17:PT17)-SUM(PW17:PZ17) -> 2.00 | QE17: =SUM(E17:H17) -> 0.0 | QF17: =SUM(I17:BO17) -> 0.0 | QG17: =SUM(BP17:CW17) -> 0.0 | QH17: =SUM(CX17:DE17) -> 0.0 | QI17: =SUM(DF17:DT17) -> 0.0 | QJ17: =SUM(DU17:ET17) -> 0.0 | QK17: =SUM(EU17:FY17) -> 0.0 | QL17: =SUM(FZ17:HD17) -> 0.0 | QM17: =SUM(HE17:HF17) -> 0.0 | QN17: =SUM(HG17:HL17) -> 0.0 | QO17: =SUM(HM17:HR17) -> 0.0 | QP17: =SUM(HS17:IJ17) -> 0.0 | QQ17: =SUM(IK17:JA17) -> 0.0 | QR17: =SUM(JB17:JT17) -> 0.0 | QS17: =SUM(JU17:KD17) -> 0.0 | QT17: =SUM(KE17:KP17) -> 0.0 | QU17: =SUM(KQ17:MU17) -> 1.0 | QV17: =SUM(MV17:NG17) -> 0.0 | QW17: =SUM(NH17:NI17) -> 0.0 | QX17: =SUM(NJ17:NL17) -> 0.0 | QY17: =SUM(NM17:NO17) -> 0.0 | QZ17: =SUM(NP17) -> 0.0 | RA17: =SUM(NQ17) -> 0.0 | RB17: =SUM(NR17:NT17) -> 0.0 | RC17: =SUM(NU17) -> 0.0 | RD17: =SUM(NV17) -> 0.0 | RE17: =SUM(NW17:OB17) -> 0.0 | RF17: =SUM(OC17:PE17) -> 1.0 | RG17: =SUM(PF17:PG17) -> 0.0 | RH17: =SUM(PH17:PI17) -> 0.0 | RI17: =SUM(PJ17:PM17) -> 0.0 | RJ17: =SUM(PN17:PP17) -> 0.0 | RK17: =SUM(PQ17) -> 0.0 | RL17: =SUM(PR17) -> 0.0 | RM17: =SUM(PS17) -> 0.0 | RN17: 0 | RO17: 0 | RP17: 0 | RQ17: =SUM(PW17) -> 0.0 | RR17: =SUM(PX17) -> 0.0 | RS17: =SUM(PY17) -> 0.0 | RT17: =SUM(PZ17) -> 0.0 | RU17: =SUM(QA17) -> 0.0 | RV17: =SUM(QB17) -> 0.0 | RW17: =SUM(QE17:RU17)-SUM(RI17:RM17)-SUM(RQ17:RT17) -> 2.0 | RY17: 0 | RZ17: 0 | SA17: 0 | SB17: 0 | SC17: 0 | SD17: 0 | SE17: =SUM(RY17:SD17) -> 0 | SU17: =SF17+SG17 -> 0 | SV17: =SH17+SI17+SJ17+SK17+SL17+SM17+SN17+SO17+SP17 -> 0 | SW17: =SQ17 -> 0 | SX17: =SR17 -> 0 | SY17: =SS17 -> 0 | TA17: 0 | TB17: 0 | TC17: 0 | TD17: 0 | TE17: 0 | TF17: 0 | TG17: 0 | TH17: 0 | TI17: 0 | TJ17: 0 | TK17: 0 | TL17: 0 | TM17: 0 | TN17: 0 | TO17: 0 | TS17: =M17+DH17+'2_MERCADO_PRIVADO'!G17+'2_MERCADO_PRIVADO'!BW17 -> 0 | TT17: =DH17+'2_MERCADO_PRIVADO'!AP17+'2_MERCADO_PRIVADO'!BW17 -> 0 | TU17: =BR17+'2_MERCADO_PRIVADO'!AP17+'2_MERCADO_PRIVADO'!BW17+'2_MERCADO_PRIVADO'!DD17 -> 0 | TV17: =CH17+CX17+DL17+'2_MERCADO_PRIVADO'!BF17+'2_MERCADO_PRIVADO'!CM17+'2_MERCADO_PRIVADO'!DT17 -> 0 | TW17: =CO17+DE17+'2_MERCADO_PRIVADO'!BM17+'2_MERCADO_PRIVADO'!CT17+'2_MERCADO_PRIVADO'!EA17 -> 0 | TX17: =KR17+LK17+LP17+'2_MERCADO_PRIVADO'!MM17+'2_MERCADO_PRIVADO'!NF17+'2_MERCADO_PRIVADO'!NK17 -> 0 | TY17: =MV17+MW17+MX17+MY17+MZ17+NA17+NB17+NC17+ND17+NE17+NF17+NG17+'2_MERCADO_PRIVADO'!OQ17+'2_MERCADO_PRIVADO'!OR17+'2_MERCADO_PRIVADO'!OS17+'2_MERCADO_PRIVADO'!OT17+'2_MERCADO_PRIVADO'!OU17+'2_MERCADO_PRIVADO'!OV17+'2_MERCADO_PRIVADO'!OW17+'2_MERCADO_PRIVADO'!OX17+'2_MERCADO_PRIVADO'!OY17+'2_MERCADO_PRIVADO'!OZ17+'2_MERCADO_PRIVADO'!PA17+'2_MERCADO_PRIVADO'!PB17+'2_MERCADO_PRIVADO'!PC17+'2_MERCADO_PRIVADO'!PD17+'2_MERCADO_PRIVADO'!PE17+'2_MERCADO_PRIVADO'!PF17 -> 0 | TZ17: =OC17+'2_MERCADO_PRIVADO'!QO17 -> 1 | UA17: =OD17+'2_MERCADO_PRIVADO'!QP17 -> 0
D18: ROM (GITANO) | E18: 0 | F18: 0 | G18: 0 | H18: 0 | I18: 0 | J18: 0 | K18: 0 | L18: 0 | M18: 0 | N18: 0 | O18: 0 | P18: 0 | Q18: 0 | R18: 0 | S18: 0 | T18: 0 | U18: 0 | V18: 0 | W18: 0 | X18: 0 | Y18: 0 | Z18: 0 | AA18: 0 | AB18: 0 | AF18: 0 | AG18: 0 | AH18: 0 | AJ18: 0 | AK18: 0 | AL18: 0 | AN18: 0 | AO18: 0 | AP18: 0 | AR18: 0 | AS18: 0 | AT18: 0 | AZ18: 0 | BA18: 0 | BB18: 0 | BD18: 0 | BE18: 0 | BF18: 0 | BG18: 0 | BH18: 0 | BI18: 0 | BJ18: 0 | BK18: 0 | BP18: 0 | BQ18: 0 | BR18: 0 | BS18: 0 | BT18: 0 | BU18: 0 | BV18: 0 | BW18: 0 | BX18: 0 | BY18: 0 | BZ18: 0 | CA18: 0 | CB18: 0 | CC18: 0 | CD18: 0 | CE18: 0 | CF18: 0 | CG18: 0 | CH18: 0 | CI18: 0 | CJ18: 0 | CK18: 0 | CL18: 0 | CM18: 0 | CN18: 0 | CO18: 0 | CX18: 0 | CY18: 0 | CZ18: 0 | DA18: 0 | DB18: 0 | DC18: 0 | DD18: 0 | DE18: 0 | DF18: 0 | DG18: 0 | DH18: 0 | DI18: 0 | DU18: 0 | DV18: 0 | DW18: 0 | DX18: 0 | DY18: 0 | DZ18: 0 | EA18: 0 | EB18: 0 | EC18: 0 | ED18: 0 | EE18: 0 | EF18: 0 | EG18: 0 | EH18: 0 | EI18: 0 | EJ18: 0 | EK18: 0 | EL18: 0 | EM18: 0 | EN18: 0 | EO18: 0 | EP18: 0 | EQ18: 0 | ER18: 0 | ES18: 0 | ET18: 0 | EU18: 0 | EV18: 0 | EW18: 0 | EX18: 0 | EY18: 0 | EZ18: 0 | FA18: 0 | FB18: 0 | FC18: 0 | FD18: 0 | FE18: 0 | FF18: 0 | FG18: 0 | FH18: 0 | FI18: 0 | FJ18: 0 | FK18: 0 | FL18: 0 | FM18: 0 | FN18: 0 | FO18: 0 | FP18: 0 | FQ18: 0 | FR18: 0 | FS18: 0 | FT18: 0 | FU18: 0 | FV18: 0 | FW18: 0 | FX18: 0 | FY18: 0 | FZ18: 0 | GA18: 0 | GB18: 0 | GC18: 0 | GD18: 0 | GE18: 0 | GF18: 0 | GG18: 0 | GH18: 0 | GI18: 0 | GJ18: 0 | GK18: 0 | GL18: 0 | GM18: 0 | GN18: 0 | GO18: 0 | GP18: 0 | GQ18: 0 | GR18: 0 | GS18: 0 | GT18: 0 | GU18: 0 | GV18: 0 | GW18: 0 | GX18: 0 | GY18: 0 | GZ18: 0 | HA18: 0 | HB18: 0 | HC18: 0 | HD18: 0 | HE18: 0 | HF18: 0 | HG18: 0 | HH18: 0 | HI18: 0 | HJ18: 0 | HK18: 0 | HL18: 0 | HS18: 0 | HT18: 0 | HU18: 0 | HV18: 0 | HW18: 0 | HX18: 0 | HY18: 0 | HZ18: 0 | IA18: 0 | IB18: 0 | ID18: 0 | IE18: 0 | IF18: 0 | IG18: 0 | IH18: 0 | II18: 0 | IK18: 0 | IL18: 0 | IM18: 0 | IN18: 0 | IO18: 0 | IP18: 0 | IQ18: 0 | IR18: 0 | IS18: 0 | IT18: 0 | IU18: 0 | IW18: 0 | IX18: 0 | IY18: 0 | IZ18: 0 | JA18: 0 | JB18: 0 | JC18: 0 | JD18: 0 | JE18: 0 | JF18: 0 | JG18: 0 | JH18: 0 | JI18: 0 | JJ18: 0 | JK18: 0 | JL18: 0 | JM18: 0 | JN18: 0 | JO18: 0 | JP18: 0 | JQ18: 0 | JR18: 0 | JS18: 0 | JU18: 0 | JV18: 0 | JW18: 0 | JX18: 0 | JY18: 0 | JZ18: 0 | KA18: 0 | KB18: 0 | KC18: 0 | KD18: 0 | KE18: 0 | KF18: 0 | KG18: 0 | KH18: 0 | KI18: 0 | KJ18: 0 | KK18: 0 | KM18: 0 | KN18: 0 | KO18: 0 | KQ18: 0 | KR18: 0 | KS18: 0 | KT18: 0 | KU18: 0 | KV18: 0 | KW18: 0 | KX18: 0 | KY18: 0 | KZ18: 0 | LA18: 0 | LB18: 0 | LC18: 0 | LD18: 0 | LE18: 0 | LF18: 0 | LG18: 0 | LH18: 0 | LI18: 0 | LJ18: 0 | LK18: 0 | LL18: 0 | LM18: 0 | LN18: 0 | LO18: 0 | LP18: 0 | LQ18: 0 | LR18: 0 | LS18: 0 | LT18: 0 | LU18: 0 | LV18: 0 | LW18: 0 | LX18: 0 | LY18: 0 | LZ18: 0 | MA18: 0 | MB18: 0 | MC18: 0 | MD18: 0 | ME18: 0 | MF18: 0 | MG18: 0 | MH18: 0 | MI18: 0 | MJ18: 0 | MK18: 0 | ML18: 0 | MM18: 0 | MN18: 0 | MO18: 0 | MP18: 0 | MQ18: 0 | MR18: 0 | MS18: 0 | MT18: 0 | MU18: 0 | MV18: 0 | MW18: 0 | MX18: 0 | MY18: 0 | MZ18: 0 | NA18: 0 | NB18: 0 | NC18: 0 | ND18: 1 | NE18: 0 | NF18: 0 | NG18: 0 | OC18: 0 | OD18: 0 | OE18: 0 | OF18: 0 | OG18: 0 | OH18: 0 | OI18: 0 | OJ18: 0 | OK18: 0 | OL18: 0 | OM18: 0 | ON18: 0 | OO18: 0 | OP18: 0 | OQ18: 0 | OR18: 0 | OS18: 0 | OT18: 0 | OU18: 0 | OV18: 0 | OW18: 0 | OX18: 0 | OY18: 0 | OZ18: 0 | PA18: 0 | PB18: 0 | PC18: 0 | PD18: 0 | PE18: 0 | PN18: 0 | PO18: 0 | PP18: 0 | PQ18: 0 | PR18: 0 | PS18: 0 | PW18: 0 | PX18: 0 | QC18: 1.00 | QE18: 0.0 | QF18: 0.0 | QG18: 0.0 | QH18: 0.0 | QI18: 0.0 | QJ18: 0.0 | QK18: 0.0 | QL18: 0.0 | QM18: 0.0 | QN18: 0.0 | QO18: 0.0 | QP18: 0.0 | QQ18: 0.0 | QR18: 0.0 | QS18: 0.0 | QT18: 0.0 | QU18: 0.0 | QV18: 1.0 | QW18: 0.0 | QX18: 0.0 | QY18: 0.0 | QZ18: 0.0 | RA18: 0.0 | RB18: 0.0 | RC18: 0.0 | RD18: 0.0 | RE18: 0.0 | RF18: 0.0 | RG18: 0.0 | RH18: 0.0 | RI18: 0.0 | RJ18: 0.0 | RK18: 0.0 | RL18: 0.0 | RM18: 0.0 | RN18: 0 | RO18: 0 | RP18: 0 | RQ18: 0.0 | RR18: 0.0 | RS18: 0.0 | RT18: 0.0 | RU18: 0.0 | RV18: 0.0 | RW18: 1.0 | RY18: 0 | RZ18: 0 | SA18: 0 | SB18: 0 | SC18: 0 | SD18: 0 | SE18: 0 | SU18: 0 | SV18: 0 | SW18: 0 | SX18: 0 | SY18: 0 | TA18: 0 | TB18: 0 | TC18: 0 | TD18: 0 | TE18: 0 | TF18: 0 | TG18: 0 | TH18: 0 | TI18: 0 | TJ18: 0 | TK18: 0 | TL18: 0 | TM18: 0 | TN18: 0 | TO18: 0 | TS18: =M18+DH18+'2_MERCADO_PRIVADO'!G18+'2_MERCADO_PRIVADO'!BW18 -> 0 | TT18: =DH18+'2_MERCADO_PRIVADO'!AP18+'2_MERCADO_PRIVADO'!BW18 -> 0 | TU18: =BR18+'2_MERCADO_PRIVADO'!AP18+'2_MERCADO_PRIVADO'!BW18+'2_MERCADO_PRIVADO'!DD18 -> 0 | TV18: =CH18+CX18+DL18+'2_MERCADO_PRIVADO'!BF18+'2_MERCADO_PRIVADO'!CM18+'2_MERCADO_PRIVADO'!DT18 -> 0 | TW18: =CO18+DE18+'2_MERCADO_PRIVADO'!BM18+'2_MERCADO_PRIVADO'!CT18+'2_MERCADO_PRIVADO'!EA18 -> 0 | TX18: =KR18+LK18+LP18+'2_MERCADO_PRIVADO'!MM18+'2_MERCADO_PRIVADO'!NF18+'2_MERCADO_PRIVADO'!NK18 -> 0 | TY18: =MV18+MW18+MX18+MY18+MZ18+NA18+NB18+NC18+ND18+NE18+NF18+NG18+'2_MERCADO_PRIVADO'!OQ18+'2_MERCADO_PRIVADO'!OR18+'2_MERCADO_PRIVADO'!OS18+'2_MERCADO_PRIVADO'!OT18+'2_MERCADO_PRIVADO'!OU18+'2_MERCADO_PRIVADO'!OV18+'2_MERCADO_PRIVADO'!OW18+'2_MERCADO_PRIVADO'!OX18+'2_MERCADO_PRIVADO'!OY18+'2_MERCADO_PRIVADO'!OZ18+'2_MERCADO_PRIVADO'!PA18+'2_MERCADO_PRIVADO'!PB18+'2_MERCADO_PRIVADO'!PC18+'2_MERCADO_PRIVADO'!PD18+'2_MERCADO_PRIVADO'!PE18+'2_MERCADO_PRIVADO'!PF18 -> 1 | TZ18: =OC18+'2_MERCADO_PRIVADO'!QO18 -> 0 | UA18: =OD18+'2_MERCADO_PRIVADO'!QP18 -> 0
D19: RAIZAL | E19: 0 | F19: 0 | G19: 0 | H19: 0 | I19: 0 | J19: 0 | K19: 0 | L19: 0 | M19: 0 | N19: 0 | O19: 0 | P19: 0 | Q19: 0 | R19: 0 | S19: 0 | T19: 0 | U19: 0 | V19: 0 | W19: 0 | X19: 0 | Y19: 0 | Z19: 0 | AA19: 0 | AB19: 0 | AF19: 0 | AG19: 0 | AH19: 0 | AJ19: 0 | AK19: 0 | AL19: 0 | AN19: 0 | AO19: 0 | AP19: 0 | AR19: 0 | AS19: 0 | AT19: 0 | AZ19: 0 | BA19: 0 | BB19: 0 | BD19: 0 | BE19: 0 | BF19: 0 | BG19: 0 | BH19: 0 | BI19: 0 | BJ19: 0 | BK19: 0 | BP19: 0 | BQ19: 0 | BR19: 0 | BS19: 0 | BT19: 0 | BU19: 0 | BV19: 0 | BW19: 0 | BX19: 0 | BY19: 0 | BZ19: 0 | CA19: 0 | CB19: 0 | CC19: 0 | CD19: 0 | CE19: 0 | CF19: 0 | CG19: 0 | CH19: 0 | CI19: 0 | CJ19: 0 | CK19: 0 | CL19: 0 | CM19: 0 | CN19: 0 | CO19: 0 | CX19: 0 | CY19: 0 | CZ19: 0 | DA19: 0 | DB19: 0 | DC19: 0 | DD19: 0 | DE19: 0 | DF19: 0 | DG19: 0 | DH19: 0 | DI19: 0 | DU19: 0 | DV19: 0 | DW19: 0 | DX19: 0 | DY19: 0 | DZ19: 0 | EA19: 0 | EB19: 0 | EC19: 0 | ED19: 0 | EE19: 0 | EF19: 0 | EG19: 0 | EH19: 0 | EI19: 0 | EJ19: 0 | EK19: 0 | EL19: 0 | EM19: 0 | EN19: 0 | EO19: 0 | EP19: 0 | EQ19: 0 | ER19: 0 | ES19: 0 | ET19: 0 | EU19: 0 | EV19: 0 | EW19: 0 | EX19: 0 | EY19: 0 | EZ19: 0 | FA19: 0 | FB19: 0 | FC19: 0 | FD19: 0 | FE19: 0 | FF19: 0 | FG19: 0 | FH19: 0 | FI19: 0 | FJ19: 0 | FK19: 0 | FL19: 0 | FM19: 0 | FN19: 0 | FO19: 0 | FP19: 0 | FQ19: 0 | FR19: 0 | FS19: 0 | FT19: 0 | FU19: 0 | FV19: 0 | FW19: 0 | FX19: 0 | FY19: 0 | FZ19: 0 | GA19: 0 | GB19: 0 | GC19: 0 | GD19: 0 | GE19: 0 | GF19: 0 | GG19: 0 | GH19: 0 | GI19: 0 | GJ19: 0 | GK19: 0 | GL19: 0 | GM19: 0 | GN19: 0 | GO19: 0 | GP19: 0 | GQ19: 0 | GR19: 0 | GS19: 0 | GT19: 0 | GU19: 0 | GV19: 0 | GW19: 0 | GX19: 0 | GY19: 0 | GZ19: 0 | HA19: 0 | HB19: 0 | HC19: 0 | HD19: 0 | HE19: 0 | HF19: 0 | HG19: 0 | HH19: 0 | HI19: 0 | HJ19: 0 | HK19: 0 | HL19: 0 | HS19: 0 | HT19: 0 | HU19: 0 | HV19: 0 | HW19: 0 | HX19: 0 | HY19: 0 | HZ19: 0 | IA19: 0 | IB19: 0 | ID19: 0 | IE19: 0 | IF19: 0 | IG19: 0 | IH19: 0 | II19: 0 | IK19: 0 | IL19: 0 | IM19: 0 | IN19: 0 | IO19: 0 | IP19: 0 | IQ19: 0 | IR19: 0 | IS19: 0 | IT19: 0 | IU19: 0 | IW19: 0 | IX19: 0 | IY19: 0 | IZ19: 0 | JA19: 0 | JB19: 0 | JC19: 0 | JD19: 0 | JE19: 0 | JF19: 0 | JG19: 0 | JH19: 0 | JI19: 0 | JJ19: 0 | JK19: 0 | JL19: 0 | JM19: 0 | JN19: 0 | JO19: 0 | JP19: 0 | JQ19: 0 | JR19: 0 | JS19: 0 | JU19: 0 | JV19: 0 | JW19: 0 | JX19: 0 | JY19: 0 | JZ19: 0 | KA19: 0 | KB19: 0 | KC19: 0 | KD19: 0 | KE19: 0 | KF19: 0 | KG19: 0 | KH19: 0 | KI19: 0 | KJ19: 0 | KK19: 0 | KM19: 0 | KN19: 0 | KO19: 0 | KQ19: 0 | KR19: 0 | KS19: 0 | KT19: 0 | KU19: 0 | KV19: 0 | KW19: 0 | KX19: 0 | KY19: 0 | KZ19: 0 | LA19: 0 | LB19: 0 | LC19: 0 | LD19: 0 | LE19: 0 | LF19: 0 | LG19: 0 | LH19: 0 | LI19: 0 | LJ19: 0 | LK19: 0 | LL19: 0 | LM19: 0 | LN19: 0 | LO19: 0 | LP19: 0 | LQ19: 0 | LR19: 0 | LS19: 0 | LT19: 0 | LU19: 0 | LV19: 0 | LW19: 0 | LX19: 0 | LY19: 0 | LZ19: 0 | MA19: 0 | MB19: 0 | MC19: 0 | MD19: 0 | ME19: 0 | MF19: 0 | MG19: 0 | MH19: 0 | MI19: 0 | MJ19: 0 | MK19: 0 | ML19: 0 | MM19: 0 | MN19: 0 | MO19: 0 | MP19: 0 | MQ19: 0 | MR19: 0 | MS19: 0 | MT19: 0 | MU19: 0 | MV19: 0 | MW19: 0 | MX19: 0 | MY19: 0 | MZ19: 0 | NA19: 0 | NB19: 0 | NC19: 0 | ND19: 0 | NE19: 0 | NF19: 0 | NG19: 0 | OC19: 0 | OD19: 0 | OE19: 0 | OF19: 0 | OG19: 0 | OH19: 0 | OI19: 0 | OJ19: 0 | OK19: 0 | OL19: 0 | OM19: 0 | ON19: 0 | OO19: 0 | OP19: 0 | OQ19: 0 | OR19: 0 | OS19: 0 | OT19: 0 | OU19: 0 | OV19: 0 | OW19: 0 | OX19: 0 | OY19: 0 | OZ19: 0 | PA19: 0 | PB19: 0 | PC19: 0 | PD19: 0 | PE19: 0 | PN19: 0 | PO19: 0 | PP19: 0 | PQ19: 0 | PR19: 0 | PS19: 0 | PW19: 0 | PX19: 0 | QC19: 0.00 | QE19: 0.0 | QF19: 0.0 | QG19: 0.0 | QH19: 0.0 | QI19: 0.0 | QJ19: 0.0 | QK19: 0.0 | QL19: 0.0 | QM19: 0.0 | QN19: 0.0 | QO19: 0.0 | QP19: 0.0 | QQ19: 0.0 | QR19: 0.0 | QS19: 0.0 | QT19: 0.0 | QU19: 0.0 | QV19: 0.0 | QW19: 0.0 | QX19: 0.0 | QY19: 0.0 | QZ19: 0.0 | RA19: 0.0 | RB19: 0.0 | RC19: 0.0 | RD19: 0.0 | RE19: 0.0 | RF19: 0.0 | RG19: 0.0 | RH19: 0.0 | RI19: 0.0 | RJ19: 0.0 | RK19: 0.0 | RL19: 0.0 | RM19: 0.0 | RN19: 0 | RO19: 0 | RP19: 0 | RQ19: 0.0 | RR19: 0.0 | RS19: 0.0 | RT19: 0.0 | RU19: 0.0 | RV19: 0.0 | RW19: 0.0 | RY19: 0 | RZ19: 0 | SA19: 0 | SB19: 0 | SC19: 0 | SD19: 0 | SE19: 0 | SU19: 0 | SV19: 0 | SW19: 0 | SX19: 0 | SY19: 0 | TA19: 0 | TB19: 0 | TC19: 0 | TD19: 0 | TE19: 0 | TF19: 0 | TG19: 0 | TH19: 0 | TI19: 0 | TJ19: 0 | TK19: 0 | TL19: 0 | TM19: 0 | TN19: 0 | TO19: 0 | TS19: =M19+DH19+'2_MERCADO_PRIVADO'!G19+'2_MERCADO_PRIVADO'!BW19 -> 0 | TT19: =DH19+'2_MERCADO_PRIVADO'!AP19+'2_MERCADO_PRIVADO'!BW19 -> 0 | TU19: =BR19+'2_MERCADO_PRIVADO'!AP19+'2_MERCADO_PRIVADO'!BW19+'2_MERCADO_PRIVADO'!DD19 -> 0 | TV19: =CH19+CX19+DL19+'2_MERCADO_PRIVADO'!BF19+'2_MERCADO_PRIVADO'!CM19+'2_MERCADO_PRIVADO'!DT19 -> 0 | TW19: =CO19+DE19+'2_MERCADO_PRIVADO'!BM19+'2_MERCADO_PRIVADO'!CT19+'2_MERCADO_PRIVADO'!EA19 -> 0 | TX19: =KR19+LK19+LP19+'2_MERCADO_PRIVADO'!MM19+'2_MERCADO_PRIVADO'!NF19+'2_MERCADO_PRIVADO'!NK19 -> 0 | TY19: =MV19+MW19+MX19+MY19+MZ19+NA19+NB19+NC19+ND19+NE19+NF19+NG19+'2_MERCADO_PRIVADO'!OQ19+'2_MERCADO_PRIVADO'!OR19+'2_MERCADO_PRIVADO'!OS19+'2_MERCADO_PRIVADO'!OT19+'2_MERCADO_PRIVADO'!OU19+'2_MERCADO_PRIVADO'!OV19+'2_MERCADO_PRIVADO'!OW19+'2_MERCADO_PRIVADO'!OX19+'2_MERCADO_PRIVADO'!OY19+'2_MERCADO_PRIVADO'!OZ19+'2_MERCADO_PRIVADO'!PA19+'2_MERCADO_PRIVADO'!PB19+'2_MERCADO_PRIVADO'!PC19+'2_MERCADO_PRIVADO'!PD19+'2_MERCADO_PRIVADO'!PE19+'2_MERCADO_PRIVADO'!PF19 -> 0 | TZ19: =OC19+'2_MERCADO_PRIVADO'!QO19 -> 0 | UA19: =OD19+'2_MERCADO_PRIVADO'!QP19 -> 0
D20: PALENQUERO | E20: 0 | F20: 0 | G20: 0 | H20: 0 | I20: 0 | J20: 0 | K20: 0 | L20: 0 | M20: 0 | N20: 0 | O20: 0 | P20: 0 | Q20: 0 | R20: 0 | S20: 0 | T20: 0 | U20: 0 | V20: 0 | W20: 0 | X20: 0 | Y20: 0 | Z20: 0 | AA20: 0 | AB20: 0 | AF20: 0 | AG20: 0 | AH20: 0 | AJ20: 0 | AK20: 0 | AL20: 0 | AN20: 0 | AO20: 0 | AP20: 0 | AR20: 0 | AS20: 0 | AT20: 0 | AZ20: 0 | BA20: 0 | BB20: 0 | BD20: 0 | BE20: 0 | BF20: 0 | BG20: 0 | BH20: 0 | BI20: 0 | BJ20: 0 | BK20: 0 | BP20: 0 | BQ20: 0 | BR20: 1 | BS20: 0 | BT20: 0 | BU20: 0 | BV20: 0 | BW20: 0 | BX20: 0 | BY20: 0 | BZ20: 0 | CA20: 0 | CB20: 0 | CC20: 0 | CD20: 0 | CE20: 0 | CF20: 0 | CG20: 0 | CH20: 0 | CI20: 0 | CJ20: 0 | CK20: 0 | CL20: 0 | CM20: 0 | CN20: 0 | CO20: 0 | CX20: 0 | CY20: 0 | CZ20: 0 | DA20: 0 | DB20: 0 | DC20: 0 | DD20: 0 | DE20: 0 | DF20: 0 | DG20: 0 | DH20: 1 | DI20: 0 | DU20: 0 | DV20: 0 | DW20: 0 | DX20: 0 | DY20: 0 | DZ20: 0 | EA20: 0 | EB20: 0 | EC20: 0 | ED20: 0 | EE20: 0 | EF20: 0 | EG20: 0 | EH20: 0 | EI20: 0 | EJ20: 0 | EK20: 0 | EL20: 0 | EM20: 0 | EN20: 0 | EO20: 0 | EP20: 0 | EQ20: 0 | ER20: 0 | ES20: 0 | ET20: 0 | EU20: 0 | EV20: 0 | EW20: 0 | EX20: 0 | EY20: 0 | EZ20: 0 | FA20: 0 | FB20: 0 | FC20: 0 | FD20: 0 | FE20: 0 | FF20: 0 | FG20: 0 | FH20: 0 | FI20: 0 | FJ20: 0 | FK20: 0 | FL20: 0 | FM20: 0 | FN20: 0 | FO20: 0 | FP20: 0 | FQ20: 0 | FR20: 0 | FS20: 0 | FT20: 0 | FU20: 0 | FV20: 0 | FW20: 0 | FX20: 0 | FY20: 0 | FZ20: 0 | GA20: 0 | GB20: 0 | GC20: 0 | GD20: 0 | GE20: 0 | GF20: 0 | GG20: 0 | GH20: 0 | GI20: 0 | GJ20: 0 | GK20: 0 | GL20: 0 | GM20: 0 | GN20: 0 | GO20: 0 | GP20: 0 | GQ20: 0 | GR20: 0 | GS20: 0 | GT20: 0 | GU20: 0 | GV20: 0 | GW20: 0 | GX20: 0 | GY20: 0 | GZ20: 0 | HA20: 0 | HB20: 0 | HC20: 0 | HD20: 0 | HE20: 0 | HF20: 0 | HG20: 0 | HH20: 0 | HI20: 0 | HJ20: 0 | HK20: 0 | HL20: 0 | HS20: 0 | HT20: 0 | HU20: 0 | HV20: 0 | HW20: 0 | HX20: 0 | HY20: 0 | HZ20: 0 | IA20: 0 | IB20: 0 | ID20: 0 | IE20: 0 | IF20: 0 | IG20: 0 | IH20: 0 | II20: 0 | IK20: 0 | IL20: 0 | IM20: 0 | IN20: 0 | IO20: 0 | IP20: 0 | IQ20: 0 | IR20: 0 | IS20: 0 | IT20: 0 | IU20: 0 | IW20: 0 | IX20: 0 | IY20: 0 | IZ20: 0 | JA20: 0 | JB20: 0 | JC20: 0 | JD20: 0 | JE20: 0 | JF20: 0 | JG20: 0 | JH20: 0 | JI20: 0 | JJ20: 0 | JK20: 0 | JL20: 0 | JM20: 0 | JN20: 0 | JO20: 0 | JP20: 0 | JQ20: 0 | JR20: 0 | JS20: 0 | JU20: 0 | JV20: 0 | JW20: 0 | JX20: 0 | JY20: 0 | JZ20: 0 | KA20: 0 | KB20: 0 | KC20: 0 | KD20: 0 | KE20: 0 | KF20: 0 | KG20: 0 | KH20: 0 | KI20: 0 | KJ20: 0 | KK20: 0 | KM20: 0 | KN20: 0 | KO20: 0 | KQ20: 0 | KR20: 0 | KS20: 0 | KT20: 0 | KU20: 0 | KV20: 0 | KW20: 0 | KX20: 0 | KY20: 0 | KZ20: 0 | LA20: 0 | LB20: 0 | LC20: 0 | LD20: 0 | LE20: 0 | LF20: 0 | LG20: 0 | LH20: 0 | LI20: 0 | LJ20: 0 | LK20: 0 | LL20: 0 | LM20: 0 | LN20: 0 | LO20: 0 | LP20: 0 | LQ20: 0 | LR20: 0 | LS20: 0 | LT20: 0 | LU20: 0 | LV20: 0 | LW20: 0 | LX20: 0 | LY20: 0 | LZ20: 0 | MA20: 0 | MB20: 0 | MC20: 0 | MD20: 0 | ME20: 0 | MF20: 0 | MG20: 0 | MH20: 0 | MI20: 0 | MJ20: 0 | MK20: 0 | ML20: 0 | MM20: 0 | MN20: 0 | MO20: 0 | MP20: 0 | MQ20: 0 | MR20: 0 | MS20: 0 | MT20: 0 | MU20: 0 | MV20: 0 | MW20: 0 | MX20: 0 | MY20: 0 | MZ20: 0 | NA20: 0 | NB20: 0 | NC20: 0 | ND20: 0 | NE20: 0 | NF20: 0 | NG20: 0 | OC20: 0 | OD20: 0 | OE20: 0 | OF20: 0 | OG20: 0 | OH20: 0 | OI20: 0 | OJ20: 0 | OK20: 0 | OL20: 0 | OM20: 0 | ON20: 0 | OO20: 0 | OP20: 0 | OQ20: 0 | OR20: 0 | OS20: 0 | OT20: 0 | OU20: 0 | OV20: 0 | OW20: 0 | OX20: 0 | OY20: 0 | OZ20: 0 | PA20: 0 | PB20: 0 | PC20: 0 | PD20: 0 | PE20: 0 | PN20: 0 | PO20: 0 | PP20: 0 | PQ20: 0 | PR20: 0 | PS20: 0 | PW20: 0 | PX20: 0 | QC20: 2.00 | QE20: 0.0 | QF20: 0.0 | QG20: 1.0 | QH20: 0.0 | QI20: 1.0 | QJ20: 0.0 | QK20: 0.0 | QL20: 0.0 | QM20: 0.0 | QN20: 0.0 | QO20: 0.0 | QP20: 0.0 | QQ20: 0.0 | QR20: 0.0 | QS20: 0.0 | QT20: 0.0 | QU20: 0.0 | QV20: 0.0 | QW20: 0.0 | QX20: 0.0 | QY20: 0.0 | QZ20: 0.0 | RA20: 0.0 | RB20: 0.0 | RC20: 0.0 | RD20: 0.0 | RE20: 0.0 | RF20: 0.0 | RG20: 0.0 | RH20: 0.0 | RI20: 0.0 | RJ20: 0.0 | RK20: 0.0 | RL20: 0.0 | RM20: 0.0 | RN20: 0 | RO20: 0 | RP20: 0 | RQ20: 0.0 | RR20: 0.0 | RS20: 0.0 | RT20: 0.0 | RU20: 0.0 | RV20: 0.0 | RW20: 2.0 | RY20: 0 | RZ20: 0 | SA20: 0 | SB20: 0 | SC20: 0 | SD20: 0 | SE20: 0 | SU20: 0 | SV20: 0 | SW20: 0 | SX20: 0 | SY20: 0 | TA20: 0 | TB20: 0 | TC20: 0 | TD20: 0 | TE20: 0 | TF20: 0 | TG20: 0 | TH20: 0 | TI20: 0 | TJ20: 0 | TK20: 0 | TL20: 0 | TM20: 0 | TN20: 0 | TO20: 0 | TS20: =M20+DH20+'2_MERCADO_PRIVADO'!G20+'2_MERCADO_PRIVADO'!BW20 -> 1 | TT20: =DH20+'2_MERCADO_PRIVADO'!AP20+'2_MERCADO_PRIVADO'!BW20 -> 1 | TU20: =BR20+'2_MERCADO_PRIVADO'!AP20+'2_MERCADO_PRIVADO'!BW20+'2_MERCADO_PRIVADO'!DD20 -> 1 | TV20: =CH20+CX20+DL20+'2_MERCADO_PRIVADO'!BF20+'2_MERCADO_PRIVADO'!CM20+'2_MERCADO_PRIVADO'!DT20 -> 0 | TW20: =CO20+DE20+'2_MERCADO_PRIVADO'!BM20+'2_MERCADO_PRIVADO'!CT20+'2_MERCADO_PRIVADO'!EA20 -> 0 | TX20: =KR20+LK20+LP20+'2_MERCADO_PRIVADO'!MM20+'2_MERCADO_PRIVADO'!NF20+'2_MERCADO_PRIVADO'!NK20 -> 0 | TY20: =MV20+MW20+MX20+MY20+MZ20+NA20+NB20+NC20+ND20+NE20+NF20+NG20+'2_MERCADO_PRIVADO'!OQ20+'2_MERCADO_PRIVADO'!OR20+'2_MERCADO_PRIVADO'!OS20+'2_MERCADO_PRIVADO'!OT20+'2_MERCADO_PRIVADO'!OU20+'2_MERCADO_PRIVADO'!OV20+'2_MERCADO_PRIVADO'!OW20+'2_MERCADO_PRIVADO'!OX20+'2_MERCADO_PRIVADO'!OY20+'2_MERCADO_PRIVADO'!OZ20+'2_MERCADO_PRIVADO'!PA20+'2_MERCADO_PRIVADO'!PB20+'2_MERCADO_PRIVADO'!PC20+'2_MERCADO_PRIVADO'!PD20+'2_MERCADO_PRIVADO'!PE20+'2_MERCADO_PRIVADO'!PF20 -> 0 | TZ20: =OC20+'2_MERCADO_PRIVADO'!QO20 -> 0 | UA20: =OD20+'2_MERCADO_PRIVADO'!QP20 -> 0
D21: NEGRO(A), MULATO (A), AFROCOLOMBIANO (A) | E21: 4 | F21: 0 | G21: 0 | H21: 0 | I21: 4 | J21: 0 | K21: 0 | L21: 0 | M21: 0 | N21: 0 | O21: 0 | P21: 0 | Q21: 0 | R21: 0 | S21: 0 | T21: 0 | U21: 0 | V21: 0 | W21: 0 | X21: 0 | Y21: 0 | Z21: 0 | AA21: 0 | AB21: 0 | AF21: 0 | AG21: 0 | AH21: 0 | AJ21: 0 | AK21: 0 | AL21: 0 | AN21: 0 | AO21: 0 | AP21: 0 | AR21: 0 | AS21: 0 | AT21: 0 | AZ21: 0 | BA21: 0 | BB21: 0 | BD21: 0 | BE21: 0 | BF21: 0 | BG21: 0 | BH21: 0 | BI21: 0 | BJ21: 0 | BK21: 0 | BP21: 0 | BQ21: 0 | BR21: 0 | BS21: 0 | BT21: 0 | BU21: 0 | BV21: 0 | BW21: 0 | BX21: 0 | BY21: 0 | BZ21: 0 | CA21: 0 | CB21: 0 | CC21: 0 | CD21: 0 | CE21: 0 | CF21: 0 | CG21: 0 | CH21: 0 | CI21: 0 | CJ21: 0 | CK21: 0 | CL21: 0 | CM21: 0 | CN21: 0 | CO21: 0 | CX21: 0 | CY21: 0 | CZ21: 0 | DA21: 0 | DB21: 0 | DC21: 0 | DD21: 0 | DE21: 0 | DF21: 0 | DG21: 0 | DH21: 0 | DI21: 0 | DU21: 0 | DV21: 0 | DW21: 0 | DX21: 0 | DY21: 0 | DZ21: 0 | EA21: 0 | EB21: 0 | EC21: 0 | ED21: 0 | EE21: 0 | EF21: 0 | EG21: 0 | EH21: 0 | EI21: 0 | EJ21: 0 | EK21: 0 | EL21: 0 | EM21: 0 | EN21: 0 | EO21: 0 | EP21: 0 | EQ21: 0 | ER21: 0 | ES21: 0 | ET21: 0 | EU21: 0 | EV21: 0 | EW21: 0 | EX21: 0 | EY21: 0 | EZ21: 0 | FA21: 0 | FB21: 0 | FC21: 0 | FD21: 0 | FE21: 0 | FF21: 0 | FG21: 0 | FH21: 0 | FI21: 0 | FJ21: 0 | FK21: 0 | FL21: 0 | FM21: 0 | FN21: 0 | FO21: 0 | FP21: 0 | FQ21: 0 | FR21: 0 | FS21: 0 | FT21: 0 | FU21: 0 | FV21: 0 | FW21: 0 | FX21: 0 | FY21: 0 | FZ21: 0 | GA21: 0 | GB21: 0 | GC21: 0 | GD21: 0 | GE21: 0 | GF21: 0 | GG21: 0 | GH21: 0 | GI21: 0 | GJ21: 0 | GK21: 0 | GL21: 0 | GM21: 0 | GN21: 0 | GO21: 0 | GP21: 0 | GQ21: 0 | GR21: 0 | GS21: 0 | GT21: 0 | GU21: 0 | GV21: 0 | GW21: 0 | GX21: 0 | GY21: 0 | GZ21: 0 | HA21: 0 | HB21: 0 | HC21: 0 | HD21: 0 | HE21: 0 | HF21: 0 | HG21: 0 | HH21: 0 | HI21: 0 | HJ21: 0 | HK21: 0 | HL21: 0 | HS21: 0 | HT21: 0 | HU21: 0 | HV21: 0 | HW21: 0 | HX21: 0 | HY21: 0 | HZ21: 0 | IA21: 0 | IB21: 0 | ID21: 0 | IE21: 0 | IF21: 0 | IG21: 0 | IH21: 0 | II21: 0 | IK21: 0 | IL21: 0 | IM21: 0 | IN21: 1 | IO21: 0 | IP21: 0 | IQ21: 0 | IR21: 0 | IS21: 0 | IT21: 0 | IU21: 0 | IW21: 0 | IX21: 0 | IY21: 0 | IZ21: 0 | JA21: 0 | JB21: 0 | JC21: 0 | JD21: 0 | JE21: 0 | JF21: 0 | JG21: 0 | JH21: 0 | JI21: 0 | JJ21: 0 | JK21: 0 | JL21: 0 | JM21: 0 | JN21: 0 | JO21: 0 | JP21: 0 | JQ21: 0 | JR21: 0 | JS21: 0 | JU21: 0 | JV21: 0 | JW21: 0 | JX21: 0 | JY21: 0 | JZ21: 0 | KA21: 0 | KB21: 0 | KC21: 0 | KD21: 0 | KE21: 0 | KF21: 0 | KG21: 0 | KH21: 0 | KI21: 0 | KJ21: 0 | KK21: 0 | KM21: 0 | KN21: 0 | KO21: 0 | KQ21: 0 | KR21: 0 | KS21: 0 | KT21: 0 | KU21: 0 | KV21: 0 | KW21: 0 | KX21: 0 | KY21: 0 | KZ21: 0 | LA21: 0 | LB21: 0 | LC21: 0 | LD21: 0 | LE21: 0 | LF21: 0 | LG21: 0 | LH21: 0 | LI21: 0 | LJ21: 0 | LK21: 0 | LL21: 0 | LM21: 0 | LN21: 0 | LO21: 0 | LP21: 0 | LQ21: 0 | LR21: 1 | LS21: 0 | LT21: 0 | LU21: 0 | LV21: 0 | LW21: 0 | LX21: 0 | LY21: 0 | LZ21: 0 | MA21: 0 | MB21: 0 | MC21: 0 | MD21: 0 | ME21: 0 | MF21: 0 | MG21: 0 | MH21: 0 | MI21: 0 | MJ21: 0 | MK21: 0 | ML21: 0 | MM21: 0 | MN21: 0 | MO21: 0 | MP21: 0 | MQ21: 0 | MR21: 0 | MS21: 0 | MT21: 0 | MU21: 0 | MV21: 0 | MW21: 0 | MX21: 0 | MY21: 0 | MZ21: 0 | NA21: 0 | NB21: 0 | NC21: 0 | ND21: 0 | NE21: 0 | NF21: 0 | NG21: 0 | OC21: 0 | OD21: 0 | OE21: 0 | OF21: 0 | OG21: 0 | OH21: 0 | OI21: 0 | OJ21: 0 | OK21: 0 | OL21: 0 | OM21: 0 | ON21: 0 | OO21: 0 | OP21: 0 | OQ21: 0 | OR21: 0 | OS21: 0 | OT21: 0 | OU21: 0 | OV21: 0 | OW21: 0 | OX21: 0 | OY21: 1 | OZ21: 0 | PA21: 0 | PB21: 0 | PC21: 0 | PD21: 0 | PE21: 0 | PN21: 0 | PO21: 0 | PP21: 0 | PQ21: 0 | PR21: 0 | PS21: 0 | PW21: 0 | PX21: 0 | QC21: 11.00 | QE21: 4.0 | QF21: 4.0 | QG21: 0.0 | QH21: 0.0 | QI21: 0.0 | QJ21: 0.0 | QK21: 0.0 | QL21: 0.0 | QM21: 0.0 | QN21: 0.0 | QO21: 0.0 | QP21: 0.0 | QQ21: 1.0 | QR21: 0.0 | QS21: 0.0 | QT21: 0.0 | QU21: 1.0 | QV21: 0.0 | QW21: 0.0 | QX21: 0.0 | QY21: 0.0 | QZ21: 0.0 | RA21: 0.0 | RB21: 0.0 | RC21: 0.0 | RD21: 0.0 | RE21: 0.0 | RF21: 1.0 | RG21: 0.0 | RH21: 0.0 | RI21: 0.0 | RJ21: 0.0 | RK21: 0.0 | RL21: 0.0 | RM21: 0.0 | RN21: 0 | RO21: 0 | RP21: 0 | RQ21: 0.0 | RR21: 0.0 | RS21: 0.0 | RT21: 0.0 | RU21: 0.0 | RV21: 0.0 | RW21: 11.0 | RY21: 0 | RZ21: 0 | SA21: 0 | SB21: 0 | SC21: 0 | SD21: 0 | SE21: 0 | SU21: 0 | SV21: 0 | SW21: 0 | SX21: 0 | SY21: 0 | TA21: 0 | TB21: 0 | TC21: 0 | TD21: 0 | TE21: 0 | TF21: 0 | TG21: 0 | TH21: 0 | TI21: 0 | TJ21: 0 | TK21: 0 | TL21: 0 | TM21: 0 | TN21: 0 | TO21: 0 | TS21: =M21+DH21+'2_MERCADO_PRIVADO'!G21+'2_MERCADO_PRIVADO'!BW21 -> 0 | TT21: =DH21+'2_MERCADO_PRIVADO'!AP21+'2_MERCADO_PRIVADO'!BW21 -> 0 | TU21: =BR21+'2_MERCADO_PRIVADO'!AP21+'2_MERCADO_PRIVADO'!BW21+'2_MERCADO_PRIVADO'!DD21 -> 0 | TV21: =CH21+CX21+DL21+'2_MERCADO_PRIVADO'!BF21+'2_MERCADO_PRIVADO'!CM21+'2_MERCADO_PRIVADO'!DT21 -> 1 | TW21: =CO21+DE21+'2_MERCADO_PRIVADO'!BM21+'2_MERCADO_PRIVADO'!CT21+'2_MERCADO_PRIVADO'!EA21 -> 0 | TX21: =KR21+LK21+LP21+'2_MERCADO_PRIVADO'!MM21+'2_MERCADO_PRIVADO'!NF21+'2_MERCADO_PRIVADO'!NK21 -> 1 | TY21: =MV21+MW21+MX21+MY21+MZ21+NA21+NB21+NC21+ND21+NE21+NF21+NG21+'2_MERCADO_PRIVADO'!OQ21+'2_MERCADO_PRIVADO'!OR21+'2_MERCADO_PRIVADO'!OS21+'2_MERCADO_PRIVADO'!OT21+'2_MERCADO_PRIVADO'!OU21+'2_MERCADO_PRIVADO'!OV21+'2_MERCADO_PRIVADO'!OW21+'2_MERCADO_PRIVADO'!OX21+'2_MERCADO_PRIVADO'!OY21+'2_MERCADO_PRIVADO'!OZ21+'2_MERCADO_PRIVADO'!PA21+'2_MERCADO_PRIVADO'!PB21+'2_MERCADO_PRIVADO'!PC21+'2_MERCADO_PRIVADO'!PD21+'2_MERCADO_PRIVADO'!PE21+'2_MERCADO_PRIVADO'!PF21 -> 0 | TZ21: =OC21+'2_MERCADO_PRIVADO'!QO21 -> 0 | UA21: =OD21+'2_MERCADO_PRIVADO'!QP21 -> 0
D22: SIN PERTENENCIA ETNICA | E22: 834 | F22: 17 | G22: 0 | H22: 0 | I22: 821 | J22: 22 | K22: 1 | L22: 0 | M22: 0 | N22: 0 | O22: 2 | P22: 5 | Q22: 0 | R22: 1 | S22: 2 | T22: 0 | U22: 2 | V22: 1 | W22: 0 | X22: 0 | Y22: 0 | Z22: 0 | AA22: 0 | AB22: 1 | AF22: 0 | AG22: 0 | AH22: 0 | AJ22: 0 | AK22: 0 | AL22: 0 | AN22: 0 | AO22: 1 | AP22: 0 | AR22: 0 | AS22: 0 | AT22: 0 | AZ22: 1 | BA22: 0 | BB22: 0 | BD22: 0 | BE22: 0 | BF22: 0 | BG22: 0 | BH22: 0 | BI22: 0 | BJ22: 1 | BK22: 0 | BP22: 338 | BQ22: 353 | BR22: 306 | BS22: 0 | BT22: 4 | BU22: 5 | BV22: 0 | BW22: 0 | BX22: 1 | BY22: 1 | BZ22: 1 | CA22: 1 | CB22: 0 | CC22: 0 | CD22: 0 | CE22: 0 | CF22: 0 | CG22: 1 | CH22: 0 | CI22: 0 | CJ22: 0 | CK22: 0 | CL22: 1 | CM22: 0 | CN22: 0 | CO22: 14 | CR22: 11 | CX22: 373 | CY22: 19 | CZ22: 13 | DA22: 5 | DB22: 2 | DC22: 0 | DD22: 0 | DE22: 337 | DF22: 337 | DG22: 353 | DH22: 306 | DI22: 0 | DU22: 0 | DV22: 0 | DW22: 0 | DX22: 0 | DY22: 4 | DZ22: 5 | EA22: 0 | EB22: 1 | EC22: 2 | ED22: 0 | EE22: 2 | EF22: 1 | EG22: 0 | EH22: 0 | EI22: 0 | EJ22: 2 | EK22: 0 | EL22: 1 | EM22: 374 | EN22: 19 | EO22: 13 | EP22: 5 | EQ22: 2 | ER22: 0 | ES22: 0 | ET22: 333 | EU22: 1 | EV22: 0 | EW22: 0 | EX22: 0 | EY22: 0 | EZ22: 0 | FA22: 0 | FB22: 0 | FC22: 0 | FD22: 0 | FE22: 0 | FF22: 0 | FG22: 0 | FH22: 0 | FI22: 0 | FJ22: 0 | FK22: 0 | FL22: 0 | FM22: 0 | FN22: 0 | FO22: 0 | FP22: 0 | FQ22: 0 | FR22: 0 | FS22: 0 | FT22: 0 | FU22: 0 | FV22: 0 | FW22: 0 | FX22: 0 | FY22: 3 | FZ22: 0 | GA22: 0 | GB22: 0 | GC22: 0 | GD22: 0 | GE22: 0 | GF22: 0 | GG22: 0 | GH22: 0 | GI22: 0 | GJ22: 0 | GK22: 0 | GL22: 0 | GM22: 0 | GN22: 0 | GO22: 0 | GP22: 0 | GQ22: 0 | GR22: 0 | GS22: 0 | GT22: 0 | GU22: 0 | GV22: 0 | GW22: 0 | GX22: 0 | GY22: 0 | GZ22: 0 | HA22: 0 | HB22: 0 | HC22: 0 | HD22: 0 | HE22: 451 | HF22: 482 | HG22: 430 | HH22: 449 | HI22: 311 | HJ22: 5 | HK22: 9 | HL22: 38 | HS22: 306 | HT22: 5 | HU22: 7 | HV22: 2 | HW22: 0 | HX22: 0 | HY22: 0 | HZ22: 0 | IA22: 0 | IB22: 0 | ID22: 380 | IE22: 13 | IF22: 9 | IG22: 4 | IH22: 4 | II22: 1 | IK22: 0 | IL22: 351 | IM22: 77 | IN22: 88 | IO22: 109 | IP22: 87 | IQ22: 90 | IR22: 76 | IS22: 77 | IT22: 90 | IU22: 94 | IW22: 97 | IX22: 16 | IY22: 159 | IZ22: 79 | JA22: 51 | JB22: 465 | JC22: 24 | JD22: 14 | JE22: 9 | JF22: 3 | JG22: 1 | JH22: 2 | JI22: 0 | JJ22: 1 | JK22: 0 | JL22: 1 | JM22: 0 | JN22: 4 | JO22: 19 | JP22: 162 | JQ22: 83 | JR22: 55 | JS22: 29 | JU22: 356 | JV22: 11 | JW22: 7 | JX22: 14 | JY22: 15 | JZ22: 6 | KA22: 8 | KB22: 4 | KC22: 3 | KD22: 0 | KE22: 302 | KF22: 11 | KG22: 7 | KH22: 13 | KI22: 12 | KJ22: 7 | KK22: 6 | KM22: 365 | KN22: 10 | KO22: 5 | KQ22: 1 | KR22: 0 | KS22: 0 | KT22: 0 | KU22: 9 | KV22: 8 | KW22: 2 | KX22: 0 | KY22: 0 | KZ22: 0 | LA22: 247 | LB22: 186 | LC22: 51 | LD22: 32 | LE22: 16 | LF22: 3 | LG22: 0 | LH22: 0 | LI22: 0 | LJ22: 25 | LK22: 10 | LL22: 5 | LM22: 0 | LN22: 0 | LO22: 159 | LP22: 111 | LQ22: 122 | LR22: 83 | LS22: 50 | LT22: 24 | LU22: 0 | LV22: 0 | LW22: 0 | LX22: 0 | LY22: 1 | LZ22: 0 | MA22: 0 | MB22: 0 | MC22: 7 | MD22: 6 | ME22: 0 | MF22: 0 | MG22: 1 | MH22: 1 | MI22: 0 | MJ22: 0 | MK22: 0 | ML22: 0 | MM22: 0 | MN22: 0 | MO22: 0 | MP22: 1 | MQ22: 0 | MR22: 0 | MS22: 0 | MT22: 0 | MU22: 0 | MV22: 0 | MW22: 6 | MX22: 3 | MY22: 0 | MZ22: 0 | NA22: 0 | NB22: 219 | NC22: 130 | ND22: 158 | NE22: 69 | NF22: 49 | NG22: 31 | OC22: 88 | OD22: 42 | OE22: 0 | OF22: 51 | OG22: 78 | OH22: 0 | OI22: 70 | OJ22: 55 | OK22: 0 | OL22: 45 | OM22: 37 | ON22: 0 | OO22: 48 | OP22: 21 | OQ22: 0 | OR22: 35 | OS22: 21 | OT22: 0 | OU22: 34 | OV22: 25 | OW22: 1 | OX22: 22 | OY22: 22 | OZ22: 0 | PA22: 21 | PB22: 14 | PC22: 0 | PD22: 5 | PE22: 1 | PN22: 169 | PO22: 57 | PP22: 43 | PQ22: 43 | PR22: 89 | PS22: 19 | PW22: 1 | PX22: 1 | QC22: 14,574.00 | QE22: 851.0 | QF22: 861.0 | QG22: 1,037.0 | QH22: 749.0 | QI22: 996.0 | QJ22: 764.0 | QK22: 4.0 | QL22: 0.0 | QM22: 933.0 | QN22: 1,242.0 | QO22: 0.0 | QP22: 731.0 | QQ22: 1,541.0 | QR22: 872.0 | QS22: 424.0 | QT22: 738.0 | QU22: 1,161.0 | QV22: 665.0 | QW22: 0.0 | QX22: 0.0 | QY22: 0.0 | QZ22: 0.0 | RA22: 0.0 | RB22: 0.0 | RC22: 0.0 | RD22: 0.0 | RE22: 0.0 | RF22: 736.0 | RG22: 0.0 | RH22: 0.0 | RI22: 0.0 | RJ22: 269.0 | RK22: 43.0 | RL22: 89.0 | RM22: 19.0 | RN22: 0 | RO22: 0 | RP22: 0 | RQ22: 1.0 | RR22: 1.0 | RS22: 0.0 | RT22: 0.0 | RU22: 0.0 | RV22: 0.0 | RW22: 14,305.0 | RY22: 0 | RZ22: 1 | SA22: 0 | SB22: 16 | SC22: 150 | SD22: 19 | SE22: 186 | SR22: 18 | SS22: 4 | SU22: 0 | SV22: 0 | SW22: 0 | SX22: 18 | SY22: 4 | TA22: 0 | TB22: 0 | TC22: 0 | TD22: 0 | TE22: 0 | TF22: 0 | TG22: 0 | TH22: 0 | TI22: 0 | TJ22: 0 | TK22: 0 | TL22: 0 | TM22: 0 | TN22: 0 | TO22: 0 | TS22: =M22+DH22+'2_MERCADO_PRIVADO'!G22+'2_MERCADO_PRIVADO'!BW22 -> 537 | TT22: =DH22+'2_MERCADO_PRIVADO'!AP22+'2_MERCADO_PRIVADO'!BW22 -> 537 | TU22: =BR22+'2_MERCADO_PRIVADO'!AP22+'2_MERCADO_PRIVADO'!BW22+'2_MERCADO_PRIVADO'!DD22 -> 537 | TV22: =CH22+CX22+DL22+'2_MERCADO_PRIVADO'!BF22+'2_MERCADO_PRIVADO'!CM22+'2_MERCADO_PRIVADO'!DT22 -> 540 | TW22: =CO22+DE22+'2_MERCADO_PRIVADO'!BM22+'2_MERCADO_PRIVADO'!CT22+'2_MERCADO_PRIVADO'!EA22 -> 466 | TX22: =KR22+LK22+LP22+'2_MERCADO_PRIVADO'!MM22+'2_MERCADO_PRIVADO'!NF22+'2_MERCADO_PRIVADO'!NK22 -> 325 | TY22: =MV22+MW22+MX22+MY22+MZ22+NA22+NB22+NC22+ND22+NE22+NF22+NG22+'2_MERCADO_PRIVADO'!OQ22+'2_MERCADO_PRIVADO'!OR22+'2_MERCADO_PRIVADO'!OS22+'2_MERCADO_PRIVADO'!OT22+'2_MERCADO_PRIVADO'!OU22+'2_MERCADO_PRIVADO'!OV22+'2_MERCADO_PRIVADO'!OW22+'2_MERCADO_PRIVADO'!OX22+'2_MERCADO_PRIVADO'!OY22+'2_MERCADO_PRIVADO'!OZ22+'2_MERCADO_PRIVADO'!PA22+'2_MERCADO_PRIVADO'!PB22+'2_MERCADO_PRIVADO'!PC22+'2_MERCADO_PRIVADO'!PD22+'2_MERCADO_PRIVADO'!PE22+'2_MERCADO_PRIVADO'!PF22 -> 669 | TZ22: =OC22+'2_MERCADO_PRIVADO'!QO22 -> 89 | UA22: =OD22+'2_MERCADO_PRIVADO'!QP22 -> 46
D23: TOTAL ETNICOS | E23: 838 | F23: 17 | G23: 0 | H23: 0 | I23: 825 | J23: 22 | K23: 1 | L23: 0 | M23: 0 | N23: 0 | O23: 2 | P23: 5 | Q23: 0 | R23: 1 | S23: 2 | T23: 0 | U23: 2 | V23: 1 | W23: 0 | X23: 0 | Y23: 0 | Z23: 0 | AA23: 0 | AB23: 1 | AC23: =SUM(AC17:AC22) -> 0 | AD23: 0 | AE23: 0 | AF23: 0 | AG23: 0 | AH23: 0 | AI23: 0 | AJ23: 0 | AK23: 0 | AL23: 0 | AM23: 0 | AN23: 0 | AO23: 1 | AP23: 0 | AQ23: 0 | AR23: 0 | AS23: 0 | AT23: 0 | AU23: 0 | AV23: 0 | AW23: 0 | AX23: 0 | AY23: 0 | AZ23: 1 | BA23: 0 | BB23: 0 | BC23: 0 | BD23: 0 | BE23: 0 | BF23: 0 | BG23: 0 | BH23: 0 | BI23: 0 | BJ23: 1 | BK23: 0 | BL23: 0 | BM23: 0 | BN23: 0 | BO23: 0 | BP23: 338 | BQ23: 353 | BR23: 307 | BS23: 0 | BT23: 4 | BU23: 5 | BV23: 0 | BW23: 0 | BX23: 1 | BY23: 1 | BZ23: 1 | CA23: 1 | CB23: 0 | CC23: 0 | CD23: 0 | CE23: 0 | CF23: 0 | CG23: 1 | CH23: 0 | CI23: 0 | CJ23: 0 | CK23: 0 | CL23: 1 | CM23: 0 | CN23: 0 | CO23: 14 | CQ23: =SUM(CQ17:CQ22) -> 0 | CR23: 11 | CS23: 0 | CT23: 0 | CU23: 0 | CV23: 0 | CW23: 0 | CX23: 373 | CY23: 19 | CZ23: 13 | DA23: 5 | DB23: 2 | DC23: 0 | DD23: 0 | DE23: 337 | DF23: 337 | DG23: 353 | DH23: 307 | DI23: 0 | DJ23: 0 | DK23: 0 | DL23: 0 | DM23: 0 | DN23: 0 | DO23: 0 | DP23: 0 | DQ23: 0 | DR23: 0 | DS23: 0 | DT23: 0 | DU23: 0 | DV23: 0 | DW23: 0 | DX23: 0 | DY23: 4 | DZ23: 5 | EA23: 0 | EB23: 1 | EC23: 2 | ED23: 0 | EE23: 2 | EF23: 1 | EG23: 0 | EH23: 0 | EI23: 0 | EJ23: 2 | EK23: 0 | EL23: 1 | EM23: 374 | EN23: 19 | EO23: 13 | EP23: 5 | EQ23: 2 | ER23: 0 | ES23: 0 | ET23: 333 | EU23: 1 | EV23: 0 | EW23: 0 | EX23: 0 | EY23: 0 | EZ23: 0 | FA23: 0 | FB23: 0 | FC23: 0 | FD23: 0 | FE23: 0 | FF23: 0 | FG23: 0 | FH23: 0 | FI23: 0 | FJ23: 0 | FK23: 0 | FL23: 0 | FM23: 0 | FN23: 0 | FO23: 0 | FP23: 0 | FQ23: 0 | FR23: 0 | FS23: 0 | FT23: 0 | FU23: 0 | FV23: 0 | FW23: 0 | FX23: 0 | FY23: 3 | FZ23: 0 | GA23: 0 | GB23: 0 | GC23: 0 | GD23: 0 | GE23: 0 | GF23: 0 | GG23: 0 | GH23: 0 | GI23: 0 | GJ23: 0 | GK23: 0 | GL23: 0 | GM23: 0 | GN23: 0 | GO23: 0 | GP23: 0 | GQ23: 0 | GR23: 0 | GS23: 0 | GT23: 0 | GU23: 0 | GV23: 0 | GW23: 0 | GX23: 0 | GY23: 0 | GZ23: 0 | HA23: 0 | HB23: 0 | HC23: 0 | HD23: 0 | HE23: 451 | HF23: 482 | HG23: 430 | HH23: 449 | HI23: 311 | HJ23: 5 | HK23: 9 | HL23: 38 | HM23: =SUM(HM17:HM22) -> 0 | HN23: 0 | HO23: 0 | HP23: 0 | HQ23: 0 | HR23: 0 | HS23: 306 | HT23: 5 | HU23: 7 | HV23: 2 | HW23: 0 | HX23: 0 | HY23: 0 | HZ23: 0 | IA23: 0 | IB23: 0 | ID23: 380 | IE23: 13 | IF23: 9 | IG23: 4 | IH23: 4 | II23: 1 | IJ23: 0 | IK23: 0 | IL23: 351 | IM23: 77 | IN23: 89 | IO23: 109 | IP23: 87 | IQ23: 90 | IR23: 76 | IS23: 77 | IT23: 90 | IU23: 94 | IV23: 0 | IW23: 97 | IX23: 16 | IY23: 159 | IZ23: 79 | JA23: 51 | JB23: 465 | JC23: 24 | JD23: 14 | JE23: 9 | JF23: 3 | JG23: 1 | JH23: 2 | JI23: 0 | JJ23: 1 | JK23: 0 | JL23: 1 | JM23: 0 | JN23: 4 | JO23: 19 | JP23: 162 | JQ23: 83 | JR23: 55 | JS23: 29 | JT23: =SUM(JT17:JT22) -> 0 | JU23: 356 | JV23: 11 | JW23: 7 | JX23: 14 | JY23: 15 | JZ23: 6 | KA23: 8 | KB23: 4 | KC23: 3 | KD23: 0 | KE23: 302 | KF23: 11 | KG23: 7 | KH23: 13 | KI23: 12 | KJ23: 7 | KK23: 6 | KM23: 365 | KN23: 10 | KO23: 5 | KP23: 0 | KQ23: 1 | KR23: 0 | KS23: 0 | KT23: 0 | KU23: 9 | KV23: 8 | KW23: 2 | KX23: 0 | KY23: 0 | KZ23: 0 | LA23: 247 | LB23: 186 | LC23: 51 | LD23: 32 | LE23: 16 | LF23: 3 | LG23: 0 | LH23: 0 | LI23: 0 | LJ23: 25 | LK23: 10 | LL23: 5 | LM23: 0 | LN23: 0 | LO23: 159 | LP23: 111 | LQ23: 123 | LR23: 84 | LS23: 50 | LT23: 24 | LU23: 0 | LV23: 0 | LW23: 0 | LX23: 0 | LY23: 1 | LZ23: 0 | MA23: 0 | MB23: 0 | MC23: 7 | MD23: 6 | ME23: 0 | MF23: 0 | MG23: 1 | MH23: 1 | MI23: 0 | MJ23: 0 | MK23: 0 | ML23: 0 | MM23: 0 | MN23: 0 | MO23: 0 | MP23: 1 | MQ23: 0 | MR23: 0 | MS23: 0 | MT23: 0 | MU23: 0 | MV23: 0 | MW23: 6 | MX23: 3 | MY23: 0 | MZ23: 0 | NA23: 0 | NB23: 219 | NC23: 130 | ND23: 159 | NE23: 69 | NF23: 49 | NG23: 31 | NI23: =SUM(NI17:NI22) -> 0 | NJ23: 0 | NK23: 0 | NL23: 0 | NM23: 0 | NN23: 0 | NO23: 0 | NP23: 0 | NQ23: 0 | NR23: 0 | NS23: 0 | NT23: 0 | NU23: 0 | NV23: 0 | NW23: 0 | NX23: 0 | NY23: 0 | NZ23: =SUM(NZ17:NZ22) -> 0 | OA23: 0 | OB23: 0 | OC23: 89 | OD23: 42 | OE23: 0 | OF23: 51 | OG23: 78 | OH23: 0 | OI23: 70 | OJ23: 55 | OK23: 0 | OL23: 45 | OM23: 37 | ON23: 0 | OO23: 48 | OP23: 21 | OQ23: 0 | OR23: 35 | OS23: 21 | OT23: 0 | OU23: 34 | OV23: 25 | OW23: 1 | OX23: 22 | OY23: 23 | OZ23: 0 | PA23: 21 | PB23: 14 | PC23: 0 | PD23: 5 | PE23: 1 | PF23: 0 | PG23: 0 | PH23: 0 | PI23: 0 | PJ23: 0 | PK23: 0 | PL23: 0 | PM23: 0 | PN23: 169 | PO23: 57 | PP23: 43 | PQ23: 43 | PR23: 89 | PS23: 19 | PT23: 0 | PU23: 0 | PV23: 0 | PW23: 1 | PX23: 1 | PY23: 0 | PZ23: 0 | QA23: 0 | QB23: 0 | QC23: =SUM(QC17:QC22) -> 14,590 | QE23: =SUM(QE17:QE22) -> 855.0 | QF23: =SUM(QF17:QF22) -> 865.0 | QG23: 1,038.0 | QH23: 749.0 | QI23: 997.0 | QJ23: 764.0 | QK23: 4.0 | QL23: 0.0 | QM23: 933.0 | QN23: 1,242.0 | QO23: =SUM(QO17:QO22) -> 0.0 | QP23: 731.0 | QQ23: 1,542.0 | QR23: 872.0 | QS23: 424.0 | QT23: 738.0 | QU23: 1,163.0 | QV23: 666.0 | QW23: 0.0 | QX23: 0.0 | QY23: 0.0 | QZ23: 0.0 | RA23: 0.0 | RB23: =SUM(RB17:RB22) -> 0.0 | RC23: 0.0 | RD23: 0.0 | RE23: 0.0 | RF23: 738.0 | RG23: 0.0 | RH23: 0.0 | RI23: 0.0 | RJ23: 269.0 | RK23: =SUM(RK17:RK22) -> 43.0 | RL23: 89.0 | RM23: 19.0 | RN23: 0 | RO23: 0 | RP23: 0 | RQ23: 1.0 | RR23: 1.0 | RS23: 0.0 | RT23: 0.0 | RU23: 0.0 | RV23: 0.0 | RW23: =SUM(RW17:RW22) -> 14,321.0 | RY23: 0 | RZ23: 1 | SA23: 0 | SB23: 16 | SC23: 150 | SD23: 19 | SE23: =SUM(SE17:SE22) -> 186 | SF23: =SUM(SF17:SF22) -> 0 | SG23: 0 | SH23: 0 | SI23: 0 | SJ23: 0 | SK23: 0 | SL23: 0 | SM23: 0 | SQ23: 0 | SR23: 18 | SS23: 4 | SU23: =SUM(SU17:SU22) -> 0 | SV23: =SUM(SV17:SV22) -> 0 | SW23: =SUM(SW17:SW22) -> 0 | SX23: =SUM(SX17:SX22) -> 18 | SY23: =SUM(SY17:SY22) -> 4 | TA23: 0 | TB23: 0 | TC23: 0 | TD23: 0 | TE23: 0 | TF23: 0 | TG23: 0 | TH23: 0 | TI23: 0 | TJ23: 0 | TK23: 0 | TL23: 0 | TM23: 0 | TN23: 0 | TO23: 0 | TS23: =M23+DH23+'2_MERCADO_PRIVADO'!G23+'2_MERCADO_PRIVADO'!BW23 -> 538 | TT23: =DH23+'2_MERCADO_PRIVADO'!AP23+'2_MERCADO_PRIVADO'!BW23 -> 538 | TU23: =BR23+'2_MERCADO_PRIVADO'!AP23+'2_MERCADO_PRIVADO'!BW23+'2_MERCADO_PRIVADO'!DD23 -> 538 | TV23: =CH23+CX23+DL23+'2_MERCADO_PRIVADO'!BF23+'2_MERCADO_PRIVADO'!CM23+'2_MERCADO_PRIVADO'!DT23 -> 541 | TW23: =CO23+DE23+'2_MERCADO_PRIVADO'!BM23+'2_MERCADO_PRIVADO'!CT23+'2_MERCADO_PRIVADO'!EA23 -> 466 | TX23: =KR23+LK23+LP23+'2_MERCADO_PRIVADO'!MM23+'2_MERCADO_PRIVADO'!NF23+'2_MERCADO_PRIVADO'!NK23 -> 326 | TY23: =MV23+MW23+MX23+MY23+MZ23+NA23+NB23+NC23+ND23+NE23+NF23+NG23+'2_MERCADO_PRIVADO'!OQ23+'2_MERCADO_PRIVADO'!OR23+'2_MERCADO_PRIVADO'!OS23+'2_MERCADO_PRIVADO'!OT23+'2_MERCADO_PRIVADO'!OU23+'2_MERCADO_PRIVADO'!OV23+'2_MERCADO_PRIVADO'!OW23+'2_MERCADO_PRIVADO'!OX23+'2_MERCADO_PRIVADO'!OY23+'2_MERCADO_PRIVADO'!OZ23+'2_MERCADO_PRIVADO'!PA23+'2_MERCADO_PRIVADO'!PB23+'2_MERCADO_PRIVADO'!PC23+'2_MERCADO_PRIVADO'!PD23+'2_MERCADO_PRIVADO'!PE23+'2_MERCADO_PRIVADO'!PF23 -> 670 | TZ23: =OC23+'2_MERCADO_PRIVADO'!QO23 -> 90 | UA23: =OD23+'2_MERCADO_PRIVADO'!QP23 -> 46
D24: EN SITUACION DE DESPLAZADO | E24: 0 | F24: 0 | G24: 0 | H24: 0 | I24: 0 | J24: 0 | K24: 0 | L24: 0 | M24: 0 | N24: 0 | O24: 0 | P24: 0 | Q24: 0 | R24: 0 | S24: 0 | T24: 0 | U24: 0 | V24: 0 | W24: 0 | X24: 0 | Y24: 0 | Z24: 0 | AA24: 0 | AB24: 0 | AF24: 0 | AG24: 0 | AH24: 0 | AJ24: 0 | AK24: 0 | AL24: 0 | AN24: 0 | AO24: 0 | AP24: 0 | AR24: 0 | AS24: 0 | AT24: 0 | AZ24: 0 | BA24: 0 | BB24: 0 | BD24: 0 | BE24: 0 | BF24: 0 | BG24: 0 | BH24: 0 | BI24: 0 | BJ24: 0 | BK24: 0 | BP24: 1 | BQ24: 0 | BR24: 0 | BS24: 0 | BT24: 0 | BU24: 0 | BV24: 0 | BW24: 0 | BX24: 0 | BY24: 0 | BZ24: 0 | CA24: 0 | CB24: 0 | CC24: 0 | CD24: 0 | CE24: 0 | CF24: 0 | CG24: 0 | CH24: 0 | CI24: 0 | CJ24: 0 | CK24: 0 | CL24: 0 | CM24: 0 | CN24: 0 | CO24: 1 | CR24: 0 | CX24: 0 | CY24: 0 | CZ24: 0 | DA24: 0 | DB24: 0 | DC24: 0 | DD24: 0 | DE24: 0 | DF24: 1 | DG24: 0 | DH24: 0 | DI24: 0 | DU24: 0 | DV24: 0 | DW24: 0 | DX24: 0 | DY24: 0 | DZ24: 0 | EA24: 0 | EB24: 0 | EC24: 0 | ED24: 0 | EE24: 0 | EF24: 0 | EG24: 0 | EH24: 0 | EI24: 0 | EJ24: 0 | EK24: 0 | EL24: 0 | EM24: 0 | EN24: 0 | EO24: 0 | EP24: 0 | EQ24: 0 | ER24: 0 | ES24: 0 | ET24: 1 | EU24: 0 | EV24: 0 | EW24: 0 | EX24: 0 | EY24: 0 | EZ24: 0 | FA24: 0 | FB24: 0 | FC24: 0 | FD24: 0 | FE24: 0 | FF24: 0 | FG24: 0 | FH24: 0 | FI24: 0 | FJ24: 0 | FK24: 0 | FL24: 0 | FM24: 0 | FN24: 0 | FO24: 0 | FP24: 0 | FQ24: 0 | FR24: 0 | FS24: 0 | FT24: 0 | FU24: 0 | FV24: 0 | FW24: 0 | FX24: 0 | FY24: 0 | FZ24: 0 | GA24: 0 | GB24: 0 | GC24: 0 | GD24: 0 | GE24: 0 | GF24: 0 | GG24: 0 | GH24: 0 | GI24: 0 | GJ24: 0 | GK24: 0 | GL24: 0 | GM24: 0 | GN24: 0 | GO24: 0 | GP24: 0 | GQ24: 0 | GR24: 0 | GS24: 0 | GT24: 0 | GU24: 0 | GV24: 0 | GW24: 0 | GX24: 0 | GY24: 0 | GZ24: 0 | HA24: 0 | HB24: 0 | HC24: 0 | HD24: 0 | HE24: 1 | HF24: 0 | HG24: 1 | HH24: 0 | HI24: 0 | HJ24: 0 | HK24: 0 | HL24: 0 | HS24: 0 | HT24: 0 | HU24: 0 | HV24: 0 | HW24: 0 | HX24: 0 | HY24: 0 | HZ24: 0 | IA24: 0 | IB24: 0 | ID24: 1 | IE24: 0 | IF24: 0 | IG24: 0 | IH24: 0 | II24: 0 | IK24: 0 | IL24: 0 | IM24: 0 | IN24: 0 | IO24: 1 | IP24: 0 | IQ24: 0 | IR24: 0 | IS24: 0 | IT24: 0 | IU24: 0 | IW24: 0 | IX24: 0 | IY24: 0 | IZ24: 0 | JA24: 0 | JB24: 0 | JC24: 0 | JD24: 0 | JE24: 0 | JF24: 0 | JG24: 0 | JH24: 0 | JI24: 0 | JJ24: 0 | JK24: 0 | JL24: 0 | JM24: 0 | JN24: 0 | JO24: 0 | JP24: 0 | JQ24: 0 | JR24: 0 | JS24: 0 | JU24: 0 | JV24: 0 | JW24: 0 | JX24: 0 | JY24: 0 | JZ24: 0 | KA24: 0 | KB24: 0 | KC24: 0 | KD24: 0 | KE24: 0 | KF24: 0 | KG24: 0 | KH24: 0 | KI24: 0 | KJ24: 0 | KK24: 0 | KM24: 1 | KN24: 0 | KO24: 0 | KQ24: 0 | KR24: 0 | KS24: 0 | KT24: 0 | KU24: 0 | KV24: 0 | KW24: 0 | KX24: 0 | KY24: 0 | KZ24: 0 | LA24: 1 | LB24: 0 | LC24: 0 | LD24: 0 | LE24: 0 | LF24: 0 | LG24: 0 | LH24: 0 | LI24: 0 | LJ24: 0 | LK24: 0 | LL24: 0 | LM24: 0 | LN24: 0 | LO24: 0 | LP24: 0 | LQ24: 0 | LR24: 0 | LS24: 0 | LT24: 0 | LU24: 0 | LV24: 0 | LW24: 0 | LX24: 0 | LY24: 0 | LZ24: 0 | MA24: 0 | MB24: 0 | MC24: 0 | MD24: 0 | ME24: 0 | MF24: 0 | MG24: 0 | MH24: 0 | MI24: 0 | MJ24: 0 | MK24: 0 | ML24: 0 | MM24: 0 | MN24: 0 | MO24: 0 | MP24: 0 | MQ24: 0 | MR24: 0 | MS24: 0 | MT24: 0 | MU24: 0 | MV24: 0 | MW24: 0 | MX24: 0 | MY24: 0 | MZ24: 0 | NA24: 0 | NB24: 0 | NC24: 0 | ND24: 0 | NE24: 0 | NF24: 0 | NG24: 0 | OC24: 0 | OD24: 0 | OE24: 0 | OF24: 0 | OG24: 0 | OH24: 0 | OI24: 0 | OJ24: 0 | OK24: 0 | OL24: 0 | OM24: 0 | ON24: 0 | OO24: 0 | OP24: 0 | OQ24: 0 | OR24: 0 | OS24: 0 | OT24: 0 | OU24: 0 | OV24: 0 | OW24: 0 | OX24: 0 | OY24: 0 | OZ24: 0 | PA24: 0 | PB24: 0 | PC24: 0 | PD24: 0 | PE24: 0 | PN24: 0 | PO24: 0 | PP24: 0 | PQ24: 0 | PR24: 0 | PS24: 0 | PW24: 0 | PX24: 0 | QC24: =SUM(E24:QB24)-SUM(PQ24:PT24)-SUM(PW24:PZ24) -> 10.00 | QE24: =SUM(E24:H24) -> 0.0 | QF24: =SUM(I24:BO24) -> 0.0 | QG24: =SUM(BP24:CW24) -> 2.0 | QH24: =SUM(CX24:DE24) -> 0.0 | QI24: =SUM(DF24:DT24) -> 1.0 | QJ24: =SUM(DU24:ET24) -> 1.0 | QK24: =SUM(EU24:FY24) -> 0.0 | QL24: =SUM(FZ24:HD24) -> 0.0 | QM24: =SUM(HE24:HF24) -> 1.0 | QN24: =SUM(HG24:HL24) -> 1.0 | QO24: =SUM(HM24:HR24) -> 0.0 | QP24: =SUM(HS24:IJ24) -> 1.0 | QQ24: =SUM(IK24:JA24) -> 1.0 | QR24: =SUM(JB24:JT24) -> 0.0 | QS24: =SUM(JU24:KD24) -> 0.0 | QT24: =SUM(KE24:KP24) -> 1.0 | QU24: =SUM(KQ24:MU24) -> 1.0 | QV24: =SUM(MV24:NG24) -> 0.0 | QW24: =SUM(NH24:NI24) -> 0.0 | QX24: =SUM(NJ24:NL24) -> 0.0 | QY24: =SUM(NM24:NO24) -> 0.0 | QZ24: =SUM(NP24) -> 0.0 | RA24: =SUM(NQ24) -> 0.0 | RB24: =SUM(NR24:NT24) -> 0.0 | RC24: =SUM(NU24) -> 0.0 | RD24: =SUM(NV24) -> 0.0 | RE24: =SUM(NW24:OB24) -> 0.0 | RF24: =SUM(OC24:PE24) -> 0.0 | RG24: =SUM(PF24:PG24) -> 0.0 | RH24: =SUM(PH24:PI24) -> 0.0 | RI24: =SUM(PJ24:PM24) -> 0.0 | RJ24: =SUM(PN24:PP24) -> 0.0 | RK24: =SUM(PQ24) -> 0.0 | RL24: =SUM(PR24) -> 0.0 | RM24: =SUM(PS24) -> 0.0 | RN24: 0 | RO24: 0 | RP24: 0 | RQ24: =SUM(PW24) -> 0.0 | RR24: =SUM(PX24) -> 0.0 | RS24: =SUM(PY24) -> 0.0 | RT24: =SUM(PZ24) -> 0.0 | RU24: =SUM(QA24) -> 0.0 | RV24: =SUM(QB24) -> 0.0 | RW24: =SUM(QE24:RU24)-SUM(RI24:RM24)-SUM(RQ24:RT24) -> 10.0 | RY24: 0 | RZ24: 0 | SA24: 0 | SB24: 0 | SC24: 0 | SD24: 0 | SE24: =SUM(RY24:SD24) -> 0 | SU24: =SF24+SG24 -> 0 | SV24: =SH24+SI24+SJ24+SK24+SL24+SM24+SN24+SO24+SP24 -> 0 | SW24: =SQ24 -> 0 | SX24: =SR24 -> 0 | SY24: =SS24 -> 0 | TA24: 0 | TB24: 0 | TC24: 0 | TD24: 0 | TE24: 0 | TF24: 0 | TG24: 0 | TH24: 0 | TI24: 0 | TJ24: 0 | TK24: 0 | TL24: 0 | TM24: 0 | TN24: 0 | TO24: 0 | TS24: =M24+DH24+'2_MERCADO_PRIVADO'!G24+'2_MERCADO_PRIVADO'!BW24 -> 0 | TT24: =DH24+'2_MERCADO_PRIVADO'!AP24+'2_MERCADO_PRIVADO'!BW24 -> 0 | TU24: =BR24+'2_MERCADO_PRIVADO'!AP24+'2_MERCADO_PRIVADO'!BW24+'2_MERCADO_PRIVADO'!DD24 -> 0 | TV24: =CH24+CX24+DL24+'2_MERCADO_PRIVADO'!BF24+'2_MERCADO_PRIVADO'!CM24+'2_MERCADO_PRIVADO'!DT24 -> 0 | TW24: =CO24+DE24+'2_MERCADO_PRIVADO'!BM24+'2_MERCADO_PRIVADO'!CT24+'2_MERCADO_PRIVADO'!EA24 -> 1 | TX24: =KR24+LK24+LP24+'2_MERCADO_PRIVADO'!MM24+'2_MERCADO_PRIVADO'!NF24+'2_MERCADO_PRIVADO'!NK24 -> 1 | TY24: =MV24+MW24+MX24+MY24+MZ24+NA24+NB24+NC24+ND24+NE24+NF24+NG24+'2_MERCADO_PRIVADO'!OQ24+'2_MERCADO_PRIVADO'!OR24+'2_MERCADO_PRIVADO'!OS24+'2_MERCADO_PRIVADO'!OT24+'2_MERCADO_PRIVADO'!OU24+'2_MERCADO_PRIVADO'!OV24+'2_MERCADO_PRIVADO'!OW24+'2_MERCADO_PRIVADO'!OX24+'2_MERCADO_PRIVADO'!OY24+'2_MERCADO_PRIVADO'!OZ24+'2_MERCADO_PRIVADO'!PA24+'2_MERCADO_PRIVADO'!PB24+'2_MERCADO_PRIVADO'!PC24+'2_MERCADO_PRIVADO'!PD24+'2_MERCADO_PRIVADO'!PE24+'2_MERCADO_PRIVADO'!PF24 -> 0 | TZ24: =OC24+'2_MERCADO_PRIVADO'!QO24 -> 0 | UA24: =OD24+'2_MERCADO_PRIVADO'!QP24 -> 0
D25: EN CONDICION DE DISCAPACIDAD | E25: 0 | F25: 0 | G25: 0 | H25: 0 | I25: 0 | J25: 0 | K25: 0 | L25: 0 | M25: 0 | N25: 0 | O25: 0 | P25: 0 | Q25: 0 | R25: 0 | S25: 0 | T25: 0 | U25: 0 | V25: 0 | W25: 0 | X25: 0 | Y25: 0 | Z25: 0 | AA25: 0 | AB25: 0 | AF25: 0 | AG25: 0 | AH25: 0 | AJ25: 0 | AK25: 0 | AL25: 0 | AN25: 0 | AO25: 0 | AP25: 0 | AR25: 0 | AS25: 0 | AT25: 0 | AZ25: 0 | BA25: 0 | BB25: 0 | BD25: 0 | BE25: 0 | BF25: 0 | BG25: 0 | BH25: 0 | BI25: 0 | BJ25: 0 | BK25: 0 | BP25: 0 | BQ25: 0 | BR25: 0 | BS25: 0 | BT25: 0 | BU25: 0 | BV25: 0 | BW25: 0 | BX25: 0 | BY25: 0 | BZ25: 0 | CA25: 0 | CB25: 0 | CC25: 0 | CD25: 0 | CE25: 0 | CF25: 0 | CG25: 0 | CH25: 0 | CI25: 0 | CJ25: 0 | CK25: 0 | CL25: 0 | CM25: 0 | CN25: 0 | CO25: 0 | CR25: 0 | CX25: 1 | CY25: 0 | CZ25: 0 | DA25: 0 | DB25: 0 | DC25: 0 | DD25: 0 | DE25: 0 | DF25: 0 | DG25: 0 | DH25: 0 | DI25: 0 | DU25: 0 | DV25: 0 | DW25: 0 | DX25: 0 | DY25: 0 | DZ25: 0 | EA25: 0 | EB25: 0 | EC25: 0 | ED25: 0 | EE25: 0 | EF25: 0 | EG25: 0 | EH25: 0 | EI25: 0 | EJ25: 0 | EK25: 0 | EL25: 0 | EM25: 1 | EN25: 0 | EO25: 0 | EP25: 0 | EQ25: 0 | ER25: 0 | ES25: 0 | ET25: 0 | EU25: 0 | EV25: 0 | EW25: 0 | EX25: 0 | EY25: 0 | EZ25: 0 | FA25: 0 | FB25: 0 | FC25: 0 | FD25: 0 | FE25: 0 | FF25: 0 | FG25: 0 | FH25: 0 | FI25: 0 | FJ25: 0 | FK25: 0 | FL25: 0 | FM25: 0 | FN25: 0 | FO25: 0 | FP25: 0 | FQ25: 0 | FR25: 0 | FS25: 0 | FT25: 0 | FU25: 0 | FV25: 0 | FW25: 0 | FX25: 0 | FY25: 0 | FZ25: 0 | GA25: 0 | GB25: 0 | GC25: 0 | GD25: 0 | GE25: 0 | GF25: 0 | GG25: 0 | GH25: 0 | GI25: 0 | GJ25: 0 | GK25: 0 | GL25: 0 | GM25: 0 | GN25: 0 | GO25: 0 | GP25: 0 | GQ25: 0 | GR25: 0 | GS25: 0 | GT25: 0 | GU25: 0 | GV25: 0 | GW25: 0 | GX25: 0 | GY25: 0 | GZ25: 0 | HA25: 0 | HB25: 0 | HC25: 0 | HD25: 0 | HE25: 0 | HF25: 1 | HG25: 0 | HH25: 0 | HI25: 0 | HJ25: 0 | HK25: 0 | HL25: 0 | HS25: 0 | HT25: 0 | HU25: 0 | HV25: 0 | HW25: 0 | HX25: 0 | HY25: 0 | HZ25: 0 | IA25: 0 | IB25: 0 | ID25: 0 | IE25: 0 | IF25: 0 | IG25: 0 | IH25: 0 | II25: 0 | IK25: 0 | IL25: 1 | IM25: 0 | IN25: 0 | IO25: 0 | IP25: 0 | IQ25: 0 | IR25: 0 | IS25: 0 | IT25: 1 | IU25: 0 | IW25: 0 | IX25: 0 | IY25: 0 | IZ25: 0 | JA25: 0 | JB25: 2 | JC25: 0 | JD25: 0 | JE25: 0 | JF25: 0 | JG25: 0 | JH25: 0 | JI25: 0 | JJ25: 0 | JK25: 0 | JL25: 0 | JM25: 0 | JN25: 0 | JO25: 0 | JP25: 0 | JQ25: 0 | JR25: 0 | JS25: 0 | JU25: 0 | JV25: 0 | JW25: 0 | JX25: 0 | JY25: 0 | JZ25: 0 | KA25: 0 | KB25: 0 | KC25: 0 | KD25: 0 | KE25: 0 | KF25: 0 | KG25: 0 | KH25: 0 | KI25: 0 | KJ25: 0 | KK25: 0 | KM25: 0 | KN25: 0 | KO25: 0 | KQ25: 0 | KR25: 0 | KS25: 0 | KT25: 0 | KU25: 0 | KV25: 0 | KW25: 0 | KX25: 0 | KY25: 0 | KZ25: 0 | LA25: 0 | LB25: 0 | LC25: 0 | LD25: 0 | LE25: 0 | LF25: 0 | LG25: 0 | LH25: 0 | LI25: 0 | LJ25: 0 | LK25: 1 | LL25: 0 | LM25: 0 | LN25: 0 | LO25: 0 | LP25: 0 | LQ25: 1 | LR25: 0 | LS25: 0 | LT25: 0 | LU25: 0 | LV25: 0 | LW25: 0 | LX25: 0 | LY25: 0 | LZ25: 0 | MA25: 0 | MB25: 0 | MC25: 0 | MD25: 0 | ME25: 0 | MF25: 0 | MG25: 0 | MH25: 0 | MI25: 0 | MJ25: 0 | MK25: 0 | ML25: 0 | MM25: 0 | MN25: 0 | MO25: 0 | MP25: 0 | MQ25: 0 | MR25: 0 | MS25: 0 | MT25: 0 | MU25: 0 | MV25: 0 | MW25: 0 | MX25: 0 | MY25: 0 | MZ25: 0 | NA25: 0 | NB25: 0 | NC25: 0 | ND25: 0 | NE25: 0 | NF25: 0 | NG25: 0 | OC25: 0 | OD25: 0 | OE25: 0 | OF25: 0 | OG25: 1 | OH25: 0 | OI25: 0 | OJ25: 0 | OK25: 0 | OL25: 0 | OM25: 0 | ON25: 0 | OO25: 0 | OP25: 0 | OQ25: 0 | OR25: 0 | OS25: 1 | OT25: 0 | OU25: 0 | OV25: 0 | OW25: 0 | OX25: 0 | OY25: 0 | OZ25: 0 | PA25: 1 | PB25: 0 | PC25: 0 | PD25: 0 | PE25: 0 | PN25: 2 | PO25: 1 | PP25: 1 | PQ25: 1 | PR25: 0 | PS25: 0 | PW25: 0 | PX25: 0 | QC25: 16.00 | QE25: 0.0 | QF25: 0.0 | QG25: 0.0 | QH25: 1.0 | QI25: 0.0 | QJ25: 1.0 | QK25: 0.0 | QL25: 0.0 | QM25: 1.0 | QN25: 0.0 | QO25: 0.0 | QP25: 0.0 | QQ25: 2.0 | QR25: 2.0 | QS25: 0.0 | QT25: 0.0 | QU25: 2.0 | QV25: 0.0 | QW25: 0.0 | QX25: 0.0 | QY25: 0.0 | QZ25: 0.0 | RA25: 0.0 | RB25: 0.0 | RC25: 0.0 | RD25: 0.0 | RE25: 0.0 | RF25: 3.0 | RG25: 0.0 | RH25: 0.0 | RI25: 0.0 | RJ25: 4.0 | RK25: 1.0 | RL25: 0.0 | RM25: 0.0 | RN25: 0 | RO25: 0 | RP25: 0 | RQ25: 0.0 | RR25: 0.0 | RS25: 0.0 | RT25: 0.0 | RU25: 0.0 | RV25: 0.0 | RW25: 12.0 | RY25: 0 | RZ25: 0 | SA25: 0 | SB25: 0 | SC25: 0 | SD25: 0 | SE25: 0 | SU25: 0 | SV25: 0 | SW25: 0 | SX25: 0 | SY25: 0 | TA25: 0 | TB25: 0 | TC25: 0 | TD25: 0 | TE25: 0 | TF25: 0 | TG25: 0 | TH25: 0 | TI25: 0 | TJ25: 0 | TK25: 0 | TL25: 0 | TM25: 0 | TN25: 0 | TO25: 0 | TS25: =M25+DH25+'2_MERCADO_PRIVADO'!G25+'2_MERCADO_PRIVADO'!BW25 -> 0 | TT25: =DH25+'2_MERCADO_PRIVADO'!AP25+'2_MERCADO_PRIVADO'!BW25 -> 0 | TU25: =BR25+'2_MERCADO_PRIVADO'!AP25+'2_MERCADO_PRIVADO'!BW25+'2_MERCADO_PRIVADO'!DD25 -> 0 | TV25: =CH25+CX25+DL25+'2_MERCADO_PRIVADO'!BF25+'2_MERCADO_PRIVADO'!CM25+'2_MERCADO_PRIVADO'!DT25 -> 2 | TW25: =CO25+DE25+'2_MERCADO_PRIVADO'!BM25+'2_MERCADO_PRIVADO'!CT25+'2_MERCADO_PRIVADO'!EA25 -> 2 | TX25: =KR25+LK25+LP25+'2_MERCADO_PRIVADO'!MM25+'2_MERCADO_PRIVADO'!NF25+'2_MERCADO_PRIVADO'!NK25 -> 1 | TY25: =MV25+MW25+MX25+MY25+MZ25+NA25+NB25+NC25+ND25+NE25+NF25+NG25+'2_MERCADO_PRIVADO'!OQ25+'2_MERCADO_PRIVADO'!OR25+'2_MERCADO_PRIVADO'!OS25+'2_MERCADO_PRIVADO'!OT25+'2_MERCADO_PRIVADO'!OU25+'2_MERCADO_PRIVADO'!OV25+'2_MERCADO_PRIVADO'!OW25+'2_MERCADO_PRIVADO'!OX25+'2_MERCADO_PRIVADO'!OY25+'2_MERCADO_PRIVADO'!OZ25+'2_MERCADO_PRIVADO'!PA25+'2_MERCADO_PRIVADO'!PB25+'2_MERCADO_PRIVADO'!PC25+'2_MERCADO_PRIVADO'!PD25+'2_MERCADO_PRIVADO'!PE25+'2_MERCADO_PRIVADO'!PF25 -> 0 | TZ25: =OC25+'2_MERCADO_PRIVADO'!QO25 -> 0 | UA25: =OD25+'2_MERCADO_PRIVADO'!QP25 -> 0
D26: VICTIMAS DEL CONFLICTO ARMADO | E26: 0 | F26: 0 | G26: 0 | H26: 0 | I26: 0 | J26: 0 | K26: 0 | L26: 0 | M26: 0 | N26: 0 | O26: 0 | P26: 0 | Q26: 0 | R26: 0 | S26: 0 | T26: 0 | U26: 0 | V26: 0 | W26: 0 | X26: 0 | Y26: 0 | Z26: 0 | AA26: 0 | AB26: 0 | AF26: 0 | AG26: 0 | AH26: 0 | AJ26: 0 | AK26: 0 | AL26: 0 | AN26: 0 | AO26: 0 | AP26: 0 | AR26: 0 | AS26: 0 | AT26: 0 | AZ26: 0 | BA26: 0 | BB26: 0 | BD26: 0 | BE26: 0 | BF26: 0 | BG26: 0 | BH26: 0 | BI26: 0 | BJ26: 0 | BK26: 0 | BP26: 0 | BQ26: 0 | BR26: 0 | BS26: 0 | BT26: 0 | BU26: 0 | BV26: 0 | BW26: 0 | BX26: 0 | BY26: 0 | BZ26: 0 | CA26: 0 | CB26: 0 | CC26: 0 | CD26: 0 | CE26: 0 | CF26: 0 | CG26: 0 | CH26: 0 | CI26: 0 | CJ26: 0 | CK26: 0 | CL26: 0 | CM26: 0 | CN26: 0 | CO26: 0 | CR26: 0 | CX26: 0 | CY26: 0 | CZ26: 0 | DA26: 0 | DB26: 0 | DC26: 0 | DD26: 0 | DE26: 0 | DF26: 0 | DG26: 0 | DH26: 0 | DI26: 0 | DU26: 0 | DV26: 0 | DW26: 0 | DX26: 0 | DY26: 0 | DZ26: 0 | EA26: 0 | EB26: 0 | EC26: 0 | ED26: 0 | EE26: 0 | EF26: 0 | EG26: 0 | EH26: 0 | EI26: 0 | EJ26: 0 | EK26: 0 | EL26: 0 | EM26: 0 | EN26: 0 | EO26: 0 | EP26: 0 | EQ26: 0 | ER26: 0 | ES26: 0 | ET26: 0 | EU26: 0 | EV26: 0 | EW26: 0 | EX26: 0 | EY26: 0 | EZ26: 0 | FA26: 0 | FB26: 0 | FC26: 0 | FD26: 0 | FE26: 0 | FF26: 0 | FG26: 0 | FH26: 0 | FI26: 0 | FJ26: 0 | FK26: 0 | FL26: 0 | FM26: 0 | FN26: 0 | FO26: 0 | FP26: 0 | FQ26: 0 | FR26: 0 | FS26: 0 | FT26: 0 | FU26: 0 | FV26: 0 | FW26: 0 | FX26: 0 | FY26: 0 | FZ26: 0 | GA26: 0 | GB26: 0 | GC26: 0 | GD26: 0 | GE26: 0 | GF26: 0 | GG26: 0 | GH26: 0 | GI26: 0 | GJ26: 0 | GK26: 0 | GL26: 0 | GM26: 0 | GN26: 0 | GO26: 0 | GP26: 0 | GQ26: 0 | GR26: 0 | GS26: 0 | GT26: 0 | GU26: 0 | GV26: 0 | GW26: 0 | GX26: 0 | GY26: 0 | GZ26: 0 | HA26: 0 | HB26: 0 | HC26: 0 | HD26: 0 | HE26: 0 | HF26: 0 | HG26: 0 | HH26: 0 | HI26: 0 | HJ26: 0 | HK26: 0 | HL26: 0 | HS26: 0 | HT26: 0 | HU26: 0 | HV26: 0 | HW26: 0 | HX26: 0 | HY26: 0 | HZ26: 0 | IA26: 0 | IB26: 0 | ID26: 0 | IE26: 0 | IF26: 0 | IG26: 0 | IH26: 0 | II26: 0 | IK26: 0 | IL26: 0 | IM26: 0 | IN26: 0 | IO26: 0 | IP26: 0 | IQ26: 0 | IR26: 0 | IS26: 0 | IT26: 0 | IU26: 0 | IW26: 0 | IX26: 0 | IY26: 0 | IZ26: 0 | JA26: 0 | JB26: 0 | JC26: 0 | JD26: 0 | JE26: 0 | JF26: 0 | JG26: 0 | JH26: 0 | JI26: 0 | JJ26: 0 | JK26: 0 | JL26: 0 | JM26: 0 | JN26: 0 | JO26: 0 | JP26: 0 | JQ26: 0 | JR26: 0 | JS26: 0 | JU26: 0 | JV26: 0 | JW26: 0 | JX26: 0 | JY26: 0 | JZ26: 0 | KA26: 0 | KB26: 0 | KC26: 0 | KD26: 0 | KE26: 0 | KF26: 0 | KG26: 0 | KH26: 0 | KI26: 0 | KJ26: 0 | KK26: 0 | KM26: 0 | KN26: 0 | KO26: 0 | KQ26: 0 | KR26: 0 | KS26: 0 | KT26: 0 | KU26: 0 | KV26: 0 | KW26: 0 | KX26: 0 | KY26: 0 | KZ26: 0 | LA26: 0 | LB26: 0 | LC26: 0 | LD26: 0 | LE26: 0 | LF26: 0 | LG26: 0 | LH26: 0 | LI26: 0 | LJ26: 0 | LK26: 0 | LL26: 0 | LM26: 0 | LN26: 0 | LO26: 0 | LP26: 0 | LQ26: 0 | LR26: 0 | LS26: 0 | LT26: 0 | LU26: 0 | LV26: 0 | LW26: 0 | LX26: 0 | LY26: 0 | LZ26: 0 | MA26: 0 | MB26: 0 | MC26: 0 | MD26: 0 | ME26: 0 | MF26: 0 | MG26: 0 | MH26: 0 | MI26: 0 | MJ26: 0 | MK26: 0 | ML26: 0 | MM26: 0 | MN26: 0 | MO26: 0 | MP26: 0 | MQ26: 0 | MR26: 0 | MS26: 0 | MT26: 0 | MU26: 0 | MV26: 0 | MW26: 0 | MX26: 0 | MY26: 0 | MZ26: 0 | NA26: 0 | NB26: 0 | NC26: 0 | ND26: 0 | NE26: 0 | NF26: 0 | NG26: 0 | OC26: 0 | OD26: 0 | OE26: 0 | OF26: 0 | OG26: 0 | OH26: 0 | OI26: 0 | OJ26: 0 | OK26: 0 | OL26: 0 | OM26: 0 | ON26: 0 | OO26: 0 | OP26: 0 | OQ26: 0 | OR26: 0 | OS26: 0 | OT26: 0 | OU26: 0 | OV26: 0 | OW26: 0 | OX26: 0 | OY26: 0 | OZ26: 0 | PA26: 0 | PB26: 0 | PC26: 0 | PD26: 0 | PE26: 0 | PN26: 0 | PO26: 0 | PP26: 0 | PQ26: 0 | PR26: 0 | PS26: 0 | PW26: 0 | PX26: 0 | QC26: 0.00 | QE26: 0.0 | QF26: 0.0 | QG26: 0.0 | QH26: 0.0 | QI26: 0.0 | QJ26: 0.0 | QK26: 0.0 | QL26: 0.0 | QM26: 0.0 | QN26: 0.0 | QO26: 0.0 | QP26: 0.0 | QQ26: 0.0 | QR26: 0.0 | QS26: 0.0 | QT26: 0.0 | QU26: 0.0 | QV26: 0.0 | QW26: 0.0 | QX26: 0.0 | QY26: 0.0 | QZ26: 0.0 | RA26: 0.0 | RB26: 0.0 | RC26: 0.0 | RD26: 0.0 | RE26: 0.0 | RF26: 0.0 | RG26: 0.0 | RH26: 0.0 | RI26: 0.0 | RJ26: 0.0 | RK26: 0.0 | RL26: 0.0 | RM26: 0.0 | RN26: 0 | RO26: 0 | RP26: 0 | RQ26: 0.0 | RR26: 0.0 | RS26: 0.0 | RT26: 0.0 | RU26: 0.0 | RV26: 0.0 | RW26: 0.0 | RY26: 0 | RZ26: 0 | SA26: 0 | SB26: 0 | SC26: 0 | SD26: 0 | SE26: 0 | SU26: 0 | SV26: 0 | SW26: 0 | SX26: 0 | SY26: 0 | TA26: 0 | TB26: 0 | TC26: 0 | TD26: 0 | TE26: 0 | TF26: 0 | TG26: 0 | TH26: 0 | TI26: 0 | TJ26: 0 | TK26: 0 | TL26: 0 | TM26: 0 | TN26: 0 | TO26: 0 | TS26: =M26+DH26+'2_MERCADO_PRIVADO'!G26+'2_MERCADO_PRIVADO'!BW26 -> 0 | TT26: =DH26+'2_MERCADO_PRIVADO'!AP26+'2_MERCADO_PRIVADO'!BW26 -> 0 | TU26: =BR26+'2_MERCADO_PRIVADO'!AP26+'2_MERCADO_PRIVADO'!BW26+'2_MERCADO_PRIVADO'!DD26 -> 0 | TV26: =CH26+CX26+DL26+'2_MERCADO_PRIVADO'!BF26+'2_MERCADO_PRIVADO'!CM26+'2_MERCADO_PRIVADO'!DT26 -> 0 | TW26: =CO26+DE26+'2_MERCADO_PRIVADO'!BM26+'2_MERCADO_PRIVADO'!CT26+'2_MERCADO_PRIVADO'!EA26 -> 0 | TX26: =KR26+LK26+LP26+'2_MERCADO_PRIVADO'!MM26+'2_MERCADO_PRIVADO'!NF26+'2_MERCADO_PRIVADO'!NK26 -> 0 | TY26: =MV26+MW26+MX26+MY26+MZ26+NA26+NB26+NC26+ND26+NE26+NF26+NG26+'2_MERCADO_PRIVADO'!OQ26+'2_MERCADO_PRIVADO'!OR26+'2_MERCADO_PRIVADO'!OS26+'2_MERCADO_PRIVADO'!OT26+'2_MERCADO_PRIVADO'!OU26+'2_MERCADO_PRIVADO'!OV26+'2_MERCADO_PRIVADO'!OW26+'2_MERCADO_PRIVADO'!OX26+'2_MERCADO_PRIVADO'!OY26+'2_MERCADO_PRIVADO'!OZ26+'2_MERCADO_PRIVADO'!PA26+'2_MERCADO_PRIVADO'!PB26+'2_MERCADO_PRIVADO'!PC26+'2_MERCADO_PRIVADO'!PD26+'2_MERCADO_PRIVADO'!PE26+'2_MERCADO_PRIVADO'!PF26 -> 0 | TZ26: =OC26+'2_MERCADO_PRIVADO'!QO26 -> 0 | UA26: =OD26+'2_MERCADO_PRIVADO'!QP26 -> 0
D27: ZONAS VEREDALES | E27: 5 | F27: 0 | G27: 0 | H27: 0 | I27: 5 | J27: 0 | K27: 0 | L27: 0 | M27: 0 | N27: 0 | O27: 0 | P27: 0 | Q27: 0 | R27: 0 | S27: 0 | T27: 0 | U27: 0 | V27: 0 | W27: 0 | X27: 0 | Y27: 0 | Z27: 0 | AA27: 0 | AB27: 0 | AF27: 0 | AG27: 0 | AH27: 0 | AJ27: 0 | AK27: 0 | AL27: 0 | AN27: 0 | AO27: 0 | AP27: 0 | AR27: 0 | AS27: 0 | AT27: 0 | AZ27: 0 | BA27: 0 | BB27: 0 | BD27: 0 | BE27: 0 | BF27: 0 | BG27: 0 | BH27: 0 | BI27: 0 | BJ27: 0 | BK27: 0 | BP27: 0 | BQ27: 0 | BR27: 0 | BS27: 0 | BT27: 0 | BU27: 0 | BV27: 0 | BW27: 0 | BX27: 0 | BY27: 0 | BZ27: 0 | CA27: 0 | CB27: 0 | CC27: 0 | CD27: 0 | CE27: 0 | CF27: 0 | CG27: 0 | CH27: 0 | CI27: 0 | CJ27: 0 | CK27: 0 | CL27: 0 | CM27: 0 | CN27: 0 | CO27: 0 | CX27: 1 | CY27: 0 | CZ27: 0 | DA27: 0 | DB27: 0 | DC27: 0 | DD27: 0 | DE27: 1 | DF27: 0 | DG27: 0 | DH27: 0 | DI27: 0 | DU27: 0 | DV27: 0 | DW27: 0 | DX27: 0 | DY27: 0 | DZ27: 0 | EA27: 0 | EB27: 0 | EC27: 0 | ED27: 0 | EE27: 0 | EF27: 0 | EG27: 0 | EH27: 0 | EI27: 0 | EJ27: 0 | EK27: 0 | EL27: 0 | EM27: 1 | EN27: 0 | EO27: 0 | EP27: 0 | EQ27: 0 | ER27: 0 | ES27: 0 | ET27: 1 | EU27: 0 | EV27: 0 | EW27: 0 | EX27: 0 | EY27: 0 | EZ27: 0 | FA27: 0 | FB27: 0 | FC27: 0 | FD27: 0 | FE27: 0 | FF27: 0 | FG27: 0 | FH27: 0 | FI27: 0 | FJ27: 0 | FK27: 0 | FL27: 0 | FM27: 0 | FN27: 0 | FO27: 0 | FP27: 0 | FQ27: 0 | FR27: 0 | FS27: 0 | FT27: 0 | FU27: 0 | FV27: 0 | FW27: 0 | FX27: 0 | FY27: 0 | FZ27: 0 | GA27: 0 | GB27: 0 | GC27: 0 | GD27: 0 | GE27: 0 | GF27: 0 | GG27: 0 | GH27: 0 | GI27: 0 | GJ27: 0 | GK27: 0 | GL27: 0 | GM27: 0 | GN27: 0 | GO27: 0 | GP27: 0 | GQ27: 0 | GR27: 0 | GS27: 0 | GT27: 0 | GU27: 0 | GV27: 0 | GW27: 0 | GX27: 0 | GY27: 0 | GZ27: 0 | HA27: 0 | HB27: 0 | HC27: 0 | HD27: 0 | HE27: 0 | HF27: 0 | HG27: 0 | HH27: 0 | HI27: 0 | HJ27: 0 | HK27: 0 | HL27: 0 | HS27: 0 | HT27: 0 | HU27: 0 | HV27: 0 | HW27: 0 | HX27: 0 | HY27: 0 | HZ27: 0 | IA27: 0 | IB27: 0 | ID27: 1 | IE27: 0 | IF27: 0 | IG27: 0 | IH27: 0 | II27: 0 | IK27: 0 | IL27: 0 | IM27: 0 | IN27: 0 | IO27: 0 | IP27: 0 | IQ27: 0 | IR27: 0 | IS27: 0 | IT27: 0 | IU27: 0 | IW27: 0 | IX27: 0 | IY27: 3 | IZ27: 0 | JA27: 0 | JB27: 1 | JC27: 0 | JD27: 0 | JE27: 0 | JF27: 0 | JG27: 0 | JH27: 0 | JI27: 0 | JJ27: 0 | JK27: 0 | JL27: 0 | JM27: 0 | JN27: 0 | JO27: 0 | JP27: 3 | JQ27: 0 | JR27: 0 | JS27: 0 | JU27: 0 | JV27: 0 | JW27: 0 | JX27: 0 | JY27: 0 | JZ27: 0 | KA27: 0 | KB27: 0 | KC27: 0 | KD27: 0 | KE27: 0 | KF27: 0 | KG27: 0 | KH27: 0 | KI27: 0 | KJ27: 0 | KK27: 0 | KM27: 0 | KN27: 0 | KO27: 0 | KQ27: 0 | KR27: 0 | KS27: 0 | KT27: 0 | KU27: 0 | KV27: 0 | KW27: 0 | KX27: 0 | KY27: 0 | KZ27: 0 | LA27: 0 | LB27: 0 | LC27: 0 | LD27: 0 | LE27: 0 | LF27: 0 | LG27: 0 | LH27: 0 | LI27: 0 | LJ27: 0 | LK27: 0 | LL27: 0 | LM27: 0 | LN27: 0 | LO27: 0 | LP27: 0 | LQ27: 0 | LR27: 0 | LS27: 0 | LT27: 0 | LU27: 0 | LV27: 0 | LW27: 0 | LX27: 0 | LY27: 0 | LZ27: 0 | MA27: 0 | MB27: 0 | MC27: 0 | MD27: 0 | ME27: 0 | MF27: 0 | MG27: 0 | MH27: 0 | MI27: 0 | MJ27: 0 | MK27: 0 | ML27: 0 | MM27: 0 | MN27: 0 | MO27: 0 | MP27: 0 | MQ27: 0 | MR27: 0 | MS27: 0 | MT27: 0 | MU27: 0 | MV27: 0 | MW27: 0 | MX27: 0 | MY27: 0 | MZ27: 0 | NA27: 0 | NB27: 0 | NC27: 0 | ND27: 0 | NE27: 0 | NF27: 0 | NG27: 0 | OC27: 0 | OD27: 0 | OE27: 0 | OF27: 0 | OG27: 0 | OH27: 0 | OI27: 0 | OJ27: 0 | OK27: 0 | OL27: 0 | OM27: 0 | ON27: 0 | OO27: 0 | OP27: 0 | OQ27: 0 | OR27: 0 | OS27: 0 | OT27: 0 | OU27: 0 | OV27: 0 | OW27: 0 | OX27: 0 | OY27: 0 | OZ27: 0 | PA27: 0 | PB27: 0 | PC27: 0 | PD27: 0 | PE27: 0 | PN27: 0 | PO27: 0 | PP27: 0 | PQ27: 0 | PR27: 0 | PS27: 0 | PW27: 0 | PX27: 0 | QC27: 22.00 | QD27: =CONCATENATE($G$2,$B$8) -> 1101 | QE27: =SUM(E27:H27) -> 5.0 | QF27: =SUM(I27:BN27) -> 5.0 | QG27: =SUM(BP27:CW27) -> 0.0 | QH27: =SUM(CX27:DE27) -> 2.0 | QI27: =SUM(DF27:DT27) -> 0.0 | QJ27: =SUM(DU27:ET27) -> 2.0 | QK27: =SUM(EU27:FY27) -> 0.0 | QL27: =SUM(FZ27:HD27) -> 0.0 | QM27: =SUM(HE27:HF27) -> 0.0 | QN27: =SUM(HG27:HL27) -> 0.0 | QO27: =SUM(HR27:II27) -> 1.0 | QP27: 1.0 | QQ27: =SUM(IK27:JA27) -> 3.0 | QR27: =SUM(JB27:JT27) -> 4.0 | QS27: =SUM(JU27:KD27) -> 0.0 | QT27: =SUM(KE27:KP27) -> 0.0 | QU27: =SUM(KQ27:MU27) -> 0.0 | QV27: =SUM(MV27:NG27) -> 0.0 | QW27: =SUM(NH27:NL27) -> 0.0 | QX27: =SUM(NM27:NO27) -> 0.0 | QY27: =SUM(QY24:QY26) -> 0.0 | QZ27: =SUM(NP27) -> 0.0 | RA27: 0.0 | RB27: =SUM(NS27:NT27) -> 0.0 | RC27: 0.0 | RD27: 0.0 | RE27: =SUM(NZ27:OB27) -> 0.0 | RF27: =SUM(OC27:PE27) -> 0.0 | RG27: =SUM(PF27:PI27) -> 0.0 | RH27: =SUM(PJ27:PP27) -> 0.0 | RI27: =PQ27 -> 0.0 | RJ27: =PR27 -> 0.0 | RK27: =SUM(PQ27) -> 0.0 | RL27: 0.0 | RM27: 0.0 | RN27: 0 | RO27: 0 | RP27: 0 | RQ27: 0.0 | RR27: 0.0 | RS27: 0.0 | RT27: 0.0 | RU27: 0.0 | RV27: 0.0 | RW27: =SUM(QE27:RU27)-SUM(RI27:RM27)-SUM(RQ27:RT27) -> 23.0 | RY27: 0 | RZ27: 0 | SA27: 0 | SB27: 0 | SC27: 0 | SD27: 0 | SE27: 0 | SU27: 0 | SV27: 0 | SW27: 0 | SX27: 0 | SY27: 0 | TA27: 0 | TB27: 0 | TC27: 0 | TD27: 0 | TE27: 0 | TF27: 0 | TG27: 0 | TH27: 0 | TI27: 0 | TJ27: 0 | TK27: 0 | TL27: 0 | TM27: 0 | TN27: 0 | TO27: 0 | TS27: =M27+DH27+'2_MERCADO_PRIVADO'!G27+'2_MERCADO_PRIVADO'!BW27 -> 1 | TT27: =DH27+'2_MERCADO_PRIVADO'!AP27+'2_MERCADO_PRIVADO'!BW27 -> 1 | TU27: =BR27+'2_MERCADO_PRIVADO'!AP27+'2_MERCADO_PRIVADO'!BW27+'2_MERCADO_PRIVADO'!DD27 -> 1 | TV27: =CH27+CX27+DL27+'2_MERCADO_PRIVADO'!BF27+'2_MERCADO_PRIVADO'!CM27+'2_MERCADO_PRIVADO'!DT27 -> 2 | TW27: =CO27+DE27+'2_MERCADO_PRIVADO'!BM27+'2_MERCADO_PRIVADO'!CT27+'2_MERCADO_PRIVADO'!EA27 -> 2 | TX27: =KR27+LK27+LP27+'2_MERCADO_PRIVADO'!MM27+'2_MERCADO_PRIVADO'!NF27+'2_MERCADO_PRIVADO'!NK27 -> 0 | TY27: =MV27+MW27+MX27+MY27+MZ27+NA27+NB27+NC27+ND27+NE27+NF27+NG27+'2_MERCADO_PRIVADO'!OQ27+'2_MERCADO_PRIVADO'!OR27+'2_MERCADO_PRIVADO'!OS27+'2_MERCADO_PRIVADO'!OT27+'2_MERCADO_PRIVADO'!OU27+'2_MERCADO_PRIVADO'!OV27+'2_MERCADO_PRIVADO'!OW27+'2_MERCADO_PRIVADO'!OX27+'2_MERCADO_PRIVADO'!OY27+'2_MERCADO_PRIVADO'!OZ27+'2_MERCADO_PRIVADO'!PA27+'2_MERCADO_PRIVADO'!PB27+'2_MERCADO_PRIVADO'!PC27+'2_MERCADO_PRIVADO'!PD27+'2_MERCADO_PRIVADO'!PE27+'2_MERCADO_PRIVADO'!PF27 -> 0 | TZ27: =OC27+'2_MERCADO_PRIVADO'!QO27 -> 0 | UA27: =OD27+'2_MERCADO_PRIVADO'!QP27 -> 0
B28: 02 | C28: CHAPINERO | D28: FEMENINO | E28: 305 | F28: 10 | G28: 0 | H28: 0 | I28: 308 | J28: 0 | K28: 0 | L28: 0 | M28: 0 | N28: 0 | O28: 0 | P28: 0 | Q28: 0 | R28: 0 | S28: 0 | T28: 0 | U28: 0 | V28: 0 | W28: 0 | X28: 0 | Y28: 0 | Z28: 0 | AA28: 0 | AB28: 0 | AF28: 0 | AG28: 0 | AH28: 0 | AJ28: 0 | AK28: 0 | AL28: 0 | AN28: 0 | AO28: 0 | AP28: 0 | AR28: 0 | AS28: 0 | AT28: 0 | AZ28: 1 | BA28: 0 | BB28: 0 | BD28: 2 | BE28: 1 | BF28: 0 | BG28: 0 | BH28: 1 | BI28: 0 | BJ28: 0 | BK28: 0 | BP28: 52 | BQ28: 54 | BR28: 60 | BS28: 1 | BT28: 0 | BU28: 0 | BV28: 0 | BW28: 0 | BX28: 0 | BY28: 0 | BZ28: 0 | CA28: 0 | CB28: 0 | CC28: 0 | CD28: 0 | CE28: 0 | CF28: 0 | CG28: 0 | CH28: 0 | CI28: 0 | CJ28: 0 | CK28: 0 | CL28: 2 | CM28: 0 | CN28: 0 | CO28: 1 | CU28: 1 | CX28: 55 | CY28: 2 | CZ28: 0 | DA28: 0 | DB28: 0 | DC28: 0 | DD28: 0 | DE28: 66 | DF28: 52 | DG28: 54 | DH28: 60 | DI28: 1 | DU28: 0 | DV28: 0 | DW28: 0 | DX28: 0 | DY28: 0 | DZ28: 0 | EA28: 0 | EB28: 0 | EC28: 0 | ED28: 0 | EE28: 0 | EF28: 0 | EG28: 0 | EH28: 0 | EI28: 0 | EJ28: 0 | EK28: 0 | EL28: 0 | EM28: 55 | EN28: 2 | EO28: 0 | EP28: 0 | EQ28: 0 | ER28: 0 | ES28: 0 | ET28: 67 | EU28: 0 | EV28: 0 | EW28: 0 | EX28: 0 | EY28: 0 | EZ28: 0 | FA28: 0 | FB28: 0 | FC28: 0 | FD28: 0 | FE28: 0 | FF28: 0 | FG28: 0 | FH28: 0 | FI28: 0 | FJ28: 0 | FK28: 0 | FL28: 0 | FM28: 0 | FN28: 0 | FO28: 0 | FP28: 0 | FQ28: 0 | FR28: 0 | FS28: 0 | FT28: 0 | FU28: 0 | FV28: 0 | FW28: 0 | FX28: 0 | FY28: 0 | FZ28: 0 | GA28: 0 | GB28: 0 | GC28: 0 | GD28: 0 | GE28: 0 | GF28: 0 | GG28: 0 | GH28: 0 | GI28: 0 | GJ28: 0 | GK28: 0 | GL28: 0 | GM28: 0 | GN28: 0 | GO28: 0 | GP28: 0 | GQ28: 0 | GR28: 0 | GS28: 0 | GT28: 0 | GU28: 0 | GV28: 0 | GW28: 0 | GX28: 0 | GY28: 0 | GZ28: 0 | HA28: 0 | HB28: 0 | HC28: 0 | HD28: 0 | HE28: 128 | HF28: 138 | HG28: 127 | HH28: 132 | HI28: 63 | HJ28: 2 | HK28: 0 | HL28: 0 | HS28: 69 | HT28: 0 | HU28: 0 | HV28: 0 | HW28: 0 | HX28: 1 | HY28: 0 | HZ28: 0 | IA28: 0 | IB28: 0 | ID28: 89 | IE28: 4 | IF28: 1 | IG28: 0 | IH28: 1 | II28: 0 | IK28: 0 | IL28: 64 | IM28: 10 | IN28: 21 | IO28: 11 | IP28: 25 | IQ28: 19 | IR28: 19 | IS28: 17 | IT28: 20 | IU28: 23 | IW28: 28 | IX28: 0 | IY28: 6 | IZ28: 12 | JA28: 0 | JB28: 106 | JC28: 2 | JD28: 0 | JE28: 0 | JF28: 0 | JG28: 0 | JH28: 0 | JI28: 0 | JJ28: 0 | JK28: 0 | JL28: 0 | JM28: 0 | JN28: 0 | JO28: 1 | JP28: 2 | JQ28: 1 | JR28: 0 | JS28: 0 | JU28: 85 | JV28: 0 | JW28: 0 | JX28: 0 | JY28: 0 | JZ28: 0 | KA28: 0 | KB28: 0 | KC28: 0 | KD28: 0 | KE28: 68 | KF28: 0 | KG28: 0 | KH28: 0 | KI28: 0 | KJ28: 1 | KK28: 0 | KM28: 87 | KN28: 4 | KO28: 1 | KQ28: 0 | KR28: 0 | KS28: 0 | KT28: 0 | KU28: 0 | KV28: 4 | KW28: 1 | KX28: 0 | KY28: 0 | KZ28: 0 | LA28: 84 | LB28: 51 | LC28: 9 | LD28: 5 | LE28: 3 | LF28: 0 | LG28: 0 | LH28: 0 | LI28: 0 | LJ28: 9 | LK28: 13 | LL28: 3 | LM28: 0 | LN28: 1 | LO28: 142 | LP28: 123 | LQ28: 108 | LR28: 82 | LS28: 50 | LT28: 5 | LU28: 0 | LV28: 0 | LW28: 0 | LX28: 0 | LY28: 0 | LZ28: 0 | MA28: 0 | MB28: 0 | MC28: 1 | MD28: 0 | ME28: 0 | MF28: 0 | MG28: 0 | MH28: 0 | MI28: 0 | MJ28: 0 | MK28: 0 | ML28: 1 | MM28: 0 | MN28: 0 | MO28: 0 | MP28: 0 | MQ28: 0 | MR28: 0 | MS28: 0 | MT28: 0 | MU28: 0 | MV28: 1 | MW28: 1 | MX28: 3 | MY28: 0 | MZ28: 0 | NA28: 0 | NB28: 40 | NC28: 78 | ND28: 112 | NE28: 57 | NF28: 31 | NG28: 24 | OC28: 60 | OD28: 21 | OE28: 0 | OF28: 54 | OG28: 39 | OH28: 0 | OI28: 47 | OJ28: 22 | OK28: 0 | OL28: 39 | OM28: 14 | ON28: 1 | OO28: 35 | OP28: 6 | OQ28: 0 | OR28: 30 | OS28: 13 | OT28: 0 | OU28: 29 | OV28: 19 | OW28: 0 | OX28: 24 | OY28: 9 | OZ28: 0 | PA28: 23 | PB28: 17 | PC28: 3 | PD28: 2 | PE28: 0 | PN28: 48 | PO28: 24 | PP28: 24 | PQ28: 24 | PR28: 9 | PS28: 1 | PW28: 0 | PX28: 0 | QC28: 4,246.00 | QE28: 315.0 | QF28: =SUM(I28:BO28) -> 313.0 | QG28: 171.0 | QH28: 123.0 | QI28: 167.0 | QJ28: 124.0 | QK28: 0.0 | QL28: 0.0 | QM28: 266.0 | QN28: 324.0 | QO28: =SUM(HM28:HR28) -> 0.0 | QP28: 165.0 | QQ28: 275.0 | QR28: 112.0 | QS28: 85.0 | QT28: 161.0 | QU28: 695.0 | QV28: 347.0 | QW28: =SUM(NH28:NI28) -> 0.0 | QX28: =SUM(NJ28:NL28) -> 0.0 | QY28: =SUM(NM28:NO28) -> 0.0 | QZ28: 0.0 | RA28: 0.0 | RB28: =SUM(NR28:NT28) -> 0.0 | RC28: =SUM(NU28) -> 0.0 | RD28: =SUM(NV28) -> 0.0 | RE28: =SUM(NW28:OB28) -> 0.0 | RF28: =SUM(OC28:PE28) -> 507.0 | RG28: =SUM(PF28:PG28) -> 0.0 | RH28: =SUM(PH28:PI28) -> 0.0 | RI28: =SUM(PJ28:PM28) -> 0.0 | RJ28: =SUM(PN28:PP28) -> 96.0 | RK28: =SUM(PQ28) -> 24.0 | RL28: =SUM(PR28) -> 9.0 | RM28: =SUM(PS28) -> 1.0 | RN28: 0 | RO28: 0 | RP28: 0 | RQ28: =SUM(PW28) -> 0.0 | RR28: =SUM(PX28) -> 0.0 | RS28: =SUM(PY28) -> 0.0 | RT28: =SUM(PZ28) -> 0.0 | RU28: =SUM(QA28) -> 0.0 | RV28: =SUM(QB28) -> 0.0 | RW28: =SUM(QE28:RU28)-SUM(RI28:RM28)-SUM(RQ28:RT28) -> 4,150.0 | RY28: 0 | RZ28: 0 | SA28: 1 | SB28: 12 | SC28: 52 | SD28: 4 | SE28: 69 | SN28: 1 | SR28: 104 | SS28: 18 | SU28: 0 | SV28: 1 | SW28: 0 | SX28: 104 | SY28: 18 | TA28: 0 | TB28: 0 | TC28: 0 | TD28: 0 | TE28: 0 | TF28: 0 | TG28: 0 | TH28: 0 | TI28: 0 | TJ28: 0 | TK28: 0 | TL28: 0 | TM28: 0 | TN28: 0 | TO28: 0 | TS28: =M28+DH28+'2_MERCADO_PRIVADO'!G28+'2_MERCADO_PRIVADO'!BW28 -> 163 | TT28: =DH28+'2_MERCADO_PRIVADO'!AP28+'2_MERCADO_PRIVADO'!BW28 -> 168 | TU28: =BR28+'2_MERCADO_PRIVADO'!AP28+'2_MERCADO_PRIVADO'!BW28+'2_MERCADO_PRIVADO'!DD28 -> 168 | TV28: =CH28+CX28+DL28+'2_MERCADO_PRIVADO'!BF28+'2_MERCADO_PRIVADO'!CM28+'2_MERCADO_PRIVADO'!DT28 -> 149 | TW28: =CO28+DE28+'2_MERCADO_PRIVADO'!BM28+'2_MERCADO_PRIVADO'!CT28+'2_MERCADO_PRIVADO'!EA28 -> 117 | TX28: =KR28+LK28+LP28+'2_MERCADO_PRIVADO'!MM28+'2_MERCADO_PRIVADO'!NF28+'2_MERCADO_PRIVADO'!NK28 -> 189 | TY28: =MV28+MW28+MX28+MY28+MZ28+NA28+NB28+NC28+ND28+NE28+NF28+NG28+'2_MERCADO_PRIVADO'!OQ28+'2_MERCADO_PRIVADO'!OR28+'2_MERCADO_PRIVADO'!OS28+'2_MERCADO_PRIVADO'!OT28+'2_MERCADO_PRIVADO'!OU28+'2_MERCADO_PRIVADO'!OV28+'2_MERCADO_PRIVADO'!OW28+'2_MERCADO_PRIVADO'!OX28+'2_MERCADO_PRIVADO'!OY28+'2_MERCADO_PRIVADO'!OZ28+'2_MERCADO_PRIVADO'!PA28+'2_MERCADO_PRIVADO'!PB28+'2_MERCADO_PRIVADO'!PC28+'2_MERCADO_PRIVADO'!PD28+'2_MERCADO_PRIVADO'!PE28+'2_MERCADO_PRIVADO'!PF28 -> 350 | TZ28: =OC28+'2_MERCADO_PRIVADO'!QO28 -> 64 | UA28: =OD28+'2_MERCADO_PRIVADO'!QP28 -> 21
D29: MASCULINO | E29: 346 | F29: 9 | G29: 0 | H29: 0 | I29: 356 | J29: 0 | K29: 0 | L29: 0 | M29: 0 | N29: 0 | O29: 0 | P29: 0 | Q29: 0 | R29: 0 | S29: 0 | T29: 0 | U29: 0 | V29: 0 | W29: 0 | X29: 0 | Y29: 0 | Z29: 0 | AA29: 0 | AB29: 0 | AF29: 0 | AG29: 0 | AH29: 0 | AJ29: 0 | AK29: 0 | AL29: 0 | AN29: 0 | AO29: 0 | AP29: 0 | AR29: 0 | AS29: 0 | AT29: 0 | AZ29: 0 | BA29: 0 | BB29: 0 | BD29: 0 | BE29: 0 | BF29: 0 | BG29: 0 | BH29: 0 | BI29: 0 | BJ29: 0 | BK29: 0 | BP29: 55 | BQ29: 64 | BR29: 75 | BS29: 0 | BT29: 0 | BU29: 0 | BV29: 0 | BW29: 0 | BX29: 0 | BY29: 0 | BZ29: 0 | CA29: 0 | CB29: 0 | CC29: 0 | CD29: 0 | CE29: 0 | CF29: 0 | CG29: 0 | CH29: 1 | CI29: 0 | CJ29: 0 | CK29: 1 | CL29: 0 | CM29: 0 | CN29: 0 | CO29: 0 | CU29: 1 | CX29: 80 | CY29: 2 | CZ29: 0 | DA29: 1 | DB29: 0 | DC29: 0 | DD29: 0 | DE29: 63 | DF29: 55 | DG29: 63 | DH29: 77 | DI29: 0 | DU29: 0 | DV29: 0 | DW29: 0 | DX29: 0 | DY29: 0 | DZ29: 0 | EA29: 0 | EB29: 0 | EC29: 0 | ED29: 0 | EE29: 0 | EF29: 0 | EG29: 0 | EH29: 0 | EI29: 0 | EJ29: 0 | EK29: 0 | EL29: 0 | EM29: 81 | EN29: 2 | EO29: 0 | EP29: 2 | EQ29: 0 | ER29: 0 | ES29: 0 | ET29: 63 | EU29: 0 | EV29: 0 | EW29: 0 | EX29: 0 | EY29: 0 | EZ29: 0 | FA29: 0 | FB29: 0 | FC29: 0 | FD29: 0 | FE29: 0 | FF29: 0 | FG29: 0 | FH29: 0 | FI29: 0 | FJ29: 0 | FK29: 0 | FL29: 0 | FM29: 0 | FN29: 0 | FO29: 0 | FP29: 0 | FQ29: 0 | FR29: 0 | FS29: 0 | FT29: 0 | FU29: 0 | FV29: 0 | FW29: 0 | FX29: 0 | FY29: 0 | FZ29: 0 | GA29: 0 | GB29: 0 | GC29: 0 | GD29: 0 | GE29: 0 | GF29: 0 | GG29: 0 | GH29: 0 | GI29: 0 | GJ29: 0 | GK29: 0 | GL29: 0 | GM29: 0 | GN29: 0 | GO29: 0 | GP29: 0 | GQ29: 0 | GR29: 0 | GS29: 0 | GT29: 0 | GU29: 0 | GV29: 0 | GW29: 0 | GX29: 0 | GY29: 0 | GZ29: 0 | HA29: 0 | HB29: 0 | HC29: 0 | HD29: 0 | HE29: 151 | HF29: 136 | HG29: 143 | HH29: 131 | HI29: 53 | HJ29: 0 | HK29: 0 | HL29: 1 | HS29: 62 | HT29: 0 | HU29: 0 | HV29: 0 | HW29: 0 | HX29: 0 | HY29: 0 | HZ29: 0 | IA29: 0 | IB29: 0 | ID29: 86 | IE29: 3 | IF29: 0 | IG29: 0 | IH29: 0 | II29: 0 | IK29: 0 | IL29: 78 | IM29: 9 | IN29: 13 | IO29: 20 | IP29: 12 | IQ29: 21 | IR29: 22 | IS29: 18 | IT29: 26 | IU29: 25 | IW29: 15 | IX29: 0 | IY29: 2 | IZ29: 5 | JA29: 1 | JB29: 119 | JC29: 4 | JD29: 0 | JE29: 2 | JF29: 1 | JG29: 0 | JH29: 1 | JI29: 0 | JJ29: 0 | JK29: 0 | JL29: 1 | JM29: 0 | JN29: 0 | JO29: 0 | JP29: 0 | JQ29: 0 | JR29: 0 | JS29: 0 | JU29: 78 | JV29: 1 | JW29: 0 | JX29: 0 | JY29: 0 | JZ29: 1 | KA29: 1 | KB29: 0 | KC29: 0 | KD29: 0 | KE29: 62 | KF29: 1 | KG29: 0 | KH29: 0 | KI29: 0 | KJ29: 1 | KK29: 0 | KM29: 87 | KN29: 2 | KO29: 0 | KQ29: 0 | KR29: 0 | KS29: 0 | KT29: 0 | KU29: 0 | KV29: 0 | KW29: 0 | KX29: 0 | KY29: 0 | KZ29: 0 | LA29: 0 | LB29: 0 | LC29: 0 | LD29: 0 | LE29: 0 | LF29: 0 | LG29: 0 | LH29: 0 | LI29: 0 | LJ29: 0 | LK29: 0 | LL29: 0 | LM29: 0 | LN29: 0 | LO29: 0 | LP29: 0 | LQ29: 0 | LR29: 0 | LS29: 0 | LT29: 0 | LU29: 0 | LV29: 0 | LW29: 0 | LX29: 0 | LY29: 0 | LZ29: 0 | MA29: 0 | MB29: 1 | MC29: 2 | MD29: 2 | ME29: 0 | MF29: 0 | MG29: 0 | MH29: 0 | MI29: 0 | MJ29: 0 | MK29: 0 | ML29: 0 | MM29: 0 | MN29: 0 | MO29: 0 | MP29: 0 | MQ29: 0 | MR29: 1 | MS29: 0 | MT29: 0 | MU29: 0 | MV29: 0 | MW29: 0 | MX29: 0 | MY29: 0 | MZ29: 0 | NA29: 0 | NB29: 0 | NC29: 0 | ND29: 0 | NE29: 0 | NF29: 1 | NG29: 1 | OC29: 0 | OD29: 0 | OE29: 0 | OF29: 0 | OG29: 0 | OH29: 0 | OI29: 0 | OJ29: 0 | OK29: 0 | OL29: 0 | OM29: 0 | ON29: 0 | OO29: 0 | OP29: 0 | OQ29: 0 | OR29: 0 | OS29: 0 | OT29: 0 | OU29: 0 | OV29: 0 | OW29: 0 | OX29: 0 | OY29: 0 | OZ29: 0 | PA29: 0 | PB29: 0 | PC29: 0 | PD29: 0 | PE29: 0 | PN29: 42 | PO29: 17 | PP29: 13 | PQ29: 13 | PR29: 12 | PS29: 7 | PW29: 0 | PX29: 0 | QC29: 2,872.00 | QE29: 355.0 | QF29: 356.0 | QG29: 197.0 | QH29: 146.0 | QI29: 195.0 | QJ29: 148.0 | QK29: 0.0 | QL29: 0.0 | QM29: 287.0 | QN29: 328.0 | QO29: 0.0 | QP29: 151.0 | QQ29: 267.0 | QR29: 128.0 | QS29: 81.0 | QT29: 153.0 | QU29: 6.0 | QV29: 2.0 | QW29: 0.0 | QX29: 0.0 | QY29: 0.0 | QZ29: 0.0 | RA29: 0.0 | RB29: 0.0 | RC29: 0.0 | RD29: 0.0 | RE29: 0.0 | RF29: 0.0 | RG29: 0.0 | RH29: 0.0 | RI29: 0.0 | RJ29: 72.0 | RK29: 13.0 | RL29: 12.0 | RM29: 7.0 | RN29: 0 | RO29: 0 | RP29: 0 | RQ29: 0.0 | RR29: 0.0 | RS29: 0.0 | RT29: 0.0 | RU29: 0.0 | RV29: 0.0 | RW29: 2,800.0 | RY29: 0 | RZ29: 1 | SA29: 2 | SB29: 45 | SC29: 36 | SD29: 14 | SE29: 98 | SN29: 6 | SO29: 1 | SR29: 6 | SS29: 9 | SU29: 0 | SV29: 7 | SW29: 0 | SX29: 6 | SY29: 9 | TA29: 0 | TB29: 0 | TC29: 0 | TD29: 0 | TE29: 0 | TF29: 0 | TG29: 0 | TH29: 0 | TI29: 0 | TJ29: 0 | TK29: 0 | TL29: 0 | TM29: 0 | TN29: 0 | TO29: 0 | TS29: =M29+DH29+'2_MERCADO_PRIVADO'!G29+'2_MERCADO_PRIVADO'!BW29 -> 188 | TT29: =DH29+'2_MERCADO_PRIVADO'!AP29+'2_MERCADO_PRIVADO'!BW29 -> 187 | TU29: =BR29+'2_MERCADO_PRIVADO'!AP29+'2_MERCADO_PRIVADO'!BW29+'2_MERCADO_PRIVADO'!DD29 -> 185 | TV29: =CH29+CX29+DL29+'2_MERCADO_PRIVADO'!BF29+'2_MERCADO_PRIVADO'!CM29+'2_MERCADO_PRIVADO'!DT29 -> 177 | TW29: =CO29+DE29+'2_MERCADO_PRIVADO'!BM29+'2_MERCADO_PRIVADO'!CT29+'2_MERCADO_PRIVADO'!EA29 -> 116 | TX29: =KR29+LK29+LP29+'2_MERCADO_PRIVADO'!MM29+'2_MERCADO_PRIVADO'!NF29+'2_MERCADO_PRIVADO'!NK29 -> 0 | TY29: =MV29+MW29+MX29+MY29+MZ29+NA29+NB29+NC29+ND29+NE29+NF29+NG29+'2_MERCADO_PRIVADO'!OQ29+'2_MERCADO_PRIVADO'!OR29+'2_MERCADO_PRIVADO'!OS29+'2_MERCADO_PRIVADO'!OT29+'2_MERCADO_PRIVADO'!OU29+'2_MERCADO_PRIVADO'!OV29+'2_MERCADO_PRIVADO'!OW29+'2_MERCADO_PRIVADO'!OX29+'2_MERCADO_PRIVADO'!OY29+'2_MERCADO_PRIVADO'!OZ29+'2_MERCADO_PRIVADO'!PA29+'2_MERCADO_PRIVADO'!PB29+'2_MERCADO_PRIVADO'!PC29+'2_MERCADO_PRIVADO'!PD29+'2_MERCADO_PRIVADO'!PE29+'2_MERCADO_PRIVADO'!PF29 -> 2 | TZ29: =OC29+'2_MERCADO_PRIVADO'!QO29 -> 1 | UA29: =OD29+'2_MERCADO_PRIVADO'!QP29 -> 1
D30: OTRO | E30: 0 | F30: 0 | G30: 0 | H30: 0 | I30: 0 | J30: 0 | K30: 0 | L30: 0 | M30: 0 | N30: 0 | O30: 0 | P30: 0 | Q30: 0 | R30: 0 | S30: 0 | T30: 0 | U30: 0 | V30: 0 | W30: 0 | X30: 0 | Y30: 0 | Z30: 0 | AA30: 0 | AB30: 0 | AF30: 0 | AG30: 0 | AH30: 0 | AJ30: 0 | AK30: 0 | AL30: 0 | AN30: 0 | AO30: 0 | AP30: 0 | AR30: 0 | AS30: 0 | AT30: 0 | AZ30: 0 | BA30: 0 | BB30: 0 | BD30: 0 | BE30: 0 | BF30: 0 | BG30: 0 | BH30: 0 | BI30: 0 | BJ30: 0 | BK30: 0 | BP30: 0 | BQ30: 0 | BR30: 0 | BS30: 0 | BT30: 0 | BU30: 0 | BV30: 0 | BW30: 0 | BX30: 0 | BY30: 0 | BZ30: 0 | CA30: 0 | CB30: 0 | CC30: 0 | CD30: 0 | CE30: 0 | CF30: 0 | CG30: 0 | CH30: 0 | CI30: 0 | CJ30: 0 | CK30: 0 | CL30: 0 | CM30: 0 | CN30: 0 | CO30: 0 | CU30: 0 | CX30: 0 | CY30: 0 | CZ30: 0 | DA30: 0 | DB30: 0 | DC30: 0 | DD30: 0 | DE30: 0 | DF30: 0 | DG30: 0 | DH30: 0 | DI30: 0 | DU30: 0 | DV30: 0 | DW30: 0 | DX30: 0 | DY30: 0 | DZ30: 0 | EA30: 0 | EB30: 0 | EC30: 0 | ED30: 0 | EE30: 0 | EF30: 0 | EG30: 0 | EH30: 0 | EI30: 0 | EJ30: 0 | EK30: 0 | EL30: 0 | EM30: 0 | EN30: 0 | EO30: 0 | EP30: 0 | EQ30: 0 | ER30: 0 | ES30: 0 | ET30: 0 | EU30: 0 | EV30: 0 | EW30: 0 | EX30: 0 | EY30: 0 | EZ30: 0 | FA30: 0 | FB30: 0 | FC30: 0 | FD30: 0 | FE30: 0 | FF30: 0 | FG30: 0 | FH30: 0 | FI30: 0 | FJ30: 0 | FK30: 0 | FL30: 0 | FM30: 0 | FN30: 0 | FO30: 0 | FP30: 0 | FQ30: 0 | FR30: 0 | FS30: 0 | FT30: 0 | FU30: 0 | FV30: 0 | FW30: 0 | FX30: 0 | FY30: 0 | FZ30: 0 | GA30: 0 | GB30: 0 | GC30: 0 | GD30: 0 | GE30: 0 | GF30: 0 | GG30: 0 | GH30: 0 | GI30: 0 | GJ30: 0 | GK30: 0 | GL30: 0 | GM30: 0 | GN30: 0 | GO30: 0 | GP30: 0 | GQ30: 0 | GR30: 0 | GS30: 0 | GT30: 0 | GU30: 0 | GV30: 0 | GW30: 0 | GX30: 0 | GY30: 0 | GZ30: 0 | HA30: 0 | HB30: 0 | HC30: 0 | HD30: 0 | HE30: 0 | HF30: 0 | HG30: 0 | HH30: 0 | HI30: 0 | HJ30: 0 | HK30: 0 | HL30: 0 | HS30: 0 | HT30: 0 | HU30: 0 | HV30: 0 | HW30: 0 | HX30: 0 | HY30: 0 | HZ30: 0 | IA30: 0 | IB30: 0 | ID30: 0 | IE30: 0 | IF30: 0 | IG30: 0 | IH30: 0 | II30: 0 | IK30: 0 | IL30: 0 | IM30: 0 | IN30: 0 | IO30: 0 | IP30: 0 | IQ30: 0 | IR30: 0 | IS30: 0 | IT30: 0 | IU30: 0 | IW30: 0 | IX30: 0 | IY30: 0 | IZ30: 0 | JA30: 0 | JB30: 0 | JC30: 0 | JD30: 0 | JE30: 0 | JF30: 0 | JG30: 0 | JH30: 0 | JI30: 0 | JJ30: 0 | JK30: 0 | JL30: 0 | JM30: 0 | JN30: 0 | JO30: 0 | JP30: 0 | JQ30: 0 | JR30: 0 | JS30: 0 | JU30: 0 | JV30: 0 | JW30: 0 | JX30: 0 | JY30: 0 | JZ30: 0 | KA30: 0 | KB30: 0 | KC30: 0 | KD30: 0 | KE30: 0 | KF30: 0 | KG30: 0 | KH30: 0 | KI30: 0 | KJ30: 0 | KK30: 0 | KM30: 0 | KN30: 0 | KO30: 0 | KQ30: 0 | KR30: 0 | KS30: 0 | KT30: 0 | KU30: 0 | KV30: 0 | KW30: 0 | KX30: 0 | KY30: 0 | KZ30: 0 | LA30: 0 | LB30: 0 | LC30: 0 | LD30: 0 | LE30: 0 | LF30: 0 | LG30: 0 | LH30: 0 | LI30: 0 | LJ30: 0 | LK30: 0 | LL30: 0 | LM30: 0 | LN30: 0 | LO30: 0 | LP30: 0 | LQ30: 0 | LR30: 0 | LS30: 0 | LT30: 0 | LU30: 0 | LV30: 0 | LW30: 0 | LX30: 0 | LY30: 0 | LZ30: 0 | MA30: 0 | MB30: 0 | MC30: 0 | MD30: 0 | ME30: 0 | MF30: 0 | MG30: 0 | MH30: 0 | MI30: 0 | MJ30: 0 | MK30: 0 | ML30: 0 | MM30: 0 | MN30: 0 | MO30: 0 | MP30: 0 | MQ30: 0 | MR30: 0 | MS30: 0 | MT30: 0 | MU30: 0 | MV30: 0 | MW30: 0 | MX30: 0 | MY30: 0 | MZ30: 0 | NA30: 0 | NB30: 0 | NC30: 0 | ND30: 0 | NE30: 0 | NF30: 0 | NG30: 0 | OC30: 0 | OD30: 0 | OE30: 0 | OF30: 0 | OG30: 0 | OH30: 0 | OI30: 0 | OJ30: 0 | OK30: 0 | OL30: 0 | OM30: 0 | ON30: 0 | OO30: 0 | OP30: 0 | OQ30: 0 | OR30: 0 | OS30: 0 | OT30: 0 | OU30: 0 | OV30: 0 | OW30: 0 | OX30: 0 | OY30: 0 | OZ30: 0 | PA30: 0 | PB30: 0 | PC30: 0 | PD30: 0 | PE30: 0 | PN30: 0 | PO30: 0 | PP30: 0 | PQ30: 0 | PR30: 0 | PS30: 0 | PW30: 0 | PX30: 0 | QC30: 0.00 | QE30: 0.0 | QF30: 0.0 | QG30: 0.0 | QH30: 0.0 | QI30: 0.0 | QJ30: 0.0 | QK30: 0.0 | QL30: 0.0 | QM30: 0.0 | QN30: 0.0 | QO30: 0.0 | QP30: 0.0 | QQ30: 0.0 | QR30: 0.0 | QS30: 0.0 | QT30: 0.0 | QU30: 0.0 | QV30: 0.0 | QW30: 0.0 | QX30: 0.0 | QY30: 0.0 | QZ30: 0.0 | RA30: 0.0 | RB30: 0.0 | RC30: 0.0 | RD30: 0.0 | RE30: 0.0 | RF30: 0.0 | RG30: 0.0 | RH30: 0.0 | RI30: 0.0 | RJ30: 0.0 | RK30: 0.0 | RL30: 0.0 | RM30: 0.0 | RN30: 0 | RO30: 0 | RP30: 0 | RQ30: 0.0 | RR30: 0.0 | RS30: 0.0 | RT30: 0.0 | RU30: 0.0 | RV30: 0.0 | RW30: 0.0 | RY30: 0 | RZ30: 0 | SA30: 0 | SB30: 0 | SC30: 0 | SD30: 0 | SE30: 0 | SU30: 0 | SV30: 0 | SW30: 0 | SX30: 0 | SY30: 0 | TA30: 0 | TB30: 0 | TC30: 0 | TD30: 0 | TE30: 0 | TF30: 0 | TG30: 0 | TH30: 0 | TI30: 0 | TJ30: 0 | TK30: 0 | TL30: 0 | TM30: 0 | TN30: 0 | TO30: 0 | TS30: =M30+DH30+'2_MERCADO_PRIVADO'!G30+'2_MERCADO_PRIVADO'!BW30 -> 0 | TT30: =DH30+'2_MERCADO_PRIVADO'!AP30+'2_MERCADO_PRIVADO'!BW30 -> 0 | TU30: =BR30+'2_MERCADO_PRIVADO'!AP30+'2_MERCADO_PRIVADO'!BW30+'2_MERCADO_PRIVADO'!DD30 -> 0 | TV30: =CH30+CX30+DL30+'2_MERCADO_PRIVADO'!BF30+'2_MERCADO_PRIVADO'!CM30+'2_MERCADO_PRIVADO'!DT30 -> 0 | TW30: =CO30+DE30+'2_MERCADO_PRIVADO'!BM30+'2_MERCADO_PRIVADO'!CT30+'2_MERCADO_PRIVADO'!EA30 -> 0 | TX30: =KR30+LK30+LP30+'2_MERCADO_PRIVADO'!MM30+'2_MERCADO_PRIVADO'!NF30+'2_MERCADO_PRIVADO'!NK30 -> 0 | TY30: =MV30+MW30+MX30+MY30+MZ30+NA30+NB30+NC30+ND30+NE30+NF30+NG30+'2_MERCADO_PRIVADO'!OQ30+'2_MERCADO_PRIVADO'!OR30+'2_MERCADO_PRIVADO'!OS30+'2_MERCADO_PRIVADO'!OT30+'2_MERCADO_PRIVADO'!OU30+'2_MERCADO_PRIVADO'!OV30+'2_MERCADO_PRIVADO'!OW30+'2_MERCADO_PRIVADO'!OX30+'2_MERCADO_PRIVADO'!OY30+'2_MERCADO_PRIVADO'!OZ30+'2_MERCADO_PRIVADO'!PA30+'2_MERCADO_PRIVADO'!PB30+'2_MERCADO_PRIVADO'!PC30+'2_MERCADO_PRIVADO'!PD30+'2_MERCADO_PRIVADO'!PE30+'2_MERCADO_PRIVADO'!PF30 -> 0 | TZ30: =OC30+'2_MERCADO_PRIVADO'!QO30 -> 0 | UA30: =OD30+'2_MERCADO_PRIVADO'!QP30 -> 0
D31: TOTAL GENERO | E31: 651 | F31: 19 | G31: 0 | H31: 0 | I31: 664 | J31: 0 | K31: 0 | L31: 0 | M31: 0 | N31: 0 | O31: 0 | P31: 0 | Q31: 0 | R31: 0 | S31: 0 | T31: 0 | U31: 0 | V31: 0 | W31: 0 | X31: 0 | Y31: 0 | Z31: 0 | AA31: 0 | AB31: 0 | AC31: =SUM(AC28:AC30) -> 0 | AD31: 0 | AE31: 0 | AF31: 0 | AG31: 0 | AH31: 0 | AI31: 0 | AJ31: 0 | AK31: 0 | AL31: 0 | AM31: 0 | AN31: 0 | AO31: 0 | AP31: 0 | AQ31: 0 | AR31: 0 | AS31: 0 | AT31: 0 | AU31: 0 | AV31: 0 | AW31: 0 | AX31: 0 | AY31: 0 | AZ31: 1 | BA31: 0 | BB31: 0 | BC31: 0 | BD31: 2 | BE31: 1 | BF31: 0 | BG31: 0 | BH31: 1 | BI31: 0 | BJ31: 0 | BK31: 0 | BL31: 0 | BM31: 0 | BN31: 0 | BO31: 0 | BP31: 107 | BQ31: 118 | BR31: 135 | BS31: 1 | BT31: 0 | BU31: 0 | BV31: 0 | BW31: 0 | BX31: 0 | BY31: 0 | BZ31: 0 | CA31: 0 | CB31: 0 | CC31: 0 | CD31: 0 | CE31: 0 | CF31: 0 | CG31: 0 | CH31: 1 | CI31: 0 | CJ31: 0 | CK31: 1 | CL31: 2 | CM31: 0 | CN31: 0 | CO31: 1 | CP31: =SUM(CP28:CP30) -> 0 | CQ31: 0 | CR31: 0 | CS31: 0 | CT31: 0 | CU31: 2 | CV31: 0 | CW31: 0 | CX31: 135 | CY31: 4 | CZ31: 0 | DA31: 1 | DB31: 0 | DC31: 0 | DD31: 0 | DE31: 129 | DF31: 107 | DG31: 117 | DH31: 137 | DI31: 1 | DJ31: 0 | DK31: 0 | DL31: 0 | DM31: 0 | DN31: 0 | DO31: 0 | DP31: 0 | DQ31: 0 | DR31: 0 | DS31: 0 | DT31: 0 | DU31: 0 | DV31: 0 | DW31: 0 | DX31: 0 | DY31: 0 | DZ31: 0 | EA31: 0 | EB31: 0 | EC31: 0 | ED31: 0 | EE31: 0 | EF31: 0 | EG31: 0 | EH31: 0 | EI31: 0 | EJ31: 0 | EK31: 0 | EL31: 0 | EM31: 136 | EN31: 4 | EO31: 0 | EP31: 2 | EQ31: 0 | ER31: 0 | ES31: 0 | ET31: 130 | EU31: 0 | EV31: 0 | EW31: 0 | EX31: 0 | EY31: 0 | EZ31: 0 | FA31: 0 | FB31: 0 | FC31: 0 | FD31: 0 | FE31: 0 | FF31: 0 | FG31: 0 | FH31: 0 | FI31: 0 | FJ31: 0 | FK31: 0 | FL31: 0 | FM31: 0 | FN31: 0 | FO31: 0 | FP31: 0 | FQ31: 0 | FR31: 0 | FS31: 0 | FT31: 0 | FU31: 0 | FV31: 0 | FW31: 0 | FX31: 0 | FY31: 0 | FZ31: 0 | GA31: 0 | GB31: 0 | GC31: 0 | GD31: 0 | GE31: 0 | GF31: 0 | GG31: 0 | GH31: 0 | GI31: 0 | GJ31: 0 | GK31: 0 | GL31: 0 | GM31: 0 | GN31: 0 | GO31: 0 | GP31: 0 | GQ31: 0 | GR31: 0 | GS31: 0 | GT31: 0 | GU31: 0 | GV31: 0 | GW31: 0 | GX31: 0 | GY31: 0 | GZ31: 0 | HA31: 0 | HB31: 0 | HC31: 0 | HD31: 0 | HE31: 279 | HF31: 274 | HG31: 270 | HH31: 263 | HI31: 116 | HJ31: 2 | HK31: 0 | HL31: 1 | HM31: =SUM(HM28:HM30) -> 0 | HN31: 0 | HO31: 0 | HP31: 0 | HQ31: 0 | HR31: 0 | HS31: 131 | HT31: 0 | HU31: 0 | HV31: 0 | HW31: 0 | HX31: 1 | HY31: 0 | HZ31: 0 | IA31: 0 | IB31: 0 | ID31: 175 | IE31: 7 | IF31: 1 | IG31: 0 | IH31: 1 | II31: 0 | IJ31: 0 | IK31: 0 | IL31: 142 | IM31: 19 | IN31: 34 | IO31: 31 | IP31: 37 | IQ31: 40 | IR31: 41 | IS31: 35 | IT31: 46 | IU31: 48 | IV31: 0 | IW31: 43 | IX31: 0 | IY31: 8 | IZ31: 17 | JA31: 1 | JB31: 225 | JC31: 6 | JD31: 0 | JE31: 2 | JF31: 1 | JG31: 0 | JH31: 1 | JI31: 0 | JJ31: 0 | JK31: 0 | JL31: 1 | JM31: 0 | JN31: 0 | JO31: 1 | JP31: 2 | JQ31: 1 | JR31: 0 | JS31: 0 | JT31: =SUM(JT28:JT30) -> 0 | JU31: 163 | JV31: 1 | JW31: 0 | JX31: 0 | JY31: 0 | JZ31: 1 | KA31: 1 | KB31: 0 | KC31: 0 | KD31: 0 | KE31: 130 | KF31: 1 | KG31: 0 | KH31: 0 | KI31: 0 | KJ31: 2 | KK31: 0 | KM31: 174 | KN31: 6 | KO31: 1 | KP31: 0 | KQ31: 0 | KR31: 0 | KS31: 0 | KT31: 0 | KU31: 0 | KV31: 4 | KW31: 1 | KX31: 0 | KY31: 0 | KZ31: 0 | LA31: 84 | LB31: 51 | LC31: 9 | LD31: 5 | LE31: 3 | LF31: 0 | LG31: 0 | LH31: 0 | LI31: 0 | LJ31: 9 | LK31: 13 | LL31: 3 | LM31: 0 | LN31: 1 | LO31: 142 | LP31: 123 | LQ31: 108 | LR31: 82 | LS31: 50 | LT31: 5 | LU31: 0 | LV31: 0 | LW31: 0 | LX31: 0 | LY31: 0 | LZ31: 0 | MA31: 0 | MB31: 1 | MC31: 3 | MD31: 2 | ME31: 0 | MF31: 0 | MG31: 0 | MH31: 0 | MI31: 0 | MJ31: 0 | MK31: 0 | ML31: 1 | MM31: 0 | MN31: 0 | MO31: 0 | MP31: 0 | MQ31: 0 | MR31: 1 | MS31: 0 | MT31: 0 | MU31: 0 | MV31: 1 | MW31: 1 | MX31: 3 | MY31: 0 | MZ31: 0 | NA31: 0 | NB31: 40 | NC31: 78 | ND31: 112 | NE31: 57 | NF31: 32 | NG31: 25 | NI31: =SUM(NI28:NI30) -> 0 | NJ31: 0 | NK31: 0 | NL31: 0 | NM31: 0 | NN31: 0 | NO31: 0 | NP31: 0 | NQ31: 0 | NR31: 0 | NS31: 0 | NT31: 0 | NU31: 0 | NV31: 0 | NW31: 0 | NX31: 0 | NY31: 0 | NZ31: =SUM(NZ28:NZ30) -> 0 | OA31: 0 | OB31: 0 | OC31: 60 | OD31: 21 | OE31: 0 | OF31: 54 | OG31: 39 | OH31: 0 | OI31: 47 | OJ31: 22 | OK31: 0 | OL31: 39 | OM31: 14 | ON31: 1 | OO31: 35 | OP31: 6 | OQ31: 0 | OR31: 30 | OS31: 13 | OT31: 0 | OU31: 29 | OV31: 19 | OW31: 0 | OX31: 24 | OY31: 9 | OZ31: 0 | PA31: 23 | PB31: 17 | PC31: 3 | PD31: 2 | PE31: 0 | PF31: 0 | PG31: 0 | PH31: 0 | PI31: 0 | PJ31: 0 | PK31: 0 | PL31: 0 | PM31: 0 | PN31: 90 | PO31: 41 | PP31: 37 | PQ31: 37 | PR31: 21 | PS31: 8 | PT31: 0 | PU31: 0 | PV31: 0 | PW31: 0 | PX31: 0 | PY31: 0 | PZ31: 0 | QA31: 0 | QB31: 0 | QC31: =SUM(QC28:QC30) -> 7,118 | QE31: =SUM(QE28:QE30) -> 670.0 | QF31: =SUM(QF28:QF30) -> 669.0 | QG31: =SUM(QG28:QG30) -> 368.0 | QH31: =SUM(QH28:QH30) -> 269.0 | QI31: =SUM(QI28:QI30) -> 362.0 | QJ31: =SUM(QJ28:QJ30) -> 272.0 | QK31: =SUM(QK28:QK30) -> 0.0 | QL31: =SUM(QL28:QL30) -> 0.0 | QM31: =SUM(QM28:QM30) -> 553.0 | QN31: =SUM(QN28:QN30) -> 652.0 | QO31: =SUM(QO28:QO30) -> 0.0 | QP31: 316.0 | QQ31: =SUM(QQ28:QQ30) -> 542.0 | QR31: =SUM(QR28:QR30) -> 240.0 | QS31: =SUM(QS28:QS30) -> 166.0 | QT31: =SUM(QT28:QT30) -> 314.0 | QU31: =SUM(QU28:QU30) -> 701.0 | QV31: =SUM(QV28:QV30) -> 349.0 | QW31: =SUM(QW28:QW30) -> 0.0 | QX31: =SUM(QX28:QX30) -> 0.0 | QY31: =SUM(QY28:QY30) -> 0.0 | QZ31: =SUM(QZ28:QZ30) -> 0.0 | RA31: =SUM(RA28:RA30) -> 0.0 | RB31: 0.0 | RC31: =SUM(RC28:RC30) -> 0.0 | RD31: 0.0 | RE31: =SUM(RE28:RE30) -> 0.0 | RF31: =SUM(RF28:RF30) -> 507.0 | RG31: =SUM(RG28:RG30) -> 0.0 | RH31: =SUM(RH28:RH30) -> 0.0 | RI31: =SUM(RI28:RI30) -> 0.0 | RJ31: =SUM(RJ28:RJ30) -> 168.0 | RK31: 37.0 | RL31: =SUM(RL28:RL30) -> 21.0 | RM31: 8.0 | RN31: 0 | RO31: 0 | RP31: 0 | RQ31: =SUM(RQ28:RQ30) -> 0.0 | RR31: =SUM(RR28:RR30) -> 0.0 | RS31: =SUM(RS28:RS30) -> 0.0 | RT31: =SUM(RT28:RT30) -> 0.0 | RU31: =SUM(RU28:RU30) -> 0.0 | RV31: =SUM(RV28:RV30) -> 0.0 | RW31: 6,950.0 | RY31: 0 | RZ31: 1 | SA31: 3 | SB31: 57 | SC31: 88 | SD31: 18 | SE31: =SUM(SE28:SE30) -> 167 | SF31: =SUM(SF28:SF30) -> 0 | SG31: 0 | SH31: 0 | SI31: 0 | SJ31: 0 | SK31: 0 | SL31: 0 | SM31: 0 | SN31: 7 | SO31: 1 | SQ31: 0 | SR31: 110 | SS31: 27 | SU31: =SUM(SU28:SU30) -> 0 | SV31: 8 | SW31: 0 | SX31: 110 | SY31: 27 | TA31: 0 | TB31: 0 | TC31: 0 | TD31: 0 | TE31: 0 | TF31: 0 | TG31: 0 | TH31: 0 | TI31: 0 | TJ31: 0 | TK31: 0 | TL31: 0 | TM31: 0 | TN31: 0 | TO31: 0 | TS31: =M31+DH31+'2_MERCADO_PRIVADO'!G31+'2_MERCADO_PRIVADO'!BW31 -> 351 | TT31: =DH31+'2_MERCADO_PRIVADO'!AP31+'2_MERCADO_PRIVADO'!BW31 -> 355 | TU31: =BR31+'2_MERCADO_PRIVADO'!AP31+'2_MERCADO_PRIVADO'!BW31+'2_MERCADO_PRIVADO'!DD31 -> 353 | TV31: =CH31+CX31+DL31+'2_MERCADO_PRIVADO'!BF31+'2_MERCADO_PRIVADO'!CM31+'2_MERCADO_PRIVADO'!DT31 -> 326 | TW31: =CO31+DE31+'2_MERCADO_PRIVADO'!BM31+'2_MERCADO_PRIVADO'!CT31+'2_MERCADO_PRIVADO'!EA31 -> 233 | TX31: =KR31+LK31+LP31+'2_MERCADO_PRIVADO'!MM31+'2_MERCADO_PRIVADO'!NF31+'2_MERCADO_PRIVADO'!NK31 -> 189 | TY31: =MV31+MW31+MX31+MY31+MZ31+NA31+NB31+NC31+ND31+NE31+NF31+NG31+'2_MERCADO_PRIVADO'!OQ31+'2_MERCADO_PRIVADO'!OR31+'2_MERCADO_PRIVADO'!OS31+'2_MERCADO_PRIVADO'!OT31+'2_MERCADO_PRIVADO'!OU31+'2_MERCADO_PRIVADO'!OV31+'2_MERCADO_PRIVADO'!OW31+'2_MERCADO_PRIVADO'!OX31+'2_MERCADO_PRIVADO'!OY31+'2_MERCADO_PRIVADO'!OZ31+'2_MERCADO_PRIVADO'!PA31+'2_MERCADO_PRIVADO'!PB31+'2_MERCADO_PRIVADO'!PC31+'2_MERCADO_PRIVADO'!PD31+'2_MERCADO_PRIVADO'!PE31+'2_MERCADO_PRIVADO'!PF31 -> 352 | TZ31: =OC31+'2_MERCADO_PRIVADO'!QO31 -> 65 | UA31: =OD31+'2_MERCADO_PRIVADO'!QP31 -> 22
D32: CONTRIBUTIVO | E32: 590 | F32: 14 | G32: 0 | H32: 0 | I32: 602 | J32: 0 | K32: 0 | L32: 0 | M32: 0 | N32: 0 | O32: 0 | P32: 0 | Q32: 0 | R32: 0 | S32: 0 | T32: 0 | U32: 0 | V32: 0 | W32: 0 | X32: 0 | Y32: 0 | Z32: 0 | AA32: 0 | AB32: 0 | AF32: 0 | AG32: 0 | AH32: 0 | AJ32: 0 | AK32: 0 | AL32: 0 | AN32: 0 | AO32: 0 | AP32: 0 | AR32: 0 | AS32: 0 | AT32: 0 | AZ32: 0 | BA32: 0 | BB32: 0 | BD32: 2 | BE32: 1 | BF32: 0 | BG32: 0 | BH32: 0 | BI32: 0 | BJ32: 0 | BK32: 0 | BP32: 97 | BQ32: 107 | BR32: 131 | BS32: 0 | BT32: 0 | BU32: 0 | BV32: 0 | BW32: 0 | BX32: 0 | BY32: 0 | BZ32: 0 | CA32: 0 | CB32: 0 | CC32: 0 | CD32: 0 | CE32: 0 | CF32: 0 | CG32: 0 | CH32: 1 | CI32: 0 | CJ32: 0 | CK32: 1 | CL32: 2 | CM32: 0 | CN32: 0 | CO32: 1 | CU32: 0 | CX32: 113 | CY32: 3 | CZ32: 0 | DA32: 1 | DB32: 0 | DC32: 0 | DD32: 0 | DE32: 122 | DF32: 97 | DG32: 107 | DH32: 132 | DI32: 0 | DU32: 0 | DV32: 0 | DW32: 0 | DX32: 0 | DY32: 0 | DZ32: 0 | EA32: 0 | EB32: 0 | EC32: 0 | ED32: 0 | EE32: 0 | EF32: 0 | EG32: 0 | EH32: 0 | EI32: 0 | EJ32: 0 | EK32: 0 | EL32: 0 | EM32: 114 | EN32: 3 | EO32: 0 | EP32: 2 | EQ32: 0 | ER32: 0 | ES32: 0 | ET32: 123 | EU32: 0 | EV32: 0 | EW32: 0 | EX32: 0 | EY32: 0 | EZ32: 0 | FA32: 0 | FB32: 0 | FC32: 0 | FD32: 0 | FE32: 0 | FF32: 0 | FG32: 0 | FH32: 0 | FI32: 0 | FJ32: 0 | FK32: 0 | FL32: 0 | FM32: 0 | FN32: 0 | FO32: 0 | FP32: 0 | FQ32: 0 | FR32: 0 | FS32: 0 | FT32: 0 | FU32: 0 | FV32: 0 | FW32: 0 | FX32: 0 | FY32: 0 | FZ32: 0 | GA32: 0 | GB32: 0 | GC32: 0 | GD32: 0 | GE32: 0 | GF32: 0 | GG32: 0 | GH32: 0 | GI32: 0 | GJ32: 0 | GK32: 0 | GL32: 0 | GM32: 0 | GN32: 0 | GO32: 0 | GP32: 0 | GQ32: 0 | GR32: 0 | GS32: 0 | GT32: 0 | GU32: 0 | GV32: 0 | GW32: 0 | GX32: 0 | GY32: 0 | GZ32: 0 | HA32: 0 | HB32: 0 | HC32: 0 | HD32: 0 | HE32: 261 | HF32: 257 | HG32: 254 | HH32: 246 | HI32: 107 | HJ32: 0 | HK32: 0 | HL32: 0 | HS32: 120 | HT32: 0 | HU32: 0 | HV32: 0 | HW32: 0 | HX32: 1 | HY32: 0 | HZ32: 0 | IA32: 0 | IB32: 0 | ID32: 167 | IE32: 5 | IF32: 1 | IG32: 0 | IH32: 1 | II32: 0 | IK32: 0 | IL32: 129 | IM32: 16 | IN32: 34 | IO32: 28 | IP32: 37 | IQ32: 39 | IR32: 40 | IS32: 33 | IT32: 44 | IU32: 46 | IW32: 38 | IX32: 0 | IY32: 8 | IZ32: 17 | JA32: 1 | JB32: 204 | JC32: 5 | JD32: 0 | JE32: 2 | JF32: 1 | JG32: 0 | JH32: 1 | JI32: 0 | JJ32: 0 | JK32: 0 | JL32: 1 | JM32: 0 | JN32: 0 | JO32: 1 | JP32: 2 | JQ32: 1 | JR32: 0 | JS32: 0 | JU32: 152 | JV32: 0 | JW32: 0 | JX32: 0 | JY32: 0 | JZ32: 0 | KA32: 0 | KB32: 0 | KC32: 0 | KD32: 0 | KE32: 119 | KF32: 0 | KG32: 0 | KH32: 0 | KI32: 0 | KJ32: 1 | KK32: 0 | KM32: 166 | KN32: 5 | KO32: 1 | KQ32: 0 | KR32: 0 | KS32: 0 | KT32: 0 | KU32: 0 | KV32: 4 | KW32: 1 | KX32: 0 | KY32: 0 | KZ32: 0 | LA32: 82 | LB32: 47 | LC32: 9 | LD32: 5 | LE32: 3 | LF32: 0 | LG32: 0 | LH32: 0 | LI32: 0 | LJ32: 9 | LK32: 12 | LL32: 3 | LM32: 0 | LN32: 0 | LO32: 130 | LP32: 114 | LQ32: 99 | LR32: 80 | LS32: 41 | LT32: 5 | LU32: 0 | LV32: 0 | LW32: 0 | LX32: 0 | LY32: 0 | LZ32: 0 | MA32: 0 | MB32: 0 | MC32: 3 | MD32: 0 | ME32: 0 | MF32: 0 | MG32: 0 | MH32: 0 | MI32: 0 | MJ32: 0 | MK32: 0 | ML32: 1 | MM32: 0 | MN32: 0 | MO32: 0 | MP32: 0 | MQ32: 0 | MR32: 0 | MS32: 0 | MT32: 0 | MU32: 0 | MV32: 0 | MW32: 1 | MX32: 3 | MY32: 0 | MZ32: 0 | NA32: 0 | NB32: 37 | NC32: 76 | ND32: 107 | NE32: 56 | NF32: 31 | NG32: 23 | OC32: 51 | OD32: 17 | OE32: 0 | OF32: 50 | OG32: 37 | OH32: 0 | OI32: 44 | OJ32: 21 | OK32: 0 | OL32: 38 | OM32: 13 | ON32: 1 | OO32: 31 | OP32: 5 | OQ32: 0 | OR32: 27 | OS32: 12 | OT32: 0 | OU32: 26 | OV32: 17 | OW32: 0 | OX32: 20 | OY32: 9 | OZ32: 0 | PA32: 20 | PB32: 15 | PC32: 2 | PD32: 2 | PE32: 0 | PN32: 75 | PO32: 34 | PP32: 29 | PQ32: 29 | PR32: 9 | PS32: 5 | PW32: 0 | PX32: 0 | QC32: =SUM(E32:QB32)-SUM(PQ32:PT32)-SUM(PW32:PZ32) -> 6,536.00 | QE32: =SUM(E32:H32) -> 604.0 | QF32: =SUM(I32:BO32) -> 605.0 | QG32: =SUM(BP32:CW32) -> 340.0 | QH32: =SUM(CX32:DE32) -> 239.0 | QI32: =SUM(DF32:DT32) -> 336.0 | QJ32: =SUM(DU32:ET32) -> 242.0 | QK32: =SUM(EU32:FY32) -> 0.0 | QL32: =SUM(FZ32:HD32) -> 0.0 | QM32: =SUM(HE32:HF32) -> 518.0 | QN32: =SUM(HG32:HL32) -> 607.0 | QO32: =SUM(HM32:HR32) -> 0.0 | QP32: =SUM(HS32:IJ32) -> 295.0 | QQ32: =SUM(IK32:JA32) -> 510.0 | QR32: =SUM(JB32:JT32) -> 218.0 | QS32: =SUM(JU32:KD32) -> 152.0 | QT32: =SUM(KE32:KP32) -> 292.0 | QU32: =SUM(KQ32:MU32) -> 648.0 | QV32: =SUM(MV32:NG32) -> 334.0 | QW32: =SUM(NH32:NI32) -> 0.0 | QX32: =SUM(NJ32:NL32) -> 0.0 | QY32: =SUM(NM32:NO32) -> 0.0 | QZ32: =SUM(NP32) -> 0.0 | RA32: =SUM(NQ32) -> 0.0 | RB32: =SUM(NR32:NT32) -> 0.0 | RC32: =SUM(NU32) -> 0.0 | RD32: =SUM(NV32) -> 0.0 | RE32: =SUM(NW32:OB32) -> 0.0 | RF32: =SUM(OC32:PE32) -> 458.0 | RG32: =SUM(PF32:PG32) -> 0.0 | RH32: =SUM(PH32:PI32) -> 0.0 | RI32: =SUM(PJ32:PM32) -> 0.0 | RJ32: =SUM(PN32:PP32) -> 138.0 | RK32: =SUM(PQ32) -> 29.0 | RL32: =SUM(PR32) -> 9.0 | RM32: =SUM(PS32) -> 5.0 | RN32: 0 | RO32: 0 | RP32: 0 | RQ32: =SUM(PW32) -> 0.0 | RR32: =SUM(PX32) -> 0.0 | RS32: =SUM(PY32) -> 0.0 | RT32: =SUM(PZ32) -> 0.0 | RU32: =SUM(QA32) -> 0.0 | RV32: =SUM(QB32) -> 0.0 | RW32: =SUM(QE32:RU32)-SUM(RI32:RM32)-SUM(RQ32:RT32) -> 6,398.0 | RY32: 0 | RZ32: 1 | SA32: 3 | SB32: 56 | SC32: 86 | SD32: 18 | SE32: =SUM(RY32:SD32) -> 164 | SN32: 7 | SO32: 1 | SR32: 108 | SS32: 25 | SU32: =SF32+SG32 -> 0 | SV32: =SH32+SI32+SJ32+SK32+SL32+SM32+SN32+SO32+SP32 -> 8 | SW32: =SQ32 -> 0 | SX32: =SR32 -> 108 | SY32: =SS32 -> 25 | TA32: 0 | TB32: 0 | TC32: 0 | TD32: 0 | TE32: 0 | TF32: 0 | TG32: 0 | TH32: 0 | TI32: 0 | TJ32: 0 | TK32: 0 | TL32: 0 | TM32: 0 | TN32: 0 | TO32: 0 | TS32: =M32+DH32+'2_MERCADO_PRIVADO'!G32+'2_MERCADO_PRIVADO'!BW32 -> 333 | TT32: =DH32+'2_MERCADO_PRIVADO'!AP32+'2_MERCADO_PRIVADO'!BW32 -> 337 | TU32: =BR32+'2_MERCADO_PRIVADO'!AP32+'2_MERCADO_PRIVADO'!BW32+'2_MERCADO_PRIVADO'!DD32 -> 336 | TV32: =CH32+CX32+DL32+'2_MERCADO_PRIVADO'!BF32+'2_MERCADO_PRIVADO'!CM32+'2_MERCADO_PRIVADO'!DT32 -> 299 | TW32: =CO32+DE32+'2_MERCADO_PRIVADO'!BM32+'2_MERCADO_PRIVADO'!CT32+'2_MERCADO_PRIVADO'!EA32 -> 222 | TX32: =KR32+LK32+LP32+'2_MERCADO_PRIVADO'!MM32+'2_MERCADO_PRIVADO'!NF32+'2_MERCADO_PRIVADO'!NK32 -> 173 | TY32: =MV32+MW32+MX32+MY32+MZ32+NA32+NB32+NC32+ND32+NE32+NF32+NG32+'2_MERCADO_PRIVADO'!OQ32+'2_MERCADO_PRIVADO'!OR32+'2_MERCADO_PRIVADO'!OS32+'2_MERCADO_PRIVADO'!OT32+'2_MERCADO_PRIVADO'!OU32+'2_MERCADO_PRIVADO'!OV32+'2_MERCADO_PRIVADO'!OW32+'2_MERCADO_PRIVADO'!OX32+'2_MERCADO_PRIVADO'!OY32+'2_MERCADO_PRIVADO'!OZ32+'2_MERCADO_PRIVADO'!PA32+'2_MERCADO_PRIVADO'!PB32+'2_MERCADO_PRIVADO'!PC32+'2_MERCADO_PRIVADO'!PD32+'2_MERCADO_PRIVADO'!PE32+'2_MERCADO_PRIVADO'!PF32 -> 336 | TZ32: =OC32+'2_MERCADO_PRIVADO'!QO32 -> 56 | UA32: =OD32+'2_MERCADO_PRIVADO'!QP32 -> 18
D33: SUBSIDIADO | E33: 7 | F33: 0 | G33: 0 | H33: 0 | I33: 6 | J33: 0 | K33: 0 | L33: 0 | M33: 0 | N33: 0 | O33: 0 | P33: 0 | Q33: 0 | R33: 0 | S33: 0 | T33: 0 | U33: 0 | V33: 0 | W33: 0 | X33: 0 | Y33: 0 | Z33: 0 | AA33: 0 | AB33: 0 | AF33: 0 | AG33: 0 | AH33: 0 | AJ33: 0 | AK33: 0 | AL33: 0 | AN33: 0 | AO33: 0 | AP33: 0 | AR33: 0 | AS33: 0 | AT33: 0 | AZ33: 0 | BA33: 0 | BB33: 0 | BD33: 0 | BE33: 0 | BF33: 0 | BG33: 0 | BH33: 0 | BI33: 0 | BJ33: 0 | BK33: 0 | BP33: 6 | BQ33: 4 | BR33: 2 | BS33: 0 | BT33: 0 | BU33: 0 | BV33: 0 | BW33: 0 | BX33: 0 | BY33: 0 | BZ33: 0 | CA33: 0 | CB33: 0 | CC33: 0 | CD33: 0 | CE33: 0 | CF33: 0 | CG33: 0 | CH33: 0 | CI33: 0 | CJ33: 0 | CK33: 0 | CL33: 0 | CM33: 0 | CN33: 0 | CO33: 0 | CU33: 1 | CX33: 6 | CY33: 1 | CZ33: 0 | DA33: 0 | DB33: 0 | DC33: 0 | DD33: 0 | DE33: 3 | DF33: 6 | DG33: 4 | DH33: 2 | DI33: 0 | DU33: 0 | DV33: 0 | DW33: 0 | DX33: 0 | DY33: 0 | DZ33: 0 | EA33: 0 | EB33: 0 | EC33: 0 | ED33: 0 | EE33: 0 | EF33: 0 | EG33: 0 | EH33: 0 | EI33: 0 | EJ33: 0 | EK33: 0 | EL33: 0 | EM33: 6 | EN33: 1 | EO33: 0 | EP33: 0 | EQ33: 0 | ER33: 0 | ES33: 0 | ET33: 3 | EU33: 0 | EV33: 0 | EW33: 0 | EX33: 0 | EY33: 0 | EZ33: 0 | FA33: 0 | FB33: 0 | FC33: 0 | FD33: 0 | FE33: 0 | FF33: 0 | FG33: 0 | FH33: 0 | FI33: 0 | FJ33: 0 | FK33: 0 | FL33: 0 | FM33: 0 | FN33: 0 | FO33: 0 | FP33: 0 | FQ33: 0 | FR33: 0 | FS33: 0 | FT33: 0 | FU33: 0 | FV33: 0 | FW33: 0 | FX33: 0 | FY33: 0 | FZ33: 0 | GA33: 0 | GB33: 0 | GC33: 0 | GD33: 0 | GE33: 0 | GF33: 0 | GG33: 0 | GH33: 0 | GI33: 0 | GJ33: 0 | GK33: 0 | GL33: 0 | GM33: 0 | GN33: 0 | GO33: 0 | GP33: 0 | GQ33: 0 | GR33: 0 | GS33: 0 | GT33: 0 | GU33: 0 | GV33: 0 | GW33: 0 | GX33: 0 | GY33: 0 | GZ33: 0 | HA33: 0 | HB33: 0 | HC33: 0 | HD33: 0 | HE33: 7 | HF33: 4 | HG33: 7 | HH33: 4 | HI33: 6 | HJ33: 0 | HK33: 0 | HL33: 0 | HS33: 6 | HT33: 0 | HU33: 0 | HV33: 0 | HW33: 0 | HX33: 0 | HY33: 0 | HZ33: 0 | IA33: 0 | IB33: 0 | ID33: 3 | IE33: 0 | IF33: 0 | IG33: 0 | IH33: 0 | II33: 0 | IK33: 0 | IL33: 3 | IM33: 1 | IN33: 0 | IO33: 3 | IP33: 0 | IQ33: 0 | IR33: 0 | IS33: 0 | IT33: 0 | IU33: 0 | IW33: 4 | IX33: 0 | IY33: 0 | IZ33: 0 | JA33: 0 | JB33: 6 | JC33: 1 | JD33: 0 | JE33: 0 | JF33: 0 | JG33: 0 | JH33: 0 | JI33: 0 | JJ33: 0 | JK33: 0 | JL33: 0 | JM33: 0 | JN33: 0 | JO33: 0 | JP33: 0 | JQ33: 0 | JR33: 0 | JS33: 0 | JU33: 6 | JV33: 0 | JW33: 0 | JX33: 0 | JY33: 0 | JZ33: 0 | KA33: 0 | KB33: 0 | KC33: 0 | KD33: 0 | KE33: 6 | KF33: 0 | KG33: 0 | KH33: 0 | KI33: 0 | KJ33: 0 | KK33: 0 | KM33: 3 | KN33: 0 | KO33: 0 | KQ33: 0 | KR33: 0 | KS33: 0 | KT33: 0 | KU33: 0 | KV33: 0 | KW33: 0 | KX33: 0 | KY33: 0 | KZ33: 0 | LA33: 2 | LB33: 3 | LC33: 0 | LD33: 0 | LE33: 0 | LF33: 0 | LG33: 0 | LH33: 0 | LI33: 0 | LJ33: 0 | LK33: 1 | LL33: 0 | LM33: 0 | LN33: 1 | LO33: 10 | LP33: 5 | LQ33: 7 | LR33: 2 | LS33: 4 | LT33: 0 | LU33: 0 | LV33: 0 | LW33: 0 | LX33: 0 | LY33: 0 | LZ33: 0 | MA33: 0 | MB33: 0 | MC33: 0 | MD33: 2 | ME33: 0 | MF33: 0 | MG33: 0 | MH33: 0 | MI33: 0 | MJ33: 0 | MK33: 0 | ML33: 0 | MM33: 0 | MN33: 0 | MO33: 0 | MP33: 0 | MQ33: 0 | MR33: 1 | MS33: 0 | MT33: 0 | MU33: 0 | MV33: 0 | MW33: 0 | MX33: 0 | MY33: 0 | MZ33: 0 | NA33: 0 | NB33: 2 | NC33: 1 | ND33: 2 | NE33: 1 | NF33: 0 | NG33: 1 | OC33: 2 | OD33: 4 | OE33: 0 | OF33: 1 | OG33: 0 | OH33: 0 | OI33: 1 | OJ33: 1 | OK33: 0 | OL33: 0 | OM33: 0 | ON33: 0 | OO33: 2 | OP33: 0 | OQ33: 0 | OR33: 1 | OS33: 0 | OT33: 0 | OU33: 1 | OV33: 1 | OW33: 0 | OX33: 0 | OY33: 0 | OZ33: 0 | PA33: 0 | PB33: 0 | PC33: 0 | PD33: 0 | PE33: 0 | PN33: 2 | PO33: 1 | PP33: 0 | PQ33: 0 | PR33: 0 | PW33: 0 | PX33: 0 | QC33: =SUM(E33:QB33)-SUM(PQ33:PT33)-SUM(PW33:PZ33) -> 190.00 | QE33: 7.0 | QF33: 6.0 | QG33: 13.0 | QH33: 10.0 | QI33: 12.0 | QJ33: 10.0 | QK33: 0.0 | QL33: 0.0 | QM33: 11.0 | QN33: 17.0 | QO33: 0.0 | QP33: 9.0 | QQ33: 11.0 | QR33: 7.0 | QS33: 6.0 | QT33: 9.0 | QU33: 38.0 | QV33: 7.0 | QW33: 0.0 | QX33: 0.0 | QY33: 0.0 | QZ33: 0.0 | RA33: 0.0 | RB33: 0.0 | RC33: 0.0 | RD33: 0.0 | RE33: 0.0 | RF33: 14.0 | RG33: 0.0 | RH33: 0.0 | RI33: 0.0 | RJ33: 3.0 | RK33: 0.0 | RL33: 0.0 | RM33: 0.0 | RN33: 0 | RO33: 0 | RP33: 0 | RQ33: 0.0 | RR33: 0.0 | RS33: 0.0 | RT33: 0.0 | RU33: 0.0 | RV33: 0.0 | RW33: 187.0 | RY33: 0 | RZ33: 0 | SA33: 0 | SB33: 1 | SC33: 0 | SD33: 0 | SE33: 1 | SR33: 2 | SS33: 2 | SU33: 0 | SV33: 0 | SW33: 0 | SX33: 2 | SY33: 2 | TA33: 0 | TB33: 0 | TC33: 0 | TD33: 0 | TE33: 0 | TF33: 0 | TG33: 0 | TH33: 0 | TI33: 0 | TJ33: 0 | TK33: 0 | TL33: 0 | TM33: 0 | TN33: 0 | TO33: 0 | TS33: =M33+DH33+'2_MERCADO_PRIVADO'!G33+'2_MERCADO_PRIVADO'!BW33 -> 2 | TT33: =DH33+'2_MERCADO_PRIVADO'!AP33+'2_MERCADO_PRIVADO'!BW33 -> 2 | TU33: =BR33+'2_MERCADO_PRIVADO'!AP33+'2_MERCADO_PRIVADO'!BW33+'2_MERCADO_PRIVADO'!DD33 -> 2 | TV33: =CH33+CX33+DL33+'2_MERCADO_PRIVADO'!BF33+'2_MERCADO_PRIVADO'!CM33+'2_MERCADO_PRIVADO'!DT33 -> 7 | TW33: =CO33+DE33+'2_MERCADO_PRIVADO'!BM33+'2_MERCADO_PRIVADO'!CT33+'2_MERCADO_PRIVADO'!EA33 -> 3 | TX33: =KR33+LK33+LP33+'2_MERCADO_PRIVADO'!MM33+'2_MERCADO_PRIVADO'!NF33+'2_MERCADO_PRIVADO'!NK33 -> 10 | TY33: =MV33+MW33+MX33+MY33+MZ33+NA33+NB33+NC33+ND33+NE33+NF33+NG33+'2_MERCADO_PRIVADO'!OQ33+'2_MERCADO_PRIVADO'!OR33+'2_MERCADO_PRIVADO'!OS33+'2_MERCADO_PRIVADO'!OT33+'2_MERCADO_PRIVADO'!OU33+'2_MERCADO_PRIVADO'!OV33+'2_MERCADO_PRIVADO'!OW33+'2_MERCADO_PRIVADO'!OX33+'2_MERCADO_PRIVADO'!OY33+'2_MERCADO_PRIVADO'!OZ33+'2_MERCADO_PRIVADO'!PA33+'2_MERCADO_PRIVADO'!PB33+'2_MERCADO_PRIVADO'!PC33+'2_MERCADO_PRIVADO'!PD33+'2_MERCADO_PRIVADO'!PE33+'2_MERCADO_PRIVADO'!PF33 -> 7 | TZ33: =OC33+'2_MERCADO_PRIVADO'!QO33 -> 2 | UA33: =OD33+'2_MERCADO_PRIVADO'!QP33 -> 4
D34: POBRE NO ASEGURADO | E34: 3 | F34: 2 | G34: 0 | H34: 0 | I34: 4 | J34: 0 | K34: 0 | L34: 0 | M34: 0 | N34: 0 | O34: 0 | P34: 0 | Q34: 0 | R34: 0 | S34: 0 | T34: 0 | U34: 0 | V34: 0 | W34: 0 | X34: 0 | Y34: 0 | Z34: 0 | AA34: 0 | AB34: 0 | AF34: 0 | AG34: 0 | AH34: 0 | AJ34: 0 | AK34: 0 | AL34: 0 | AN34: 0 | AO34: 0 | AP34: 0 | AR34: 0 | AS34: 0 | AT34: 0 | AZ34: 0 | BA34: 0 | BB34: 0 | BD34: 0 | BE34: 0 | BF34: 0 | BG34: 0 | BH34: 0 | BI34: 0 | BJ34: 0 | BK34: 0 | BP34: 0 | BQ34: 3 | BR34: 0 | BS34: 1 | BT34: 0 | BU34: 0 | BV34: 0 | BW34: 0 | BX34: 0 | BY34: 0 | BZ34: 0 | CA34: 0 | CB34: 0 | CC34: 0 | CD34: 0 | CE34: 0 | CF34: 0 | CG34: 0 | CH34: 0 | CI34: 0 | CJ34: 0 | CK34: 0 | CL34: 0 | CM34: 0 | CN34: 0 | CO34: 0 | CU34: 1 | CX34: 3 | CY34: 0 | CZ34: 0 | DA34: 0 | DB34: 0 | DC34: 0 | DD34: 0 | DE34: 0 | DF34: 0 | DG34: 2 | DH34: 1 | DI34: 1 | DU34: 0 | DV34: 0 | DW34: 0 | DX34: 0 | DY34: 0 | DZ34: 0 | EA34: 0 | EB34: 0 | EC34: 0 | ED34: 0 | EE34: 0 | EF34: 0 | EG34: 0 | EH34: 0 | EI34: 0 | EJ34: 0 | EK34: 0 | EL34: 0 | EM34: 3 | EN34: 0 | EO34: 0 | EP34: 0 | EQ34: 0 | ER34: 0 | ES34: 0 | ET34: 0 | EU34: 0 | EV34: 0 | EW34: 0 | EX34: 0 | EY34: 0 | EZ34: 0 | FA34: 0 | FB34: 0 | FC34: 0 | FD34: 0 | FE34: 0 | FF34: 0 | FG34: 0 | FH34: 0 | FI34: 0 | FJ34: 0 | FK34: 0 | FL34: 0 | FM34: 0 | FN34: 0 | FO34: 0 | FP34: 0 | FQ34: 0 | FR34: 0 | FS34: 0 | FT34: 0 | FU34: 0 | FV34: 0 | FW34: 0 | FX34: 0 | FY34: 0 | FZ34: 0 | GA34: 0 | GB34: 0 | GC34: 0 | GD34: 0 | GE34: 0 | GF34: 0 | GG34: 0 | GH34: 0 | GI34: 0 | GJ34: 0 | GK34: 0 | GL34: 0 | GM34: 0 | GN34: 0 | GO34: 0 | GP34: 0 | GQ34: 0 | GR34: 0 | GS34: 0 | GT34: 0 | GU34: 0 | GV34: 0 | GW34: 0 | GX34: 0 | GY34: 0 | GZ34: 0 | HA34: 0 | HB34: 0 | HC34: 0 | HD34: 0 | HE34: 2 | HF34: 4 | HG34: 0 | HH34: 4 | HI34: 1 | HJ34: 2 | HK34: 0 | HL34: 1 | HS34: 3 | HT34: 0 | HU34: 0 | HV34: 0 | HW34: 0 | HX34: 0 | HY34: 0 | HZ34: 0 | IA34: 0 | IB34: 0 | ID34: 0 | IE34: 2 | IF34: 0 | IG34: 0 | IH34: 0 | II34: 0 | IK34: 0 | IL34: 2 | IM34: 2 | IN34: 0 | IO34: 0 | IP34: 0 | IQ34: 0 | IR34: 1 | IS34: 1 | IT34: 0 | IU34: 0 | IW34: 1 | IX34: 0 | IY34: 0 | IZ34: 0 | JA34: 0 | JB34: 3 | JC34: 0 | JD34: 0 | JE34: 0 | JF34: 0 | JG34: 0 | JH34: 0 | JI34: 0 | JJ34: 0 | JK34: 0 | JL34: 0 | JM34: 0 | JN34: 0 | JO34: 0 | JP34: 0 | JQ34: 0 | JR34: 0 | JS34: 0 | JU34: 3 | JV34: 1 | JW34: 0 | JX34: 0 | JY34: 0 | JZ34: 1 | KA34: 1 | KB34: 0 | KC34: 0 | KD34: 0 | KE34: 3 | KF34: 1 | KG34: 0 | KH34: 0 | KI34: 0 | KJ34: 1 | KK34: 0 | KM34: 0 | KN34: 1 | KO34: 0 | KQ34: 0 | KR34: 0 | KS34: 0 | KT34: 0 | KU34: 0 | KV34: 0 | KW34: 0 | KX34: 0 | KY34: 0 | KZ34: 0 | LA34: 0 | LB34: 1 | LC34: 0 | LD34: 0 | LE34: 0 | LF34: 0 | LG34: 0 | LH34: 0 | LI34: 0 | LJ34: 0 | LK34: 0 | LL34: 0 | LM34: 0 | LN34: 0 | LO34: 1 | LP34: 2 | LQ34: 0 | LR34: 0 | LS34: 2 | LT34: 0 | LU34: 0 | LV34: 0 | LW34: 0 | LX34: 0 | LY34: 0 | LZ34: 0 | MA34: 0 | MB34: 1 | MC34: 0 | MD34: 0 | ME34: 0 | MF34: 0 | MG34: 0 | MH34: 0 | MI34: 0 | MJ34: 0 | MK34: 0 | ML34: 0 | MM34: 0 | MN34: 0 | MO34: 0 | MP34: 0 | MQ34: 0 | MR34: 0 | MS34: 0 | MT34: 0 | MU34: 0 | MV34: 0 | MW34: 0 | MX34: 0 | MY34: 0 | MZ34: 0 | NA34: 0 | NB34: 1 | NC34: 1 | ND34: 2 | NE34: 0 | NF34: 0 | NG34: 0 | OC34: 1 | OD34: 0 | OE34: 0 | OF34: 0 | OG34: 1 | OH34: 0 | OI34: 0 | OJ34: 0 | OK34: 0 | OL34: 0 | OM34: 0 | ON34: 0 | OO34: 1 | OP34: 0 | OQ34: 0 | OR34: 1 | OS34: 0 | OT34: 0 | OU34: 1 | OV34: 0 | OW34: 0 | OX34: 0 | OY34: 0 | OZ34: 0 | PA34: 2 | PB34: 2 | PC34: 0 | PD34: 0 | PE34: 0 | PN34: 1 | PO34: 1 | PP34: 2 | PQ34: 2 | PR34: 0 | PS34: 0 | PW34: 0 | PX34: 0 | QC34: =SUM(E34:QB34)-SUM(PQ34:PT34)-SUM(PW34:PZ34) -> 89.00 | QE34: 5.0 | QF34: 4.0 | QG34: 5.0 | QH34: 3.0 | QI34: 4.0 | QJ34: 3.0 | QK34: 0.0 | QL34: 0.0 | QM34: 6.0 | QN34: 8.0 | QO34: 0.0 | QP34: 5.0 | QQ34: 7.0 | QR34: 3.0 | QS34: 6.0 | QT34: 6.0 | QU34: 7.0 | QV34: 4.0 | QW34: 0.0 | QX34: 0.0 | QY34: 0.0 | QZ34: 0.0 | RA34: 0.0 | RB34: 0.0 | RC34: 0.0 | RD34: 0.0 | RE34: 0.0 | RF34: 9.0 | RG34: 0.0 | RH34: 0.0 | RI34: 0.0 | RJ34: 4.0 | RK34: 2.0 | RL34: 0.0 | RM34: 0.0 | RN34: 0 | RO34: 0 | RP34: 0 | RQ34: 0.0 | RR34: 0.0 | RS34: 0.0 | RT34: 0.0 | RU34: 0.0 | RV34: 0.0 | RW34: 85.0 | RY34: 0 | RZ34: 0 | SA34: 0 | SB34: 0 | SC34: 1 | SD34: 0 | SE34: 1 | SU34: 0 | SV34: 0 | SW34: 0 | SX34: 0 | SY34: 0 | TA34: 0 | TB34: 0 | TC34: 0 | TD34: 0 | TE34: 0 | TF34: 0 | TG34: 0 | TH34: 0 | TI34: 0 | TJ34: 0 | TK34: 0 | TL34: 0 | TM34: 0 | TN34: 0 | TO34: 0 | TS34: =M34+DH34+'2_MERCADO_PRIVADO'!G34+'2_MERCADO_PRIVADO'!BW34 -> 2 | TT34: =DH34+'2_MERCADO_PRIVADO'!AP34+'2_MERCADO_PRIVADO'!BW34 -> 2 | TU34: =BR34+'2_MERCADO_PRIVADO'!AP34+'2_MERCADO_PRIVADO'!BW34+'2_MERCADO_PRIVADO'!DD34 -> 1 | TV34: =CH34+CX34+DL34+'2_MERCADO_PRIVADO'!BF34+'2_MERCADO_PRIVADO'!CM34+'2_MERCADO_PRIVADO'!DT34 -> 3 | TW34: =CO34+DE34+'2_MERCADO_PRIVADO'!BM34+'2_MERCADO_PRIVADO'!CT34+'2_MERCADO_PRIVADO'!EA34 -> 3 | TX34: =KR34+LK34+LP34+'2_MERCADO_PRIVADO'!MM34+'2_MERCADO_PRIVADO'!NF34+'2_MERCADO_PRIVADO'!NK34 -> 2 | TY34: =MV34+MW34+MX34+MY34+MZ34+NA34+NB34+NC34+ND34+NE34+NF34+NG34+'2_MERCADO_PRIVADO'!OQ34+'2_MERCADO_PRIVADO'!OR34+'2_MERCADO_PRIVADO'!OS34+'2_MERCADO_PRIVADO'!OT34+'2_MERCADO_PRIVADO'!OU34+'2_MERCADO_PRIVADO'!OV34+'2_MERCADO_PRIVADO'!OW34+'2_MERCADO_PRIVADO'!OX34+'2_MERCADO_PRIVADO'!OY34+'2_MERCADO_PRIVADO'!OZ34+'2_MERCADO_PRIVADO'!PA34+'2_MERCADO_PRIVADO'!PB34+'2_MERCADO_PRIVADO'!PC34+'2_MERCADO_PRIVADO'!PD34+'2_MERCADO_PRIVADO'!PE34+'2_MERCADO_PRIVADO'!PF34 -> 5 | TZ34: =OC34+'2_MERCADO_PRIVADO'!QO34 -> 1 | UA34: =OD34+'2_MERCADO_PRIVADO'!QP34 -> 0
D35: REGIMEN ESPECIAL | E35: 51 | F35: 3 | G35: 0 | H35: 0 | I35: 52 | J35: 0 | K35: 0 | L35: 0 | M35: 0 | N35: 0 | O35: 0 | P35: 0 | Q35: 0 | R35: 0 | S35: 0 | T35: 0 | U35: 0 | V35: 0 | W35: 0 | X35: 0 | Y35: 0 | Z35: 0 | AA35: 0 | AB35: 0 | AF35: 0 | AG35: 0 | AH35: 0 | AJ35: 0 | AK35: 0 | AL35: 0 | AN35: 0 | AO35: 0 | AP35: 0 | AR35: 0 | AS35: 0 | AT35: 0 | AZ35: 1 | BA35: 0 | BB35: 0 | BD35: 0 | BE35: 0 | BF35: 0 | BG35: 0 | BH35: 1 | BI35: 0 | BJ35: 0 | BK35: 0 | BP35: 4 | BQ35: 4 | BR35: 2 | BS35: 0 | BT35: 0 | BU35: 0 | BV35: 0 | BW35: 0 | BX35: 0 | BY35: 0 | BZ35: 0 | CA35: 0 | CB35: 0 | CC35: 0 | CD35: 0 | CE35: 0 | CF35: 0 | CG35: 0 | CH35: 0 | CI35: 0 | CJ35: 0 | CK35: 0 | CL35: 0 | CM35: 0 | CN35: 0 | CO35: 0 | CU35: 0 | CX35: 13 | CY35: 0 | CZ35: 0 | DA35: 0 | DB35: 0 | DC35: 0 | DD35: 0 | DE35: 4 | DF35: 4 | DG35: 4 | DH35: 2 | DI35: 0 | DU35: 0 | DV35: 0 | DW35: 0 | DX35: 0 | DY35: 0 | DZ35: 0 | EA35: 0 | EB35: 0 | EC35: 0 | ED35: 0 | EE35: 0 | EF35: 0 | EG35: 0 | EH35: 0 | EI35: 0 | EJ35: 0 | EK35: 0 | EL35: 0 | EM35: 13 | EN35: 0 | EO35: 0 | EP35: 0 | EQ35: 0 | ER35: 0 | ES35: 0 | ET35: 4 | EU35: 0 | EV35: 0 | EW35: 0 | EX35: 0 | EY35: 0 | EZ35: 0 | FA35: 0 | FB35: 0 | FC35: 0 | FD35: 0 | FE35: 0 | FF35: 0 | FG35: 0 | FH35: 0 | FI35: 0 | FJ35: 0 | FK35: 0 | FL35: 0 | FM35: 0 | FN35: 0 | FO35: 0 | FP35: 0 | FQ35: 0 | FR35: 0 | FS35: 0 | FT35: 0 | FU35: 0 | FV35: 0 | FW35: 0 | FX35: 0 | FY35: 0 | FZ35: 0 | GA35: 0 | GB35: 0 | GC35: 0 | GD35: 0 | GE35: 0 | GF35: 0 | GG35: 0 | GH35: 0 | GI35: 0 | GJ35: 0 | GK35: 0 | GL35: 0 | GM35: 0 | GN35: 0 | GO35: 0 | GP35: 0 | GQ35: 0 | GR35: 0 | GS35: 0 | GT35: 0 | GU35: 0 | GV35: 0 | GW35: 0 | GX35: 0 | GY35: 0 | GZ35: 0 | HA35: 0 | HB35: 0 | HC35: 0 | HD35: 0 | HE35: 9 | HF35: 9 | HG35: 9 | HH35: 9 | HI35: 2 | HJ35: 0 | HK35: 0 | HL35: 0 | HS35: 2 | HT35: 0 | HU35: 0 | HV35: 0 | HW35: 0 | HX35: 0 | HY35: 0 | HZ35: 0 | IA35: 0 | IB35: 0 | ID35: 5 | IE35: 0 | IF35: 0 | IG35: 0 | IH35: 0 | II35: 0 | IK35: 0 | IL35: 8 | IM35: 0 | IN35: 0 | IO35: 0 | IP35: 0 | IQ35: 1 | IR35: 0 | IS35: 1 | IT35: 2 | IU35: 2 | IW35: 0 | IX35: 0 | IY35: 0 | IZ35: 0 | JA35: 0 | JB35: 12 | JC35: 0 | JD35: 0 | JE35: 0 | JF35: 0 | JG35: 0 | JH35: 0 | JI35: 0 | JJ35: 0 | JK35: 0 | JL35: 0 | JM35: 0 | JN35: 0 | JO35: 0 | JP35: 0 | JQ35: 0 | JR35: 0 | JS35: 0 | JU35: 2 | JV35: 0 | JW35: 0 | JX35: 0 | JY35: 0 | JZ35: 0 | KA35: 0 | KB35: 0 | KC35: 0 | KD35: 0 | KE35: 2 | KF35: 0 | KG35: 0 | KH35: 0 | KI35: 0 | KJ35: 0 | KK35: 0 | KM35: 5 | KN35: 0 | KO35: 0 | KQ35: 0 | KR35: 0 | KS35: 0 | KT35: 0 | KU35: 0 | KV35: 0 | KW35: 0 | KX35: 0 | KY35: 0 | KZ35: 0 | LA35: 0 | LB35: 0 | LC35: 0 | LD35: 0 | LE35: 0 | LF35: 0 | LG35: 0 | LH35: 0 | LI35: 0 | LJ35: 0 | LK35: 0 | LL35: 0 | LM35: 0 | LN35: 0 | LO35: 1 | LP35: 2 | LQ35: 2 | LR35: 0 | LS35: 3 | LT35: 0 | LU35: 0 | LV35: 0 | LW35: 0 | LX35: 0 | LY35: 0 | LZ35: 0 | MA35: 0 | MB35: 0 | MC35: 0 | MD35: 0 | ME35: 0 | MF35: 0 | MG35: 0 | MH35: 0 | MI35: 0 | MJ35: 0 | MK35: 0 | ML35: 0 | MM35: 0 | MN35: 0 | MO35: 0 | MP35: 0 | MQ35: 0 | MR35: 0 | MS35: 0 | MT35: 0 | MU35: 0 | MV35: 1 | MW35: 0 | MX35: 0 | MY35: 0 | MZ35: 0 | NA35: 0 | NB35: 0 | NC35: 0 | ND35: 1 | NE35: 0 | NF35: 1 | NG35: 1 | OC35: 6 | OD35: 0 | OE35: 0 | OF35: 3 | OG35: 1 | OH35: 0 | OI35: 2 | OJ35: 0 | OK35: 0 | OL35: 1 | OM35: 1 | ON35: 0 | OO35: 1 | OP35: 1 | OQ35: 0 | OR35: 1 | OS35: 1 | OT35: 0 | OU35: 1 | OV35: 1 | OW35: 0 | OX35: 4 | OY35: 0 | OZ35: 0 | PA35: 1 | PB35: 0 | PC35: 1 | PD35: 0 | PE35: 0 | PN35: 12 | PO35: 5 | PP35: 6 | PQ35: 6 | PR35: 12 | PS35: 3 | PW35: 0 | PX35: 0 | QC35: =SUM(E35:QB35)-SUM(PQ35:PT35)-SUM(PW35:PZ35) -> 303.00 | QE35: 54.0 | QF35: 54.0 | QG35: 10.0 | QH35: 17.0 | QI35: 10.0 | QJ35: 17.0 | QK35: 0.0 | QL35: 0.0 | QM35: 18.0 | QN35: 20.0 | QO35: 0.0 | QP35: 7.0 | QQ35: 14.0 | QR35: 12.0 | QS35: 2.0 | QT35: 7.0 | QU35: 8.0 | QV35: 4.0 | QW35: 0.0 | QX35: 0.0 | QY35: 0.0 | QZ35: 0.0 | RA35: 0.0 | RB35: 0.0 | RC35: 0.0 | RD35: 0.0 | RE35: 0.0 | RF35: 26.0 | RG35: 0.0 | RH35: 0.0 | RI35: 0.0 | RJ35: 23.0 | RK35: 6.0 | RL35: 12.0 | RM35: 3.0 | RN35: 0 | RO35: 0 | RP35: 0 | RQ35: 0.0 | RR35: 0.0 | RS35: 0.0 | RT35: 0.0 | RU35: 0.0 | RV35: 0.0 | RW35: 280.0 | RY35: 0 | RZ35: 0 | SA35: 0 | SB35: 0 | SC35: 1 | SD35: 0 | SE35: 1 | SU35: 0 | SV35: 0 | SW35: 0 | SX35: 0 | SY35: 0 | TA35: 0 | TB35: 0 | TC35: 0 | TD35: 0 | TE35: 0 | TF35: 0 | TG35: 0 | TH35: 0 | TI35: 0 | TJ35: 0 | TK35: 0 | TL35: 0 | TM35: 0 | TN35: 0 | TO35: 0 | TS35: =M35+DH35+'2_MERCADO_PRIVADO'!G35+'2_MERCADO_PRIVADO'!BW35 -> 14 | TT35: =DH35+'2_MERCADO_PRIVADO'!AP35+'2_MERCADO_PRIVADO'!BW35 -> 14 | TU35: =BR35+'2_MERCADO_PRIVADO'!AP35+'2_MERCADO_PRIVADO'!BW35+'2_MERCADO_PRIVADO'!DD35 -> 14 | TV35: =CH35+CX35+DL35+'2_MERCADO_PRIVADO'!BF35+'2_MERCADO_PRIVADO'!CM35+'2_MERCADO_PRIVADO'!DT35 -> 17 | TW35: =CO35+DE35+'2_MERCADO_PRIVADO'!BM35+'2_MERCADO_PRIVADO'!CT35+'2_MERCADO_PRIVADO'!EA35 -> 5 | TX35: =KR35+LK35+LP35+'2_MERCADO_PRIVADO'!MM35+'2_MERCADO_PRIVADO'!NF35+'2_MERCADO_PRIVADO'!NK35 -> 4 | TY35: =MV35+MW35+MX35+MY35+MZ35+NA35+NB35+NC35+ND35+NE35+NF35+NG35+'2_MERCADO_PRIVADO'!OQ35+'2_MERCADO_PRIVADO'!OR35+'2_MERCADO_PRIVADO'!OS35+'2_MERCADO_PRIVADO'!OT35+'2_MERCADO_PRIVADO'!OU35+'2_MERCADO_PRIVADO'!OV35+'2_MERCADO_PRIVADO'!OW35+'2_MERCADO_PRIVADO'!OX35+'2_MERCADO_PRIVADO'!OY35+'2_MERCADO_PRIVADO'!OZ35+'2_MERCADO_PRIVADO'!PA35+'2_MERCADO_PRIVADO'!PB35+'2_MERCADO_PRIVADO'!PC35+'2_MERCADO_PRIVADO'!PD35+'2_MERCADO_PRIVADO'!PE35+'2_MERCADO_PRIVADO'!PF35 -> 4 | TZ35: =OC35+'2_MERCADO_PRIVADO'!QO35 -> 6 | UA35: =OD35+'2_MERCADO_PRIVADO'!QP35 -> 0
D36: TOTAL REGIMEN | E36: 651 | F36: 19 | G36: 0 | H36: 0 | I36: 664 | J36: 0 | K36: 0 | L36: 0 | M36: 0 | N36: 0 | O36: 0 | P36: 0 | Q36: 0 | R36: 0 | S36: 0 | T36: 0 | U36: 0 | V36: 0 | W36: 0 | X36: 0 | Y36: 0 | Z36: 0 | AA36: 0 | AB36: 0 | AC36: =SUM(AC32:AC35) -> 0 | AD36: 0 | AE36: 0 | AF36: 0 | AG36: 0 | AH36: 0 | AI36: 0 | AJ36: 0 | AK36: 0 | AL36: 0 | AM36: 0 | AN36: 0 | AO36: 0 | AP36: 0 | AQ36: 0 | AR36: 0 | AS36: 0 | AT36: 0 | AU36: 0 | AV36: 0 | AW36: 0 | AX36: 0 | AY36: 0 | AZ36: 1 | BA36: 0 | BB36: 0 | BC36: 0 | BD36: 2 | BE36: 1 | BF36: 0 | BG36: 0 | BH36: 1 | BI36: 0 | BJ36: 0 | BK36: 0 | BL36: 0 | BM36: 0 | BN36: 0 | BO36: 0 | BP36: 107 | BQ36: 118 | BR36: 135 | BS36: 1 | BT36: 0 | BU36: 0 | BV36: 0 | BW36: 0 | BX36: 0 | BY36: 0 | BZ36: 0 | CA36: 0 | CB36: 0 | CC36: 0 | CD36: 0 | CE36: 0 | CF36: 0 | CG36: 0 | CH36: 1 | CI36: 0 | CJ36: 0 | CK36: 1 | CL36: 2 | CM36: 0 | CN36: 0 | CO36: 1 | CP36: =SUM(CP32:CP35) -> 0 | CQ36: 0 | CR36: 0 | CS36: 0 | CT36: 0 | CU36: 2 | CV36: 0 | CW36: 0 | CX36: 135 | CY36: 4 | CZ36: 0 | DA36: 1 | DB36: 0 | DC36: 0 | DD36: 0 | DE36: 129 | DF36: 107 | DG36: 117 | DH36: 137 | DI36: 1 | DJ36: 0 | DK36: 0 | DL36: 0 | DM36: 0 | DN36: 0 | DO36: 0 | DP36: 0 | DQ36: 0 | DR36: 0 | DS36: 0 | DT36: 0 | DU36: 0 | DV36: 0 | DW36: 0 | DX36: 0 | DY36: 0 | DZ36: 0 | EA36: 0 | EB36: 0 | EC36: 0 | ED36: 0 | EE36: 0 | EF36: 0 | EG36: 0 | EH36: 0 | EI36: 0 | EJ36: 0 | EK36: 0 | EL36: 0 | EM36: 136 | EN36: 4 | EO36: 0 | EP36: 2 | EQ36: 0 | ER36: 0 | ES36: 0 | ET36: 130 | EU36: 0 | EV36: 0 | EW36: 0 | EX36: 0 | EY36: 0 | EZ36: 0 | FA36: 0 | FB36: 0 | FC36: 0 | FD36: 0 | FE36: 0 | FF36: 0 | FG36: 0 | FH36: 0 | FI36: 0 | FJ36: 0 | FK36: 0 | FL36: 0 | FM36: 0 | FN36: 0 | FO36: 0 | FP36: 0 | FQ36: 0 | FR36: 0 | FS36: 0 | FT36: 0 | FU36: 0 | FV36: 0 | FW36: 0 | FX36: 0 | FY36: 0 | FZ36: 0 | GA36: 0 | GB36: 0 | GC36: 0 | GD36: 0 | GE36: 0 | GF36: 0 | GG36: 0 | GH36: 0 | GI36: 0 | GJ36: 0 | GK36: 0 | GL36: 0 | GM36: 0 | GN36: 0 | GO36: 0 | GP36: 0 | GQ36: 0 | GR36: 0 | GS36: 0 | GT36: 0 | GU36: 0 | GV36: 0 | GW36: 0 | GX36: 0 | GY36: 0 | GZ36: 0 | HA36: 0 | HB36: 0 | HC36: 0 | HD36: 0 | HE36: 279 | HF36: 274 | HG36: 270 | HH36: 263 | HI36: 116 | HJ36: 2 | HK36: 0 | HL36: 1 | HM36: =SUM(HM32:HM35) -> 0 | HN36: 0 | HO36: 0 | HP36: 0 | HQ36: 0 | HR36: 0 | HS36: 131 | HT36: 0 | HU36: 0 | HV36: 0 | HW36: 0 | HX36: 1 | HY36: 0 | HZ36: 0 | IA36: 0 | IB36: 0 | ID36: 175 | IE36: 7 | IF36: 1 | IG36: 0 | IH36: 1 | II36: 0 | IJ36: 0 | IK36: 0 | IL36: 142 | IM36: 19 | IN36: 34 | IO36: 31 | IP36: 37 | IQ36: 40 | IR36: 41 | IS36: 35 | IT36: 46 | IU36: 48 | IV36: 0 | IW36: 43 | IX36: 0 | IY36: 8 | IZ36: 17 | JA36: 1 | JB36: 225 | JC36: 6 | JD36: 0 | JE36: 2 | JF36: 1 | JG36: 0 | JH36: 1 | JI36: 0 | JJ36: 0 | JK36: 0 | JL36: 1 | JM36: 0 | JN36: 0 | JO36: 1 | JP36: 2 | JQ36: 1 | JR36: 0 | JS36: 0 | JT36: =SUM(JT32:JT35) -> 0 | JU36: 163 | JV36: 1 | JW36: 0 | JX36: 0 | JY36: 0 | JZ36: 1 | KA36: 1 | KB36: 0 | KC36: 0 | KD36: 0 | KE36: 130 | KF36: 1 | KG36: 0 | KH36: 0 | KI36: 0 | KJ36: 2 | KK36: 0 | KM36: 174 | KN36: 6 | KO36: 1 | KP36: 0 | KQ36: 0 | KR36: 0 | KS36: 0 | KT36: 0 | KU36: 0 | KV36: 4 | KW36: 1 | KX36: 0 | KY36: 0 | KZ36: 0 | LA36: 84 | LB36: 51 | LC36: 9 | LD36: 5 | LE36: 3 | LF36: 0 | LG36: 0 | LH36: 0 | LI36: 0 | LJ36: 9 | LK36: 13 | LL36: 3 | LM36: 0 | LN36: 1 | LO36: 142 | LP36: 123 | LQ36: 108 | LR36: 82 | LS36: 50 | LT36: 5 | LU36: 0 | LV36: 0 | LW36: 0 | LX36: 0 | LY36: 0 | LZ36: 0 | MA36: 0 | MB36: 1 | MC36: 3 | MD36: 2 | ME36: 0 | MF36: 0 | MG36: 0 | MH36: 0 | MI36: 0 | MJ36: 0 | MK36: 0 | ML36: 1 | MM36: 0 | MN36: 0 | MO36: 0 | MP36: 0 | MQ36: 0 | MR36: 1 | MS36: 0 | MT36: 0 | MU36: 0 | MV36: 1 | MW36: 1 | MX36: 3 | MY36: 0 | MZ36: 0 | NA36: 0 | NB36: 40 | NC36: 78 | ND36: 112 | NE36: 57 | NF36: 32 | NG36: 25 | NI36: =SUM(NI32:NI35) -> 0 | NJ36: 0 | NK36: 0 | NL36: 0 | NM36: 0 | NN36: 0 | NO36: 0 | NP36: 0 | NQ36: 0 | NR36: 0 | NS36: 0 | NT36: 0 | NU36: 0 | NV36: 0 | NW36: 0 | NX36: 0 | NY36: =SUM(NY32:NY35) -> 0 | NZ36: 0 | OA36: 0 | OB36: 0 | OC36: 60 | OD36: 21 | OE36: 0 | OF36: 54 | OG36: 39 | OH36: 0 | OI36: 47 | OJ36: 22 | OK36: 0 | OL36: 39 | OM36: 14 | ON36: 1 | OO36: 35 | OP36: 6 | OQ36: 0 | OR36: 30 | OS36: 13 | OT36: 0 | OU36: 29 | OV36: 19 | OW36: 0 | OX36: 24 | OY36: 9 | OZ36: 0 | PA36: 23 | PB36: 17 | PC36: 3 | PD36: 2 | PE36: 0 | PF36: 0 | PG36: 0 | PH36: 0 | PI36: 0 | PJ36: 0 | PK36: 0 | PL36: 0 | PM36: 0 | PN36: 90 | PO36: 41 | PP36: 37 | PQ36: 37 | PR36: 21 | PS36: 8 | PT36: 0 | PU36: 0 | PV36: 0 | PW36: 0 | PX36: 0 | PY36: 0 | PZ36: 0 | QA36: 0 | QB36: 0 | QC36: =SUM(QC32:QC35) -> 7,118 | QE36: =SUM(QE32:QE35) -> 670.0 | QF36: =SUM(QF32:QF35) -> 669.0 | QG36: =SUM(QG32:QG35) -> 368.0 | QH36: =SUM(QH32:QH35) -> 269.0 | QI36: =SUM(QI32:QI35) -> 362.0 | QJ36: =SUM(QJ32:QJ35) -> 272.0 | QK36: =SUM(QK32:QK35) -> 0.0 | QL36: =SUM(QL32:QL35) -> 0.0 | QM36: =SUM(QM32:QM35) -> 553.0 | QN36: =SUM(QN32:QN35) -> 652.0 | QO36: =SUM(QO32:QO35) -> 0.0 | QP36: 316.0 | QQ36: =SUM(QQ32:QQ35) -> 542.0 | QR36: =SUM(QR32:QR35) -> 240.0 | QS36: =SUM(QS32:QS35) -> 166.0 | QT36: =SUM(QT32:QT35) -> 314.0 | QU36: =SUM(QU32:QU35) -> 701.0 | QV36: =SUM(QV32:QV35) -> 349.0 | QW36: =SUM(QW32:QW35) -> 0.0 | QX36: =SUM(QX32:QX35) -> 0.0 | QY36: =SUM(QY32:QY35) -> 0.0 | QZ36: =SUM(QZ32:QZ35) -> 0.0 | RA36: =SUM(RA32:RA35) -> 0.0 | RB36: 0.0 | RC36: =SUM(RC32:RC35) -> 0.0 | RD36: 0.0 | RE36: =SUM(RE32:RE35) -> 0.0 | RF36: =SUM(RF32:RF35) -> 507.0 | RG36: =SUM(RG32:RG35) -> 0.0 | RH36: =SUM(RH32:RH35) -> 0.0 | RI36: =SUM(RI32:RI35) -> 0.0 | RJ36: =SUM(RJ32:RJ35) -> 168.0 | RK36: 37.0 | RL36: =SUM(RL32:RL35) -> 21.0 | RM36: 8.0 | RN36: 0 | RO36: 0 | RP36: 0 | RQ36: =SUM(RQ32:RQ35) -> 0.0 | RR36: =SUM(RR32:RR35) -> 0.0 | RS36: =SUM(RS32:RS35) -> 0.0 | RT36: =SUM(RT32:RT35) -> 0.0 | RU36: =SUM(RU32:RU35) -> 0.0 | RV36: =SUM(RV32:RV35) -> 0.0 | RW36: 6,950.0 | RY36: 0 | RZ36: 1 | SA36: 3 | SB36: 57 | SC36: 88 | SD36: 18 | SE36: =SUM(SE32:SE35) -> 167 | SF36: =SUM(SF32:SF35) -> 0 | SG36: 0 | SH36: 0 | SI36: 0 | SJ36: 0 | SK36: 0 | SL36: 0 | SM36: 0 | SN36: 7 | SO36: 1 | SQ36: 0 | SR36: 110 | SS36: 27 | SU36: =SUM(SU32:SU35) -> 0 | SV36: 8 | SW36: 0 | SX36: 110 | SY36: 27 | TA36: 0 | TB36: 0 | TC36: 0 | TD36: 0 | TE36: 0 | TF36: 0 | TG36: 0 | TH36: 0 | TI36: 0 | TJ36: 0 | TK36: 0 | TL36: 0 | TM36: 0 | TN36: 0 | TO36: 0 | TS36: =M36+DH36+'2_MERCADO_PRIVADO'!G36+'2_MERCADO_PRIVADO'!BW36 -> 351 | TT36: =DH36+'2_MERCADO_PRIVADO'!AP36+'2_MERCADO_PRIVADO'!BW36 -> 355 | TU36: =BR36+'2_MERCADO_PRIVADO'!AP36+'2_MERCADO_PRIVADO'!BW36+'2_MERCADO_PRIVADO'!DD36 -> 353 | TV36: =CH36+CX36+DL36+'2_MERCADO_PRIVADO'!BF36+'2_MERCADO_PRIVADO'!CM36+'2_MERCADO_PRIVADO'!DT36 -> 326 | TW36: =CO36+DE36+'2_MERCADO_PRIVADO'!BM36+'2_MERCADO_PRIVADO'!CT36+'2_MERCADO_PRIVADO'!EA36 -> 233 | TX36: =KR36+LK36+LP36+'2_MERCADO_PRIVADO'!MM36+'2_MERCADO_PRIVADO'!NF36+'2_MERCADO_PRIVADO'!NK36 -> 189 | TY36: =MV36+MW36+MX36+MY36+MZ36+NA36+NB36+NC36+ND36+NE36+NF36+NG36+'2_MERCADO_PRIVADO'!OQ36+'2_MERCADO_PRIVADO'!OR36+'2_MERCADO_PRIVADO'!OS36+'2_MERCADO_PRIVADO'!OT36+'2_MERCADO_PRIVADO'!OU36+'2_MERCADO_PRIVADO'!OV36+'2_MERCADO_PRIVADO'!OW36+'2_MERCADO_PRIVADO'!OX36+'2_MERCADO_PRIVADO'!OY36+'2_MERCADO_PRIVADO'!OZ36+'2_MERCADO_PRIVADO'!PA36+'2_MERCADO_PRIVADO'!PB36+'2_MERCADO_PRIVADO'!PC36+'2_MERCADO_PRIVADO'!PD36+'2_MERCADO_PRIVADO'!PE36+'2_MERCADO_PRIVADO'!PF36 -> 352 | TZ36: =OC36+'2_MERCADO_PRIVADO'!QO36 -> 65 | UA36: =OD36+'2_MERCADO_PRIVADO'!QP36 -> 22
D37: INDIGENA | E37: 0 | F37: 0 | G37: 0 | H37: 0 | I37: 0 | J37: 0 | K37: 0 | L37: 0 | M37: 0 | N37: 0 | O37: 0 | P37: 0 | Q37: 0 | R37: 0 | S37: 0 | T37: 0 | U37: 0 | V37: 0 | W37: 0 | X37: 0 | Y37: 0 | Z37: 0 | AA37: 0 | AB37: 0 | AF37: 0 | AG37: 0 | AH37: 0 | AJ37: 0 | AK37: 0 | AL37: 0 | AN37: 0 | AO37: 0 | AP37: 0 | AR37: 0 | AS37: 0 | AT37: 0 | AZ37: 0 | BA37: 0 | BB37: 0 | BD37: 0 | BE37: 0 | BF37: 0 | BG37: 0 | BH37: 0 | BI37: 0 | BJ37: 0 | BK37: 0 | BP37: 0 | BQ37: 0 | BR37: 0 | BS37: 0 | BT37: 0 | BU37: 0 | BV37: 0 | BW37: 0 | BX37: 0 | BY37: 0 | BZ37: 0 | CA37: 0 | CB37: 0 | CC37: 0 | CD37: 0 | CE37: 0 | CF37: 0 | CG37: 0 | CH37: 0 | CI37: 0 | CJ37: 0 | CK37: 0 | CL37: 0 | CM37: 0 | CN37: 0 | CO37: 0 | CU37: 0 | CX37: 0 | CY37: 0 | CZ37: 0 | DA37: 0 | DB37: 0 | DC37: 0 | DD37: 0 | DE37: 0 | DF37: 0 | DG37: 0 | DH37: 0 | DI37: 0 | DU37: 0 | DV37: 0 | DW37: 0 | DX37: 0 | DY37: 0 | DZ37: 0 | EA37: 0 | EB37: 0 | EC37: 0 | ED37: 0 | EE37: 0 | EF37: 0 | EG37: 0 | EH37: 0 | EI37: 0 | EJ37: 0 | EK37: 0 | EL37: 0 | EM37: 0 | EN37: 0 | EO37: 0 | EP37: 0 | EQ37: 0 | ER37: 0 | ES37: 0 | ET37: 0 | EU37: 0 | EV37: 0 | EW37: 0 | EX37: 0 | EY37: 0 | EZ37: 0 | FA37: 0 | FB37: 0 | FC37: 0 | FD37: 0 | FE37: 0 | FF37: 0 | FG37: 0 | FH37: 0 | FI37: 0 | FJ37: 0 | FK37: 0 | FL37: 0 | FM37: 0 | FN37: 0 | FO37: 0 | FP37: 0 | FQ37: 0 | FR37: 0 | FS37: 0 | FT37: 0 | FU37: 0 | FV37: 0 | FW37: 0 | FX37: 0 | FY37: 0 | FZ37: 0 | GA37: 0 | GB37: 0 | GC37: 0 | GD37: 0 | GE37: 0 | GF37: 0 | GG37: 0 | GH37: 0 | GI37: 0 | GJ37: 0 | GK37: 0 | GL37: 0 | GM37: 0 | GN37: 0 | GO37: 0 | GP37: 0 | GQ37: 0 | GR37: 0 | GS37: 0 | GT37: 0 | GU37: 0 | GV37: 0 | GW37: 0 | GX37: 0 | GY37: 0 | GZ37: 0 | HA37: 0 | HB37: 0 | HC37: 0 | HD37: 0 | HE37: 0 | HF37: 0 | HG37: 0 | HH37: 0 | HI37: 0 | HJ37: 0 | HK37: 0 | HL37: 0 | HS37: 0 | HT37: 0 | HU37: 0 | HV37: 0 | HW37: 0 | HX37: 0 | HY37: 0 | HZ37: 0 | IA37: 0 | IB37: 0 | ID37: 0 | IE37: 1 | IF37: 0 | IG37: 0 | IH37: 0 | II37: 0 | IK37: 0 | IL37: 0 | IM37: 0 | IN37: 0 | IO37: 0 | IP37: 0 | IQ37: 0 | IR37: 0 | IS37: 0 | IT37: 0 | IU37: 0 | IW37: 0 | IX37: 0 | IY37: 0 | IZ37: 0 | JA37: 0 | JB37: 0 | JC37: 0 | JD37: 0 | JE37: 0 | JF37: 0 | JG37: 0 | JH37: 0 | JI37: 0 | JJ37: 0 | JK37: 0 | JL37: 0 | JM37: 0 | JN37: 0 | JO37: 0 | JP37: 0 | JQ37: 1 | JR37: 0 | JS37: 0 | JU37: 0 | JV37: 0 | JW37: 0 | JX37: 0 | JY37: 0 | JZ37: 0 | KA37: 0 | KB37: 0 | KC37: 0 | KD37: 0 | KE37: 0 | KF37: 0 | KG37: 0 | KH37: 0 | KI37: 0 | KJ37: 0 | KK37: 0 | KM37: 0 | KN37: 1 | KO37: 0 | KQ37: 0 | KR37: 0 | KS37: 0 | KT37: 0 | KU37: 0 | KV37: 0 | KW37: 0 | KX37: 0 | KY37: 0 | KZ37: 0 | LA37: 0 | LB37: 0 | LC37: 0 | LD37: 0 | LE37: 0 | LF37: 0 | LG37: 0 | LH37: 0 | LI37: 0 | LJ37: 0 | LK37: 0 | LL37: 0 | LM37: 0 | LN37: 0 | LO37: 0 | LP37: 1 | LQ37: 0 | LR37: 0 | LS37: 1 | LT37: 0 | LU37: 0 | LV37: 0 | LW37: 0 | LX37: 0 | LY37: 0 | LZ37: 0 | MA37: 0 | MB37: 0 | MC37: 0 | MD37: 0 | ME37: 0 | MF37: 0 | MG37: 0 | MH37: 0 | MI37: 0 | MJ37: 0 | MK37: 0 | ML37: 0 | MM37: 0 | MN37: 0 | MO37: 0 | MP37: 0 | MQ37: 0 | MR37: 0 | MS37: 0 | MT37: 0 | MU37: 0 | MV37: 0 | MW37: 0 | MX37: 0 | MY37: 0 | MZ37: 0 | NA37: 0 | NB37: 1 | NC37: 0 | ND37: 0 | NE37: 0 | NF37: 0 | NG37: 0 | OC37: 0 | OD37: 0 | OE37: 0 | OF37: 0 | OG37: 0 | OH37: 0 | OI37: 0 | OJ37: 0 | OK37: 0 | OL37: 0 | OM37: 0 | ON37: 0 | OO37: 0 | OP37: 0 | OQ37: 0 | OR37: 0 | OS37: 0 | OT37: 0 | OU37: 0 | OV37: 0 | OW37: 0 | OX37: 0 | OY37: 0 | OZ37: 0 | PA37: 0 | PB37: 0 | PC37: 0 | PD37: 0 | PE37: 0 | PN37: 0 | PO37: 0 | PP37: 0 | PQ37: 0 | PR37: 0 | PS37: 0 | PW37: 0 | PX37: 0 | QC37: =SUM(E37:QB37)-SUM(PQ37:PT37)-SUM(PW37:PZ37) -> 6.00 | QE37: =SUM(E37:H37) -> 0.0 | QF37: =SUM(I37:BO37) -> 0.0 | QG37: =SUM(BP37:CW37) -> 0.0 | QH37: =SUM(CX37:DE37) -> 0.0 | QI37: =SUM(DF37:DT37) -> 0.0 | QJ37: =SUM(DU37:ET37) -> 0.0 | QK37: =SUM(EU37:FY37) -> 0.0 | QL37: =SUM(FZ37:HD37) -> 0.0 | QM37: =SUM(HE37:HF37) -> 0.0 | QN37: =SUM(HG37:HL37) -> 0.0 | QO37: =SUM(HM37:HR37) -> 0.0 | QP37: =SUM(HS37:IJ37) -> 1.0 | QQ37: =SUM(IK37:JA37) -> 0.0 | QR37: =SUM(JB37:JT37) -> 1.0 | QS37: =SUM(JU37:KD37) -> 0.0 | QT37: =SUM(KE37:KP37) -> 1.0 | QU37: =SUM(KQ37:MU37) -> 2.0 | QV37: =SUM(MV37:NG37) -> 1.0 | QW37: =SUM(NH37:NI37) -> 0.0 | QX37: =SUM(NJ37:NL37) -> 0.0 | QY37: =SUM(NM37:NO37) -> 0.0 | QZ37: =SUM(NP37) -> 0.0 | RA37: =SUM(NQ37) -> 0.0 | RB37: =SUM(NR37:NT37) -> 0.0 | RC37: =SUM(NU37) -> 0.0 | RD37: =SUM(NV37) -> 0.0 | RE37: =SUM(NW37:OB37) -> 0.0 | RF37: =SUM(OC37:PE37) -> 0.0 | RG37: =SUM(PF37:PG37) -> 0.0 | RH37: =SUM(PH37:PI37) -> 0.0 | RI37: =SUM(PJ37:PM37) -> 0.0 | RJ37: =SUM(PN37:PP37) -> 0.0 | RK37: =SUM(PQ37) -> 0.0 | RL37: =SUM(PR37) -> 0.0 | RM37: =SUM(PS37) -> 0.0 | RN37: 0 | RO37: 0 | RP37: 0 | RQ37: =SUM(PW37) -> 0.0 | RR37: =SUM(PX37) -> 0.0 | RS37: =SUM(PY37) -> 0.0 | RT37: =SUM(PZ37) -> 0.0 | RU37: =SUM(QA37) -> 0.0 | RV37: =SUM(QB37) -> 0.0 | RW37: =SUM(QE37:RU37)-SUM(RI37:RM37)-SUM(RQ37:RT37) -> 6.0 | RY37: 0 | RZ37: 0 | SA37: 0 | SB37: 0 | SC37: 0 | SD37: 0 | SE37: =SUM(RY37:SD37) -> 0 | SU37: =SF37+SG37 -> 0 | SV37: =SH37+SI37+SJ37+SK37+SL37+SM37+SN37+SO37+SP37 -> 0 | SW37: =SQ37 -> 0 | SX37: =SR37 -> 0 | SY37: =SS37 -> 0 | TA37: 0 | TB37: 0 | TC37: 0 | TD37: 0 | TE37: 0 | TF37: 0 | TG37: 0 | TH37: 0 | TI37: 0 | TJ37: 0 | TK37: 0 | TL37: 0 | TM37: 0 | TN37: 0 | TO37: 0 | TS37: =M37+DH37+'2_MERCADO_PRIVADO'!G37+'2_MERCADO_PRIVADO'!BW37 -> 0 | TT37: =DH37+'2_MERCADO_PRIVADO'!AP37+'2_MERCADO_PRIVADO'!BW37 -> 0 | TU37: =BR37+'2_MERCADO_PRIVADO'!AP37+'2_MERCADO_PRIVADO'!BW37+'2_MERCADO_PRIVADO'!DD37 -> 0 | TV37: =CH37+CX37+DL37+'2_MERCADO_PRIVADO'!BF37+'2_MERCADO_PRIVADO'!CM37+'2_MERCADO_PRIVADO'!DT37 -> 0 | TW37: =CO37+DE37+'2_MERCADO_PRIVADO'!BM37+'2_MERCADO_PRIVADO'!CT37+'2_MERCADO_PRIVADO'!EA37 -> 0 | TX37: =KR37+LK37+LP37+'2_MERCADO_PRIVADO'!MM37+'2_MERCADO_PRIVADO'!NF37+'2_MERCADO_PRIVADO'!NK37 -> 1 | TY37: =MV37+MW37+MX37+MY37+MZ37+NA37+NB37+NC37+ND37+NE37+NF37+NG37+'2_MERCADO_PRIVADO'!OQ37+'2_MERCADO_PRIVADO'!OR37+'2_MERCADO_PRIVADO'!OS37+'2_MERCADO_PRIVADO'!OT37+'2_MERCADO_PRIVADO'!OU37+'2_MERCADO_PRIVADO'!OV37+'2_MERCADO_PRIVADO'!OW37+'2_MERCADO_PRIVADO'!OX37+'2_MERCADO_PRIVADO'!OY37+'2_MERCADO_PRIVADO'!OZ37+'2_MERCADO_PRIVADO'!PA37+'2_MERCADO_PRIVADO'!PB37+'2_MERCADO_PRIVADO'!PC37+'2_MERCADO_PRIVADO'!PD37+'2_MERCADO_PRIVADO'!PE37+'2_MERCADO_PRIVADO'!PF37 -> 1 | TZ37: =OC37+'2_MERCADO_PRIVADO'!QO37 -> 0 | UA37: =OD37+'2_MERCADO_PRIVADO'!QP37 -> 0
D38: ROM (GITANO) | E38: 0 | F38: 0 | G38: 0 | H38: 0 | I38: 0 | J38: 0 | K38: 0 | L38: 0 | M38: 0 | N38: 0 | O38: 0 | P38: 0 | Q38: 0 | R38: 0 | S38: 0 | T38: 0 | U38: 0 | V38: 0 | W38: 0 | X38: 0 | Y38: 0 | Z38: 0 | AA38: 0 | AB38: 0 | AF38: 0 | AG38: 0 | AH38: 0 | AJ38: 0 | AK38: 0 | AL38: 0 | AN38: 0 | AO38: 0 | AP38: 0 | AR38: 0 | AS38: 0 | AT38: 0 | AZ38: 0 | BA38: 0 | BB38: 0 | BD38: 0 | BE38: 0 | BF38: 0 | BG38: 0 | BH38: 0 | BI38: 0 | BJ38: 0 | BK38: 0 | BP38: 0 | BQ38: 0 | BR38: 0 | BS38: 0 | BT38: 0 | BU38: 0 | BV38: 0 | BW38: 0 | BX38: 0 | BY38: 0 | BZ38: 0 | CA38: 0 | CB38: 0 | CC38: 0 | CD38: 0 | CE38: 0 | CF38: 0 | CG38: 0 | CH38: 0 | CI38: 0 | CJ38: 0 | CK38: 0 | CL38: 0 | CM38: 0 | CN38: 0 | CO38: 0 | CU38: 0 | CX38: 0 | CY38: 0 | CZ38: 0 | DA38: 0 | DB38: 0 | DC38: 0 | DD38: 0 | DE38: 0 | DF38: 0 | DG38: 0 | DH38: 0 | DI38: 0 | DU38: 0 | DV38: 0 | DW38: 0 | DX38: 0 | DY38: 0 | DZ38: 0 | EA38: 0 | EB38: 0 | EC38: 0 | ED38: 0 | EE38: 0 | EF38: 0 | EG38: 0 | EH38: 0 | EI38: 0 | EJ38: 0 | EK38: 0 | EL38: 0 | EM38: 0 | EN38: 0 | EO38: 0 | EP38: 0 | EQ38: 0 | ER38: 0 | ES38: 0 | ET38: 0 | EU38: 0 | EV38: 0 | EW38: 0 | EX38: 0 | EY38: 0 | EZ38: 0 | FA38: 0 | FB38: 0 | FC38: 0 | FD38: 0 | FE38: 0 | FF38: 0 | FG38: 0 | FH38: 0 | FI38: 0 | FJ38: 0 | FK38: 0 | FL38: 0 | FM38: 0 | FN38: 0 | FO38: 0 | FP38: 0 | FQ38: 0 | FR38: 0 | FS38: 0 | FT38: 0 | FU38: 0 | FV38: 0 | FW38: 0 | FX38: 0 | FY38: 0 | FZ38: 0 | GA38: 0 | GB38: 0 | GC38: 0 | GD38: 0 | GE38: 0 | GF38: 0 | GG38: 0 | GH38: 0 | GI38: 0 | GJ38: 0 | GK38: 0 | GL38: 0 | GM38: 0 | GN38: 0 | GO38: 0 | GP38: 0 | GQ38: 0 | GR38: 0 | GS38: 0 | GT38: 0 | GU38: 0 | GV38: 0 | GW38: 0 | GX38: 0 | GY38: 0 | GZ38: 0 | HA38: 0 | HB38: 0 | HC38: 0 | HD38: 0 | HE38: 0 | HF38: 0 | HG38: 0 | HH38: 0 | HI38: 0 | HJ38: 0 | HK38: 0 | HL38: 0 | HS38: 0 | HT38: 0 | HU38: 0 | HV38: 0 | HW38: 0 | HX38: 0 | HY38: 0 | HZ38: 0 | IA38: 0 | IB38: 0 | ID38: 0 | IE38: 0 | IF38: 0 | IG38: 0 | IH38: 0 | II38: 0 | IK38: 0 | IL38: 0 | IM38: 0 | IN38: 0 | IO38: 0 | IP38: 0 | IQ38: 0 | IR38: 0 | IS38: 0 | IT38: 0 | IU38: 0 | IW38: 0 | IX38: 0 | IY38: 0 | IZ38: 0 | JA38: 0 | JB38: 0 | JC38: 0 | JD38: 0 | JE38: 0 | JF38: 0 | JG38: 0 | JH38: 0 | JI38: 0 | JJ38: 0 | JK38: 0 | JL38: 0 | JM38: 0 | JN38: 0 | JO38: 0 | JP38: 0 | JQ38: 0 | JR38: 0 | JS38: 0 | JU38: 0 | JV38: 0 | JW38: 0 | JX38: 0 | JY38: 0 | JZ38: 0 | KA38: 0 | KB38: 0 | KC38: 0 | KD38: 0 | KE38: 0 | KF38: 0 | KG38: 0 | KH38: 0 | KI38: 0 | KJ38: 0 | KK38: 0 | KM38: 0 | KN38: 0 | KO38: 0 | KQ38: 0 | KR38: 0 | KS38: 0 | KT38: 0 | KU38: 0 | KV38: 0 | KW38: 0 | KX38: 0 | KY38: 0 | KZ38: 0 | LA38: 0 | LB38: 0 | LC38: 0 | LD38: 0 | LE38: 0 | LF38: 0 | LG38: 0 | LH38: 0 | LI38: 0 | LJ38: 0 | LK38: 0 | LL38: 0 | LM38: 0 | LN38: 0 | LO38: 0 | LP38: 0 | LQ38: 0 | LR38: 0 | LS38: 0 | LT38: 0 | LU38: 0 | LV38: 0 | LW38: 0 | LX38: 0 | LY38: 0 | LZ38: 0 | MA38: 0 | MB38: 0 | MC38: 0 | MD38: 0 | ME38: 0 | MF38: 0 | MG38: 0 | MH38: 0 | MI38: 0 | MJ38: 0 | MK38: 0 | ML38: 0 | MM38: 0 | MN38: 0 | MO38: 0 | MP38: 0 | MQ38: 0 | MR38: 0 | MS38: 0 | MT38: 0 | MU38: 0 | MV38: 0 | MW38: 0 | MX38: 0 | MY38: 0 | MZ38: 0 | NA38: 0 | NB38: 0 | NC38: 0 | ND38: 0 | NE38: 0 | NF38: 0 | NG38: 0 | OC38: 0 | OD38: 0 | OE38: 0 | OF38: 0 | OG38: 0 | OH38: 0 | OI38: 0 | OJ38: 0 | OK38: 0 | OL38: 0 | OM38: 0 | ON38: 0 | OO38: 0 | OP38: 0 | OQ38: 0 | OR38: 0 | OS38: 0 | OT38: 0 | OU38: 0 | OV38: 0 | OW38: 0 | OX38: 0 | OY38: 0 | OZ38: 0 | PA38: 0 | PB38: 0 | PC38: 0 | PD38: 0 | PE38: 0 | PN38: 0 | PO38: 0 | PP38: 0 | PQ38: 0 | PR38: 0 | PS38: 0 | PW38: 0 | PX38: 0 | QC38: 0.00 | QE38: 0.0 | QF38: 0.0 | QG38: 0.0 | QH38: 0.0 | QI38: 0.0 | QJ38: 0.0 | QK38: 0.0 | QL38: 0.0 | QM38: 0.0 | QN38: 0.0 | QO38: 0.0 | QP38: 0.0 | QQ38: 0.0 | QR38: 0.0 | QS38: 0.0 | QT38: 0.0 | QU38: 0.0 | QV38: 0.0 | QW38: 0.0 | QX38: 0.0 | QY38: 0.0 | QZ38: 0.0 | RA38: 0.0 | RB38: 0.0 | RC38: 0.0 | RD38: 0.0 | RE38: 0.0 | RF38: 0.0 | RG38: 0.0 | RH38: 0.0 | RI38: 0.0 | RJ38: 0.0 | RK38: 0.0 | RL38: 0.0 | RM38: 0.0 | RN38: 0 | RO38: 0 | RP38: 0 | RQ38: 0.0 | RR38: 0.0 | RS38: 0.0 | RT38: 0.0 | RU38: 0.0 | RV38: 0.0 | RW38: 0.0 | RY38: 0 | RZ38: 0 | SA38: 0 | SB38: 0 | SC38: 0 | SD38: 0 | SE38: 0 | SU38: 0 | SV38: 0 | SW38: 0 | SX38: 0 | SY38: 0 | TA38: 0 | TB38: 0 | TC38: 0 | TD38: 0 | TE38: 0 | TF38: 0 | TG38: 0 | TH38: 0 | TI38: 0 | TJ38: 0 | TK38: 0 | TL38: 0 | TM38: 0 | TN38: 0 | TO38: 0 | TS38: =M38+DH38+'2_MERCADO_PRIVADO'!G38+'2_MERCADO_PRIVADO'!BW38 -> 0 | TT38: =DH38+'2_MERCADO_PRIVADO'!AP38+'2_MERCADO_PRIVADO'!BW38 -> 0 | TU38: =BR38+'2_MERCADO_PRIVADO'!AP38+'2_MERCADO_PRIVADO'!BW38+'2_MERCADO_PRIVADO'!DD38 -> 0 | TV38: =CH38+CX38+DL38+'2_MERCADO_PRIVADO'!BF38+'2_MERCADO_PRIVADO'!CM38+'2_MERCADO_PRIVADO'!DT38 -> 0 | TW38: =CO38+DE38+'2_MERCADO_PRIVADO'!BM38+'2_MERCADO_PRIVADO'!CT38+'2_MERCADO_PRIVADO'!EA38 -> 0 | TX38: =KR38+LK38+LP38+'2_MERCADO_PRIVADO'!MM38+'2_MERCADO_PRIVADO'!NF38+'2_MERCADO_PRIVADO'!NK38 -> 0 | TY38: =MV38+MW38+MX38+MY38+MZ38+NA38+NB38+NC38+ND38+NE38+NF38+NG38+'2_MERCADO_PRIVADO'!OQ38+'2_MERCADO_PRIVADO'!OR38+'2_MERCADO_PRIVADO'!OS38+'2_MERCADO_PRIVADO'!OT38+'2_MERCADO_PRIVADO'!OU38+'2_MERCADO_PRIVADO'!OV38+'2_MERCADO_PRIVADO'!OW38+'2_MERCADO_PRIVADO'!OX38+'2_MERCADO_PRIVADO'!OY38+'2_MERCADO_PRIVADO'!OZ38+'2_MERCADO_PRIVADO'!PA38+'2_MERCADO_PRIVADO'!PB38+'2_MERCADO_PRIVADO'!PC38+'2_MERCADO_PRIVADO'!PD38+'2_MERCADO_PRIVADO'!PE38+'2_MERCADO_PRIVADO'!PF38 -> 0 | TZ38: =OC38+'2_MERCADO_PRIVADO'!QO38 -> 0 | UA38: =OD38+'2_MERCADO_PRIVADO'!QP38 -> 0
D39: RAIZAL | E39: 0 | F39: 0 | G39: 0 | H39: 0 | I39: 0 | J39: 0 | K39: 0 | L39: 0 | M39: 0 | N39: 0 | O39: 0 | P39: 0 | Q39: 0 | R39: 0 | S39: 0 | T39: 0 | U39: 0 | V39: 0 | W39: 0 | X39: 0 | Y39: 0 | Z39: 0 | AA39: 0 | AB39: 0 | AF39: 0 | AG39: 0 | AH39: 0 | AJ39: 0 | AK39: 0 | AL39: 0 | AN39: 0 | AO39: 0 | AP39: 0 | AR39: 0 | AS39: 0 | AT39: 0 | AZ39: 0 | BA39: 0 | BB39: 0 | BD39: 0 | BE39: 0 | BF39: 0 | BG39: 0 | BH39: 0 | BI39: 0 | BJ39: 0 | BK39: 0 | BP39: 0 | BQ39: 0 | BR39: 0 | BS39: 0 | BT39: 0 | BU39: 0 | BV39: 0 | BW39: 0 | BX39: 0 | BY39: 0 | BZ39: 0 | CA39: 0 | CB39: 0 | CC39: 0 | CD39: 0 | CE39: 0 | CF39: 0 | CG39: 0 | CH39: 0 | CI39: 0 | CJ39: 0 | CK39: 0 | CL39: 0 | CM39: 0 | CN39: 0 | CO39: 0 | CU39: 0 | CX39: 0 | CY39: 0 | CZ39: 0 | DA39: 0 | DB39: 0 | DC39: 0 | DD39: 0 | DE39: 0 | DF39: 0 | DG39: 0 | DH39: 0 | DI39: 0 | DU39: 0 | DV39: 0 | DW39: 0 | DX39: 0 | DY39: 0 | DZ39: 0 | EA39: 0 | EB39: 0 | EC39: 0 | ED39: 0 | EE39: 0 | EF39: 0 | EG39: 0 | EH39: 0 | EI39: 0 | EJ39: 0 | EK39: 0 | EL39: 0 | EM39: 0 | EN39: 0 | EO39: 0 | EP39: 0 | EQ39: 0 | ER39: 0 | ES39: 0 | ET39: 0 | EU39: 0 | EV39: 0 | EW39: 0 | EX39: 0 | EY39: 0 | EZ39: 0 | FA39: 0 | FB39: 0 | FC39: 0 | FD39: 0 | FE39: 0 | FF39: 0 | FG39: 0 | FH39: 0 | FI39: 0 | FJ39: 0 | FK39: 0 | FL39: 0 | FM39: 0 | FN39: 0 | FO39: 0 | FP39: 0 | FQ39: 0 | FR39: 0 | FS39: 0 | FT39: 0 | FU39: 0 | FV39: 0 | FW39: 0 | FX39: 0 | FY39: 0 | FZ39: 0 | GA39: 0 | GB39: 0 | GC39: 0 | GD39: 0 | GE39: 0 | GF39: 0 | GG39: 0 | GH39: 0 | GI39: 0 | GJ39: 0 | GK39: 0 | GL39: 0 | GM39: 0 | GN39: 0 | GO39: 0 | GP39: 0 | GQ39: 0 | GR39: 0 | GS39: 0 | GT39: 0 | GU39: 0 | GV39: 0 | GW39: 0 | GX39: 0 | GY39: 0 | GZ39: 0 | HA39: 0 | HB39: 0 | HC39: 0 | HD39: 0 | HE39: 0 | HF39: 0 | HG39: 0 | HH39: 0 | HI39: 0 | HJ39: 0 | HK39: 0 | HL39: 0 | HS39: 0 | HT39: 0 | HU39: 0 | HV39: 0 | HW39: 0 | HX39: 0 | HY39: 0 | HZ39: 0 | IA39: 0 | IB39: 0 | ID39: 0 | IE39: 0 | IF39: 0 | IG39: 0 | IH39: 0 | II39: 0 | IK39: 0 | IL39: 0 | IM39: 0 | IN39: 0 | IO39: 0 | IP39: 0 | IQ39: 0 | IR39: 0 | IS39: 0 | IT39: 0 | IU39: 0 | IW39: 0 | IX39: 0 | IY39: 0 | IZ39: 0 | JA39: 0 | JB39: 0 | JC39: 0 | JD39: 0 | JE39: 0 | JF39: 0 | JG39: 0 | JH39: 0 | JI39: 0 | JJ39: 0 | JK39: 0 | JL39: 0 | JM39: 0 | JN39: 0 | JO39: 0 | JP39: 0 | JQ39: 0 | JR39: 0 | JS39: 0 | JU39: 0 | JV39: 0 | JW39: 0 | JX39: 0 | JY39: 0 | JZ39: 0 | KA39: 0 | KB39: 0 | KC39: 0 | KD39: 0 | KE39: 0 | KF39: 0 | KG39: 0 | KH39: 0 | KI39: 0 | KJ39: 0 | KK39: 0 | KM39: 0 | KN39: 0 | KO39: 0 | KQ39: 0 | KR39: 0 | KS39: 0 | KT39: 0 | KU39: 0 | KV39: 0 | KW39: 0 | KX39: 0 | KY39: 0 | KZ39: 0 | LA39: 0 | LB39: 0 | LC39: 0 | LD39: 0 | LE39: 0 | LF39: 0 | LG39: 0 | LH39: 0 | LI39: 0 | LJ39: 0 | LK39: 0 | LL39: 0 | LM39: 0 | LN39: 0 | LO39: 0 | LP39: 0 | LQ39: 0 | LR39: 0 | LS39: 0 | LT39: 0 | LU39: 0 | LV39: 0 | LW39: 0 | LX39: 0 | LY39: 0 | LZ39: 0 | MA39: 0 | MB39: 0 | MC39: 0 | MD39: 0 | ME39: 0 | MF39: 0 | MG39: 0 | MH39: 0 | MI39: 0 | MJ39: 0 | MK39: 0 | ML39: 0 | MM39: 0 | MN39: 0 | MO39: 0 | MP39: 0 | MQ39: 0 | MR39: 0 | MS39: 0 | MT39: 0 | MU39: 0 | MV39: 0 | MW39: 0 | MX39: 0 | MY39: 0 | MZ39: 0 | NA39: 0 | NB39: 0 | NC39: 0 | ND39: 0 | NE39: 0 | NF39: 0 | NG39: 0 | OC39: 0 | OD39: 0 | OE39: 0 | OF39: 0 | OG39: 0 | OH39: 0 | OI39: 0 | OJ39: 0 | OK39: 0 | OL39: 0 | OM39: 0 | ON39: 0 | OO39: 0 | OP39: 0 | OQ39: 0 | OR39: 0 | OS39: 0 | OT39: 0 | OU39: 0 | OV39: 0 | OW39: 0 | OX39: 0 | OY39: 0 | OZ39: 0 | PA39: 0 | PB39: 0 | PC39: 0 | PD39: 0 | PE39: 0 | PN39: 0 | PO39: 0 | PP39: 0 | PQ39: 0 | PR39: 0 | PS39: 0 | PW39: 0 | PX39: 0 | QC39: 0.00 | QE39: 0.0 | QF39: 0.0 | QG39: 0.0 | QH39: 0.0 | QI39: 0.0 | QJ39: 0.0 | QK39: 0.0 | QL39: 0.0 | QM39: 0.0 | QN39: 0.0 | QO39: 0.0 | QP39: 0.0 | QQ39: 0.0 | QR39: 0.0 | QS39: 0.0 | QT39: 0.0 | QU39: 0.0 | QV39: 0.0 | QW39: 0.0 | QX39: 0.0 | QY39: 0.0 | QZ39: 0.0 | RA39: 0.0 | RB39: 0.0 | RC39: 0.0 | RD39: 0.0 | RE39: 0.0 | RF39: 0.0 | RG39: 0.0 | RH39: 0.0 | RI39: 0.0 | RJ39: 0.0 | RK39: 0.0 | RL39: 0.0 | RM39: 0.0 | RN39: 0 | RO39: 0 | RP39: 0 | RQ39: 0.0 | RR39: 0.0 | RS39: 0.0 | RT39: 0.0 | RU39: 0.0 | RV39: 0.0 | RW39: 0.0 | RY39: 0 | RZ39: 0 | SA39: 0 | SB39: 0 | SC39: 0 | SD39: 0 | SE39: 0 | SU39: 0 | SV39: 0 | SW39: 0 | SX39: 0 | SY39: 0 | TA39: 0 | TB39: 0 | TC39: 0 | TD39: 0 | TE39: 0 | TF39: 0 | TG39: 0 | TH39: 0 | TI39: 0 | TJ39: 0 | TK39: 0 | TL39: 0 | TM39: 0 | TN39: 0 | TO39: 0 | TS39: =M39+DH39+'2_MERCADO_PRIVADO'!G39+'2_MERCADO_PRIVADO'!BW39 -> 0 | TT39: =DH39+'2_MERCADO_PRIVADO'!AP39+'2_MERCADO_PRIVADO'!BW39 -> 0 | TU39: =BR39+'2_MERCADO_PRIVADO'!AP39+'2_MERCADO_PRIVADO'!BW39+'2_MERCADO_PRIVADO'!DD39 -> 0 | TV39: =CH39+CX39+DL39+'2_MERCADO_PRIVADO'!BF39+'2_MERCADO_PRIVADO'!CM39+'2_MERCADO_PRIVADO'!DT39 -> 0 | TW39: =CO39+DE39+'2_MERCADO_PRIVADO'!BM39+'2_MERCADO_PRIVADO'!CT39+'2_MERCADO_PRIVADO'!EA39 -> 0 | TX39: =KR39+LK39+LP39+'2_MERCADO_PRIVADO'!MM39+'2_MERCADO_PRIVADO'!NF39+'2_MERCADO_PRIVADO'!NK39 -> 0 | TY39: =MV39+MW39+MX39+MY39+MZ39+NA39+NB39+NC39+ND39+NE39+NF39+NG39+'2_MERCADO_PRIVADO'!OQ39+'2_MERCADO_PRIVADO'!OR39+'2_MERCADO_PRIVADO'!OS39+'2_MERCADO_PRIVADO'!OT39+'2_MERCADO_PRIVADO'!OU39+'2_MERCADO_PRIVADO'!OV39+'2_MERCADO_PRIVADO'!OW39+'2_MERCADO_PRIVADO'!OX39+'2_MERCADO_PRIVADO'!OY39+'2_MERCADO_PRIVADO'!OZ39+'2_MERCADO_PRIVADO'!PA39+'2_MERCADO_PRIVADO'!PB39+'2_MERCADO_PRIVADO'!PC39+'2_MERCADO_PRIVADO'!PD39+'2_MERCADO_PRIVADO'!PE39+'2_MERCADO_PRIVADO'!PF39 -> 0 | TZ39: =OC39+'2_MERCADO_PRIVADO'!QO39 -> 0 | UA39: =OD39+'2_MERCADO_PRIVADO'!QP39 -> 0
D40: PALENQUERO | E40: 0 | F40: 0 | G40: 0 | H40: 0 | I40: 0 | J40: 0 | K40: 0 | L40: 0 | M40: 0 | N40: 0 | O40: 0 | P40: 0 | Q40: 0 | R40: 0 | S40: 0 | T40: 0 | U40: 0 | V40: 0 | W40: 0 | X40: 0 | Y40: 0 | Z40: 0 | AA40: 0 | AB40: 0 | AF40: 0 | AG40: 0 | AH40: 0 | AJ40: 0 | AK40: 0 | AL40: 0 | AN40: 0 | AO40: 0 | AP40: 0 | AR40: 0 | AS40: 0 | AT40: 0 | AZ40: 0 | BA40: 0 | BB40: 0 | BD40: 0 | BE40: 0 | BF40: 0 | BG40: 0 | BH40: 0 | BI40: 0 | BJ40: 0 | BK40: 0 | BP40: 0 | BQ40: 0 | BR40: 0 | BS40: 0 | BT40: 0 | BU40: 0 | BV40: 0 | BW40: 0 | BX40: 0 | BY40: 0 | BZ40: 0 | CA40: 0 | CB40: 0 | CC40: 0 | CD40: 0 | CE40: 0 | CF40: 0 | CG40: 0 | CH40: 0 | CI40: 0 | CJ40: 0 | CK40: 0 | CL40: 0 | CM40: 0 | CN40: 0 | CO40: 0 | CU40: 0 | CX40: 0 | CY40: 0 | CZ40: 0 | DA40: 0 | DB40: 0 | DC40: 0 | DD40: 0 | DE40: 0 | DF40: 0 | DG40: 0 | DH40: 0 | DI40: 0 | DU40: 0 | DV40: 0 | DW40: 0 | DX40: 0 | DY40: 0 | DZ40: 0 | EA40: 0 | EB40: 0 | EC40: 0 | ED40: 0 | EE40: 0 | EF40: 0 | EG40: 0 | EH40: 0 | EI40: 0 | EJ40: 0 | EK40: 0 | EL40: 0 | EM40: 0 | EN40: 0 | EO40: 0 | EP40: 0 | EQ40: 0 | ER40: 0 | ES40: 0 | ET40: 0 | EU40: 0 | EV40: 0 | EW40: 0 | EX40: 0 | EY40: 0 | EZ40: 0 | FA40: 0 | FB40: 0 | FC40: 0 | FD40: 0 | FE40: 0 | FF40: 0 | FG40: 0 | FH40: 0 | FI40: 0 | FJ40: 0 | FK40: 0 | FL40: 0 | FM40: 0 | FN40: 0 | FO40: 0 | FP40: 0 | FQ40: 0 | FR40: 0 | FS40: 0 | FT40: 0 | FU40: 0 | FV40: 0 | FW40: 0 | FX40: 0 | FY40: 0 | FZ40: 0 | GA40: 0 | GB40: 0 | GC40: 0 | GD40: 0 | GE40: 0 | GF40: 0 | GG40: 0 | GH40: 0 | GI40: 0 | GJ40: 0 | GK40: 0 | GL40: 0 | GM40: 0 | GN40: 0 | GO40: 0 | GP40: 0 | GQ40: 0 | GR40: 0 | GS40: 0 | GT40: 0 | GU40: 0 | GV40: 0 | GW40: 0 | GX40: 0 | GY40: 0 | GZ40: 0 | HA40: 0 | HB40: 0 | HC40: 0 | HD40: 0 | HE40: 0 | HF40: 0 | HG40: 0 | HH40: 0 | HI40: 0 | HJ40: 0 | HK40: 0 | HL40: 0 | HS40: 0 | HT40: 0 | HU40: 0 | HV40: 0 | HW40: 0 | HX40: 0 | HY40: 0 | HZ40: 0 | IA40: 0 | IB40: 0 | ID40: 0 | IE40: 0 | IF40: 0 | IG40: 0 | IH40: 0 | II40: 0 | IK40: 0 | IL40: 0 | IM40: 0 | IN40: 0 | IO40: 0 | IP40: 0 | IQ40: 0 | IR40: 0 | IS40: 0 | IT40: 0 | IU40: 0 | IW40: 0 | IX40: 0 | IY40: 0 | IZ40: 0 | JA40: 0 | JB40: 0 | JC40: 0 | JD40: 0 | JE40: 0 | JF40: 0 | JG40: 0 | JH40: 0 | JI40: 0 | JJ40: 0 | JK40: 0 | JL40: 0 | JM40: 0 | JN40: 0 | JO40: 0 | JP40: 0 | JQ40: 0 | JR40: 0 | JS40: 0 | JU40: 0 | JV40: 0 | JW40: 0 | JX40: 0 | JY40: 0 | JZ40: 0 | KA40: 0 | KB40: 0 | KC40: 0 | KD40: 0 | KE40: 0 | KF40: 0 | KG40: 0 | KH40: 0 | KI40: 0 | KJ40: 0 | KK40: 0 | KM40: 0 | KN40: 0 | KO40: 0 | KQ40: 0 | KR40: 0 | KS40: 0 | KT40: 0 | KU40: 0 | KV40: 0 | KW40: 0 | KX40: 0 | KY40: 0 | KZ40: 0 | LA40: 0 | LB40: 0 | LC40: 0 | LD40: 0 | LE40: 0 | LF40: 0 | LG40: 0 | LH40: 0 | LI40: 0 | LJ40: 0 | LK40: 0 | LL40: 0 | LM40: 0 | LN40: 0 | LO40: 0 | LP40: 0 | LQ40: 0 | LR40: 0 | LS40: 0 | LT40: 0 | LU40: 0 | LV40: 0 | LW40: 0 | LX40: 0 | LY40: 0 | LZ40: 0 | MA40: 0 | MB40: 0 | MC40: 0 | MD40: 0 | ME40: 0 | MF40: 0 | MG40: 0 | MH40: 0 | MI40: 0 | MJ40: 0 | MK40: 0 | ML40: 0 | MM40: 0 | MN40: 0 | MO40: 0 | MP40: 0 | MQ40: 0 | MR40: 0 | MS40: 0 | MT40: 0 | MU40: 0 | MV40: 0 | MW40: 0 | MX40: 0 | MY40: 0 | MZ40: 0 | NA40: 0 | NB40: 0 | NC40: 0 | ND40: 0 | NE40: 0 | NF40: 0 | NG40: 0 | OC40: 0 | OD40: 0 | OE40: 0 | OF40: 0 | OG40: 0 | OH40: 0 | OI40: 0 | OJ40: 0 | OK40: 0 | OL40: 0 | OM40: 0 | ON40: 0 | OO40: 0 | OP40: 0 | OQ40: 0 | OR40: 0 | OS40: 0 | OT40: 0 | OU40: 0 | OV40: 0 | OW40: 0 | OX40: 0 | OY40: 0 | OZ40: 0 | PA40: 0 | PB40: 0 | PC40: 0 | PD40: 0 | PE40: 0 | PN40: 0 | PO40: 0 | PP40: 0 | PQ40: 0 | PR40: 0 | PS40: 0 | PW40: 0 | PX40: 0 | QC40: 0.00 | QE40: 0.0 | QF40: 0.0 | QG40: 0.0 | QH40: 0.0 | QI40: 0.0 | QJ40: 0.0 | QK40: 0.0 | QL40: 0.0 | QM40: 0.0 | QN40: 0.0 | QO40: 0.0 | QP40: 0.0 | QQ40: 0.0 | QR40: 0.0 | QS40: 0.0 | QT40: 0.0 | QU40: 0.0 | QV40: 0.0 | QW40: 0.0 | QX40: 0.0 | QY40: 0.0 | QZ40: 0.0 | RA40: 0.0 | RB40: 0.0 | RC40: 0.0 | RD40: 0.0 | RE40: 0.0 | RF40: 0.0 | RG40: 0.0 | RH40: 0.0 | RI40: 0.0 | RJ40: 0.0 | RK40: 0.0 | RL40: 0.0 | RM40: 0.0 | RN40: 0 | RO40: 0 | RP40: 0 | RQ40: 0.0 | RR40: 0.0 | RS40: 0.0 | RT40: 0.0 | RU40: 0.0 | RV40: 0.0 | RW40: 0.0 | RY40: 0 | RZ40: 0 | SA40: 0 | SB40: 0 | SC40: 0 | SD40: 0 | SE40: 0 | SU40: 0 | SV40: 0 | SW40: 0 | SX40: 0 | SY40: 0 | TA40: 0 | TB40: 0 | TC40: 0 | TD40: 0 | TE40: 0 | TF40: 0 | TG40: 0 | TH40: 0 | TI40: 0 | TJ40: 0 | TK40: 0 | TL40: 0 | TM40: 0 | TN40: 0 | TO40: 0 | TS40: =M40+DH40+'2_MERCADO_PRIVADO'!G40+'2_MERCADO_PRIVADO'!BW40 -> 0 | TT40: =DH40+'2_MERCADO_PRIVADO'!AP40+'2_MERCADO_PRIVADO'!BW40 -> 0 | TU40: =BR40+'2_MERCADO_PRIVADO'!AP40+'2_MERCADO_PRIVADO'!BW40+'2_MERCADO_PRIVADO'!DD40 -> 0 | TV40: =CH40+CX40+DL40+'2_MERCADO_PRIVADO'!BF40+'2_MERCADO_PRIVADO'!CM40+'2_MERCADO_PRIVADO'!DT40 -> 0 | TW40: =CO40+DE40+'2_MERCADO_PRIVADO'!BM40+'2_MERCADO_PRIVADO'!CT40+'2_MERCADO_PRIVADO'!EA40 -> 0 | TX40: =KR40+LK40+LP40+'2_MERCADO_PRIVADO'!MM40+'2_MERCADO_PRIVADO'!NF40+'2_MERCADO_PRIVADO'!NK40 -> 0 | TY40: =MV40+MW40+MX40+MY40+MZ40+NA40+NB40+NC40+ND40+NE40+NF40+NG40+'2_MERCADO_PRIVADO'!OQ40+'2_MERCADO_PRIVADO'!OR40+'2_MERCADO_PRIVADO'!OS40+'2_MERCADO_PRIVADO'!OT40+'2_MERCADO_PRIVADO'!OU40+'2_MERCADO_PRIVADO'!OV40+'2_MERCADO_PRIVADO'!OW40+'2_MERCADO_PRIVADO'!OX40+'2_MERCADO_PRIVADO'!OY40+'2_MERCADO_PRIVADO'!OZ40+'2_MERCADO_PRIVADO'!PA40+'2_MERCADO_PRIVADO'!PB40+'2_MERCADO_PRIVADO'!PC40+'2_MERCADO_PRIVADO'!PD40+'2_MERCADO_PRIVADO'!PE40+'2_MERCADO_PRIVADO'!PF40 -> 0 | TZ40: =OC40+'2_MERCADO_PRIVADO'!QO40 -> 0 | UA40: =OD40+'2_MERCADO_PRIVADO'!QP40 -> 0
D41: NEGRO(A), MULATO (A), AFROCOLOMBIANO (A) | E41: 1 | F41: 0 | G41: 0 | H41: 0 | I41: 1 | J41: 0 | K41: 0 | L41: 0 | M41: 0 | N41: 0 | O41: 0 | P41: 0 | Q41: 0 | R41: 0 | S41: 0 | T41: 0 | U41: 0 | V41: 0 | W41: 0 | X41: 0 | Y41: 0 | Z41: 0 | AA41: 0 | AB41: 0 | AF41: 0 | AG41: 0 | AH41: 0 | AJ41: 0 | AK41: 0 | AL41: 0 | AN41: 0 | AO41: 0 | AP41: 0 | AR41: 0 | AS41: 0 | AT41: 0 | AZ41: 0 | BA41: 0 | BB41: 0 | BD41: 0 | BE41: 0 | BF41: 0 | BG41: 0 | BH41: 0 | BI41: 0 | BJ41: 0 | BK41: 0 | BP41: 0 | BQ41: 0 | BR41: 0 | BS41: 0 | BT41: 0 | BU41: 0 | BV41: 0 | BW41: 0 | BX41: 0 | BY41: 0 | BZ41: 0 | CA41: 0 | CB41: 0 | CC41: 0 | CD41: 0 | CE41: 0 | CF41: 0 | CG41: 0 | CH41: 0 | CI41: 0 | CJ41: 0 | CK41: 0 | CL41: 0 | CM41: 0 | CN41: 0 | CO41: 0 | CU41: 0 | CX41: 0 | CY41: 0 | CZ41: 0 | DA41: 0 | DB41: 0 | DC41: 0 | DD41: 0 | DE41: 0 | DF41: 0 | DG41: 0 | DH41: 0 | DI41: 0 | DU41: 0 | DV41: 0 | DW41: 0 | DX41: 0 | DY41: 0 | DZ41: 0 | EA41: 0 | EB41: 0 | EC41: 0 | ED41: 0 | EE41: 0 | EF41: 0 | EG41: 0 | EH41: 0 | EI41: 0 | EJ41: 0 | EK41: 0 | EL41: 0 | EM41: 0 | EN41: 0 | EO41: 0 | EP41: 0 | EQ41: 0 | ER41: 0 | ES41: 0 | ET41: 0 | EU41: 0 | EV41: 0 | EW41: 0 | EX41: 0 | EY41: 0 | EZ41: 0 | FA41: 0 | FB41: 0 | FC41: 0 | FD41: 0 | FE41: 0 | FF41: 0 | FG41: 0 | FH41: 0 | FI41: 0 | FJ41: 0 | FK41: 0 | FL41: 0 | FM41: 0 | FN41: 0 | FO41: 0 | FP41: 0 | FQ41: 0 | FR41: 0 | FS41: 0 | FT41: 0 | FU41: 0 | FV41: 0 | FW41: 0 | FX41: 0 | FY41: 0 | FZ41: 0 | GA41: 0 | GB41: 0 | GC41: 0 | GD41: 0 | GE41: 0 | GF41: 0 | GG41: 0 | GH41: 0 | GI41: 0 | GJ41: 0 | GK41: 0 | GL41: 0 | GM41: 0 | GN41: 0 | GO41: 0 | GP41: 0 | GQ41: 0 | GR41: 0 | GS41: 0 | GT41: 0 | GU41: 0 | GV41: 0 | GW41: 0 | GX41: 0 | GY41: 0 | GZ41: 0 | HA41: 0 | HB41: 0 | HC41: 0 | HD41: 0 | HE41: 0 | HF41: 0 | HG41: 0 | HH41: 0 | HI41: 1 | HJ41: 0 | HK41: 0 | HL41: 1 | HS41: 1 | HT41: 0 | HU41: 0 | HV41: 0 | HW41: 0 | HX41: 0 | HY41: 0 | HZ41: 0 | IA41: 0 | IB41: 0 | ID41: 0 | IE41: 0 | IF41: 0 | IG41: 0 | IH41: 0 | II41: 0 | IK41: 0 | IL41: 0 | IM41: 1 | IN41: 0 | IO41: 0 | IP41: 0 | IQ41: 0 | IR41: 0 | IS41: 0 | IT41: 0 | IU41: 0 | IW41: 0 | IX41: 0 | IY41: 0 | IZ41: 0 | JA41: 0 | JB41: 0 | JC41: 0 | JD41: 0 | JE41: 0 | JF41: 0 | JG41: 0 | JH41: 0 | JI41: 0 | JJ41: 0 | JK41: 0 | JL41: 0 | JM41: 0 | JN41: 0 | JO41: 0 | JP41: 0 | JQ41: 0 | JR41: 0 | JS41: 0 | JU41: 1 | JV41: 1 | JW41: 0 | JX41: 0 | JY41: 0 | JZ41: 0 | KA41: 0 | KB41: 0 | KC41: 0 | KD41: 0 | KE41: 1 | KF41: 1 | KG41: 0 | KH41: 0 | KI41: 0 | KJ41: 0 | KK41: 0 | KM41: 0 | KN41: 0 | KO41: 0 | KQ41: 0 | KR41: 0 | KS41: 0 | KT41: 0 | KU41: 0 | KV41: 0 | KW41: 0 | KX41: 0 | KY41: 0 | KZ41: 0 | LA41: 0 | LB41: 0 | LC41: 0 | LD41: 0 | LE41: 0 | LF41: 0 | LG41: 0 | LH41: 0 | LI41: 0 | LJ41: 0 | LK41: 0 | LL41: 0 | LM41: 0 | LN41: 0 | LO41: 0 | LP41: 0 | LQ41: 0 | LR41: 0 | LS41: 0 | LT41: 0 | LU41: 0 | LV41: 0 | LW41: 0 | LX41: 0 | LY41: 0 | LZ41: 0 | MA41: 0 | MB41: 0 | MC41: 0 | MD41: 0 | ME41: 0 | MF41: 0 | MG41: 0 | MH41: 0 | MI41: 0 | MJ41: 0 | MK41: 0 | ML41: 0 | MM41: 0 | MN41: 0 | MO41: 0 | MP41: 0 | MQ41: 0 | MR41: 0 | MS41: 0 | MT41: 0 | MU41: 0 | MV41: 0 | MW41: 0 | MX41: 0 | MY41: 0 | MZ41: 0 | NA41: 0 | NB41: 0 | NC41: 0 | ND41: 0 | NE41: 0 | NF41: 0 | NG41: 0 | OC41: 0 | OD41: 0 | OE41: 0 | OF41: 0 | OG41: 0 | OH41: 0 | OI41: 0 | OJ41: 0 | OK41: 0 | OL41: 0 | OM41: 0 | ON41: 0 | OO41: 0 | OP41: 0 | OQ41: 0 | OR41: 0 | OS41: 0 | OT41: 0 | OU41: 0 | OV41: 0 | OW41: 0 | OX41: 0 | OY41: 0 | OZ41: 0 | PA41: 0 | PB41: 0 | PC41: 0 | PD41: 0 | PE41: 0 | PN41: 0 | PO41: 0 | PP41: 0 | PQ41: 0 | PR41: 0 | PS41: 0 | PW41: 0 | PX41: 0 | QC41: 10.00 | QE41: 1.0 | QF41: 1.0 | QG41: 0.0 | QH41: 0.0 | QI41: 0.0 | QJ41: 0.0 | QK41: 0.0 | QL41: 0.0 | QM41: 0.0 | QN41: 2.0 | QO41: 0.0 | QP41: 1.0 | QQ41: 1.0 | QR41: 0.0 | QS41: 2.0 | QT41: 2.0 | QU41: 0.0 | QV41: 0.0 | QW41: 0.0 | QX41: 0.0 | QY41: 0.0 | QZ41: 0.0 | RA41: 0.0 | RB41: 0.0 | RC41: 0.0 | RD41: 0.0 | RE41: 0.0 | RF41: 0.0 | RG41: 0.0 | RH41: 0.0 | RI41: 0.0 | RJ41: 0.0 | RK41: 0.0 | RL41: 0.0 | RM41: 0.0 | RN41: 0 | RO41: 0 | RP41: 0 | RQ41: 0.0 | RR41: 0.0 | RS41: 0.0 | RT41: 0.0 | RU41: 0.0 | RV41: 0.0 | RW41: 10.0 | RY41: 0 | RZ41: 0 | SA41: 0 | SB41: 0 | SC41: 0 | SD41: 0 | SE41: 0 | SU41: 0 | SV41: 0 | SW41: 0 | SX41: 0 | SY41: 0 | TA41: 0 | TB41: 0 | TC41: 0 | TD41: 0 | TE41: 0 | TF41: 0 | TG41: 0 | TH41: 0 | TI41: 0 | TJ41: 0 | TK41: 0 | TL41: 0 | TM41: 0 | TN41: 0 | TO41: 0 | TS41: =M41+DH41+'2_MERCADO_PRIVADO'!G41+'2_MERCADO_PRIVADO'!BW41 -> 0 | TT41: =DH41+'2_MERCADO_PRIVADO'!AP41+'2_MERCADO_PRIVADO'!BW41 -> 0 | TU41: =BR41+'2_MERCADO_PRIVADO'!AP41+'2_MERCADO_PRIVADO'!BW41+'2_MERCADO_PRIVADO'!DD41 -> 0 | TV41: =CH41+CX41+DL41+'2_MERCADO_PRIVADO'!BF41+'2_MERCADO_PRIVADO'!CM41+'2_MERCADO_PRIVADO'!DT41 -> 0 | TW41: =CO41+DE41+'2_MERCADO_PRIVADO'!BM41+'2_MERCADO_PRIVADO'!CT41+'2_MERCADO_PRIVADO'!EA41 -> 0 | TX41: =KR41+LK41+LP41+'2_MERCADO_PRIVADO'!MM41+'2_MERCADO_PRIVADO'!NF41+'2_MERCADO_PRIVADO'!NK41 -> 0 | TY41: =MV41+MW41+MX41+MY41+MZ41+NA41+NB41+NC41+ND41+NE41+NF41+NG41+'2_MERCADO_PRIVADO'!OQ41+'2_MERCADO_PRIVADO'!OR41+'2_MERCADO_PRIVADO'!OS41+'2_MERCADO_PRIVADO'!OT41+'2_MERCADO_PRIVADO'!OU41+'2_MERCADO_PRIVADO'!OV41+'2_MERCADO_PRIVADO'!OW41+'2_MERCADO_PRIVADO'!OX41+'2_MERCADO_PRIVADO'!OY41+'2_MERCADO_PRIVADO'!OZ41+'2_MERCADO_PRIVADO'!PA41+'2_MERCADO_PRIVADO'!PB41+'2_MERCADO_PRIVADO'!PC41+'2_MERCADO_PRIVADO'!PD41+'2_MERCADO_PRIVADO'!PE41+'2_MERCADO_PRIVADO'!PF41 -> 0 | TZ41: =OC41+'2_MERCADO_PRIVADO'!QO41 -> 0 | UA41: =OD41+'2_MERCADO_PRIVADO'!QP41 -> 0
D42: SIN PERTENENCIA ETNICA | E42: 650 | F42: 19 | G42: 0 | H42: 0 | I42: 663 | J42: 0 | K42: 0 | L42: 0 | M42: 0 | N42: 0 | O42: 0 | P42: 0 | Q42: 0 | R42: 0 | S42: 0 | T42: 0 | U42: 0 | V42: 0 | W42: 0 | X42: 0 | Y42: 0 | Z42: 0 | AA42: 0 | AB42: 0 | AF42: 0 | AG42: 0 | AH42: 0 | AJ42: 0 | AK42: 0 | AL42: 0 | AN42: 0 | AO42: 0 | AP42: 0 | AR42: 0 | AS42: 0 | AT42: 0 | AZ42: 1 | BA42: 0 | BB42: 0 | BD42: 2 | BE42: 1 | BF42: 0 | BG42: 0 | BH42: 1 | BI42: 0 | BJ42: 0 | BK42: 0 | BP42: 107 | BQ42: 118 | BR42: 135 | BS42: 1 | BT42: 0 | BU42: 0 | BV42: 0 | BW42: 0 | BX42: 0 | BY42: 0 | BZ42: 0 | CA42: 0 | CB42: 0 | CC42: 0 | CD42: 0 | CE42: 0 | CF42: 0 | CG42: 0 | CH42: 1 | CI42: 0 | CJ42: 0 | CK42: 1 | CL42: 2 | CM42: 0 | CN42: 0 | CO42: 1 | CU42: 2 | CX42: 135 | CY42: 4 | CZ42: 0 | DA42: 1 | DB42: 0 | DC42: 0 | DD42: 0 | DE42: 129 | DF42: 107 | DG42: 117 | DH42: 137 | DI42: 1 | DU42: 0 | DV42: 0 | DW42: 0 | DX42: 0 | DY42: 0 | DZ42: 0 | EA42: 0 | EB42: 0 | EC42: 0 | ED42: 0 | EE42: 0 | EF42: 0 | EG42: 0 | EH42: 0 | EI42: 0 | EJ42: 0 | EK42: 0 | EL42: 0 | EM42: 136 | EN42: 4 | EO42: 0 | EP42: 2 | EQ42: 0 | ER42: 0 | ES42: 0 | ET42: 130 | EU42: 0 | EV42: 0 | EW42: 0 | EX42: 0 | EY42: 0 | EZ42: 0 | FA42: 0 | FB42: 0 | FC42: 0 | FD42: 0 | FE42: 0 | FF42: 0 | FG42: 0 | FH42: 0 | FI42: 0 | FJ42: 0 | FK42: 0 | FL42: 0 | FM42: 0 | FN42: 0 | FO42: 0 | FP42: 0 | FQ42: 0 | FR42: 0 | FS42: 0 | FT42: 0 | FU42: 0 | FV42: 0 | FW42: 0 | FX42: 0 | FY42: 0 | FZ42: 0 | GA42: 0 | GB42: 0 | GC42: 0 | GD42: 0 | GE42: 0 | GF42: 0 | GG42: 0 | GH42: 0 | GI42: 0 | GJ42: 0 | GK42: 0 | GL42: 0 | GM42: 0 | GN42: 0 | GO42: 0 | GP42: 0 | GQ42: 0 | GR42: 0 | GS42: 0 | GT42: 0 | GU42: 0 | GV42: 0 | GW42: 0 | GX42: 0 | GY42: 0 | GZ42: 0 | HA42: 0 | HB42: 0 | HC42: 0 | HD42: 0 | HE42: 279 | HF42: 274 | HG42: 270 | HH42: 263 | HI42: 115 | HJ42: 2 | HK42: 0 | HL42: 0 | HS42: 130 | HT42: 0 | HU42: 0 | HV42: 0 | HW42: 0 | HX42: 1 | HY42: 0 | HZ42: 0 | IA42: 0 | IB42: 0 | ID42: 175 | IE42: 6 | IF42: 1 | IG42: 0 | IH42: 1 | II42: 0 | IK42: 0 | IL42: 142 | IM42: 18 | IN42: 34 | IO42: 31 | IP42: 37 | IQ42: 40 | IR42: 41 | IS42: 35 | IT42: 46 | IU42: 48 | IW42: 43 | IX42: 0 | IY42: 8 | IZ42: 17 | JA42: 1 | JB42: 225 | JC42: 6 | JD42: 0 | JE42: 2 | JF42: 1 | JG42: 0 | JH42: 1 | JI42: 0 | JJ42: 0 | JK42: 0 | JL42: 1 | JM42: 0 | JN42: 0 | JO42: 1 | JP42: 2 | JQ42: 0 | JR42: 0 | JS42: 0 | JU42: 162 | JV42: 0 | JW42: 0 | JX42: 0 | JY42: 0 | JZ42: 1 | KA42: 1 | KB42: 0 | KC42: 0 | KD42: 0 | KE42: 129 | KF42: 0 | KG42: 0 | KH42: 0 | KI42: 0 | KJ42: 2 | KK42: 0 | KM42: 174 | KN42: 5 | KO42: 1 | KQ42: 0 | KR42: 0 | KS42: 0 | KT42: 0 | KU42: 0 | KV42: 4 | KW42: 1 | KX42: 0 | KY42: 0 | KZ42: 0 | LA42: 84 | LB42: 51 | LC42: 9 | LD42: 5 | LE42: 3 | LF42: 0 | LG42: 0 | LH42: 0 | LI42: 0 | LJ42: 9 | LK42: 13 | LL42: 3 | LM42: 0 | LN42: 1 | LO42: 142 | LP42: 122 | LQ42: 108 | LR42: 82 | LS42: 49 | LT42: 5 | LU42: 0 | LV42: 0 | LW42: 0 | LX42: 0 | LY42: 0 | LZ42: 0 | MA42: 0 | MB42: 1 | MC42: 3 | MD42: 2 | ME42: 0 | MF42: 0 | MG42: 0 | MH42: 0 | MI42: 0 | MJ42: 0 | MK42: 0 | ML42: 1 | MM42: 0 | MN42: 0 | MO42: 0 | MP42: 0 | MQ42: 0 | MR42: 1 | MS42: 0 | MT42: 0 | MU42: 0 | MV42: 1 | MW42: 1 | MX42: 3 | MY42: 0 | MZ42: 0 | NA42: 0 | NB42: 39 | NC42: 78 | ND42: 112 | NE42: 57 | NF42: 32 | NG42: 25 | OC42: 60 | OD42: 21 | OE42: 0 | OF42: 54 | OG42: 39 | OH42: 0 | OI42: 47 | OJ42: 22 | OK42: 0 | OL42: 39 | OM42: 14 | ON42: 1 | OO42: 35 | OP42: 6 | OQ42: 0 | OR42: 30 | OS42: 13 | OT42: 0 | OU42: 29 | OV42: 19 | OW42: 0 | OX42: 24 | OY42: 9 | OZ42: 0 | PA42: 23 | PB42: 17 | PC42: 3 | PD42: 2 | PE42: 0 | PN42: 90 | PO42: 41 | PP42: 37 | PQ42: 37 | PR42: 21 | PS42: 8 | PW42: 0 | PX42: 0 | QC42: 7,102.00 | QE42: 669.0 | QF42: 668.0 | QG42: 368.0 | QH42: 269.0 | QI42: 362.0 | QJ42: 272.0 | QK42: 0.0 | QL42: 0.0 | QM42: 553.0 | QN42: 650.0 | QO42: 0.0 | QP42: 314.0 | QQ42: 541.0 | QR42: 239.0 | QS42: 164.0 | QT42: 311.0 | QU42: 699.0 | QV42: 348.0 | QW42: 0.0 | QX42: 0.0 | QY42: 0.0 | QZ42: 0.0 | RA42: 0.0 | RB42: 0.0 | RC42: 0.0 | RD42: 0.0 | RE42: 0.0 | RF42: 507.0 | RG42: 0.0 | RH42: 0.0 | RI42: 0.0 | RJ42: 168.0 | RK42: 37.0 | RL42: 21.0 | RM42: 8.0 | RN42: 0 | RO42: 0 | RP42: 0 | RQ42: 0.0 | RR42: 0.0 | RS42: 0.0 | RT42: 0.0 | RU42: 0.0 | RV42: 0.0 | RW42: 6,934.0 | RY42: 0 | RZ42: 1 | SA42: 3 | SB42: 57 | SC42: 88 | SD42: 18 | SE42: 167 | SN42: 7 | SO42: 1 | SR42: 110 | SS42: 27 | SU42: 0 | SV42: 8 | SW42: 0 | SX42: 110 | SY42: 27 | TA42: 0 | TB42: 0 | TC42: 0 | TD42: 0 | TE42: 0 | TF42: 0 | TG42: 0 | TH42: 0 | TI42: 0 | TJ42: 0 | TK42: 0 | TL42: 0 | TM42: 0 | TN42: 0 | TO42: 0 | TS42: =M42+DH42+'2_MERCADO_PRIVADO'!G42+'2_MERCADO_PRIVADO'!BW42 -> 351 | TT42: =DH42+'2_MERCADO_PRIVADO'!AP42+'2_MERCADO_PRIVADO'!BW42 -> 355 | TU42: =BR42+'2_MERCADO_PRIVADO'!AP42+'2_MERCADO_PRIVADO'!BW42+'2_MERCADO_PRIVADO'!DD42 -> 353 | TV42: =CH42+CX42+DL42+'2_MERCADO_PRIVADO'!BF42+'2_MERCADO_PRIVADO'!CM42+'2_MERCADO_PRIVADO'!DT42 -> 326 | TW42: =CO42+DE42+'2_MERCADO_PRIVADO'!BM42+'2_MERCADO_PRIVADO'!CT42+'2_MERCADO_PRIVADO'!EA42 -> 233 | TX42: =KR42+LK42+LP42+'2_MERCADO_PRIVADO'!MM42+'2_MERCADO_PRIVADO'!NF42+'2_MERCADO_PRIVADO'!NK42 -> 188 | TY42: =MV42+MW42+MX42+MY42+MZ42+NA42+NB42+NC42+ND42+NE42+NF42+NG42+'2_MERCADO_PRIVADO'!OQ42+'2_MERCADO_PRIVADO'!OR42+'2_MERCADO_PRIVADO'!OS42+'2_MERCADO_PRIVADO'!OT42+'2_MERCADO_PRIVADO'!OU42+'2_MERCADO_PRIVADO'!OV42+'2_MERCADO_PRIVADO'!OW42+'2_MERCADO_PRIVADO'!OX42+'2_MERCADO_PRIVADO'!OY42+'2_MERCADO_PRIVADO'!OZ42+'2_MERCADO_PRIVADO'!PA42+'2_MERCADO_PRIVADO'!PB42+'2_MERCADO_PRIVADO'!PC42+'2_MERCADO_PRIVADO'!PD42+'2_MERCADO_PRIVADO'!PE42+'2_MERCADO_PRIVADO'!PF42 -> 351 | TZ42: =OC42+'2_MERCADO_PRIVADO'!QO42 -> 65 | UA42: =OD42+'2_MERCADO_PRIVADO'!QP42 -> 22
D43: TOTAL ETNICOS | E43: 651 | F43: 19 | G43: 0 | H43: 0 | I43: 664 | J43: 0 | K43: 0 | L43: 0 | M43: 0 | N43: 0 | O43: 0 | P43: 0 | Q43: 0 | R43: 0 | S43: 0 | T43: 0 | U43: 0 | V43: 0 | W43: 0 | X43: 0 | Y43: 0 | Z43: 0 | AA43: 0 | AB43: 0 | AC43: =SUM(AC37:AC42) -> 0 | AD43: 0 | AE43: 0 | AF43: 0 | AG43: 0 | AH43: 0 | AI43: 0 | AJ43: 0 | AK43: 0 | AL43: 0 | AM43: 0 | AN43: 0 | AO43: 0 | AP43: 0 | AQ43: 0 | AR43: 0 | AS43: 0 | AT43: 0 | AU43: 0 | AV43: 0 | AW43: 0 | AX43: 0 | AY43: 0 | AZ43: 1 | BA43: 0 | BB43: 0 | BC43: 0 | BD43: 2 | BE43: 1 | BF43: 0 | BG43: 0 | BH43: 1 | BI43: 0 | BJ43: 0 | BK43: 0 | BL43: 0 | BM43: 0 | BN43: 0 | BO43: 0 | BP43: 107 | BQ43: 118 | BR43: 135 | BS43: 1 | BT43: 0 | BU43: 0 | BV43: 0 | BW43: 0 | BX43: 0 | BY43: 0 | BZ43: 0 | CA43: 0 | CB43: 0 | CC43: 0 | CD43: 0 | CE43: 0 | CF43: 0 | CG43: 0 | CH43: 1 | CI43: 0 | CJ43: 0 | CK43: 1 | CL43: 2 | CM43: 0 | CN43: 0 | CO43: 1 | CP43: =SUM(CP37:CP42) -> 0 | CQ43: 0 | CR43: 0 | CS43: 0 | CT43: 0 | CU43: 2 | CV43: 0 | CW43: 0 | CX43: 135 | CY43: 4 | CZ43: 0 | DA43: 1 | DB43: 0 | DC43: 0 | DD43: 0 | DE43: 129 | DF43: 107 | DG43: 117 | DH43: 137 | DI43: 1 | DJ43: 0 | DK43: 0 | DL43: 0 | DM43: 0 | DN43: 0 | DO43: 0 | DP43: 0 | DQ43: 0 | DR43: 0 | DS43: 0 | DT43: 0 | DU43: 0 | DV43: 0 | DW43: 0 | DX43: 0 | DY43: 0 | DZ43: 0 | EA43: 0 | EB43: 0 | EC43: 0 | ED43: 0 | EE43: 0 | EF43: 0 | EG43: 0 | EH43: 0 | EI43: 0 | EJ43: 0 | EK43: 0 | EL43: 0 | EM43: 136 | EN43: 4 | EO43: 0 | EP43: 2 | EQ43: 0 | ER43: 0 | ES43: 0 | ET43: 130 | EU43: 0 | EV43: 0 | EW43: 0 | EX43: 0 | EY43: 0 | EZ43: 0 | FA43: 0 | FB43: 0 | FC43: 0 | FD43: 0 | FE43: 0 | FF43: 0 | FG43: 0 | FH43: 0 | FI43: 0 | FJ43: 0 | FK43: 0 | FL43: 0 | FM43: 0 | FN43: 0 | FO43: 0 | FP43: 0 | FQ43: 0 | FR43: 0 | FS43: 0 | FT43: 0 | FU43: 0 | FV43: 0 | FW43: 0 | FX43: 0 | FY43: 0 | FZ43: 0 | GA43: 0 | GB43: 0 | GC43: 0 | GD43: 0 | GE43: 0 | GF43: 0 | GG43: 0 | GH43: 0 | GI43: 0 | GJ43: 0 | GK43: 0 | GL43: 0 | GM43: 0 | GN43: 0 | GO43: 0 | GP43: 0 | GQ43: 0 | GR43: 0 | GS43: 0 | GT43: 0 | GU43: 0 | GV43: 0 | GW43: 0 | GX43: 0 | GY43: 0 | GZ43: 0 | HA43: 0 | HB43: 0 | HC43: 0 | HD43: 0 | HE43: 279 | HF43: 274 | HG43: 270 | HH43: 263 | HI43: 116 | HJ43: 2 | HK43: 0 | HL43: 1 | HM43: =SUM(HM37:HM42) -> 0 | HN43: 0 | HO43: 0 | HP43: 0 | HQ43: 0 | HR43: 0 | HS43: 131 | HT43: 0 | HU43: 0 | HV43: 0 | HW43: 0 | HX43: 1 | HY43: 0 | HZ43: 0 | IA43: 0 | IB43: 0 | ID43: 175 | IE43: 7 | IF43: 1 | IG43: 0 | IH43: 1 | II43: 0 | IJ43: 0 | IK43: 0 | IL43: 142 | IM43: 19 | IN43: 34 | IO43: 31 | IP43: 37 | IQ43: 40 | IR43: 41 | IS43: 35 | IT43: 46 | IU43: 48 | IV43: 0 | IW43: 43 | IX43: 0 | IY43: 8 | IZ43: 17 | JA43: 1 | JB43: 225 | JC43: 6 | JD43: 0 | JE43: 2 | JF43: 1 | JG43: 0 | JH43: 1 | JI43: 0 | JJ43: 0 | JK43: 0 | JL43: 1 | JM43: 0 | JN43: 0 | JO43: 1 | JP43: 2 | JQ43: 1 | JR43: 0 | JS43: 0 | JT43: =SUM(JT37:JT42) -> 0 | JU43: 163 | JV43: 1 | JW43: 0 | JX43: 0 | JY43: 0 | JZ43: 1 | KA43: 1 | KB43: 0 | KC43: 0 | KD43: 0 | KE43: 130 | KF43: 1 | KG43: 0 | KH43: 0 | KI43: 0 | KJ43: 2 | KK43: 0 | KM43: 174 | KN43: 6 | KO43: 1 | KP43: 0 | KQ43: 0 | KR43: 0 | KS43: 0 | KT43: 0 | KU43: 0 | KV43: 4 | KW43: 1 | KX43: 0 | KY43: 0 | KZ43: 0 | LA43: 84 | LB43: 51 | LC43: 9 | LD43: 5 | LE43: 3 | LF43: 0 | LG43: 0 | LH43: 0 | LI43: 0 | LJ43: 9 | LK43: 13 | LL43: 3 | LM43: 0 | LN43: 1 | LO43: 142 | LP43: 123 | LQ43: 108 | LR43: 82 | LS43: 50 | LT43: 5 | LU43: 0 | LV43: 0 | LW43: 0 | LX43: 0 | LY43: 0 | LZ43: 0 | MA43: 0 | MB43: 1 | MC43: 3 | MD43: 2 | ME43: 0 | MF43: 0 | MG43: 0 | MH43: 0 | MI43: 0 | MJ43: 0 | MK43: 0 | ML43: 1 | MM43: 0 | MN43: 0 | MO43: 0 | MP43: 0 | MQ43: 0 | MR43: 1 | MS43: 0 | MT43: 0 | MU43: 0 | MV43: 1 | MW43: 1 | MX43: 3 | MY43: 0 | MZ43: 0 | NA43: 0 | NB43: 40 | NC43: 78 | ND43: 112 | NE43: 57 | NF43: 32 | NG43: 25 | NI43: =SUM(NI37:NI42) -> 0 | NJ43: 0 | NK43: 0 | NL43: 0 | NM43: 0 | NN43: 0 | NO43: 0 | NP43: 0 | NQ43: 0 | NR43: 0 | NS43: 0 | NT43: 0 | NU43: 0 | NV43: 0 | NW43: 0 | NX43: 0 | NY43: =SUM(NY37:NY42) -> 0 | NZ43: 0 | OA43: 0 | OB43: 0 | OC43: 60 | OD43: 21 | OE43: 0 | OF43: 54 | OG43: 39 | OH43: 0 | OI43: 47 | OJ43: 22 | OK43: 0 | OL43: 39 | OM43: 14 | ON43: 1 | OO43: 35 | OP43: 6 | OQ43: 0 | OR43: 30 | OS43: 13 | OT43: 0 | OU43: 29 | OV43: 19 | OW43: 0 | OX43: 24 | OY43: 9 | OZ43: 0 | PA43: 23 | PB43: 17 | PC43: 3 | PD43: 2 | PE43: 0 | PF43: 0 | PG43: 0 | PH43: 0 | PI43: 0 | PJ43: 0 | PK43: 0 | PL43: 0 | PM43: 0 | PN43: 90 | PO43: 41 | PP43: 37 | PQ43: 37 | PR43: 21 | PS43: 8 | PT43: 0 | PU43: 0 | PV43: 0 | PW43: 0 | PX43: 0 | PY43: 0 | PZ43: 0 | QA43: 0 | QB43: 0 | QC43: =SUM(QC37:QC42) -> 7,118 | QE43: =SUM(QE37:QE42) -> 670.0 | QF43: =SUM(QF37:QF42) -> 669.0 | QG43: =SUM(QG37:QG42) -> 368.0 | QH43: =SUM(QH37:QH42) -> 269.0 | QI43: =SUM(QI37:QI42) -> 362.0 | QJ43: =SUM(QJ37:QJ42) -> 272.0 | QK43: =SUM(QK37:QK42) -> 0.0 | QL43: =SUM(QL37:QL42) -> 0.0 | QM43: =SUM(QM37:QM42) -> 553.0 | QN43: =SUM(QN37:QN42) -> 652.0 | QO43: =SUM(QO37:QO42) -> 0.0 | QP43: 316.0 | QQ43: =SUM(QQ37:QQ42) -> 542.0 | QR43: =SUM(QR37:QR42) -> 240.0 | QS43: =SUM(QS37:QS42) -> 166.0 | QT43: =SUM(QT37:QT42) -> 314.0 | QU43: =SUM(QU37:QU42) -> 701.0 | QV43: =SUM(QV37:QV42) -> 349.0 | QW43: =SUM(QW37:QW42) -> 0.0 | QX43: =SUM(QX37:QX42) -> 0.0 | QY43: =SUM(QY37:QY42) -> 0.0 | QZ43: =SUM(QZ37:QZ42) -> 0.0 | RA43: =SUM(RA37:RA42) -> 0.0 | RB43: 0.0 | RC43: =SUM(RC37:RC42) -> 0.0 | RD43: 0.0 | RE43: =SUM(RE37:RE42) -> 0.0 | RF43: =SUM(RF37:RF42) -> 507.0 | RG43: =SUM(RG37:RG42) -> 0.0 | RH43: =SUM(RH37:RH42) -> 0.0 | RI43: =SUM(RI37:RI42) -> 0.0 | RJ43: =SUM(RJ37:RJ42) -> 168.0 | RK43: 37.0 | RL43: =SUM(RL37:RL42) -> 21.0 | RM43: 8.0 | RN43: 0 | RO43: 0 | RP43: 0 | RQ43: =SUM(RQ37:RQ42) -> 0.0 | RR43: =SUM(RR37:RR42) -> 0.0 | RS43: =SUM(RS37:RS42) -> 0.0 | RT43: =SUM(RT37:RT42) -> 0.0 | RU43: =SUM(RU37:RU42) -> 0.0 | RV43: =SUM(RV37:RV42) -> 0.0 | RW43: 6,950.0 | RY43: 0 | RZ43: 1 | SA43: 3 | SB43: 57 | SC43: 88 | SD43: 18 | SE43: =SUM(SE37:SE42) -> 167 | SF43: =SUM(SF37:SF42) -> 0 | SG43: 0 | SH43: 0 | SI43: 0 | SJ43: 0 | SK43: 0 | SL43: 0 | SM43: 0 | SN43: 7 | SO43: 1 | SQ43: 0 | SR43: 110 | SS43: 27 | SU43: =SUM(SU37:SU42) -> 0 | SV43: 8 | SW43: 0 | SX43: 110 | SY43: 27 | TA43: 0 | TB43: 0 | TC43: 0 | TD43: 0 | TE43: 0 | TF43: 0 | TG43: 0 | TH43: 0 | TI43: 0 | TJ43: 0 | TK43: 0 | TL43: 0 | TM43: 0 | TN43: 0 | TO43: 0 | TS43: =M43+DH43+'2_MERCADO_PRIVADO'!G43+'2_MERCADO_PRIVADO'!BW43 -> 351 | TT43: =DH43+'2_MERCADO_PRIVADO'!AP43+'2_MERCADO_PRIVADO'!BW43 -> 355 | TU43: =BR43+'2_MERCADO_PRIVADO'!AP43+'2_MERCADO_PRIVADO'!BW43+'2_MERCADO_PRIVADO'!DD43 -> 353 | TV43: =CH43+CX43+DL43+'2_MERCADO_PRIVADO'!BF43+'2_MERCADO_PRIVADO'!CM43+'2_MERCADO_PRIVADO'!DT43 -> 326 | TW43: =CO43+DE43+'2_MERCADO_PRIVADO'!BM43+'2_MERCADO_PRIVADO'!CT43+'2_MERCADO_PRIVADO'!EA43 -> 233 | TX43: =KR43+LK43+LP43+'2_MERCADO_PRIVADO'!MM43+'2_MERCADO_PRIVADO'!NF43+'2_MERCADO_PRIVADO'!NK43 -> 189 | TY43: =MV43+MW43+MX43+MY43+MZ43+NA43+NB43+NC43+ND43+NE43+NF43+NG43+'2_MERCADO_PRIVADO'!OQ43+'2_MERCADO_PRIVADO'!OR43+'2_MERCADO_PRIVADO'!OS43+'2_MERCADO_PRIVADO'!OT43+'2_MERCADO_PRIVADO'!OU43+'2_MERCADO_PRIVADO'!OV43+'2_MERCADO_PRIVADO'!OW43+'2_MERCADO_PRIVADO'!OX43+'2_MERCADO_PRIVADO'!OY43+'2_MERCADO_PRIVADO'!OZ43+'2_MERCADO_PRIVADO'!PA43+'2_MERCADO_PRIVADO'!PB43+'2_MERCADO_PRIVADO'!PC43+'2_MERCADO_PRIVADO'!PD43+'2_MERCADO_PRIVADO'!PE43+'2_MERCADO_PRIVADO'!PF43 -> 352 | TZ43: =OC43+'2_MERCADO_PRIVADO'!QO43 -> 65 | UA43: =OD43+'2_MERCADO_PRIVADO'!QP43 -> 22
D44: EN SITUACION DE DESPLAZAMIENTO | QC44: =SUM(E44:QB44)-SUM(PQ44:PT44)-SUM(PW44:PZ44) -> 0.00 | QE44: =SUM(E44:H44) -> 0.0 | QF44: =SUM(I44:BO44) -> 0.0 | QG44: =SUM(BP44:CW44) -> 0.0 | QH44: =SUM(CX44:DE44) -> 0.0 | QI44: =SUM(DF44:DT44) -> 0.0 | QJ44: =SUM(DU44:ET44) -> 0.0 | QK44: =SUM(EU44:FY44) -> 0.0 | QL44: =SUM(FZ44:HD44) -> 0.0 | QM44: =SUM(HE44:HF44) -> 0.0 | QN44: =SUM(HG44:HL44) -> 0.0 | QO44: =SUM(HM44:HR44) -> 0.0 | QP44: =SUM(HS44:IJ44) -> 0.0 | QQ44: =SUM(IK44:JA44) -> 0.0 | QR44: =SUM(JB44:JT44) -> 0.0 | QS44: =SUM(JU44:KD44) -> 0.0 | QT44: =SUM(KE44:KP44) -> 0.0 | QU44: =SUM(KQ44:MU44) -> 0.0 | QV44: =SUM(MV44:NG44) -> 0.0 | QW44: =SUM(NH44:NI44) -> 0.0 | QX44: =SUM(NJ44:NL44) -> 0.0 | QY44: =SUM(NM44:NO44) -> 0.0 | QZ44: =SUM(NP44) -> 0.0 | RA44: =SUM(NQ44) -> 0.0 | RB44: =SUM(NR44:NT44) -> 0.0 | RC44: =SUM(NU44) -> 0.0 | RD44: =SUM(NV44) -> 0.0 | RE44: =SUM(NW44:OB44) -> 0.0 | RF44: =SUM(OC44:PE44) -> 0.0 | RG44: =SUM(PF44:PG44) -> 0.0 | RH44: =SUM(PH44:PI44) -> 0.0 | RI44: =SUM(PJ44:PM44) -> 0.0 | RJ44: =SUM(PN44:PP44) -> 0.0 | RK44: =SUM(PQ44) -> 0.0 | RL44: =SUM(PR44) -> 0.0 | RM44: =SUM(PS44) -> 0.0 | RN44: 0 | RO44: 0 | RP44: 0 | RQ44: =SUM(PW44) -> 0.0 | RR44: =SUM(PX44) -> 0.0 | RS44: =SUM(PY44) -> 0.0 | RT44: =SUM(PZ44) -> 0.0 | RU44: =SUM(QA44) -> 0.0 | RV44: =SUM(QB44) -> 0.0 | RW44: =SUM(QE44:RU44)-SUM(RI44:RM44)-SUM(RQ44:RT44) -> 0.0 | SE44: =SUM(RY44:SD44) -> 0 | SU44: =SF44+SG44 -> 0 | SV44: =SH44+SI44+SJ44+SK44+SL44+SM44+SN44+SO44+SP44 -> 0 | SW44: =SQ44 -> 0 | SX44: =SR44 -> 0 | SY44: =SS44 -> 0 | TS44: =M44+DH44+'2_MERCADO_PRIVADO'!G44+'2_MERCADO_PRIVADO'!BW44 -> 0 | TT44: =DH44+'2_MERCADO_PRIVADO'!AP44+'2_MERCADO_PRIVADO'!BW44 -> 0 | TU44: =BR44+'2_MERCADO_PRIVADO'!AP44+'2_MERCADO_PRIVADO'!BW44+'2_MERCADO_PRIVADO'!DD44 -> 0 | TV44: =CH44+CX44+DL44+'2_MERCADO_PRIVADO'!BF44+'2_MERCADO_PRIVADO'!CM44+'2_MERCADO_PRIVADO'!DT44 -> 0 | TW44: =CO44+DE44+'2_MERCADO_PRIVADO'!BM44+'2_MERCADO_PRIVADO'!CT44+'2_MERCADO_PRIVADO'!EA44 -> 0 | TX44: =KR44+LK44+LP44+'2_MERCADO_PRIVADO'!MM44+'2_MERCADO_PRIVADO'!NF44+'2_MERCADO_PRIVADO'!NK44 -> 0 | TY44: =MV44+MW44+MX44+MY44+MZ44+NA44+NB44+NC44+ND44+NE44+NF44+NG44+'2_MERCADO_PRIVADO'!OQ44+'2_MERCADO_PRIVADO'!OR44+'2_MERCADO_PRIVADO'!OS44+'2_MERCADO_PRIVADO'!OT44+'2_MERCADO_PRIVADO'!OU44+'2_MERCADO_PRIVADO'!OV44+'2_MERCADO_PRIVADO'!OW44+'2_MERCADO_PRIVADO'!OX44+'2_MERCADO_PRIVADO'!OY44+'2_MERCADO_PRIVADO'!OZ44+'2_MERCADO_PRIVADO'!PA44+'2_MERCADO_PRIVADO'!PB44+'2_MERCADO_PRIVADO'!PC44+'2_MERCADO_PRIVADO'!PD44+'2_MERCADO_PRIVADO'!PE44+'2_MERCADO_PRIVADO'!PF44 -> 0 | TZ44: =OC44+'2_MERCADO_PRIVADO'!QO44 -> 0 | UA44: =OD44+'2_MERCADO_PRIVADO'!QP44 -> 0
D45: EN CONDICION DE DISCAPACIDAD | QC45: 0.00 | QE45: 0.0 | QF45: 0.0 | QG45: 0.0 | QH45: 0.0 | QI45: 0.0 | QJ45: 0.0 | QK45: 0.0 | QL45: 0.0 | QM45: 0.0 | QN45: 0.0 | QO45: 0.0 | QP45: 0.0 | QQ45: 0.0 | QR45: 0.0 | QS45: 0.0 | QT45: 0.0 | QU45: 0.0 | QV45: 0.0 | QW45: 0.0 | QX45: 0.0 | QY45: 0.0 | QZ45: 0.0 | RA45: 0.0 | RB45: 0.0 | RC45: 0.0 | RD45: 0.0 | RE45: 0.0 | RF45: 0.0 | RG45: 0.0 | RH45: 0.0 | RI45: 0.0 | RJ45: 0.0 | RK45: 0.0 | RL45: 0.0 | RM45: 0.0 | RN45: 0 | RO45: 0 | RP45: 0 | RQ45: 0.0 | RR45: 0.0 | RS45: 0.0 | RT45: 0.0 | RU45: 0.0 | RV45: 0.0 | RW45: 0.0 | SE45: 0 | SU45: 0 | SV45: 0 | SW45: 0 | SX45: 0 | SY45: 0 | TS45: =M45+DH45+'2_MERCADO_PRIVADO'!G45+'2_MERCADO_PRIVADO'!BW45 -> 0 | TT45: =DH45+'2_MERCADO_PRIVADO'!AP45+'2_MERCADO_PRIVADO'!BW45 -> 0 | TU45: =BR45+'2_MERCADO_PRIVADO'!AP45+'2_MERCADO_PRIVADO'!BW45+'2_MERCADO_PRIVADO'!DD45 -> 0 | TV45: =CH45+CX45+DL45+'2_MERCADO_PRIVADO'!BF45+'2_MERCADO_PRIVADO'!CM45+'2_MERCADO_PRIVADO'!DT45 -> 0 | TW45: =CO45+DE45+'2_MERCADO_PRIVADO'!BM45+'2_MERCADO_PRIVADO'!CT45+'2_MERCADO_PRIVADO'!EA45 -> 0 | TX45: =KR45+LK45+LP45+'2_MERCADO_PRIVADO'!MM45+'2_MERCADO_PRIVADO'!NF45+'2_MERCADO_PRIVADO'!NK45 -> 0 | TY45: =MV45+MW45+MX45+MY45+MZ45+NA45+NB45+NC45+ND45+NE45+NF45+NG45+'2_MERCADO_PRIVADO'!OQ45+'2_MERCADO_PRIVADO'!OR45+'2_MERCADO_PRIVADO'!OS45+'2_MERCADO_PRIVADO'!OT45+'2_MERCADO_PRIVADO'!OU45+'2_MERCADO_PRIVADO'!OV45+'2_MERCADO_PRIVADO'!OW45+'2_MERCADO_PRIVADO'!OX45+'2_MERCADO_PRIVADO'!OY45+'2_MERCADO_PRIVADO'!OZ45+'2_MERCADO_PRIVADO'!PA45+'2_MERCADO_PRIVADO'!PB45+'2_MERCADO_PRIVADO'!PC45+'2_MERCADO_PRIVADO'!PD45+'2_MERCADO_PRIVADO'!PE45+'2_MERCADO_PRIVADO'!PF45 -> 0 | TZ45: =OC45+'2_MERCADO_PRIVADO'!QO45 -> 0 | UA45: =OD45+'2_MERCADO_PRIVADO'!QP45 -> 0
D46: VICTIMAS DEL CONFLICTO ARMADO | QC46: 0.00 | QE46: 0.0 | QF46: 0.0 | QG46: 0.0 | QH46: 0.0 | QI46: 0.0 | QJ46: 0.0 | QK46: 0.0 | QL46: 0.0 | QM46: 0.0 | QN46: 0.0 | QO46: 0.0 | QP46: 0.0 | QQ46: 0.0 | QR46: 0.0 | QS46: 0.0 | QT46: 0.0 | QU46: 0.0 | QV46: 0.0 | QW46: 0.0 | QX46: 0.0 | QY46: 0.0 | QZ46: 0.0 | RA46: 0.0 | RB46: 0.0 | RC46: 0.0 | RD46: 0.0 | RE46: 0.0 | RF46: 0.0 | RG46: 0.0 | RH46: 0.0 | RI46: 0.0 | RJ46: 0.0 | RK46: 0.0 | RL46: 0.0 | RM46: 0.0 | RN46: 0 | RO46: 0 | RP46: 0 | RQ46: 0.0 | RR46: 0.0 | RS46: 0.0 | RT46: 0.0 | RU46: 0.0 | RV46: 0.0 | RW46: 0.0 | SE46: 0 | SU46: 0 | SV46: 0 | SW46: 0 | SX46: 0 | SY46: 0 | TS46: =M46+DH46+'2_MERCADO_PRIVADO'!G46+'2_MERCADO_PRIVADO'!BW46 -> 0 | TT46: =DH46+'2_MERCADO_PRIVADO'!AP46+'2_MERCADO_PRIVADO'!BW46 -> 0 | TU46: =BR46+'2_MERCADO_PRIVADO'!AP46+'2_MERCADO_PRIVADO'!BW46+'2_MERCADO_PRIVADO'!DD46 -> 0 | TV46: =CH46+CX46+DL46+'2_MERCADO_PRIVADO'!BF46+'2_MERCADO_PRIVADO'!CM46+'2_MERCADO_PRIVADO'!DT46 -> 0 | TW46: =CO46+DE46+'2_MERCADO_PRIVADO'!BM46+'2_MERCADO_PRIVADO'!CT46+'2_MERCADO_PRIVADO'!EA46 -> 0 | TX46: =KR46+LK46+LP46+'2_MERCADO_PRIVADO'!MM46+'2_MERCADO_PRIVADO'!NF46+'2_MERCADO_PRIVADO'!NK46 -> 0 | TY46: =MV46+MW46+MX46+MY46+MZ46+NA46+NB46+NC46+ND46+NE46+NF46+NG46+'2_MERCADO_PRIVADO'!OQ46+'2_MERCADO_PRIVADO'!OR46+'2_MERCADO_PRIVADO'!OS46+'2_MERCADO_PRIVADO'!OT46+'2_MERCADO_PRIVADO'!OU46+'2_MERCADO_PRIVADO'!OV46+'2_MERCADO_PRIVADO'!OW46+'2_MERCADO_PRIVADO'!OX46+'2_MERCADO_PRIVADO'!OY46+'2_MERCADO_PRIVADO'!OZ46+'2_MERCADO_PRIVADO'!PA46+'2_MERCADO_PRIVADO'!PB46+'2_MERCADO_PRIVADO'!PC46+'2_MERCADO_PRIVADO'!PD46+'2_MERCADO_PRIVADO'!PE46+'2_MERCADO_PRIVADO'!PF46 -> 0 | TZ46: =OC46+'2_MERCADO_PRIVADO'!QO46 -> 0 | UA46: =OD46+'2_MERCADO_PRIVADO'!QP46 -> 0
D47: ZONAS VEREDALES | QC47: 0.00 | QD47: =CONCATENATE($G$2,$B$28) -> 1102 | QE47: =SUM(E47:H47) -> 0.0 | QF47: =SUM(I47:BN47) -> 0.0 | QG47: =SUM(BP47:CW47) -> 0.0 | QH47: =SUM(CX47:DE47) -> 0.0 | QI47: =SUM(DF47:DT47) -> 0.0 | QJ47: =SUM(DU47:ET47) -> 0.0 | QK47: =SUM(EU47:FY47) -> 0.0 | QL47: =SUM(FZ47:HD47) -> 0.0 | QM47: =SUM(HE47:HF47) -> 0.0 | QN47: =SUM(HG47:HL47) -> 0.0 | QO47: =SUM(HR47:II47) -> 0.0 | QP47: 0.0 | QQ47: =SUM(IK47:JA47) -> 0.0 | QR47: =SUM(JB47:JT47) -> 0.0 | QS47: =SUM(JU47:KD47) -> 0.0 | QT47: =SUM(KE47:KP47) -> 0.0 | QU47: =SUM(KQ47:MU47) -> 0.0 | QV47: =SUM(MV47:NG47) -> 0.0 | QW47: =SUM(NH47:NL47) -> 0.0 | QX47: =SUM(NM47:NO47) -> 0.0 | QY47: =SUM(QY44:QY46) -> 0.0 | QZ47: =SUM(NP47) -> 0.0 | RA47: 0.0 | RB47: =SUM(NS47:NT47) -> 0.0 | RC47: 0.0 | RD47: 0.0 | RE47: =SUM(NZ47:OB47) -> 0.0 | RF47: =SUM(OC47:PE47) -> 0.0 | RG47: =SUM(PF47:PI47) -> 0.0 | RH47: =SUM(PJ47:PP47) -> 0.0 | RI47: =PQ47 -> 0.0 | RJ47: =PR47 -> 0.0 | RK47: =SUM(PQ47) -> 0.0 | RL47: 0.0 | RM47: 0.0 | RN47: 0 | RO47: 0 | RP47: 0 | RQ47: 0.0 | RR47: 0.0 | RS47: 0.0 | RT47: 0.0 | RU47: 0.0 | RV47: 0.0 | RW47: =SUM(QE47:RU47)-SUM(RI47:RM47)-SUM(RQ47:RT47) -> 0.0 | SE47: 0 | SU47: 0 | SV47: 0 | SW47: 0 | SX47: 0 | SY47: 0 | TS47: =M47+DH47+'2_MERCADO_PRIVADO'!G47+'2_MERCADO_PRIVADO'!BW47 -> 0 | TT47: =DH47+'2_MERCADO_PRIVADO'!AP47+'2_MERCADO_PRIVADO'!BW47 -> 0 | TU47: =BR47+'2_MERCADO_PRIVADO'!AP47+'2_MERCADO_PRIVADO'!BW47+'2_MERCADO_PRIVADO'!DD47 -> 0 | TV47: =CH47+CX47+DL47+'2_MERCADO_PRIVADO'!BF47+'2_MERCADO_PRIVADO'!CM47+'2_MERCADO_PRIVADO'!DT47 -> 0 | TW47: =CO47+DE47+'2_MERCADO_PRIVADO'!BM47+'2_MERCADO_PRIVADO'!CT47+'2_MERCADO_PRIVADO'!EA47 -> 0 | TX47: =KR47+LK47+LP47+'2_MERCADO_PRIVADO'!MM47+'2_MERCADO_PRIVADO'!NF47+'2_MERCADO_PRIVADO'!NK47 -> 0 | TY47: =MV47+MW47+MX47+MY47+MZ47+NA47+NB47+NC47+ND47+NE47+NF47+NG47+'2_MERCADO_PRIVADO'!OQ47+'2_MERCADO_PRIVADO'!OR47+'2_MERCADO_PRIVADO'!OS47+'2_MERCADO_PRIVADO'!OT47+'2_MERCADO_PRIVADO'!OU47+'2_MERCADO_PRIVADO'!OV47+'2_MERCADO_PRIVADO'!OW47+'2_MERCADO_PRIVADO'!OX47+'2_MERCADO_PRIVADO'!OY47+'2_MERCADO_PRIVADO'!OZ47+'2_MERCADO_PRIVADO'!PA47+'2_MERCADO_PRIVADO'!PB47+'2_MERCADO_PRIVADO'!PC47+'2_MERCADO_PRIVADO'!PD47+'2_MERCADO_PRIVADO'!PE47+'2_MERCADO_PRIVADO'!PF47 -> 0 | TZ47: =OC47+'2_MERCADO_PRIVADO'!QO47 -> 0 | UA47: =OD47+'2_MERCADO_PRIVADO'!QP47 -> 0
B48: 03 | C48: SANTAFE | D48: FEMENINO | E48: 0 | F48: 2 | G48: 0 | H48: 0 | I48: 0 | J48: 0 | K48: 0 | L48: 0 | M48: 0 | N48: 0 | O48: 1 | P48: 3 | Q48: 0 | R48: 0 | S48: 3 | T48: 0 | U48: 1 | V48: 0 | W48: 0 | X48: 0 | Y48: 1 | Z48: 0 | AA48: 0 | AB48: 0 | AC48: 0 | AD48: 0 | AE48: 0 | AF48: 0 | AG48: 0 | AH48: 0 | AI48: 0 | AJ48: 0 | AK48: 0 | AL48: 0 | AM48: 0 | AN48: 0 | AO48: 0 | AP48: 0 | AQ48: 0 | AR48: 0 | AS48: 0 | AT48: 0 | AU48: 0 | AV48: 0 | AW48: 0 | AX48: 0 | AY48: 0 | AZ48: 0 | BA48: 0 | BB48: 0 | BC48: 0 | BD48: 0 | BE48: 0 | BF48: 0 | BG48: 0 | BH48: 0 | BI48: 0 | BJ48: 0 | BK48: 0 | BL48: 0 | BM48: 0 | BN48: 0 | BO48: 0 | BP48: 25 | BQ48: 30 | BR48: 37 | BS48: 1 | BT48: 1 | BU48: 3 | BV48: 0 | BW48: 0 | BX48: 3 | BY48: 0 | BZ48: 1 | CA48: 1 | CB48: 0 | CC48: 0 | CD48: 1 | CE48: 0 | CF48: 0 | CG48: 0 | CH48: 0 | CI48: 0 | CJ48: 0 | CK48: 0 | CL48: 0 | CM48: 0 | CN48: 0 | CO48: 0 | CP48: 0 | CQ48: 0 | CR48: 0 | CS48: 0 | CT48: 0 | CU48: 0 | CV48: 0 | CW48: 0 | CX48: 44 | CY48: 5 | CZ48: 1 | DA48: 0 | DB48: 1 | DC48: 0 | DD48: 0 | DE48: 33 | DF48: 25 | DG48: 30 | DH48: 37 | DI48: 1 | DJ48: 0 | DK48: 0 | DL48: 0 | DM48: 0 | DN48: 0 | DO48: 0 | DP48: 0 | DQ48: 0 | DR48: 0 | DS48: 0 | DT48: 0 | DU48: 0 | DV48: 0 | DW48: 0 | DX48: 0 | DY48: 1 | DZ48: 3 | EA48: 0 | EB48: 0 | EC48: 3 | ED48: 0 | EE48: 1 | EF48: 1 | EG48: 0 | EH48: 0 | EI48: 1 | EJ48: 0 | EK48: 0 | EL48: 0 | EM48: 44 | EN48: 5 | EO48: 1 | EP48: 0 | EQ48: 0 | ER48: 0 | ES48: 0 | ET48: 32 | EU48: 0 | EV48: 0 | EW48: 0 | EX48: 0 | EY48: 0 | EZ48: 0 | FA48: 0 | FB48: 0 | FC48: 0 | FD48: 0 | FE48: 0 | FF48: 0 | FG48: 0 | FH48: 0 | FI48: 0 | FJ48: 0 | FK48: 0 | FL48: 0 | FM48: 0 | FN48: 0 | FO48: 0 | FP48: 0 | FQ48: 0 | FR48: 0 | FS48: 0 | FT48: 0 | FU48: 0 | FV48: 0 | FW48: 0 | FX48: 0 | FY48: 0 | FZ48: 0 | GA48: 0 | GB48: 0 | GC48: 0 | GD48: 0 | GE48: 0 | GF48: 0 | GG48: 0 | GH48: 0 | GI48: 0 | GJ48: 0 | GK48: 0 | GL48: 0 | GM48: 0 | GN48: 0 | GO48: 0 | GP48: 0 | GQ48: 0 | GR48: 0 | GS48: 0 | GT48: 0 | GU48: 0 | GV48: 0 | GW48: 0 | GX48: 0 | GY48: 0 | GZ48: 0 | HA48: 0 | HB48: 0 | HC48: 0 | HD48: 0 | HE48: 23 | HF48: 25 | HG48: 25 | HH48: 31 | HI48: 30 | HJ48: 3 | HK48: 0 | HL48: 15 | HM48: 0 | HN48: 0 | HO48: 0 | HP48: 0 | HQ48: 0 | HR48: 0 | HS48: 31 | HT48: 4 | HU48: 2 | HV48: 1 | HW48: 0 | HX48: 0 | HY48: 0 | HZ48: 1 | IA48: 0 | IB48: 0 | IC48: 0 | ID48: 33 | IE48: 2 | IF48: 2 | IG48: 1 | IH48: 0 | II48: 2 | IJ48: 0 | IK48: 0 | IL48: 35 | IM48: 8 | IN48: 11 | IO48: 10 | IP48: 2 | IQ48: 1 | IR48: 5 | IS48: 5 | IT48: 6 | IU48: 5 | IV48: 8 | IW48: 1 | IX48: 1 | IY48: 1 | IZ48: 1 | JA48: 2 | JB48: 44 | JC48: 5 | JD48: 1 | JE48: 0 | JF48: 0 | JG48: 1 | JH48: 0 | JI48: 2 | JJ48: 0 | JK48: 0 | JL48: 0 | JM48: 0 | JN48: 0 | JO48: 0 | JP48: 0 | JQ48: 0 | JR48: 0 | JS48: 0 | JT48: 0 | JU48: 33 | JV48: 6 | JW48: 2 | JX48: 4 | JY48: 3 | JZ48: 0 | KA48: 2 | KB48: 4 | KC48: 0 | KD48: 1 | KE48: 33 | KF48: 6 | KG48: 2 | KH48: 4 | KI48: 4 | KJ48: 0 | KK48: 2 | KL48: 0 | KM48: 29 | KN48: 2 | KO48: 0 | KP48: 0 | KQ48: 0 | KR48: 0 | KS48: 0 | KT48: 1 | KU48: 4 | KV48: 0 | KW48: 1 | KX48: 0 | KY48: 0 | KZ48: 0 | LA48: 25 | LB48: 13 | LC48: 4 | LD48: 1 | LE48: 2 | LF48: 0 | LG48: 0 | LH48: 0 | LI48: 0 | LJ48: 5 | LK48: 1 | LL48: 0 | LM48: 0 | LN48: 0 | LO48: 5 | LP48: 6 | LQ48: 4 | LR48: 3 | LS48: 3 | LT48: 1 | LU48: 0 | LV48: 0 | LW48: 0 | LX48: 0 | LY48: 0 | LZ48: 0 | MA48: 0 | MB48: 0 | MC48: 0 | MD48: 0 | ME48: 0 | MF48: 0 | MG48: 0 | MH48: 0 | MI48: 0 | MJ48: 0 | MK48: 0 | ML48: 0 | MM48: 0 | MN48: 0 | MO48: 0 | MP48: 0 | MQ48: 0 | MR48: 0 | MS48: 0 | MT48: 0 | MU48: 0 | MV48: 0 | MW48: 0 | MX48: 1 | MY48: 0 | MZ48: 0 | NA48: 0 | NB48: 2 | NC48: 12 | ND48: 7 | NE48: 4 | NF48: 2 | NG48: 0 | NH48: 0 | NI48: 0 | NJ48: 0 | NK48: 0 | NL48: 0 | NM48: 0 | NN48: 0 | NO48: 0 | NP48: 0 | NQ48: 0 | NR48: 0 | NS48: 0 | NT48: 0 | NU48: 0 | NV48: 0 | NW48: 0 | NX48: 0 | NY48: 0 | NZ48: 0 | OA48: 0 | OB48: 0 | OC48: 15 | OD48: 3 | OE48: 0 | OF48: 8 | OG48: 5 | OH48: 0 | OI48: 6 | OJ48: 9 | OK48: 0 | OL48: 7 | OM48: 2 | ON48: 0 | OO48: 5 | OP48: 3 | OQ48: 0 | OR48: 2 | OS48: 1 | OT48: 0 | OU48: 3 | OV48: 5 | OW48: 0 | OX48: 1 | OY48: 1 | OZ48: 0 | PA48: 3 | PB48: 1 | PC48: 0 | PD48: 1 | PE48: 0 | PF48: 0 | PG48: 0 | PH48: 0 | PI48: 0 | PJ48: 0 | PK48: 0 | PL48: 0 | PM48: 0 | PN48: 0 | PO48: 0 | PP48: 0 | PQ48: 0 | PR48: 0 | PS48: 0 | PT48: 0 | PU48: 0 | PV48: 0 | PW48: 0 | PX48: 0 | PY48: 0 | PZ48: 0 | QA48: 0 | QB48: 0 | QC48: 1,094.00 | QE48: 2.0 | QF48: =SUM(I48:BO48) -> 9.0 | QG48: 103.0 | QH48: 84.0 | QI48: 93.0 | QJ48: 92.0 | QK48: 0.0 | QL48: 0.0 | QM48: 48.0 | QN48: 104.0 | QO48: =SUM(HM48:HR48) -> 0.0 | QP48: 79.0 | QQ48: 102.0 | QR48: 53.0 | QS48: 55.0 | QT48: 82.0 | QU48: 79.0 | QV48: 28.0 | QW48: =SUM(NH48:NI48) -> 0.0 | QX48: =SUM(NJ48:NL48) -> 0.0 | QY48: =SUM(NM48:NO48) -> 0.0 | QZ48: 0.0 | RA48: 0.0 | RB48: =SUM(NR48:NT48) -> 0.0 | RC48: =SUM(NU48) -> 0.0 | RD48: =SUM(NV48) -> 0.0 | RE48: =SUM(NW48:OB48) -> 0.0 | RF48: =SUM(OC48:PE48) -> 81.0 | RG48: =SUM(PF48:PG48) -> 0.0 | RH48: =SUM(PH48:PI48) -> 0.0 | RI48: =SUM(PJ48:PM48) -> 0.0 | RJ48: =SUM(PN48:PP48) -> 0.0 | RK48: =SUM(PQ48) -> 0.0 | RL48: =SUM(PR48) -> 0.0 | RM48: =SUM(PS48) -> 0.0 | RN48: 0 | RO48: 0 | RP48: 0 | RQ48: =SUM(PW48) -> 0.0 | RR48: =SUM(PX48) -> 0.0 | RS48: =SUM(PY48) -> 0.0 | RT48: =SUM(PZ48) -> 0.0 | RU48: =SUM(QA48) -> 0.0 | RV48: =SUM(QB48) -> 0.0 | RW48: =SUM(QE48:RU48)-SUM(RI48:RM48)-SUM(RQ48:RT48) -> 1,094.0 | RY48: 0 | RZ48: 3 | SA48: 0 | SB48: 0 | SC48: 1 | SD48: 0 | SE48: 4 | SN48: 4 | SO48: 1 | SP48: 0 | SQ48: 0 | SU48: 0 | SV48: 5 | SW48: 0 | SX48: 0 | SY48: 0 | TS48: =M48+DH48+'2_MERCADO_PRIVADO'!G48+'2_MERCADO_PRIVADO'!BW48 -> 37 | TT48: =DH48+'2_MERCADO_PRIVADO'!AP48+'2_MERCADO_PRIVADO'!BW48 -> 37 | TU48: =BR48+'2_MERCADO_PRIVADO'!AP48+'2_MERCADO_PRIVADO'!BW48+'2_MERCADO_PRIVADO'!DD48 -> 37 | TV48: =CH48+CX48+DL48+'2_MERCADO_PRIVADO'!BF48+'2_MERCADO_PRIVADO'!CM48+'2_MERCADO_PRIVADO'!DT48 -> 44 | TW48: =CO48+DE48+'2_MERCADO_PRIVADO'!BM48+'2_MERCADO_PRIVADO'!CT48+'2_MERCADO_PRIVADO'!EA48 -> 33 | TX48: =KR48+LK48+LP48+'2_MERCADO_PRIVADO'!MM48+'2_MERCADO_PRIVADO'!NF48+'2_MERCADO_PRIVADO'!NK48 -> 7 | TY48: =MV48+MW48+MX48+MY48+MZ48+NA48+NB48+NC48+ND48+NE48+NF48+NG48+'2_MERCADO_PRIVADO'!OQ48+'2_MERCADO_PRIVADO'!OR48+'2_MERCADO_PRIVADO'!OS48+'2_MERCADO_PRIVADO'!OT48+'2_MERCADO_PRIVADO'!OU48+'2_MERCADO_PRIVADO'!OV48+'2_MERCADO_PRIVADO'!OW48+'2_MERCADO_PRIVADO'!OX48+'2_MERCADO_PRIVADO'!OY48+'2_MERCADO_PRIVADO'!OZ48+'2_MERCADO_PRIVADO'!PA48+'2_MERCADO_PRIVADO'!PB48+'2_MERCADO_PRIVADO'!PC48+'2_MERCADO_PRIVADO'!PD48+'2_MERCADO_PRIVADO'!PE48+'2_MERCADO_PRIVADO'!PF48 -> 28 | TZ48: =OC48+'2_MERCADO_PRIVADO'!QO48 -> 15 | UA48: =OD48+'2_MERCADO_PRIVADO'!QP48 -> 3
